Workbook

Sheet Feuil1 (hidden)
C1: FC1 40 | D1: FC1 44 | E1: FC1 48 | F1: FC1 53 | G1: FC1 58 | H1: FC1 63 | I1: FC1 69 | J1: FC1 +69 | K1: FC2 44 | L1: FC2 48 | M1: FC2 53 | N1: FC2 58 | O1: FC2 63 | P1: FC2 69 | Q1: FC2 +69 | R1: FJ48 | S1: FJ53 | T1: FJ58 | U1: FJ63 | V1: FJ69 | W1: FJ75 | X1: FJ+75 | Y1: FS48 | Z1: FS53 | AA1: FS58 | AB1: FS63 | AC1: FS69 | AD1: FS75 | AE1: FS+75 | AF1: C1 45 | AG1: C1 50 | AH1: C1 56 | AI1: C1 62 | AJ1: C1 69 | AK1: C1 77 | AL1: C1 85 | AM1: C1 94 | AN1: C1 +94 | AO1: C2 50 | AP1: C2 56 | AQ1: C2 62 | AR1: C2 69 | AS1: C2 77 | AT1: C2 85 | AU1: C2 94 | AV1: C2 +94 | AW1: J56 | AX1: J62 | AY1: J69 | AZ1: J77 | BA1: J85 | BB1: J94 | BC1: J105 | BD1: J+105 | BE1: S56 | BF1: S62 | BG1: S69 | BH1: S77 | BI1: S85 | BJ1: S94 | BK1: S105 | BL1: S+105
B2: DEBUTANT | C2: 20 | D2: 25 | E2: 25 | F2: 35 | G2: 40 | H2: 45 | I2: 50 | J2: 60 | K2: 30 | L2: 35 | M2: 45 | N2: 50 | O2: 55 | P2: 60 | Q2: 70 | R2: 45 | S2: 55 | T2: 60 | U2: 65 | V2: 70 | W2: 80 | X2: 90 | Y2: 55 | Z2: 65 | AA2: 70 | AB2: 75 | AC2: 80 | AD2: 95 | AE2: 100 | AF2: 35 | AG2: 40 | AH2: 50 | AI2: 75 | AJ2: 85 | AK2: 90 | AL2: 100 | AM2: 110 | AN2: 120 | AO2: 45 | AP2: 65 | AQ2: 85 | AR2: 95 | AS2: 110 | AT2: 120 | AU2: 125 | AV2: 135 | AW2: 80 | AX2: 90 | AY2: 110 | AZ2: 130 | BA2: 145 | BB2: 150 | BC2: 155 | BD2: 165 | BE2: 95 | BF2: 120 | BG2: 130 | BH2: 150 | BI2: 165 | BJ2: 170 | BK2: 175 | BL2: 185
B3: DEPARTEMENTAL | C3: 25 | D3: 35 | E3: 35 | F3: 45 | G3: 50 | H3: 55 | I3: 60 | J3: 70 | K3: 40 | L3: 45 | M3: 55 | N3: 60 | O3: 65 | P3: 70 | Q3: 80 | R3: 55 | S3: 65 | T3: 70 | U3: 75 | V3: 80 | W3: 95 | X3: 100 | Y3: 65 | Z3: 75 | AA3: 80 | AB3: 85 | AC3: 90 | AD3: 105 | AE3: 110 | AF3: 50 | AG3: 55 | AH3: 70 | AI3: 95 | AJ3: 105 | AK3: 110 | AL3: 120 | AM3: 130 | AN3: 140 | AO3: 65 | AP3: 85 | AQ3: 105 | AR3: 115 | AS3: 130 | AT3: 140 | AU3: 145 | AV3: 155 | AW3: 100 | AX3: 120 | AY3: 130 | AZ3: 150 | BA3: 165 | BB3: 170 | BC3: 175 | BD3: 185 | BE3: 115 | BF3: 135 | BG3: 150 | BH3: 170 | BI3: 185 | BJ3: 190 | BK3: 195 | BL3: 205
B4: REGIONAL | C4: 35 | D4: 40 | E4: 45 | F4: 55 | G4: 60 | H4: 65 | I4: 70 | J4: 80 | K4: 50 | L4: 55 | M4: 65 | N4: 70 | O4: 75 | P4: 80 | Q4: 95 | R4: 65 | S4: 75 | T4: 80 | U4: 85 | V4: 90 | W4: 105 | X4: 110 | Y4: 75 | Z4: 85 | AA4: 90 | AB4: 95 | AC4: 105 | AD4: 115 | AE4: 125 | AF4: 60 | AG4: 65 | AH4: 85 | AI4: 105 | AJ4: 115 | AK4: 130 | AL4: 140 | AM4: 145 | AN4: 155 | AO4: 80 | AP4: 100 | AQ4: 120 | AR4: 130 | AS4: 150 | AT4: 160 | AU4: 165 | AV4: 175 | AW4: 115 | AX4: 135 | AY4: 150 | AZ4: 170 | BA4: 185 | BB4: 190 | BC4: 195 | BD4: 205 | BE4: 130 | BF4: 150 | BG4: 170 | BH4: 190 | BI4: 205 | BJ4: 215 | BK4: 220 | BL4: 225
B5: INTERREGIONAL | C5: 45 | D5: 50 | E5: 55 | F5: 65 | G5: 70 | H5: 75 | I5: 80 | J5: 95 | K5: 60 | L5: 65 | M5: 75 | N5: 80 | O5: 85 | P5: 90 | Q5: 105 | R5: 75 | S5: 85 | T5: 90 | U5: 95 | V5: 105 | W5: 115 | X5: 125 | Y5: 85 | Z5: 95 | AA5: 100 | AB5: 110 | AC5: 120 | AD5: 130 | AE5: 140 | AF5: 75 | AG5: 80 | AH5: 100 | AI5: 120 | AJ5: 130 | AK5: 150 | AL5: 160 | AM5: 165 | AN5: 175 | AO5: 95 | AP5: 115 | AQ5: 135 | AR5: 150 | AS5: 170 | AT5: 180 | AU5: 185 | AV5: 195 | AW5: 130 | AX5: 150 | AY5: 170 | AZ5: 190 | BA5: 205 | BB5: 215 | BC5: 220 | BD5: 225 | BE5: 145 | BF5: 170 | BG5: 190 | BH5: 210 | BI5: 225 | BJ5: 235 | BK5: 245 | BL5: 250
B6: FEDERAL | C6: 50 | D6: 60 | E6: 65 | F6: 75 | G6: 80 | H6: 85 | I6: 90 | J6: 105 | K6: 70 | L6: 75 | M6: 85 | N6: 90 | O6: 95 | P6: 105 | Q6: 115 | R6: 85 | S6: 95 | T6: 100 | U6: 110 | V6: 120 | W6: 130 | X6: 140 | Y6: 95 | Z6: 105 | AA6: 115 | AB6: 125 | AC6: 135 | AD6: 145 | AE6: 150 | AF6: 90 | AG6: 95 | AH6: 115 | AI6: 135 | AJ6: 150 | AK6: 170 | AL6: 180 | AM6: 185 | AN6: 195 | AO6: 110 | AP6: 130 | AQ6: 150 | AR6: 170 | AS6: 185 | AT6: 200 | AU6: 210 | AV6: 220 | AW6: 145 | AX6: 170 | AY6: 190 | AZ6: 210 | BA6: 225 | BB6: 235 | BC6: 245 | BD6: 250 | BE6: 170 | BF6: 190 | BG6: 220 | BH6: 240 | BI6: 250 | BJ6: 260 | BK6: 270 | BL6: 280
B7: NATIONAL | C7: 60 | D7: 70 | E7: 75 | F7: 85 | G7: 90 | H7: 95 | I7: 105 | J7: 115 | K7: 80 | L7: 85 | M7: 95 | N7: 100 | O7: 110 | P7: 120 | Q7: 130 | R7: 95 | S7: 105 | T7: 115 | U7: 125 | V7: 135 | W7: 145 | X7: 150 | Y7: 110 | Z7: 120 | AA7: 130 | AB7: 140 | AC7: 150 | AD7: 160 | AE7: 170 | AF7: 105 | AG7: 110 | AH7: 130 | AI7: 150 | AJ7: 170 | AK7: 185 | AL7: 200 | AM7: 210 | AN7: 220 | AO7: 120 | AP7: 145 | AQ7: 170 | AR7: 190 | AS7: 200 | AT7: 220 | AU7: 225 | AV7: 235 | AW7: 170 | AX7: 190 | AY7: 220 | AZ7: 240 | BA7: 250 | BB7: 260 | BC7: 270 | BD7: 280 | BE7: 190 | BF7: 210 | BG7: 240 | BH7: 265 | BI7: 280 | BJ7: 290 | BK7: 300 | BL7: 310
B8: INTERNATIONAL B | C8: 70 | D8: 80 | E8: 85 | F8: 95 | G8: 100 | H8: 110 | I8: 120 | J8: 130 | K8: 90 | L8: 95 | M8: 105 | N8: 115 | O8: 125 | P8: 135 | Q8: 145 | R8: 110 | S8: 120 | T8: 130 | U8: 140 | V8: 150 | W8: 160 | X8: 170 | Y8: 125 | Z8: 140 | AA8: 150 | AB8: 160 | AC8: 170 | AD8: 180 | AE8: 190 | AF8: 115 | AG8: 120 | AH8: 145 | AI8: 170 | AJ8: 190 | AK8: 200 | AL8: 220 | AM8: 225 | AN8: 235 | AO8: 135 | AP8: 170 | AQ8: 190 | AR8: 210 | AS8: 220 | AT8: 240 | AU8: 250 | AV8: 260 | AW8: 190 | AX8: 210 | AY8: 240 | AZ8: 260 | BA8: 280 | BB8: 290 | BC8: 300 | BD8: 310 | BE8: 210 | BF8: 230 | BG8: 260 | BH8: 285 | BI8: 300 | BJ8: 310 | BK8: 325 | BL8: 330
B9: INTERNATIONAL A | C9: 80 | D9: 90 | E9: 95 | F9: 105 | G9: 115 | H9: 125 | I9: 135 | J9: 145 | K9: 100 | L9: 110 | M9: 120 | N9: 130 | O9: 140 | P9: 150 | Q9: 160 | R9: 125 | S9: 135 | T9: 150 | U9: 160 | V9: 170 | W9: 180 | X9: 190 | Y9: 140 | Z9: 160 | AA9: 170 | AB9: 180 | AC9: 190 | AD9: 195 | AE9: 210 | AF9: 130 | AG9: 135 | AH9: 170 | AI9: 190 | AJ9: 210 | AK9: 220 | AL9: 240 | AM9: 250 | AN9: 260 | AO9: 150 | AP9: 190 | AQ9: 210 | AR9: 230 | AS9: 250 | AT9: 260 | AU9: 280 | AV9: 280 | AW9: 210 | AX9: 230 | AY9: 250 | AZ9: 285 | BA9: 300 | BB9: 310 | BC9: 325 | BD9: 330 | BE9: 225 | BF9: 255 | BG9: 275 | BH9: 305 | BI9: 325 | BJ9: 330 | BK9: 345 | BL9: 355
B10: OLYMPIQUE | C10: 1000 | D10: 1000 | E10: 1000 | F10: 1000 | G10: 1000 | H10: 1000 | I10: 1000 | J10: 1000 | K10: 1000 | L10: 1000 | M10: 1000 | N10: 1000 | O10: 1000 | P10: 1000 | Q10: 1000 | R10: 1000 | S10: 1000 | T10: 1000 | U10: 1000 | V10: 1000 | W10: 1000 | X10: 1000 | Y10: 155 | Z10: 175 | AA10: 190 | AB10: 200 | AC10: 205 | AD10: 210 | AE10: 225 | AF10: 1000 | AG10: 1000 | AH10: 1000 | AI10: 1000 | AJ10: 1000 | AK10: 1000 | AL10: 10000 | AM10: 1000 | AN10: 1000 | AO10: 1000 | AP10: 1000 | AQ10: 1000 | AR10: 1000 | AS10: 1000 | AT10: 10000 | AU10: 1000 | AV10: 1000 | AW10: 1000 | AX10: 1000 | AY10: 1000 | AZ10: 10000 | BA10: 1000 | BB10: 1000 | BC10: 1000 | BD10: 10000 | BE10: 240 | BF10: 270 | BG10: 290 | BH10: 320 | BI10: 345 | BJ10: 355 | BK10: 365 | BL10: 375
B11: MINIME | C11: CADET | D11: CADET | E11: JUNIOR | F11: SENIOR | H11: MINIME | I11: CADETTE | J11: CADETTE | K11: JUNIOR | L11: SENIOR
A12: 20.01 | B12: NON | C12: C1 45 | D12: C2 50 | E12: J56 | F12: S56 | G12: 20.01 | H12: NON | I12: FC1 40 | J12: FC2 44 | K12: FJ48 | L12: FS48
A13: 34.01 | B13: NON | C13: C1 45 | D13: C2 50 | E13: J56 | F13: S56 | G13: 30.01 | H13: NON | I13: FC1 40 | J13: FC2 44 | K13: FJ48 | L13: FS48
A14: 38.01 | B14: NON | C14: C1 45 | D14: C2 50 | E14: J56 | F14: S56 | G14: 35.01 | H14: NON | I14: FC1 40 | J14: FC2 44 | K14: FJ48 | L14: FS48
A15: 40.01 | B15: NON | C15: C1 45 | D15: C2 50 | E15: J56 | F15: S56 | G15: 36.01 | H15: NON | I15: FC1 40 | J15: FC2 44 | K15: FJ48 | L15: FS48
A16: 45.01 | B16: NON | C16: C1 50 | D16: C2 50 | E16: J56 | F16: S56 | G16: 40.01 | H16: NON | I16: FC1 44 | J16: FC2 44 | K16: FJ48 | L16: FS48
A17: 50.01 | B17: NON | C17: C1 56 | D17: C2 56 | E17: J56 | F17: S56 | G17: 44.01 | H17: NON | I17: FC1 48 | J17: FC2 48 | K17: FJ48 | L17: FS48
A18: 52.05 | B18: NON | C18: C1 56 | D18: C2 56 | E18: J56 | F18: S56 | G18: 48.01 | H18: NON | I18: FC1 53 | J18: FC2 53 | K18: FJ53 | L18: FS53
A19: 56.01 | B19: NON | C19: C1 62 | D19: C2 62 | E19: J62 | F19: S62 | G19: 53.01 | H19: NON | I19: FC1 58 | J19: FC2 58 | K19: FJ58 | L19: FS58
A20: 62.01 | B20: NON | C20: C1 69 | D20: C2 69 | E20: J69 | F20: S69 | G20: 58.01 | H20: NON | I20: FC1 63 | J20: FC2 63 | K20: FJ63 | L20: FS63
A21: 69.01 | B21: NON | C21: C1 77 | D21: C2 77 | E21: J77 | F21: S77 | G21: 63.01 | H21: NON | I21: FC1 69 | J21: FC2 69 | K21: FJ69 | L21: FS69
A22: 77.01 | B22: NON | C22: C1 85 | D22: C2 85 | E22: J85 | F22: S85 | G22: 69.01 | H22: NON | I22: FC1 +69 | J22: FC2 +69 | K22: FJ75 | L22: FS75
A23: 85.01 | B23: NON | C23: C1 94 | D23: C2 94 | E23: J94 | F23: S94 | G23: 75.01 | H23: NON | I23: FC1 +69 | J23: FC2 +69 | K23: FJ+75 | L23: FS+75
A24: 94.01 | B24: NON | C24: C1 +94 | D24: C2 +94 | E24: J105 | F24: S105 | G24: 110 | H24: NON | I24: FC1 +69 | J24: FC2 +69 | K24: FJ+75 | L24: FS+75
A25: 105.01 | B25: NON | C25: C1 +94 | D25: C2 +94 | E25: J+105 | F25: S+105 | G25: 140 | H25: NON | I25: FC1 +69 | J25: FC2 +69 | K25: FJ+75 | L25: FS+75
A26: 110 | B26: NON | C26: C1 +94 | D26: C2 +94 | E26: J+105 | F26: S+105
A27: 120 | B27: NON | C27: C1 +94 | D27: C2 +94 | E27: J+105 | F27: S+105
A28: 130 | B28: NON | C28: C1 +94 | D28: C2 +94 | E28: J+105 | F28: S+105
A29: 140 | B29: NON | C29: C1 +94 | D29: C2 +94 | E29: J+105 | F29: S+105

Sheet CADETS 1
H1: Championnat de Zone de Printemps | Q1: DATE : | S1: 2015-04-05
G2: CLASSEMENT NATIONAL des ZONES
A4: SEXE | B4: ZONE | C4: REG. | D4: CL. | E4: LICENCE | F4: NOMS | G4: Prénoms | H4: AN | I4: POIDS | J4: CLUB | K4: NAT | L4: 1 | M4: 2 | N4: 3 | O4: ARR | P4: 1 | Q4: 2 | R4: 3 | S4: EP-J | T4: Total | U4: KP-2PC | V4: SERIE | X4: Catég | Y4: IWF | AB4: DEB | AC4: DEP + | AD4: REG + | AE4: IRG + | AF4: FED + | AG4: NAT + | AH4: INTB + | AI4: INTA + | AJ4: OLY +
A6: F | B6: Nord | C6: NPC | D6: 1 | E6: 298339 | F6: RIQUIER | G6: Angélique | H6: 2001 | I6: 43.98 | J6: CHCD Comines | K6: F | L6: 24 | M6: 25 | N6: -26 | O6: =IF(H6="","",IF(MAXA(L6:N6)<=0,0,MAXA(L6:N6))) -> 25 | P6: 35 | Q6: 37 | R6: -38 | S6: =IF(H6="","",IF(MAXA(P6:R6)<=0,0,MAXA(P6:R6))) -> 37 | T6: =IF(H6="","",IF(OR(O6=0,S6=0),0,O6+S6)) -> 62 | U6: =T6-I6*2 -> -25.96 | V6: =IF(H6="","",AQ6) -> FED + | W6: =IF(AJ6>=0,AJ6,IF(AI6>=0,AI6,IF(AH6>=0,AH6,IF(AG6>=0,AG6,IF(AF6>=0,AF6,IF(AE6>=0,AE6,IF(AD6>=0,AD6,IF(AC6>=0,AC6,AB6)))))))) -> 2 | X6: =IF(I6="","",IF(A6="H",IF(OR(H6="SEN",H6<1995),VLOOKUP(I6,Feuil1!$A$11:$G$29,6),IF(AND(H6>1994,H6<1998),VLOOKUP(I6,Feuil1!$A$11:$G$29,5),IF(AND(H6>1997,H6<2000),VLOOKUP(I6,Feuil1!$A$11:$G$29,4),IF(AND(H6>1999,H6<2002),VLOOKUP(I6,Feuil1!$A$11:$G$29,3),VLOOKUP(I6,Feuil1!$A$11:$G$29,2))))),IF(OR(H6="SEN",H6<1995),VLOOKUP(I6,Feuil1!$G$11:$L$25,6),IF(AND(H6>1994,H6<1998),VLOOKUP(I6,Feuil1!$G$11:$L$25,5),IF(AND(H6>1997,H6<2000),VLOOKUP(I6,Feuil1!$G$11:$L$25,4),IF(AND(H6>1999,H6<2002),VLOOKUP(I6,Feuil1!$G$11:$L$25,3),VLOOKUP(I6,Feuil1!$G$11:$L$25,2))))))) -> FC1 44 | Y6: =IF(I6="","",IF(A6="H",10^(0.794358141*LOG(I6/174.393)^2)*T6,IF(A6="F",10^(0.89726074*LOG(I6/148.026)^2)*T6,""))) -> 110.0690729 | AB6: =T6-HLOOKUP(X6,Feuil1!$C$1:$BL$10,2,FALSE) -> 37 | AC6: =T6-HLOOKUP(X6,Feuil1!$C$1:$BL$10,3,FALSE) -> 27 | AD6: =T6-HLOOKUP(X6,Feuil1!$C$1:$BL$10,4,FALSE) -> 22 | AE6: =T6-HLOOKUP(X6,Feuil1!$C$1:$BL$10,5,FALSE) -> 12 | AF6: =T6-HLOOKUP(X6,Feuil1!$C$1:$BL$10,6,FALSE) -> 2 | AG6: =T6-HLOOKUP(X6,Feuil1!$C$1:$BL$10,7,FALSE) -> -8 | AH6: =T6-HLOOKUP(X6,Feuil1!$C$1:$BL$10,8,FALSE) -> -18 | AI6: =T6-HLOOKUP(X6,Feuil1!$C$1:$BL$10,9,FALSE) -> -28 | AJ6: =T6-HLOOKUP(X6,Feuil1!$C$1:$BL$10,10,FALSE) -> -938 | AQ6: =IF(AJ6>=0,$AJ$4,IF(AI6>=0,$AI$4,IF(AH6>=0,$AH$4,IF(AG6>=0,$AG$4,IF(AF6>=0,$AF$4,IF(AE6>=0,$AE$4,IF(AD6>=0,$AD$4,IF(AC6>=0,$AC$4,$AB$4)))))))) -> FED +
A8: F | B8: NE | C8: ALS | D8: 1 | E8: 244336 | F8: CHRISTOPHEL | G8: Marie | H8: 2000 | I8: 46.2 | J8: ASPTT Strasbourg | K8: F | L8: 44 | M8: 47 | N8: 48 | O8: =IF(H8="","",IF(MAXA(L8:N8)<=0,0,MAXA(L8:N8))) -> 48 | P8: 57 | Q8: 60 | R8: -62 | S8: =IF(H8="","",IF(MAXA(P8:R8)<=0,0,MAXA(P8:R8))) -> 60 | T8: =IF(H8="","",IF(OR(O8=0,S8=0),0,O8+S8)) -> 108 | U8: =T8-I8*2 -> 15.6 | V8: =IF(H8="","",AQ8) -> INTA + | W8: =IF(AJ8>=0,AJ8,IF(AI8>=0,AI8,IF(AH8>=0,AH8,IF(AG8>=0,AG8,IF(AF8>=0,AF8,IF(AE8>=0,AE8,IF(AD8>=0,AD8,IF(AC8>=0,AC8,AB8)))))))) -> 13 | X8: =IF(I8="","",IF(A8="H",IF(OR(H8="SEN",H8<1995),VLOOKUP(I8,Feuil1!$A$11:$G$29,6),IF(AND(H8>1994,H8<1998),VLOOKUP(I8,Feuil1!$A$11:$G$29,5),IF(AND(H8>1997,H8<2000),VLOOKUP(I8,Feuil1!$A$11:$G$29,4),IF(AND(H8>1999,H8<2002),VLOOKUP(I8,Feuil1!$A$11:$G$29,3),VLOOKUP(I8,Feuil1!$A$11:$G$29,2))))),IF(OR(H8="SEN",H8<1995),VLOOKUP(I8,Feuil1!$G$11:$L$25,6),IF(AND(H8>1994,H8<1998),VLOOKUP(I8,Feuil1!$G$11:$L$25,5),IF(AND(H8>1997,H8<2000),VLOOKUP(I8,Feuil1!$G$11:$L$25,4),IF(AND(H8>1999,H8<2002),VLOOKUP(I8,Feuil1!$G$11:$L$25,3),VLOOKUP(I8,Feuil1!$G$11:$L$25,2))))))) -> FC1 48 | Y8: =IF(I8="","",IF(A8="H",10^(0.794358141*LOG(I8/174.393)^2)*T8,IF(A8="F",10^(0.89726074*LOG(I8/148.026)^2)*T8,""))) -> 183.1803457 | AB8: =T8-HLOOKUP(X8,Feuil1!$C$1:$BL$10,2,FALSE) -> 83 | AC8: =T8-HLOOKUP(X8,Feuil1!$C$1:$BL$10,3,FALSE) -> 73 | AD8: =T8-HLOOKUP(X8,Feuil1!$C$1:$BL$10,4,FALSE) -> 63 | AE8: =T8-HLOOKUP(X8,Feuil1!$C$1:$BL$10,5,FALSE) -> 53 | AF8: =T8-HLOOKUP(X8,Feuil1!$C$1:$BL$10,6,FALSE) -> 43 | AG8: =T8-HLOOKUP(X8,Feuil1!$C$1:$BL$10,7,FALSE) -> 33 | AH8: =T8-HLOOKUP(X8,Feuil1!$C$1:$BL$10,8,FALSE) -> 23 | AI8: =T8-HLOOKUP(X8,Feuil1!$C$1:$BL$10,9,FALSE) -> 13 | AJ8: =T8-HLOOKUP(X8,Feuil1!$C$1:$BL$10,10,FALSE) -> -892 | AQ8: =IF(AJ8>=0,$AJ$4,IF(AI8>=0,$AI$4,IF(AH8>=0,$AH$4,IF(AG8>=0,$AG$4,IF(AF8>=0,$AF$4,IF(AE8>=0,$AE$4,IF(AD8>=0,$AD$4,IF(AC8>=0,$AC$4,$AB$4)))))))) -> INTA +
A9: F | B9: CO | C9: PDL | D9: 2 | E9: 379232 | F9: HEUZE | G9: Emma | H9: 2000 | I9: 45.35 | J9: CA Evron 53 | K9: F | L9: 31 | M9: 33 | N9: 35 | O9: =IF(H9="","",IF(MAXA(L9:N9)<=0,0,MAXA(L9:N9))) -> 35 | P9: 42 | Q9: -45 | R9: -45 | S9: =IF(H9="","",IF(MAXA(P9:R9)<=0,0,MAXA(P9:R9))) -> 42 | T9: =IF(H9="","",IF(OR(O9=0,S9=0),0,O9+S9)) -> 77 | U9: =T9-I9*2 -> -13.7 | V9: =IF(H9="","",AQ9) -> NAT + | W9: =IF(AJ9>=0,AJ9,IF(AI9>=0,AI9,IF(AH9>=0,AH9,IF(AG9>=0,AG9,IF(AF9>=0,AF9,IF(AE9>=0,AE9,IF(AD9>=0,AD9,IF(AC9>=0,AC9,AB9)))))))) -> 2 | X9: =IF(I9="","",IF(A9="H",IF(OR(H9="SEN",H9<1995),VLOOKUP(I9,Feuil1!$A$11:$G$29,6),IF(AND(H9>1994,H9<1998),VLOOKUP(I9,Feuil1!$A$11:$G$29,5),IF(AND(H9>1997,H9<2000),VLOOKUP(I9,Feuil1!$A$11:$G$29,4),IF(AND(H9>1999,H9<2002),VLOOKUP(I9,Feuil1!$A$11:$G$29,3),VLOOKUP(I9,Feuil1!$A$11:$G$29,2))))),IF(OR(H9="SEN",H9<1995),VLOOKUP(I9,Feuil1!$G$11:$L$25,6),IF(AND(H9>1994,H9<1998),VLOOKUP(I9,Feuil1!$G$11:$L$25,5),IF(AND(H9>1997,H9<2000),VLOOKUP(I9,Feuil1!$G$11:$L$25,4),IF(AND(H9>1999,H9<2002),VLOOKUP(I9,Feuil1!$G$11:$L$25,3),VLOOKUP(I9,Feuil1!$G$11:$L$25,2))))))) -> FC1 48 | Y9: =IF(I9="","",IF(A9="H",10^(0.794358141*LOG(I9/174.393)^2)*T9,IF(A9="F",10^(0.89726074*LOG(I9/148.026)^2)*T9,""))) -> 132.838132 | AB9: =T9-HLOOKUP(X9,Feuil1!$C$1:$BL$10,2,FALSE) -> 52 | AC9: =T9-HLOOKUP(X9,Feuil1!$C$1:$BL$10,3,FALSE) -> 42 | AD9: =T9-HLOOKUP(X9,Feuil1!$C$1:$BL$10,4,FALSE) -> 32 | AE9: =T9-HLOOKUP(X9,Feuil1!$C$1:$BL$10,5,FALSE) -> 22 | AF9: =T9-HLOOKUP(X9,Feuil1!$C$1:$BL$10,6,FALSE) -> 12 | AG9: =T9-HLOOKUP(X9,Feuil1!$C$1:$BL$10,7,FALSE) -> 2 | AH9: =T9-HLOOKUP(X9,Feuil1!$C$1:$BL$10,8,FALSE) -> -8 | AI9: =T9-HLOOKUP(X9,Feuil1!$C$1:$BL$10,9,FALSE) -> -18 | AJ9: =T9-HLOOKUP(X9,Feuil1!$C$1:$BL$10,10,FALSE) -> -923 | AQ9: =IF(AJ9>=0,$AJ$4,IF(AI9>=0,$AI$4,IF(AH9>=0,$AH$4,IF(AG9>=0,$AG$4,IF(AF9>=0,$AF$4,IF(AE9>=0,$AE$4,IF(AD9>=0,$AD$4,IF(AC9>=0,$AC$4,$AB$4)))))))) -> NAT +
A10: F | B10: NE | C10: ALS | D10: 3 | E10: 340255 | F10: MIGUEL | G10: Lea | H10: 2001 | I10: 47.5 | J10: Dorlisheim FH | K10: F | L10: 27 | M10: 30 | N10: -32 | O10: =IF(H10="","",IF(MAXA(L10:N10)<=0,0,MAXA(L10:N10))) -> 30 | P10: 36 | Q10: 39 | R10: 41 | S10: =IF(H10="","",IF(MAXA(P10:R10)<=0,0,MAXA(P10:R10))) -> 41 | T10: =IF(H10="","",IF(OR(O10=0,S10=0),0,O10+S10)) -> 71 | U10: =T10-I10*2 -> -24 | V10: =IF(H10="","",AQ10) -> FED + | W10: =IF(AJ10>=0,AJ10,IF(AI10>=0,AI10,IF(AH10>=0,AH10,IF(AG10>=0,AG10,IF(AF10>=0,AF10,IF(AE10>=0,AE10,IF(AD10>=0,AD10,IF(AC10>=0,AC10,AB10)))))))) -> 6 | X10: =IF(I10="","",IF(A10="H",IF(OR(H10="SEN",H10<1995),VLOOKUP(I10,Feuil1!$A$11:$G$29,6),IF(AND(H10>1994,H10<1998),VLOOKUP(I10,Feuil1!$A$11:$G$29,5),IF(AND(H10>1997,H10<2000),VLOOKUP(I10,Feuil1!$A$11:$G$29,4),IF(AND(H10>1999,H10<2002),VLOOKUP(I10,Feuil1!$A$11:$G$29,3),VLOOKUP(I10,Feuil1!$A$11:$G$29,2))))),IF(OR(H10="SEN",H10<1995),VLOOKUP(I10,Feuil1!$G$11:$L$25,6),IF(AND(H10>1994,H10<1998),VLOOKUP(I10,Feuil1!$G$11:$L$25,5),IF(AND(H10>1997,H10<2000),VLOOKUP(I10,Feuil1!$G$11:$L$25,4),IF(AND(H10>1999,H10<2002),VLOOKUP(I10,Feuil1!$G$11:$L$25,3),VLOOKUP(I10,Feuil1!$G$11:$L$25,2))))))) -> FC1 48 | Y10: =IF(I10="","",IF(A10="H",10^(0.794358141*LOG(I10/174.393)^2)*T10,IF(A10="F",10^(0.89726074*LOG(I10/148.026)^2)*T10,""))) -> 117.4646372 | AB10: =T10-HLOOKUP(X10,Feuil1!$C$1:$BL$10,2,FALSE) -> 46 | AC10: =T10-HLOOKUP(X10,Feuil1!$C$1:$BL$10,3,FALSE) -> 36 | AD10: =T10-HLOOKUP(X10,Feuil1!$C$1:$BL$10,4,FALSE) -> 26 | AE10: =T10-HLOOKUP(X10,Feuil1!$C$1:$BL$10,5,FALSE) -> 16 | AF10: =T10-HLOOKUP(X10,Feuil1!$C$1:$BL$10,6,FALSE) -> 6 | AG10: =T10-HLOOKUP(X10,Feuil1!$C$1:$BL$10,7,FALSE) -> -4 | AH10: =T10-HLOOKUP(X10,Feuil1!$C$1:$BL$10,8,FALSE) -> -14 | AI10: =T10-HLOOKUP(X10,Feuil1!$C$1:$BL$10,9,FALSE) -> -24 | AJ10: =T10-HLOOKUP(X10,Feuil1!$C$1:$BL$10,10,FALSE) -> -929 | AQ10: =IF(AJ10>=0,$AJ$4,IF(AI10>=0,$AI$4,IF(AH10>=0,$AH$4,IF(AG10>=0,$AG$4,IF(AF10>=0,$AF$4,IF(AE10>=0,$AE$4,IF(AD10>=0,$AD$4,IF(AC10>=0,$AC$4,$AB$4)))))))) -> FED +
A11: F | B11: CO | C11: BRE | D11: 4 | E11: 339426 | F11: PIRIS | G11: Océanne | H11: 2000 | I11: 46.5 | J11: ES Saint Avé | K11: F | L11: 27 | M11: 30 | N11: -35 | O11: =IF(H11="","",IF(MAXA(L11:N11)<=0,0,MAXA(L11:N11))) -> 30 | P11: 35 | Q11: 40 | R11: -45 | S11: =IF(H11="","",IF(MAXA(P11:R11)<=0,0,MAXA(P11:R11))) -> 40 | T11: =IF(H11="","",IF(OR(O11=0,S11=0),0,O11+S11)) -> 70 | U11: =T11-I11*2 -> -23 | V11: =IF(H11="","",AQ11) -> FED + | W11: =IF(AJ11>=0,AJ11,IF(AI11>=0,AI11,IF(AH11>=0,AH11,IF(AG11>=0,AG11,IF(AF11>=0,AF11,IF(AE11>=0,AE11,IF(AD11>=0,AD11,IF(AC11>=0,AC11,AB11)))))))) -> 5 | X11: =IF(I11="","",IF(A11="H",IF(OR(H11="SEN",H11<1995),VLOOKUP(I11,Feuil1!$A$11:$G$29,6),IF(AND(H11>1994,H11<1998),VLOOKUP(I11,Feuil1!$A$11:$G$29,5),IF(AND(H11>1997,H11<2000),VLOOKUP(I11,Feuil1!$A$11:$G$29,4),IF(AND(H11>1999,H11<2002),VLOOKUP(I11,Feuil1!$A$11:$G$29,3),VLOOKUP(I11,Feuil1!$A$11:$G$29,2))))),IF(OR(H11="SEN",H11<1995),VLOOKUP(I11,Feuil1!$G$11:$L$25,6),IF(AND(H11>1994,H11<1998),VLOOKUP(I11,Feuil1!$G$11:$L$25,5),IF(AND(H11>1997,H11<2000),VLOOKUP(I11,Feuil1!$G$11:$L$25,4),IF(AND(H11>1999,H11<2002),VLOOKUP(I11,Feuil1!$G$11:$L$25,3),VLOOKUP(I11,Feuil1!$G$11:$L$25,2))))))) -> FC1 48 | Y11: =IF(I11="","",IF(A11="H",10^(0.794358141*LOG(I11/174.393)^2)*T11,IF(A11="F",10^(0.89726074*LOG(I11/148.026)^2)*T11,""))) -> 118.034601 | AB11: =T11-HLOOKUP(X11,Feuil1!$C$1:$BL$10,2,FALSE) -> 45 | AC11: =T11-HLOOKUP(X11,Feuil1!$C$1:$BL$10,3,FALSE) -> 35 | AD11: =T11-HLOOKUP(X11,Feuil1!$C$1:$BL$10,4,FALSE) -> 25 | AE11: =T11-HLOOKUP(X11,Feuil1!$C$1:$BL$10,5,FALSE) -> 15 | AF11: =T11-HLOOKUP(X11,Feuil1!$C$1:$BL$10,6,FALSE) -> 5 | AG11: =T11-HLOOKUP(X11,Feuil1!$C$1:$BL$10,7,FALSE) -> -5 | AH11: =T11-HLOOKUP(X11,Feuil1!$C$1:$BL$10,8,FALSE) -> -15 | AI11: =T11-HLOOKUP(X11,Feuil1!$C$1:$BL$10,9,FALSE) -> -25 | AJ11: =T11-HLOOKUP(X11,Feuil1!$C$1:$BL$10,10,FALSE) -> -930 | AQ11: =IF(AJ11>=0,$AJ$4,IF(AI11>=0,$AI$4,IF(AH11>=0,$AH$4,IF(AG11>=0,$AG$4,IF(AF11>=0,$AF$4,IF(AE11>=0,$AE$4,IF(AD11>=0,$AD$4,IF(AC11>=0,$AC$4,$AB$4)))))))) -> FED +
A12: F | B12: Nord | C12: PIC | D12: 5 | E12: 378365 | F12: MONTOYA | G12: Chloé | H12: 2000 | I12: 47.7 | J12: Villers-Bretonneux KC | K12: F | L12: 25 | M12: 27 | N12: -29 | O12: =IF(H12="","",IF(MAXA(L12:N12)<=0,0,MAXA(L12:N12))) -> 27 | P12: 35 | Q12: -38 | R12: 38 | S12: =IF(H12="","",IF(MAXA(P12:R12)<=0,0,MAXA(P12:R12))) -> 38 | T12: =IF(H12="","",IF(OR(O12=0,S12=0),0,O12+S12)) -> 65 | U12: =T12-I12*2 -> -30.4 | V12: =IF(H12="","",AQ12) -> FED + | W12: =IF(AJ12>=0,AJ12,IF(AI12>=0,AI12,IF(AH12>=0,AH12,IF(AG12>=0,AG12,IF(AF12>=0,AF12,IF(AE12>=0,AE12,IF(AD12>=0,AD12,IF(AC12>=0,AC12,AB12)))))))) -> 0 | X12: =IF(I12="","",IF(A12="H",IF(OR(H12="SEN",H12<1995),VLOOKUP(I12,Feuil1!$A$11:$G$29,6),IF(AND(H12>1994,H12<1998),VLOOKUP(I12,Feuil1!$A$11:$G$29,5),IF(AND(H12>1997,H12<2000),VLOOKUP(I12,Feuil1!$A$11:$G$29,4),IF(AND(H12>1999,H12<2002),VLOOKUP(I12,Feuil1!$A$11:$G$29,3),VLOOKUP(I12,Feuil1!$A$11:$G$29,2))))),IF(OR(H12="SEN",H12<1995),VLOOKUP(I12,Feuil1!$G$11:$L$25,6),IF(AND(H12>1994,H12<1998),VLOOKUP(I12,Feuil1!$G$11:$L$25,5),IF(AND(H12>1997,H12<2000),VLOOKUP(I12,Feuil1!$G$11:$L$25,4),IF(AND(H12>1999,H12<2002),VLOOKUP(I12,Feuil1!$G$11:$L$25,3),VLOOKUP(I12,Feuil1!$G$11:$L$25,2))))))) -> FC1 48 | Y12: =IF(I12="","",IF(A12="H",10^(0.794358141*LOG(I12/174.393)^2)*T12,IF(A12="F",10^(0.89726074*LOG(I12/148.026)^2)*T12,""))) -> 107.1392632 | AB12: =T12-HLOOKUP(X12,Feuil1!$C$1:$BL$10,2,FALSE) -> 40 | AC12: =T12-HLOOKUP(X12,Feuil1!$C$1:$BL$10,3,FALSE) -> 30 | AD12: =T12-HLOOKUP(X12,Feuil1!$C$1:$BL$10,4,FALSE) -> 20 | AE12: =T12-HLOOKUP(X12,Feuil1!$C$1:$BL$10,5,FALSE) -> 10 | AF12: =T12-HLOOKUP(X12,Feuil1!$C$1:$BL$10,6,FALSE) -> 0 | AG12: =T12-HLOOKUP(X12,Feuil1!$C$1:$BL$10,7,FALSE) -> -10 | AH12: =T12-HLOOKUP(X12,Feuil1!$C$1:$BL$10,8,FALSE) -> -20 | AI12: =T12-HLOOKUP(X12,Feuil1!$C$1:$BL$10,9,FALSE) -> -30 | AJ12: =T12-HLOOKUP(X12,Feuil1!$C$1:$BL$10,10,FALSE) -> -935 | AQ12: =IF(AJ12>=0,$AJ$4,IF(AI12>=0,$AI$4,IF(AH12>=0,$AH$4,IF(AG12>=0,$AG$4,IF(AF12>=0,$AF$4,IF(AE12>=0,$AE$4,IF(AD12>=0,$AD$4,IF(AC12>=0,$AC$4,$AB$4)))))))) -> FED +
A14: F | B14: NE | C14: ALS | D14: 1 | E14: 300315 | F14: IMBS | G14: Honorine | H14: 2001 | I14: 48.9 | J14: Dorlisheim FH | K14: F | L14: 37 | M14: 40 | N14: 42 | O14: 42 | P14: 47 | Q14: 50 | R14: 53 | S14: 53 | T14: 95 | U14: -2.8 | V14: INTB + | W14: 0 | X14: =IF(I14="","",IF(A14="H",IF(OR(H14="SEN",H14<1995),VLOOKUP(I14,Feuil1!$A$11:$G$29,6),IF(AND(H14>1994,H14<1998),VLOOKUP(I14,Feuil1!$A$11:$G$29,5),IF(AND(H14>1997,H14<2000),VLOOKUP(I14,Feuil1!$A$11:$G$29,4),IF(AND(H14>1999,H14<2002),VLOOKUP(I14,Feuil1!$A$11:$G$29,3),VLOOKUP(I14,Feuil1!$A$11:$G$29,2))))),IF(OR(H14="SEN",H14<1995),VLOOKUP(I14,Feuil1!$G$11:$L$25,6),IF(AND(H14>1994,H14<1998),VLOOKUP(I14,Feuil1!$G$11:$L$25,5),IF(AND(H14>1997,H14<2000),VLOOKUP(I14,Feuil1!$G$11:$L$25,4),IF(AND(H14>1999,H14<2002),VLOOKUP(I14,Feuil1!$G$11:$L$25,3),VLOOKUP(I14,Feuil1!$G$11:$L$25,2))))))) -> FC1 53 | Y14: 153.2286251 | AB14: =T14-HLOOKUP(X14,Feuil1!$C$1:$BL$10,2,FALSE) -> 60 | AC14: =T14-HLOOKUP(X14,Feuil1!$C$1:$BL$10,3,FALSE) -> 50 | AD14: =T14-HLOOKUP(X14,Feuil1!$C$1:$BL$10,4,FALSE) -> 40 | AE14: =T14-HLOOKUP(X14,Feuil1!$C$1:$BL$10,5,FALSE) -> 30 | AF14: =T14-HLOOKUP(X14,Feuil1!$C$1:$BL$10,6,FALSE) -> 20 | AG14: =T14-HLOOKUP(X14,Feuil1!$C$1:$BL$10,7,FALSE) -> 10 | AH14: =T14-HLOOKUP(X14,Feuil1!$C$1:$BL$10,8,FALSE) -> 0 | AI14: =T14-HLOOKUP(X14,Feuil1!$C$1:$BL$10,9,FALSE) -> -10 | AJ14: =T14-HLOOKUP(X14,Feuil1!$C$1:$BL$10,10,FALSE) -> -905 | AQ14: INTB +
A15: F | B15: SEST | C15: LAN | D15: 2 | E15: 290105 | F15: ROMERO | G15: Heloise | H15: 2000 | I15: 49.57 | J15: NARBONNE | K15: F | L15: 35 | M15: 38 | N15: -40 | O15: 38 | P15: 52 | Q15: 55 | R15: 57 | S15: 57 | T15: 95 | U15: -4.14 | V15: INTB + | W15: 0 | X15: =IF(I15="","",IF(A15="H",IF(OR(H15="SEN",H15<1995),VLOOKUP(I15,Feuil1!$A$11:$G$29,6),IF(AND(H15>1994,H15<1998),VLOOKUP(I15,Feuil1!$A$11:$G$29,5),IF(AND(H15>1997,H15<2000),VLOOKUP(I15,Feuil1!$A$11:$G$29,4),IF(AND(H15>1999,H15<2002),VLOOKUP(I15,Feuil1!$A$11:$G$29,3),VLOOKUP(I15,Feuil1!$A$11:$G$29,2))))),IF(OR(H15="SEN",H15<1995),VLOOKUP(I15,Feuil1!$G$11:$L$25,6),IF(AND(H15>1994,H15<1998),VLOOKUP(I15,Feuil1!$G$11:$L$25,5),IF(AND(H15>1997,H15<2000),VLOOKUP(I15,Feuil1!$G$11:$L$25,4),IF(AND(H15>1999,H15<2002),VLOOKUP(I15,Feuil1!$G$11:$L$25,3),VLOOKUP(I15,Feuil1!$G$11:$L$25,2))))))) -> FC1 53 | Y15: 151.4501055 | AB15: =T15-HLOOKUP(X15,Feuil1!$C$1:$BL$10,2,FALSE) -> 60 | AC15: =T15-HLOOKUP(X15,Feuil1!$C$1:$BL$10,3,FALSE) -> 50 | AD15: =T15-HLOOKUP(X15,Feuil1!$C$1:$BL$10,4,FALSE) -> 40 | AE15: =T15-HLOOKUP(X15,Feuil1!$C$1:$BL$10,5,FALSE) -> 30 | AF15: =T15-HLOOKUP(X15,Feuil1!$C$1:$BL$10,6,FALSE) -> 20 | AG15: =T15-HLOOKUP(X15,Feuil1!$C$1:$BL$10,7,FALSE) -> 10 | AH15: =T15-HLOOKUP(X15,Feuil1!$C$1:$BL$10,8,FALSE) -> 0 | AI15: =T15-HLOOKUP(X15,Feuil1!$C$1:$BL$10,9,FALSE) -> -10 | AJ15: =T15-HLOOKUP(X15,Feuil1!$C$1:$BL$10,10,FALSE) -> -905 | AQ15: INTB +
A16: F | B16: SO | C16: LIM | D16: 3 | E16: 326705 | F16: LOPEZ | G16: Mélissa | H16: 2001 | I16: 50.6 | J16: LIMOGES AVA | K16: F | L16: -32 | M16: 32 | N16: 35 | O16: 35 | P16: 41 | Q16: 44 | R16: 46 | S16: 46 | T16: 81 | U16: -20.2 | V16: FED + | W16: 6 | X16: =IF(I16="","",IF(A16="H",IF(OR(H16="SEN",H16<1995),VLOOKUP(I16,Feuil1!$A$11:$G$29,6),IF(AND(H16>1994,H16<1998),VLOOKUP(I16,Feuil1!$A$11:$G$29,5),IF(AND(H16>1997,H16<2000),VLOOKUP(I16,Feuil1!$A$11:$G$29,4),IF(AND(H16>1999,H16<2002),VLOOKUP(I16,Feuil1!$A$11:$G$29,3),VLOOKUP(I16,Feuil1!$A$11:$G$29,2))))),IF(OR(H16="SEN",H16<1995),VLOOKUP(I16,Feuil1!$G$11:$L$25,6),IF(AND(H16>1994,H16<1998),VLOOKUP(I16,Feuil1!$G$11:$L$25,5),IF(AND(H16>1997,H16<2000),VLOOKUP(I16,Feuil1!$G$11:$L$25,4),IF(AND(H16>1999,H16<2002),VLOOKUP(I16,Feuil1!$G$11:$L$25,3),VLOOKUP(I16,Feuil1!$G$11:$L$25,2))))))) -> FC1 53 | Y16: 126.9075293 | AB16: =T16-HLOOKUP(X16,Feuil1!$C$1:$BL$10,2,FALSE) -> 46 | AC16: =T16-HLOOKUP(X16,Feuil1!$C$1:$BL$10,3,FALSE) -> 36 | AD16: =T16-HLOOKUP(X16,Feuil1!$C$1:$BL$10,4,FALSE) -> 26 | AE16: =T16-HLOOKUP(X16,Feuil1!$C$1:$BL$10,5,FALSE) -> 16 | AF16: =T16-HLOOKUP(X16,Feuil1!$C$1:$BL$10,6,FALSE) -> 6 | AG16: =T16-HLOOKUP(X16,Feuil1!$C$1:$BL$10,7,FALSE) -> -4 | AH16: =T16-HLOOKUP(X16,Feuil1!$C$1:$BL$10,8,FALSE) -> -14 | AI16: =T16-HLOOKUP(X16,Feuil1!$C$1:$BL$10,9,FALSE) -> -24 | AJ16: =T16-HLOOKUP(X16,Feuil1!$C$1:$BL$10,10,FALSE) -> -919 | AQ16: FED +
A18: F | B18: SEST | C18: RAL | D18: 1 | E18: 280309 | F18: BARBIER | G18: Clarisse | H18: 2000 | I18: 54 | J18: C.H. VAULX EN VELIN | K18: F | L18: 41 | M18: 44 | N18: -46 | O18: =IF(H18="","",IF(MAXA(L18:N18)<=0,0,MAXA(L18:N18))) -> 44 | P18: 54 | Q18: 58 | R18: 61 | S18: =IF(H18="","",IF(MAXA(P18:R18)<=0,0,MAXA(P18:R18))) -> 61 | T18: =IF(H18="","",IF(OR(O18=0,S18=0),0,O18+S18)) -> 105 | U18: =T18-I18*2 -> -3 | V18: =IF(H18="","",AQ18) -> INTB + | W18: =IF(AJ18>=0,AJ18,IF(AI18>=0,AI18,IF(AH18>=0,AH18,IF(AG18>=0,AG18,IF(AF18>=0,AF18,IF(AE18>=0,AE18,IF(AD18>=0,AD18,IF(AC18>=0,AC18,AB18)))))))) -> 5 | X18: =IF(I18="","",IF(A18="H",IF(OR(H18="SEN",H18<1995),VLOOKUP(I18,Feuil1!$A$11:$G$29,6),IF(AND(H18>1994,H18<1998),VLOOKUP(I18,Feuil1!$A$11:$G$29,5),IF(AND(H18>1997,H18<2000),VLOOKUP(I18,Feuil1!$A$11:$G$29,4),IF(AND(H18>1999,H18<2002),VLOOKUP(I18,Feuil1!$A$11:$G$29,3),VLOOKUP(I18,Feuil1!$A$11:$G$29,2))))),IF(OR(H18="SEN",H18<1995),VLOOKUP(I18,Feuil1!$G$11:$L$25,6),IF(AND(H18>1994,H18<1998),VLOOKUP(I18,Feuil1!$G$11:$L$25,5),IF(AND(H18>1997,H18<2000),VLOOKUP(I18,Feuil1!$G$11:$L$25,4),IF(AND(H18>1999,H18<2002),VLOOKUP(I18,Feuil1!$G$11:$L$25,3),VLOOKUP(I18,Feuil1!$G$11:$L$25,2))))))) -> FC1 58 | Y18: =IF(I18="","",IF(A18="H",10^(0.794358141*LOG(I18/174.393)^2)*T18,IF(A18="F",10^(0.89726074*LOG(I18/148.026)^2)*T18,""))) -> 156.0556751 | AB18: =T18-HLOOKUP(X18,Feuil1!$C$1:$BL$10,2,FALSE) -> 65 | AC18: =T18-HLOOKUP(X18,Feuil1!$C$1:$BL$10,3,FALSE) -> 55 | AD18: =T18-HLOOKUP(X18,Feuil1!$C$1:$BL$10,4,FALSE) -> 45 | AE18: =T18-HLOOKUP(X18,Feuil1!$C$1:$BL$10,5,FALSE) -> 35 | AF18: =T18-HLOOKUP(X18,Feuil1!$C$1:$BL$10,6,FALSE) -> 25 | AG18: =T18-HLOOKUP(X18,Feuil1!$C$1:$BL$10,7,FALSE) -> 15 | AH18: =T18-HLOOKUP(X18,Feuil1!$C$1:$BL$10,8,FALSE) -> 5 | AI18: =T18-HLOOKUP(X18,Feuil1!$C$1:$BL$10,9,FALSE) -> -10 | AJ18: =T18-HLOOKUP(X18,Feuil1!$C$1:$BL$10,10,FALSE) -> -895 | AQ18: =IF(AJ18>=0,$AJ$4,IF(AI18>=0,$AI$4,IF(AH18>=0,$AH$4,IF(AG18>=0,$AG$4,IF(AF18>=0,$AF$4,IF(AE18>=0,$AE$4,IF(AD18>=0,$AD$4,IF(AC18>=0,$AC$4,$AB$4)))))))) -> INTB +
A19: F | B19: Nord | C19: NPC | D19: 2 | E19: 359845 | F19: PARANTHOEN | G19: Kimberley | H19: 2000 | I19: 58 | J19: CA Rosendael | K19: F | L19: 37 | M19: 39 | N19: -41 | O19: =IF(H19="","",IF(MAXA(L19:N19)<=0,0,MAXA(L19:N19))) -> 39 | P19: 47 | Q19: 50 | R19: -54 | S19: =IF(H19="","",IF(MAXA(P19:R19)<=0,0,MAXA(P19:R19))) -> 50 | T19: =IF(H19="","",IF(OR(O19=0,S19=0),0,O19+S19)) -> 89 | U19: =T19-I19*2 -> -27 | V19: =IF(H19="","",AQ19) -> FED + | W19: =IF(AJ19>=0,AJ19,IF(AI19>=0,AI19,IF(AH19>=0,AH19,IF(AG19>=0,AG19,IF(AF19>=0,AF19,IF(AE19>=0,AE19,IF(AD19>=0,AD19,IF(AC19>=0,AC19,AB19)))))))) -> 9 | X19: =IF(I19="","",IF(A19="H",IF(OR(H19="SEN",H19<1995),VLOOKUP(I19,Feuil1!$A$11:$G$29,6),IF(AND(H19>1994,H19<1998),VLOOKUP(I19,Feuil1!$A$11:$G$29,5),IF(AND(H19>1997,H19<2000),VLOOKUP(I19,Feuil1!$A$11:$G$29,4),IF(AND(H19>1999,H19<2002),VLOOKUP(I19,Feuil1!$A$11:$G$29,3),VLOOKUP(I19,Feuil1!$A$11:$G$29,2))))),IF(OR(H19="SEN",H19<1995),VLOOKUP(I19,Feuil1!$G$11:$L$25,6),IF(AND(H19>1994,H19<1998),VLOOKUP(I19,Feuil1!$G$11:$L$25,5),IF(AND(H19>1997,H19<2000),VLOOKUP(I19,Feuil1!$G$11:$L$25,4),IF(AND(H19>1999,H19<2002),VLOOKUP(I19,Feuil1!$G$11:$L$25,3),VLOOKUP(I19,Feuil1!$G$11:$L$25,2))))))) -> FC1 58 | Y19: =IF(I19="","",IF(A19="H",10^(0.794358141*LOG(I19/174.393)^2)*T19,IF(A19="F",10^(0.89726074*LOG(I19/148.026)^2)*T19,""))) -> 125.3010275 | AB19: =T19-HLOOKUP(X19,Feuil1!$C$1:$BL$10,2,FALSE) -> 49 | AC19: =T19-HLOOKUP(X19,Feuil1!$C$1:$BL$10,3,FALSE) -> 39 | AD19: =T19-HLOOKUP(X19,Feuil1!$C$1:$BL$10,4,FALSE) -> 29 | AE19: =T19-HLOOKUP(X19,Feuil1!$C$1:$BL$10,5,FALSE) -> 19 | AF19: =T19-HLOOKUP(X19,Feuil1!$C$1:$BL$10,6,FALSE) -> 9 | AG19: =T19-HLOOKUP(X19,Feuil1!$C$1:$BL$10,7,FALSE) -> -1 | AH19: =T19-HLOOKUP(X19,Feuil1!$C$1:$BL$10,8,FALSE) -> -11 | AI19: =T19-HLOOKUP(X19,Feuil1!$C$1:$BL$10,9,FALSE) -> -26 | AJ19: =T19-HLOOKUP(X19,Feuil1!$C$1:$BL$10,10,FALSE) -> -911 | AQ19: =IF(AJ19>=0,$AJ$4,IF(AI19>=0,$AI$4,IF(AH19>=0,$AH$4,IF(AG19>=0,$AG$4,IF(AF19>=0,$AF$4,IF(AE19>=0,$AE$4,IF(AD19>=0,$AD$4,IF(AC19>=0,$AC$4,$AB$4)))))))) -> FED +
A20: F | B20: SO | C20: LIM | D20: 3 | E20: 326707 | F20: LAMARGUE | G20: Loriane | H20: 2000 | I20: 53.1 | J20: LIMOGES AVA | K20: F | L20: -31 | M20: 31 | N20: 34 | O20: =IF(H20="","",IF(MAXA(L20:N20)<=0,0,MAXA(L20:N20))) -> 34 | P20: 43 | Q20: 46 | R20: 48 | S20: =IF(H20="","",IF(MAXA(P20:R20)<=0,0,MAXA(P20:R20))) -> 48 | T20: =IF(H20="","",IF(OR(O20=0,S20=0),0,O20+S20)) -> 82 | U20: =T20-I20*2 -> -24.2 | V20: =IF(H20="","",AQ20) -> FED + | W20: =IF(AJ20>=0,AJ20,IF(AI20>=0,AI20,IF(AH20>=0,AH20,IF(AG20>=0,AG20,IF(AF20>=0,AF20,IF(AE20>=0,AE20,IF(AD20>=0,AD20,IF(AC20>=0,AC20,AB20)))))))) -> 2 | X20: =IF(I20="","",IF(A20="H",IF(OR(H20="SEN",H20<1995),VLOOKUP(I20,Feuil1!$A$11:$G$29,6),IF(AND(H20>1994,H20<1998),VLOOKUP(I20,Feuil1!$A$11:$G$29,5),IF(AND(H20>1997,H20<2000),VLOOKUP(I20,Feuil1!$A$11:$G$29,4),IF(AND(H20>1999,H20<2002),VLOOKUP(I20,Feuil1!$A$11:$G$29,3),VLOOKUP(I20,Feuil1!$A$11:$G$29,2))))),IF(OR(H20="SEN",H20<1995),VLOOKUP(I20,Feuil1!$G$11:$L$25,6),IF(AND(H20>1994,H20<1998),VLOOKUP(I20,Feuil1!$G$11:$L$25,5),IF(AND(H20>1997,H20<2000),VLOOKUP(I20,Feuil1!$G$11:$L$25,4),IF(AND(H20>1999,H20<2002),VLOOKUP(I20,Feuil1!$G$11:$L$25,3),VLOOKUP(I20,Feuil1!$G$11:$L$25,2))))))) -> FC1 58 | Y20: =IF(I20="","",IF(A20="H",10^(0.794358141*LOG(I20/174.393)^2)*T20,IF(A20="F",10^(0.89726074*LOG(I20/148.026)^2)*T20,""))) -> 123.5060976 | AB20: =T20-HLOOKUP(X20,Feuil1!$C$1:$BL$10,2,FALSE) -> 42 | AC20: =T20-HLOOKUP(X20,Feuil1!$C$1:$BL$10,3,FALSE) -> 32 | AD20: =T20-HLOOKUP(X20,Feuil1!$C$1:$BL$10,4,FALSE) -> 22 | AE20: =T20-HLOOKUP(X20,Feuil1!$C$1:$BL$10,5,FALSE) -> 12 | AF20: =T20-HLOOKUP(X20,Feuil1!$C$1:$BL$10,6,FALSE) -> 2 | AG20: =T20-HLOOKUP(X20,Feuil1!$C$1:$BL$10,7,FALSE) -> -8 | AH20: =T20-HLOOKUP(X20,Feuil1!$C$1:$BL$10,8,FALSE) -> -18 | AI20: =T20-HLOOKUP(X20,Feuil1!$C$1:$BL$10,9,FALSE) -> -33 | AJ20: =T20-HLOOKUP(X20,Feuil1!$C$1:$BL$10,10,FALSE) -> -918 | AQ20: =IF(AJ20>=0,$AJ$4,IF(AI20>=0,$AI$4,IF(AH20>=0,$AH$4,IF(AG20>=0,$AG$4,IF(AF20>=0,$AF$4,IF(AE20>=0,$AE$4,IF(AD20>=0,$AD$4,IF(AC20>=0,$AC$4,$AB$4)))))))) -> FED +
A21: F | B21: NE | C21: CHA | D21: 4 | E21: 355066 | F21: MECHIACK | G21: Chloé | H21: 2001 | I21: 54.7 | J21: Langres HM | K21: F | L21: 27 | M21: -30 | N21: 30 | O21: =IF(H21="","",IF(MAXA(L21:N21)<=0,0,MAXA(L21:N21))) -> 30 | P21: 35 | Q21: 38 | R21: 40 | S21: =IF(H21="","",IF(MAXA(P21:R21)<=0,0,MAXA(P21:R21))) -> 40 | T21: =IF(H21="","",IF(OR(O21=0,S21=0),0,O21+S21)) -> 70 | U21: =T21-I21*2 -> -39.4 | V21: =IF(H21="","",AQ21) -> IRG + | W21: =IF(AJ21>=0,AJ21,IF(AI21>=0,AI21,IF(AH21>=0,AH21,IF(AG21>=0,AG21,IF(AF21>=0,AF21,IF(AE21>=0,AE21,IF(AD21>=0,AD21,IF(AC21>=0,AC21,AB21)))))))) -> 0 | X21: =IF(I21="","",IF(A21="H",IF(OR(H21="SEN",H21<1995),VLOOKUP(I21,Feuil1!$A$11:$G$29,6),IF(AND(H21>1994,H21<1998),VLOOKUP(I21,Feuil1!$A$11:$G$29,5),IF(AND(H21>1997,H21<2000),VLOOKUP(I21,Feuil1!$A$11:$G$29,4),IF(AND(H21>1999,H21<2002),VLOOKUP(I21,Feuil1!$A$11:$G$29,3),VLOOKUP(I21,Feuil1!$A$11:$G$29,2))))),IF(OR(H21="SEN",H21<1995),VLOOKUP(I21,Feuil1!$G$11:$L$25,6),IF(AND(H21>1994,H21<1998),VLOOKUP(I21,Feuil1!$G$11:$L$25,5),IF(AND(H21>1997,H21<2000),VLOOKUP(I21,Feuil1!$G$11:$L$25,4),IF(AND(H21>1999,H21<2002),VLOOKUP(I21,Feuil1!$G$11:$L$25,3),VLOOKUP(I21,Feuil1!$G$11:$L$25,2))))))) -> FC1 58 | Y21: =IF(I21="","",IF(A21="H",10^(0.794358141*LOG(I21/174.393)^2)*T21,IF(A21="F",10^(0.89726074*LOG(I21/148.026)^2)*T21,""))) -> 102.9960087 | AB21: =T21-HLOOKUP(X21,Feuil1!$C$1:$BL$10,2,FALSE) -> 30 | AC21: =T21-HLOOKUP(X21,Feuil1!$C$1:$BL$10,3,FALSE) -> 20 | AD21: =T21-HLOOKUP(X21,Feuil1!$C$1:$BL$10,4,FALSE) -> 10 | AE21: =T21-HLOOKUP(X21,Feuil1!$C$1:$BL$10,5,FALSE) -> 0 | AF21: =T21-HLOOKUP(X21,Feuil1!$C$1:$BL$10,6,FALSE) -> -10 | AG21: =T21-HLOOKUP(X21,Feuil1!$C$1:$BL$10,7,FALSE) -> -20 | AH21: =T21-HLOOKUP(X21,Feuil1!$C$1:$BL$10,8,FALSE) -> -30 | AI21: =T21-HLOOKUP(X21,Feuil1!$C$1:$BL$10,9,FALSE) -> -45 | AJ21: =T21-HLOOKUP(X21,Feuil1!$C$1:$BL$10,10,FALSE) -> -930 | AQ21: =IF(AJ21>=0,$AJ$4,IF(AI21>=0,$AI$4,IF(AH21>=0,$AH$4,IF(AG21>=0,$AG$4,IF(AF21>=0,$AF$4,IF(AE21>=0,$AE$4,IF(AD21>=0,$AD$4,IF(AC21>=0,$AC$4,$AB$4)))))))) -> IRG +
A23: F | B23: SO | C23: AQU | D23: 1 | E23: 277040 | F23: GIRAUD | G23: Hectorine | H23: 2000 | I23: 58.1 | J23: ASOA AQUITAINE | K23: F | L23: 35 | M23: -37 | N23: -37 | O23: 35 | P23: 47 | Q23: 50 | R23: -52 | S23: 50 | T23: 85 | U23: -31.2 | V23: FED + | W23: 0 | X23: =IF(I23="","",IF(A23="H",IF(OR(H23="SEN",H23<1995),VLOOKUP(I23,Feuil1!$A$11:$G$29,6),IF(AND(H23>1994,H23<1998),VLOOKUP(I23,Feuil1!$A$11:$G$29,5),IF(AND(H23>1997,H23<2000),VLOOKUP(I23,Feuil1!$A$11:$G$29,4),IF(AND(H23>1999,H23<2002),VLOOKUP(I23,Feuil1!$A$11:$G$29,3),VLOOKUP(I23,Feuil1!$A$11:$G$29,2))))),IF(OR(H23="SEN",H23<1995),VLOOKUP(I23,Feuil1!$G$11:$L$25,6),IF(AND(H23>1994,H23<1998),VLOOKUP(I23,Feuil1!$G$11:$L$25,5),IF(AND(H23>1997,H23<2000),VLOOKUP(I23,Feuil1!$G$11:$L$25,4),IF(AND(H23>1999,H23<2002),VLOOKUP(I23,Feuil1!$G$11:$L$25,3),VLOOKUP(I23,Feuil1!$G$11:$L$25,2))))))) -> FC1 63 | Y23: 119.5192216 | AB23: =T23-HLOOKUP(X23,Feuil1!$C$1:$BL$10,2,FALSE) -> 40 | AC23: =T23-HLOOKUP(X23,Feuil1!$C$1:$BL$10,3,FALSE) -> 30 | AD23: =T23-HLOOKUP(X23,Feuil1!$C$1:$BL$10,4,FALSE) -> 20 | AE23: =T23-HLOOKUP(X23,Feuil1!$C$1:$BL$10,5,FALSE) -> 10 | AF23: =T23-HLOOKUP(X23,Feuil1!$C$1:$BL$10,6,FALSE) -> 0 | AG23: =T23-HLOOKUP(X23,Feuil1!$C$1:$BL$10,7,FALSE) -> -10 | AH23: =T23-HLOOKUP(X23,Feuil1!$C$1:$BL$10,8,FALSE) -> -25 | AI23: =T23-HLOOKUP(X23,Feuil1!$C$1:$BL$10,9,FALSE) -> -40 | AJ23: =T23-HLOOKUP(X23,Feuil1!$C$1:$BL$10,10,FALSE) -> -915 | AQ23: FED +
A25: F | B25: Nord | C25: NPC | D25: 1 | E25: 300212 | F25: GUILLEMIN | G25: Elise | H25: 2000 | I25: 67.54 | J25: CA Rosendael | K25: F | L25: 37 | M25: 39 | N25: -41 | O25: 39 | P25: 52 | Q25: 55 | R25: 57 | S25: 57 | T25: 96 | U25: -39.08 | V25: FED + | W25: 6 | X25: =IF(I25="","",IF(A25="H",IF(OR(H25="SEN",H25<1995),VLOOKUP(I25,Feuil1!$A$11:$G$29,6),IF(AND(H25>1994,H25<1998),VLOOKUP(I25,Feuil1!$A$11:$G$29,5),IF(AND(H25>1997,H25<2000),VLOOKUP(I25,Feuil1!$A$11:$G$29,4),IF(AND(H25>1999,H25<2002),VLOOKUP(I25,Feuil1!$A$11:$G$29,3),VLOOKUP(I25,Feuil1!$A$11:$G$29,2))))),IF(OR(H25="SEN",H25<1995),VLOOKUP(I25,Feuil1!$G$11:$L$25,6),IF(AND(H25>1994,H25<1998),VLOOKUP(I25,Feuil1!$G$11:$L$25,5),IF(AND(H25>1997,H25<2000),VLOOKUP(I25,Feuil1!$G$11:$L$25,4),IF(AND(H25>1999,H25<2002),VLOOKUP(I25,Feuil1!$G$11:$L$25,3),VLOOKUP(I25,Feuil1!$G$11:$L$25,2))))))) -> FC1 69 | Y25: 122.0307164 | AB25: =T25-HLOOKUP(X25,Feuil1!$C$1:$BL$10,2,FALSE) -> 46 | AC25: =T25-HLOOKUP(X25,Feuil1!$C$1:$BL$10,3,FALSE) -> 36 | AD25: =T25-HLOOKUP(X25,Feuil1!$C$1:$BL$10,4,FALSE) -> 26 | AE25: =T25-HLOOKUP(X25,Feuil1!$C$1:$BL$10,5,FALSE) -> 16 | AF25: =T25-HLOOKUP(X25,Feuil1!$C$1:$BL$10,6,FALSE) -> 6 | AG25: =T25-HLOOKUP(X25,Feuil1!$C$1:$BL$10,7,FALSE) -> -9 | AH25: =T25-HLOOKUP(X25,Feuil1!$C$1:$BL$10,8,FALSE) -> -24 | AI25: =T25-HLOOKUP(X25,Feuil1!$C$1:$BL$10,9,FALSE) -> -39 | AJ25: =T25-HLOOKUP(X25,Feuil1!$C$1:$BL$10,10,FALSE) -> -904 | AQ25: FED +
A26: F | B26: SEST | C26: CAZ | D26: 2 | E26: 391830 | F26: GIANNETTI | G26: Margot | H26: 2000 | I26: 68.15 | J26: E.S. VILLENEUVE LOUBET | K26: F | L26: 36 | M26: 39 | N26: -41 | O26: 39 | P26: 41 | Q26: 46 | R26: -51 | S26: 46 | T26: 85 | U26: -51.3 | V26: IRG + | W26: 5 | X26: =IF(I26="","",IF(A26="H",IF(OR(H26="SEN",H26<1995),VLOOKUP(I26,Feuil1!$A$11:$G$29,6),IF(AND(H26>1994,H26<1998),VLOOKUP(I26,Feuil1!$A$11:$G$29,5),IF(AND(H26>1997,H26<2000),VLOOKUP(I26,Feuil1!$A$11:$G$29,4),IF(AND(H26>1999,H26<2002),VLOOKUP(I26,Feuil1!$A$11:$G$29,3),VLOOKUP(I26,Feuil1!$A$11:$G$29,2))))),IF(OR(H26="SEN",H26<1995),VLOOKUP(I26,Feuil1!$G$11:$L$25,6),IF(AND(H26>1994,H26<1998),VLOOKUP(I26,Feuil1!$G$11:$L$25,5),IF(AND(H26>1997,H26<2000),VLOOKUP(I26,Feuil1!$G$11:$L$25,4),IF(AND(H26>1999,H26<2002),VLOOKUP(I26,Feuil1!$G$11:$L$25,3),VLOOKUP(I26,Feuil1!$G$11:$L$25,2))))))) -> FC1 69 | Y26: 107.4589577 | AB26: =T26-HLOOKUP(X26,Feuil1!$C$1:$BL$10,2,FALSE) -> 35 | AC26: =T26-HLOOKUP(X26,Feuil1!$C$1:$BL$10,3,FALSE) -> 25 | AD26: =T26-HLOOKUP(X26,Feuil1!$C$1:$BL$10,4,FALSE) -> 15 | AE26: =T26-HLOOKUP(X26,Feuil1!$C$1:$BL$10,5,FALSE) -> 5 | AF26: =T26-HLOOKUP(X26,Feuil1!$C$1:$BL$10,6,FALSE) -> -5 | AG26: =T26-HLOOKUP(X26,Feuil1!$C$1:$BL$10,7,FALSE) -> -20 | AH26: =T26-HLOOKUP(X26,Feuil1!$C$1:$BL$10,8,FALSE) -> -35 | AI26: =T26-HLOOKUP(X26,Feuil1!$C$1:$BL$10,9,FALSE) -> -50 | AJ26: =T26-HLOOKUP(X26,Feuil1!$C$1:$BL$10,10,FALSE) -> -915 | AQ26: IRG +
A28: F | B28: CO | C28: PDL | D28: 1 | E28: 378711 | F28: COGNON | G28: Alexia | H28: 2000 | I28: 71.85 | J28: CJF Laval-Voutré | K28: F | L28: -45 | M28: 45 | N28: 47 | O28: 47 | P28: 58 | Q28: 60 | R28: 62 | S28: 62 | T28: 109 | U28: -34.7 | V28: FED + | W28: 4 | X28: =IF(I28="","",IF(A28="H",IF(OR(H28="SEN",H28<1995),VLOOKUP(I28,Feuil1!$A$11:$G$29,6),IF(AND(H28>1994,H28<1998),VLOOKUP(I28,Feuil1!$A$11:$G$29,5),IF(AND(H28>1997,H28<2000),VLOOKUP(I28,Feuil1!$A$11:$G$29,4),IF(AND(H28>1999,H28<2002),VLOOKUP(I28,Feuil1!$A$11:$G$29,3),VLOOKUP(I28,Feuil1!$A$11:$G$29,2))))),IF(OR(H28="SEN",H28<1995),VLOOKUP(I28,Feuil1!$G$11:$L$25,6),IF(AND(H28>1994,H28<1998),VLOOKUP(I28,Feuil1!$G$11:$L$25,5),IF(AND(H28>1997,H28<2000),VLOOKUP(I28,Feuil1!$G$11:$L$25,4),IF(AND(H28>1999,H28<2002),VLOOKUP(I28,Feuil1!$G$11:$L$25,3),VLOOKUP(I28,Feuil1!$G$11:$L$25,2))))))) -> FC1 +69 | Y28: 133.6111818 | AB28: =T28-HLOOKUP(X28,Feuil1!$C$1:$BL$10,2,FALSE) -> 49 | AC28: =T28-HLOOKUP(X28,Feuil1!$C$1:$BL$10,3,FALSE) -> 39 | AD28: =T28-HLOOKUP(X28,Feuil1!$C$1:$BL$10,4,FALSE) -> 29 | AE28: =T28-HLOOKUP(X28,Feuil1!$C$1:$BL$10,5,FALSE) -> 14 | AF28: =T28-HLOOKUP(X28,Feuil1!$C$1:$BL$10,6,FALSE) -> 4 | AG28: =T28-HLOOKUP(X28,Feuil1!$C$1:$BL$10,7,FALSE) -> -6 | AH28: =T28-HLOOKUP(X28,Feuil1!$C$1:$BL$10,8,FALSE) -> -21 | AI28: =T28-HLOOKUP(X28,Feuil1!$C$1:$BL$10,9,FALSE) -> -36 | AJ28: =T28-HLOOKUP(X28,Feuil1!$C$1:$BL$10,10,FALSE) -> -891 | AQ28: FED +
A31: H | B31: DOM | C31: REU | D31: 1 | E31: 239770 | F31: ESSOB | G31: ETIENNE | H31: 2001 | I31: 43.5 | J31: SCHM St Paul | K31: F | L31: -42 | M31: 42 | N31: -45 | O31: =IF(H31="","",IF(MAXA(L31:N31)<=0,0,MAXA(L31:N31))) -> 42 | P31: 50 | Q31: 52 | R31: -54 | S31: =IF(H31="","",IF(MAXA(P31:R31)<=0,0,MAXA(P31:R31))) -> 52 | T31: =IF(H31="","",IF(OR(O31=0,S31=0),0,O31+S31)) -> 94 | U31: =T31-I31*2 -> 7 | V31: =IF(H31="","",AQ31) -> FED + | W31: =IF(AJ31>=0,AJ31,IF(AI31>=0,AI31,IF(AH31>=0,AH31,IF(AG31>=0,AG31,IF(AF31>=0,AF31,IF(AE31>=0,AE31,IF(AD31>=0,AD31,IF(AC31>=0,AC31,AB31)))))))) -> 4 | X31: =IF(I31="","",IF(A31="H",IF(OR(H31="SEN",H31<1995),VLOOKUP(I31,Feuil1!$A$11:$G$29,6),IF(AND(H31>1994,H31<1998),VLOOKUP(I31,Feuil1!$A$11:$G$29,5),IF(AND(H31>1997,H31<2000),VLOOKUP(I31,Feuil1!$A$11:$G$29,4),IF(AND(H31>1999,H31<2002),VLOOKUP(I31,Feuil1!$A$11:$G$29,3),VLOOKUP(I31,Feuil1!$A$11:$G$29,2))))),IF(OR(H31="SEN",H31<1995),VLOOKUP(I31,Feuil1!$G$11:$L$25,6),IF(AND(H31>1994,H31<1998),VLOOKUP(I31,Feuil1!$G$11:$L$25,5),IF(AND(H31>1997,H31<2000),VLOOKUP(I31,Feuil1!$G$11:$L$25,4),IF(AND(H31>1999,H31<2002),VLOOKUP(I31,Feuil1!$G$11:$L$25,3),VLOOKUP(I31,Feuil1!$G$11:$L$25,2))))))) -> C1 45 | Y31: =IF(I31="","",IF(A31="H",10^(0.794358141*LOG(I31/174.393)^2)*T31,IF(A31="F",10^(0.89726074*LOG(I31/148.026)^2)*T31,""))) -> 182.8107559 | AB31: =T31-HLOOKUP(X31,Feuil1!$C$1:$BL$10,2,FALSE) -> 59 | AC31: =T31-HLOOKUP(X31,Feuil1!$C$1:$BL$10,3,FALSE) -> 44 | AD31: =T31-HLOOKUP(X31,Feuil1!$C$1:$BL$10,4,FALSE) -> 34 | AE31: =T31-HLOOKUP(X31,Feuil1!$C$1:$BL$10,5,FALSE) -> 19 | AF31: =T31-HLOOKUP(X31,Feuil1!$C$1:$BL$10,6,FALSE) -> 4 | AG31: =T31-HLOOKUP(X31,Feuil1!$C$1:$BL$10,7,FALSE) -> -11 | AH31: =T31-HLOOKUP(X31,Feuil1!$C$1:$BL$10,8,FALSE) -> -21 | AI31: =T31-HLOOKUP(X31,Feuil1!$C$1:$BL$10,9,FALSE) -> -36 | AJ31: =T31-HLOOKUP(X31,Feuil1!$C$1:$BL$10,10,FALSE) -> -906 | AQ31: =IF(AJ31>=0,$AJ$4,IF(AI31>=0,$AI$4,IF(AH31>=0,$AH$4,IF(AG31>=0,$AG$4,IF(AF31>=0,$AF$4,IF(AE31>=0,$AE$4,IF(AD31>=0,$AD$4,IF(AC31>=0,$AC$4,$AB$4)))))))) -> FED +
A33: H | B33: DOM | C33: REU | D33: 1 | E33: 275413 | F33: ESSOB | G33: David | H33: 2001 | I33: 46.16 | J33: SCHM SAINT PAUL | K33: F | L33: 43 | M33: 46 | N33: 48 | O33: =IF(H33="","",IF(MAXA(L33:N33)<=0,0,MAXA(L33:N33))) -> 48 | P33: 50 | Q33: 52 | R33: 58 | S33: =IF(H33="","",IF(MAXA(P33:R33)<=0,0,MAXA(P33:R33))) -> 58 | T33: =IF(H33="","",IF(OR(O33=0,S33=0),0,O33+S33)) -> 106 | U33: =T33-I33*2 -> 13.68 | V33: =IF(H33="","",AQ33) -> FED + | W33: =IF(AJ33>=0,AJ33,IF(AI33>=0,AI33,IF(AH33>=0,AH33,IF(AG33>=0,AG33,IF(AF33>=0,AF33,IF(AE33>=0,AE33,IF(AD33>=0,AD33,IF(AC33>=0,AC33,AB33)))))))) -> 11 | X33: =IF(I33="","",IF(A33="H",IF(OR(H33="SEN",H33<1995),VLOOKUP(I33,Feuil1!$A$11:$G$29,6),IF(AND(H33>1994,H33<1998),VLOOKUP(I33,Feuil1!$A$11:$G$29,5),IF(AND(H33>1997,H33<2000),VLOOKUP(I33,Feuil1!$A$11:$G$29,4),IF(AND(H33>1999,H33<2002),VLOOKUP(I33,Feuil1!$A$11:$G$29,3),VLOOKUP(I33,Feuil1!$A$11:$G$29,2))))),IF(OR(H33="SEN",H33<1995),VLOOKUP(I33,Feuil1!$G$11:$L$25,6),IF(AND(H33>1994,H33<1998),VLOOKUP(I33,Feuil1!$G$11:$L$25,5),IF(AND(H33>1997,H33<2000),VLOOKUP(I33,Feuil1!$G$11:$L$25,4),IF(AND(H33>1999,H33<2002),VLOOKUP(I33,Feuil1!$G$11:$L$25,3),VLOOKUP(I33,Feuil1!$G$11:$L$25,2))))))) -> C1 50 | Y33: =IF(I33="","",IF(A33="H",10^(0.794358141*LOG(I33/174.393)^2)*T33,IF(A33="F",10^(0.89726074*LOG(I33/148.026)^2)*T33,""))) -> 194.9898921 | AB33: =T33-HLOOKUP(X33,Feuil1!$C$1:$BL$10,2,FALSE) -> 66 | AC33: =T33-HLOOKUP(X33,Feuil1!$C$1:$BL$10,3,FALSE) -> 51 | AD33: =T33-HLOOKUP(X33,Feuil1!$C$1:$BL$10,4,FALSE) -> 41 | AE33: =T33-HLOOKUP(X33,Feuil1!$C$1:$BL$10,5,FALSE) -> 26 | AF33: =T33-HLOOKUP(X33,Feuil1!$C$1:$BL$10,6,FALSE) -> 11 | AG33: =T33-HLOOKUP(X33,Feuil1!$C$1:$BL$10,7,FALSE) -> -4 | AH33: =T33-HLOOKUP(X33,Feuil1!$C$1:$BL$10,8,FALSE) -> -14 | AI33: =T33-HLOOKUP(X33,Feuil1!$C$1:$BL$10,9,FALSE) -> -29 | AJ33: =T33-HLOOKUP(X33,Feuil1!$C$1:$BL$10,10,FALSE) -> -894 | AQ33: =IF(AJ33>=0,$AJ$4,IF(AI33>=0,$AI$4,IF(AH33>=0,$AH$4,IF(AG33>=0,$AG$4,IF(AF33>=0,$AF$4,IF(AE33>=0,$AE$4,IF(AD33>=0,$AD$4,IF(AC33>=0,$AC$4,$AB$4)))))))) -> FED +
A34: H | B34: SEST | C34: CAZ | D34: 2 | E34: 376235 | F34: JOLY | G34: Lucas | H34: 2000 | I34: 49.4 | J34: E.S. VILLENEUVE LOUBET | K34: F | L34: 42 | M34: 45 | N34: -47 | O34: 45 | P34: 55 | Q34: -58 | R34: 59 | S34: 59 | T34: 104 | U34: 5.2 | V34: FED + | W34: 9 | X34: =IF(I34="","",IF(A34="H",IF(OR(H34="SEN",H34<1995),VLOOKUP(I34,Feuil1!$A$11:$G$29,6),IF(AND(H34>1994,H34<1998),VLOOKUP(I34,Feuil1!$A$11:$G$29,5),IF(AND(H34>1997,H34<2000),VLOOKUP(I34,Feuil1!$A$11:$G$29,4),IF(AND(H34>1999,H34<2002),VLOOKUP(I34,Feuil1!$A$11:$G$29,3),VLOOKUP(I34,Feuil1!$A$11:$G$29,2))))),IF(OR(H34="SEN",H34<1995),VLOOKUP(I34,Feuil1!$G$11:$L$25,6),IF(AND(H34>1994,H34<1998),VLOOKUP(I34,Feuil1!$G$11:$L$25,5),IF(AND(H34>1997,H34<2000),VLOOKUP(I34,Feuil1!$G$11:$L$25,4),IF(AND(H34>1999,H34<2002),VLOOKUP(I34,Feuil1!$G$11:$L$25,3),VLOOKUP(I34,Feuil1!$G$11:$L$25,2))))))) -> C1 50 | Y34: 180.0569969 | AB34: =T34-HLOOKUP(X34,Feuil1!$C$1:$BL$10,2,FALSE) -> 64 | AC34: =T34-HLOOKUP(X34,Feuil1!$C$1:$BL$10,3,FALSE) -> 49 | AD34: =T34-HLOOKUP(X34,Feuil1!$C$1:$BL$10,4,FALSE) -> 39 | AE34: =T34-HLOOKUP(X34,Feuil1!$C$1:$BL$10,5,FALSE) -> 24 | AF34: =T34-HLOOKUP(X34,Feuil1!$C$1:$BL$10,6,FALSE) -> 9 | AG34: =T34-HLOOKUP(X34,Feuil1!$C$1:$BL$10,7,FALSE) -> -6 | AH34: =T34-HLOOKUP(X34,Feuil1!$C$1:$BL$10,8,FALSE) -> -16 | AI34: =T34-HLOOKUP(X34,Feuil1!$C$1:$BL$10,9,FALSE) -> -31 | AJ34: =T34-HLOOKUP(X34,Feuil1!$C$1:$BL$10,10,FALSE) -> -896 | AQ34: FED +
A35: H | B35: SEST | C35: RAL | D35: 3 | E35: 373866 | F35: PETRIS | G35: Thomas | H35: 2000 | I35: 49.7 | J35: H.C. ST BALDOPH | K35: F | L35: 39 | M35: -43 | N35: 43 | O35: 43 | P35: 53 | Q35: 55 | R35: 59 | S35: 59 | T35: 102 | U35: 2.6 | V35: FED + | W35: 7 | X35: =IF(I35="","",IF(A35="H",IF(OR(H35="SEN",H35<1995),VLOOKUP(I35,Feuil1!$A$11:$G$29,6),IF(AND(H35>1994,H35<1998),VLOOKUP(I35,Feuil1!$A$11:$G$29,5),IF(AND(H35>1997,H35<2000),VLOOKUP(I35,Feuil1!$A$11:$G$29,4),IF(AND(H35>1999,H35<2002),VLOOKUP(I35,Feuil1!$A$11:$G$29,3),VLOOKUP(I35,Feuil1!$A$11:$G$29,2))))),IF(OR(H35="SEN",H35<1995),VLOOKUP(I35,Feuil1!$G$11:$L$25,6),IF(AND(H35>1994,H35<1998),VLOOKUP(I35,Feuil1!$G$11:$L$25,5),IF(AND(H35>1997,H35<2000),VLOOKUP(I35,Feuil1!$G$11:$L$25,4),IF(AND(H35>1999,H35<2002),VLOOKUP(I35,Feuil1!$G$11:$L$25,3),VLOOKUP(I35,Feuil1!$G$11:$L$25,2))))))) -> C1 50 | Y35: 175.6685109 | AB35: =T35-HLOOKUP(X35,Feuil1!$C$1:$BL$10,2,FALSE) -> 62 | AC35: =T35-HLOOKUP(X35,Feuil1!$C$1:$BL$10,3,FALSE) -> 47 | AD35: =T35-HLOOKUP(X35,Feuil1!$C$1:$BL$10,4,FALSE) -> 37 | AE35: =T35-HLOOKUP(X35,Feuil1!$C$1:$BL$10,5,FALSE) -> 22 | AF35: =T35-HLOOKUP(X35,Feuil1!$C$1:$BL$10,6,FALSE) -> 7 | AG35: =T35-HLOOKUP(X35,Feuil1!$C$1:$BL$10,7,FALSE) -> -8 | AH35: =T35-HLOOKUP(X35,Feuil1!$C$1:$BL$10,8,FALSE) -> -18 | AI35: =T35-HLOOKUP(X35,Feuil1!$C$1:$BL$10,9,FALSE) -> -33 | AJ35: =T35-HLOOKUP(X35,Feuil1!$C$1:$BL$10,10,FALSE) -> -898 | AQ35: FED +
A36: H | B36: NE | C36: BOU | D36: 4 | E36: 326196 | F36: FORMYSIN | G36: Samuel | H36: 2000 | I36: 48.2 | J36: Tournus H | K36: F | L36: 41 | M36: 43 | N36: 45 | O36: 45 | P36: 50 | Q36: 53 | R36: 55 | S36: 55 | T36: 100 | U36: 3.6 | V36: FED + | W36: 5 | X36: =IF(I36="","",IF(A36="H",IF(OR(H36="SEN",H36<1995),VLOOKUP(I36,Feuil1!$A$11:$G$29,6),IF(AND(H36>1994,H36<1998),VLOOKUP(I36,Feuil1!$A$11:$G$29,5),IF(AND(H36>1997,H36<2000),VLOOKUP(I36,Feuil1!$A$11:$G$29,4),IF(AND(H36>1999,H36<2002),VLOOKUP(I36,Feuil1!$A$11:$G$29,3),VLOOKUP(I36,Feuil1!$A$11:$G$29,2))))),IF(OR(H36="SEN",H36<1995),VLOOKUP(I36,Feuil1!$G$11:$L$25,6),IF(AND(H36>1994,H36<1998),VLOOKUP(I36,Feuil1!$G$11:$L$25,5),IF(AND(H36>1997,H36<2000),VLOOKUP(I36,Feuil1!$G$11:$L$25,4),IF(AND(H36>1999,H36<2002),VLOOKUP(I36,Feuil1!$G$11:$L$25,3),VLOOKUP(I36,Feuil1!$G$11:$L$25,2))))))) -> C1 50 | Y36: 176.9139246 | AB36: =T36-HLOOKUP(X36,Feuil1!$C$1:$BL$10,2,FALSE) -> 60 | AC36: =T36-HLOOKUP(X36,Feuil1!$C$1:$BL$10,3,FALSE) -> 45 | AD36: =T36-HLOOKUP(X36,Feuil1!$C$1:$BL$10,4,FALSE) -> 35 | AE36: =T36-HLOOKUP(X36,Feuil1!$C$1:$BL$10,5,FALSE) -> 20 | AF36: =T36-HLOOKUP(X36,Feuil1!$C$1:$BL$10,6,FALSE) -> 5 | AG36: =T36-HLOOKUP(X36,Feuil1!$C$1:$BL$10,7,FALSE) -> -10 | AH36: =T36-HLOOKUP(X36,Feuil1!$C$1:$BL$10,8,FALSE) -> -20 | AI36: =T36-HLOOKUP(X36,Feuil1!$C$1:$BL$10,9,FALSE) -> -35 | AJ36: =T36-HLOOKUP(X36,Feuil1!$C$1:$BL$10,10,FALSE) -> -900 | AQ36: FED +
A37: H | B37: Nord | C37: NPC | D37: 5 | E37: 351701 | F37: BOUGEARD | G37: Dylan | H37: 2001 | I37: 46.2 | J37: AO Sallaumines | K37: F | L37: 37 | M37: 40 | N37: -42 | O37: 40 | P37: 48 | Q37: 51 | R37: -53 | S37: 51 | T37: 91 | U37: -1.4 | V37: IRG + | W37: 11 | X37: =IF(I37="","",IF(A37="H",IF(OR(H37="SEN",H37<1995),VLOOKUP(I37,Feuil1!$A$11:$G$29,6),IF(AND(H37>1994,H37<1998),VLOOKUP(I37,Feuil1!$A$11:$G$29,5),IF(AND(H37>1997,H37<2000),VLOOKUP(I37,Feuil1!$A$11:$G$29,4),IF(AND(H37>1999,H37<2002),VLOOKUP(I37,Feuil1!$A$11:$G$29,3),VLOOKUP(I37,Feuil1!$A$11:$G$29,2))))),IF(OR(H37="SEN",H37<1995),VLOOKUP(I37,Feuil1!$G$11:$L$25,6),IF(AND(H37>1994,H37<1998),VLOOKUP(I37,Feuil1!$G$11:$L$25,5),IF(AND(H37>1997,H37<2000),VLOOKUP(I37,Feuil1!$G$11:$L$25,4),IF(AND(H37>1999,H37<2002),VLOOKUP(I37,Feuil1!$G$11:$L$25,3),VLOOKUP(I37,Feuil1!$G$11:$L$25,2))))))) -> C1 50 | Y37: 167.2641027 | AB37: =T37-HLOOKUP(X37,Feuil1!$C$1:$BL$10,2,FALSE) -> 51 | AC37: =T37-HLOOKUP(X37,Feuil1!$C$1:$BL$10,3,FALSE) -> 36 | AD37: =T37-HLOOKUP(X37,Feuil1!$C$1:$BL$10,4,FALSE) -> 26 | AE37: =T37-HLOOKUP(X37,Feuil1!$C$1:$BL$10,5,FALSE) -> 11 | AF37: =T37-HLOOKUP(X37,Feuil1!$C$1:$BL$10,6,FALSE) -> -4 | AG37: =T37-HLOOKUP(X37,Feuil1!$C$1:$BL$10,7,FALSE) -> -19 | AH37: =T37-HLOOKUP(X37,Feuil1!$C$1:$BL$10,8,FALSE) -> -29 | AI37: =T37-HLOOKUP(X37,Feuil1!$C$1:$BL$10,9,FALSE) -> -44 | AJ37: =T37-HLOOKUP(X37,Feuil1!$C$1:$BL$10,10,FALSE) -> -909 | AQ37: IRG +
A38: H | B38: NE | C38: ALS | D38: 6 | E38: 341767 | F38: MELAO | G38: Anthony | H38: 2001 | I38: 48.8 | J38: Dorlisheim FH | K38: F | L38: 34 | M38: 37 | N38: -39 | O38: 37 | P38: 45 | Q38: 47 | R38: 49 | S38: 49 | T38: 86 | U38: -11.6 | V38: IRG + | W38: 6 | X38: =IF(I38="","",IF(A38="H",IF(OR(H38="SEN",H38<1995),VLOOKUP(I38,Feuil1!$A$11:$G$29,6),IF(AND(H38>1994,H38<1998),VLOOKUP(I38,Feuil1!$A$11:$G$29,5),IF(AND(H38>1997,H38<2000),VLOOKUP(I38,Feuil1!$A$11:$G$29,4),IF(AND(H38>1999,H38<2002),VLOOKUP(I38,Feuil1!$A$11:$G$29,3),VLOOKUP(I38,Feuil1!$A$11:$G$29,2))))),IF(OR(H38="SEN",H38<1995),VLOOKUP(I38,Feuil1!$G$11:$L$25,6),IF(AND(H38>1994,H38<1998),VLOOKUP(I38,Feuil1!$G$11:$L$25,5),IF(AND(H38>1997,H38<2000),VLOOKUP(I38,Feuil1!$G$11:$L$25,4),IF(AND(H38>1999,H38<2002),VLOOKUP(I38,Feuil1!$G$11:$L$25,3),VLOOKUP(I38,Feuil1!$G$11:$L$25,2))))))) -> C1 50 | Y38: 150.4929972 | AB38: =T38-HLOOKUP(X38,Feuil1!$C$1:$BL$10,2,FALSE) -> 46 | AC38: =T38-HLOOKUP(X38,Feuil1!$C$1:$BL$10,3,FALSE) -> 31 | AD38: =T38-HLOOKUP(X38,Feuil1!$C$1:$BL$10,4,FALSE) -> 21 | AE38: =T38-HLOOKUP(X38,Feuil1!$C$1:$BL$10,5,FALSE) -> 6 | AF38: =T38-HLOOKUP(X38,Feuil1!$C$1:$BL$10,6,FALSE) -> -9 | AG38: =T38-HLOOKUP(X38,Feuil1!$C$1:$BL$10,7,FALSE) -> -24 | AH38: =T38-HLOOKUP(X38,Feuil1!$C$1:$BL$10,8,FALSE) -> -34 | AI38: =T38-HLOOKUP(X38,Feuil1!$C$1:$BL$10,9,FALSE) -> -49 | AJ38: =T38-HLOOKUP(X38,Feuil1!$C$1:$BL$10,10,FALSE) -> -914 | AQ38: IRG +
A39: H | B39: NE | C39: BOU | D39: 7 | E39: 345094 | F39: WITTMANN | G39: Maxime | H39: 2001 | I39: 49.9 | J39: ASO Mont de Rême | K39: F | L39: -32 | M39: 32 | N39: 34 | O39: 34 | P39: 44 | Q39: 46 | R39: -48 | S39: 46 | T39: 80 | U39: -19.8 | V39: IRG + | W39: 0 | X39: =IF(I39="","",IF(A39="H",IF(OR(H39="SEN",H39<1995),VLOOKUP(I39,Feuil1!$A$11:$G$29,6),IF(AND(H39>1994,H39<1998),VLOOKUP(I39,Feuil1!$A$11:$G$29,5),IF(AND(H39>1997,H39<2000),VLOOKUP(I39,Feuil1!$A$11:$G$29,4),IF(AND(H39>1999,H39<2002),VLOOKUP(I39,Feuil1!$A$11:$G$29,3),VLOOKUP(I39,Feuil1!$A$11:$G$29,2))))),IF(OR(H39="SEN",H39<1995),VLOOKUP(I39,Feuil1!$G$11:$L$25,6),IF(AND(H39>1994,H39<1998),VLOOKUP(I39,Feuil1!$G$11:$L$25,5),IF(AND(H39>1997,H39<2000),VLOOKUP(I39,Feuil1!$G$11:$L$25,4),IF(AND(H39>1999,H39<2002),VLOOKUP(I39,Feuil1!$G$11:$L$25,3),VLOOKUP(I39,Feuil1!$G$11:$L$25,2))))))) -> C1 50 | Y39: 137.3015672 | AB39: =T39-HLOOKUP(X39,Feuil1!$C$1:$BL$10,2,FALSE) -> 40 | AC39: =T39-HLOOKUP(X39,Feuil1!$C$1:$BL$10,3,FALSE) -> 25 | AD39: =T39-HLOOKUP(X39,Feuil1!$C$1:$BL$10,4,FALSE) -> 15 | AE39: =T39-HLOOKUP(X39,Feuil1!$C$1:$BL$10,5,FALSE) -> 0 | AF39: =T39-HLOOKUP(X39,Feuil1!$C$1:$BL$10,6,FALSE) -> -15 | AG39: =T39-HLOOKUP(X39,Feuil1!$C$1:$BL$10,7,FALSE) -> -30 | AH39: =T39-HLOOKUP(X39,Feuil1!$C$1:$BL$10,8,FALSE) -> -40 | AI39: =T39-HLOOKUP(X39,Feuil1!$C$1:$BL$10,9,FALSE) -> -55 | AJ39: =T39-HLOOKUP(X39,Feuil1!$C$1:$BL$10,10,FALSE) -> -920 | AQ39: IRG +
A41: H | B41: Nord | C41: NPC | D41: 1 | E41: 248932 | F41: BUYSSCHAERT | G41: Eliott | H41: 2000 | I41: 55 | J41: CHCD Comines | K41: F | L41: 65 | M41: 67 | N41: -68 | O41: =IF(H41="","",IF(MAXA(L41:N41)<=0,0,MAXA(L41:N41))) -> 67 | P41: 75 | Q41: 78 | R41: 82 | S41: =IF(H41="","",IF(MAXA(P41:R41)<=0,0,MAXA(P41:R41))) -> 82 | T41: =IF(H41="","",IF(OR(O41=0,S41=0),0,O41+S41)) -> 149 | U41: =T41-I41*2 -> 39 | V41: =IF(H41="","",AQ41) -> INTB + | W41: =IF(AJ41>=0,AJ41,IF(AI41>=0,AI41,IF(AH41>=0,AH41,IF(AG41>=0,AG41,IF(AF41>=0,AF41,IF(AE41>=0,AE41,IF(AD41>=0,AD41,IF(AC41>=0,AC41,AB41)))))))) -> 4 | X41: =IF(I41="","",IF(A41="H",IF(OR(H41="SEN",H41<1995),VLOOKUP(I41,Feuil1!$A$11:$G$29,6),IF(AND(H41>1994,H41<1998),VLOOKUP(I41,Feuil1!$A$11:$G$29,5),IF(AND(H41>1997,H41<2000),VLOOKUP(I41,Feuil1!$A$11:$G$29,4),IF(AND(H41>1999,H41<2002),VLOOKUP(I41,Feuil1!$A$11:$G$29,3),VLOOKUP(I41,Feuil1!$A$11:$G$29,2))))),IF(OR(H41="SEN",H41<1995),VLOOKUP(I41,Feuil1!$G$11:$L$25,6),IF(AND(H41>1994,H41<1998),VLOOKUP(I41,Feuil1!$G$11:$L$25,5),IF(AND(H41>1997,H41<2000),VLOOKUP(I41,Feuil1!$G$11:$L$25,4),IF(AND(H41>1999,H41<2002),VLOOKUP(I41,Feuil1!$G$11:$L$25,3),VLOOKUP(I41,Feuil1!$G$11:$L$25,2))))))) -> C1 56 | Y41: =IF(I41="","",IF(A41="H",10^(0.794358141*LOG(I41/174.393)^2)*T41,IF(A41="F",10^(0.89726074*LOG(I41/148.026)^2)*T41,""))) -> 235.8866655 | AB41: =T41-HLOOKUP(X41,Feuil1!$C$1:$BL$10,2,FALSE) -> 99 | AC41: =T41-HLOOKUP(X41,Feuil1!$C$1:$BL$10,3,FALSE) -> 79 | AD41: =T41-HLOOKUP(X41,Feuil1!$C$1:$BL$10,4,FALSE) -> 64 | AE41: =T41-HLOOKUP(X41,Feuil1!$C$1:$BL$10,5,FALSE) -> 49 | AF41: =T41-HLOOKUP(X41,Feuil1!$C$1:$BL$10,6,FALSE) -> 34 | AG41: =T41-HLOOKUP(X41,Feuil1!$C$1:$BL$10,7,FALSE) -> 19 | AH41: =T41-HLOOKUP(X41,Feuil1!$C$1:$BL$10,8,FALSE) -> 4 | AI41: =T41-HLOOKUP(X41,Feuil1!$C$1:$BL$10,9,FALSE) -> -21 | AJ41: =T41-HLOOKUP(X41,Feuil1!$C$1:$BL$10,10,FALSE) -> -851 | AQ41: =IF(AJ41>=0,$AJ$4,IF(AI41>=0,$AI$4,IF(AH41>=0,$AH$4,IF(AG41>=0,$AG$4,IF(AF41>=0,$AF$4,IF(AE41>=0,$AE$4,IF(AD41>=0,$AD$4,IF(AC41>=0,$AC$4,$AB$4)))))))) -> INTB +
A42: H | B42: Nord | C42: NPC | D42: 2 | E42: 311192 | F42: JURKOWSKI | G42: Alexis | H42: 2000 | I42: 56 | J42: AO Sallaumines | K42: F | L42: 57 | M42: 60 | N42: 62 | O42: 62 | P42: 75 | Q42: 80 | R42: 83 | S42: 83 | T42: 145 | U42: 33 | V42: INTB + | W42: 0 | X42: =IF(I42="","",IF(A42="H",IF(OR(H42="SEN",H42<1995),VLOOKUP(I42,Feuil1!$A$11:$G$29,6),IF(AND(H42>1994,H42<1998),VLOOKUP(I42,Feuil1!$A$11:$G$29,5),IF(AND(H42>1997,H42<2000),VLOOKUP(I42,Feuil1!$A$11:$G$29,4),IF(AND(H42>1999,H42<2002),VLOOKUP(I42,Feuil1!$A$11:$G$29,3),VLOOKUP(I42,Feuil1!$A$11:$G$29,2))))),IF(OR(H42="SEN",H42<1995),VLOOKUP(I42,Feuil1!$G$11:$L$25,6),IF(AND(H42>1994,H42<1998),VLOOKUP(I42,Feuil1!$G$11:$L$25,5),IF(AND(H42>1997,H42<2000),VLOOKUP(I42,Feuil1!$G$11:$L$25,4),IF(AND(H42>1999,H42<2002),VLOOKUP(I42,Feuil1!$G$11:$L$25,3),VLOOKUP(I42,Feuil1!$G$11:$L$25,2))))))) -> C1 56 | Y42: 226.3096887 | AB42: =T42-HLOOKUP(X42,Feuil1!$C$1:$BL$10,2,FALSE) -> 95 | AC42: =T42-HLOOKUP(X42,Feuil1!$C$1:$BL$10,3,FALSE) -> 75 | AD42: =T42-HLOOKUP(X42,Feuil1!$C$1:$BL$10,4,FALSE) -> 60 | AE42: =T42-HLOOKUP(X42,Feuil1!$C$1:$BL$10,5,FALSE) -> 45 | AF42: =T42-HLOOKUP(X42,Feuil1!$C$1:$BL$10,6,FALSE) -> 30 | AG42: =T42-HLOOKUP(X42,Feuil1!$C$1:$BL$10,7,FALSE) -> 15 | AH42: =T42-HLOOKUP(X42,Feuil1!$C$1:$BL$10,8,FALSE) -> 0 | AI42: =T42-HLOOKUP(X42,Feuil1!$C$1:$BL$10,9,FALSE) -> -25 | AJ42: =T42-HLOOKUP(X42,Feuil1!$C$1:$BL$10,10,FALSE) -> -855 | AQ42: INTB +
A43: H | B43: SEST | C43: RAL | D43: 3 | E43: 373868 | F43: MATHUREL | G43: Allan | H43: 2000 | I43: 55.2 | J43: H.C. ST BALDOPH | K43: F | L43: 56 | M43: 58 | N43: -60 | O43: 58 | P43: 72 | Q43: -77 | R43: -77 | S43: 72 | T43: 130 | U43: 19.6 | V43: NAT + | W43: 0 | X43: =IF(I43="","",IF(A43="H",IF(OR(H43="SEN",H43<1995),VLOOKUP(I43,Feuil1!$A$11:$G$29,6),IF(AND(H43>1994,H43<1998),VLOOKUP(I43,Feuil1!$A$11:$G$29,5),IF(AND(H43>1997,H43<2000),VLOOKUP(I43,Feuil1!$A$11:$G$29,4),IF(AND(H43>1999,H43<2002),VLOOKUP(I43,Feuil1!$A$11:$G$29,3),VLOOKUP(I43,Feuil1!$A$11:$G$29,2))))),IF(OR(H43="SEN",H43<1995),VLOOKUP(I43,Feuil1!$G$11:$L$25,6),IF(AND(H43>1994,H43<1998),VLOOKUP(I43,Feuil1!$G$11:$L$25,5),IF(AND(H43>1997,H43<2000),VLOOKUP(I43,Feuil1!$G$11:$L$25,4),IF(AND(H43>1999,H43<2002),VLOOKUP(I43,Feuil1!$G$11:$L$25,3),VLOOKUP(I43,Feuil1!$G$11:$L$25,2))))))) -> C1 56 | Y43: 205.2141538 | AB43: =T43-HLOOKUP(X43,Feuil1!$C$1:$BL$10,2,FALSE) -> 80 | AC43: =T43-HLOOKUP(X43,Feuil1!$C$1:$BL$10,3,FALSE) -> 60 | AD43: =T43-HLOOKUP(X43,Feuil1!$C$1:$BL$10,4,FALSE) -> 45 | AE43: =T43-HLOOKUP(X43,Feuil1!$C$1:$BL$10,5,FALSE) -> 30 | AF43: =T43-HLOOKUP(X43,Feuil1!$C$1:$BL$10,6,FALSE) -> 15 | AG43: =T43-HLOOKUP(X43,Feuil1!$C$1:$BL$10,7,FALSE) -> 0 | AH43: =T43-HLOOKUP(X43,Feuil1!$C$1:$BL$10,8,FALSE) -> -15 | AI43: =T43-HLOOKUP(X43,Feuil1!$C$1:$BL$10,9,FALSE) -> -40 | AJ43: =T43-HLOOKUP(X43,Feuil1!$C$1:$BL$10,10,FALSE) -> -870 | AQ43: NAT +
A44: H | B44: NE | C44: CHA | D44: 4 | E44: 366016 | F44: MIGEON | G44: Arthur | H44: 2000 | I44: 55.8 | J44: Reims HM | K44: F | L44: 56 | M44: 60 | N44: 62 | O44: 62 | P44: 63 | Q44: 68 | R44: -73 | S44: 68 | T44: 130 | U44: 18.4 | V44: NAT + | W44: 0 | X44: =IF(I44="","",IF(A44="H",IF(OR(H44="SEN",H44<1995),VLOOKUP(I44,Feuil1!$A$11:$G$29,6),IF(AND(H44>1994,H44<1998),VLOOKUP(I44,Feuil1!$A$11:$G$29,5),IF(AND(H44>1997,H44<2000),VLOOKUP(I44,Feuil1!$A$11:$G$29,4),IF(AND(H44>1999,H44<2002),VLOOKUP(I44,Feuil1!$A$11:$G$29,3),VLOOKUP(I44,Feuil1!$A$11:$G$29,2))))),IF(OR(H44="SEN",H44<1995),VLOOKUP(I44,Feuil1!$G$11:$L$25,6),IF(AND(H44>1994,H44<1998),VLOOKUP(I44,Feuil1!$G$11:$L$25,5),IF(AND(H44>1997,H44<2000),VLOOKUP(I44,Feuil1!$G$11:$L$25,4),IF(AND(H44>1999,H44<2002),VLOOKUP(I44,Feuil1!$G$11:$L$25,3),VLOOKUP(I44,Feuil1!$G$11:$L$25,2))))))) -> C1 56 | Y44: 203.4690104 | AB44: =T44-HLOOKUP(X44,Feuil1!$C$1:$BL$10,2,FALSE) -> 80 | AC44: =T44-HLOOKUP(X44,Feuil1!$C$1:$BL$10,3,FALSE) -> 60 | AD44: =T44-HLOOKUP(X44,Feuil1!$C$1:$BL$10,4,FALSE) -> 45 | AE44: =T44-HLOOKUP(X44,Feuil1!$C$1:$BL$10,5,FALSE) -> 30 | AF44: =T44-HLOOKUP(X44,Feuil1!$C$1:$BL$10,6,FALSE) -> 15 | AG44: =T44-HLOOKUP(X44,Feuil1!$C$1:$BL$10,7,FALSE) -> 0 | AH44: =T44-HLOOKUP(X44,Feuil1!$C$1:$BL$10,8,FALSE) -> -15 | AI44: =T44-HLOOKUP(X44,Feuil1!$C$1:$BL$10,9,FALSE) -> -40 | AJ44: =T44-HLOOKUP(X44,Feuil1!$C$1:$BL$10,10,FALSE) -> -870 | AQ44: NAT +
A45: H | B45: Nord | C45: NPC | D45: 5 | E45: 335809 | F45: FOURNIER | G45: Louis | H45: 2000 | I45: 54.4 | J45: CA Rosendael | K45: F | L45: 45 | M45: 47 | N45: 49 | O45: 49 | P45: 72 | Q45: 76 | R45: 80 | S45: 80 | T45: 129 | U45: 20.2 | V45: FED + | W45: 14 | X45: =IF(I45="","",IF(A45="H",IF(OR(H45="SEN",H45<1995),VLOOKUP(I45,Feuil1!$A$11:$G$29,6),IF(AND(H45>1994,H45<1998),VLOOKUP(I45,Feuil1!$A$11:$G$29,5),IF(AND(H45>1997,H45<2000),VLOOKUP(I45,Feuil1!$A$11:$G$29,4),IF(AND(H45>1999,H45<2002),VLOOKUP(I45,Feuil1!$A$11:$G$29,3),VLOOKUP(I45,Feuil1!$A$11:$G$29,2))))),IF(OR(H45="SEN",H45<1995),VLOOKUP(I45,Feuil1!$G$11:$L$25,6),IF(AND(H45>1994,H45<1998),VLOOKUP(I45,Feuil1!$G$11:$L$25,5),IF(AND(H45>1997,H45<2000),VLOOKUP(I45,Feuil1!$G$11:$L$25,4),IF(AND(H45>1999,H45<2002),VLOOKUP(I45,Feuil1!$G$11:$L$25,3),VLOOKUP(I45,Feuil1!$G$11:$L$25,2))))))) -> C1 56 | Y45: 206.0240132 | AB45: =T45-HLOOKUP(X45,Feuil1!$C$1:$BL$10,2,FALSE) -> 79 | AC45: =T45-HLOOKUP(X45,Feuil1!$C$1:$BL$10,3,FALSE) -> 59 | AD45: =T45-HLOOKUP(X45,Feuil1!$C$1:$BL$10,4,FALSE) -> 44 | AE45: =T45-HLOOKUP(X45,Feuil1!$C$1:$BL$10,5,FALSE) -> 29 | AF45: =T45-HLOOKUP(X45,Feuil1!$C$1:$BL$10,6,FALSE) -> 14 | AG45: =T45-HLOOKUP(X45,Feuil1!$C$1:$BL$10,7,FALSE) -> -1 | AH45: =T45-HLOOKUP(X45,Feuil1!$C$1:$BL$10,8,FALSE) -> -16 | AI45: =T45-HLOOKUP(X45,Feuil1!$C$1:$BL$10,9,FALSE) -> -41 | AJ45: =T45-HLOOKUP(X45,Feuil1!$C$1:$BL$10,10,FALSE) -> -871 | AQ45: FED +
A46: H | B46: Nord | C46: NPC | D46: 6 | E46: 279998 | F46: RIQUIER | G46: Jérémy | H46: 2000 | I46: 50.1 | J46: CHCD Comines | K46: F | L46: 55 | M46: 60 | N46: -62 | O46: 60 | P46: 64 | Q46: -67 | R46: -67 | S46: 64 | T46: 124 | U46: 23.8 | V46: FED + | W46: 9 | X46: =IF(I46="","",IF(A46="H",IF(OR(H46="SEN",H46<1995),VLOOKUP(I46,Feuil1!$A$11:$G$29,6),IF(AND(H46>1994,H46<1998),VLOOKUP(I46,Feuil1!$A$11:$G$29,5),IF(AND(H46>1997,H46<2000),VLOOKUP(I46,Feuil1!$A$11:$G$29,4),IF(AND(H46>1999,H46<2002),VLOOKUP(I46,Feuil1!$A$11:$G$29,3),VLOOKUP(I46,Feuil1!$A$11:$G$29,2))))),IF(OR(H46="SEN",H46<1995),VLOOKUP(I46,Feuil1!$G$11:$L$25,6),IF(AND(H46>1994,H46<1998),VLOOKUP(I46,Feuil1!$G$11:$L$25,5),IF(AND(H46>1997,H46<2000),VLOOKUP(I46,Feuil1!$G$11:$L$25,4),IF(AND(H46>1999,H46<2002),VLOOKUP(I46,Feuil1!$G$11:$L$25,3),VLOOKUP(I46,Feuil1!$G$11:$L$25,2))))))) -> C1 56 | Y46: 212.0849195 | AB46: =T46-HLOOKUP(X46,Feuil1!$C$1:$BL$10,2,FALSE) -> 74 | AC46: =T46-HLOOKUP(X46,Feuil1!$C$1:$BL$10,3,FALSE) -> 54 | AD46: =T46-HLOOKUP(X46,Feuil1!$C$1:$BL$10,4,FALSE) -> 39 | AE46: =T46-HLOOKUP(X46,Feuil1!$C$1:$BL$10,5,FALSE) -> 24 | AF46: =T46-HLOOKUP(X46,Feuil1!$C$1:$BL$10,6,FALSE) -> 9 | AG46: =T46-HLOOKUP(X46,Feuil1!$C$1:$BL$10,7,FALSE) -> -6 | AH46: =T46-HLOOKUP(X46,Feuil1!$C$1:$BL$10,8,FALSE) -> -21 | AI46: =T46-HLOOKUP(X46,Feuil1!$C$1:$BL$10,9,FALSE) -> -46 | AJ46: =T46-HLOOKUP(X46,Feuil1!$C$1:$BL$10,10,FALSE) -> -876 | AQ46: FED +
A47: H | B47: CO | C47: BRE | D47: 7 | E47: 344078 | F47: COQUET | G47: Robin | H47: 2001 | I47: 54.3 | J47: CHM Plouhinec PR | K47: F | L47: 46 | M47: 49 | N47: 51 | O47: 51 | P47: 62 | Q47: -64 | R47: 64 | S47: 64 | T47: 115 | U47: 6.4 | V47: FED + | W47: 0 | X47: =IF(I47="","",IF(A47="H",IF(OR(H47="SEN",H47<1995),VLOOKUP(I47,Feuil1!$A$11:$G$29,6),IF(AND(H47>1994,H47<1998),VLOOKUP(I47,Feuil1!$A$11:$G$29,5),IF(AND(H47>1997,H47<2000),VLOOKUP(I47,Feuil1!$A$11:$G$29,4),IF(AND(H47>1999,H47<2002),VLOOKUP(I47,Feuil1!$A$11:$G$29,3),VLOOKUP(I47,Feuil1!$A$11:$G$29,2))))),IF(OR(H47="SEN",H47<1995),VLOOKUP(I47,Feuil1!$G$11:$L$25,6),IF(AND(H47>1994,H47<1998),VLOOKUP(I47,Feuil1!$G$11:$L$25,5),IF(AND(H47>1997,H47<2000),VLOOKUP(I47,Feuil1!$G$11:$L$25,4),IF(AND(H47>1999,H47<2002),VLOOKUP(I47,Feuil1!$G$11:$L$25,3),VLOOKUP(I47,Feuil1!$G$11:$L$25,2))))))) -> C1 56 | Y47: 183.9368548 | AB47: =T47-HLOOKUP(X47,Feuil1!$C$1:$BL$10,2,FALSE) -> 65 | AC47: =T47-HLOOKUP(X47,Feuil1!$C$1:$BL$10,3,FALSE) -> 45 | AD47: =T47-HLOOKUP(X47,Feuil1!$C$1:$BL$10,4,FALSE) -> 30 | AE47: =T47-HLOOKUP(X47,Feuil1!$C$1:$BL$10,5,FALSE) -> 15 | AF47: =T47-HLOOKUP(X47,Feuil1!$C$1:$BL$10,6,FALSE) -> 0 | AG47: =T47-HLOOKUP(X47,Feuil1!$C$1:$BL$10,7,FALSE) -> -15 | AH47: =T47-HLOOKUP(X47,Feuil1!$C$1:$BL$10,8,FALSE) -> -30 | AI47: =T47-HLOOKUP(X47,Feuil1!$C$1:$BL$10,9,FALSE) -> -55 | AJ47: =T47-HLOOKUP(X47,Feuil1!$C$1:$BL$10,10,FALSE) -> -885 | AQ47: FED +
A48: H | B48: SEST | C48: PRO | D48: 8 | E48: 369617 | F48: GIRARD | G48: Maxime | H48: 2001 | I48: 56 | J48: ISTRES SPORTS | K48: F | L48: -50 | M48: -50 | N48: 50 | O48: 50 | P48: -65 | Q48: -65 | R48: 65 | S48: 65 | T48: 115 | U48: 3 | V48: FED + | W48: 0 | X48: =IF(I48="","",IF(A48="H",IF(OR(H48="SEN",H48<1995),VLOOKUP(I48,Feuil1!$A$11:$G$29,6),IF(AND(H48>1994,H48<1998),VLOOKUP(I48,Feuil1!$A$11:$G$29,5),IF(AND(H48>1997,H48<2000),VLOOKUP(I48,Feuil1!$A$11:$G$29,4),IF(AND(H48>1999,H48<2002),VLOOKUP(I48,Feuil1!$A$11:$G$29,3),VLOOKUP(I48,Feuil1!$A$11:$G$29,2))))),IF(OR(H48="SEN",H48<1995),VLOOKUP(I48,Feuil1!$G$11:$L$25,6),IF(AND(H48>1994,H48<1998),VLOOKUP(I48,Feuil1!$G$11:$L$25,5),IF(AND(H48>1997,H48<2000),VLOOKUP(I48,Feuil1!$G$11:$L$25,4),IF(AND(H48>1999,H48<2002),VLOOKUP(I48,Feuil1!$G$11:$L$25,3),VLOOKUP(I48,Feuil1!$G$11:$L$25,2))))))) -> C1 56 | Y48: 179.4869945 | AB48: =T48-HLOOKUP(X48,Feuil1!$C$1:$BL$10,2,FALSE) -> 65 | AC48: =T48-HLOOKUP(X48,Feuil1!$C$1:$BL$10,3,FALSE) -> 45 | AD48: =T48-HLOOKUP(X48,Feuil1!$C$1:$BL$10,4,FALSE) -> 30 | AE48: =T48-HLOOKUP(X48,Feuil1!$C$1:$BL$10,5,FALSE) -> 15 | AF48: =T48-HLOOKUP(X48,Feuil1!$C$1:$BL$10,6,FALSE) -> 0 | AG48: =T48-HLOOKUP(X48,Feuil1!$C$1:$BL$10,7,FALSE) -> -15 | AH48: =T48-HLOOKUP(X48,Feuil1!$C$1:$BL$10,8,FALSE) -> -30 | AI48: =T48-HLOOKUP(X48,Feuil1!$C$1:$BL$10,9,FALSE) -> -55 | AJ48: =T48-HLOOKUP(X48,Feuil1!$C$1:$BL$10,10,FALSE) -> -885 | AQ48: FED +
A49: H | B49: Nord | C49: NPC | D49: 9 | E49: 359649 | F49: PARANTHOEN | G49: Kévin | H49: 2000 | I49: 52 | J49: CA Rosendael | K49: F | L49: 40 | M49: 42 | N49: 44 | O49: 44 | P49: 57 | Q49: 60 | R49: -63 | S49: 60 | T49: 104 | U49: 0 | V49: IRG + | W49: 4 | X49: =IF(I49="","",IF(A49="H",IF(OR(H49="SEN",H49<1995),VLOOKUP(I49,Feuil1!$A$11:$G$29,6),IF(AND(H49>1994,H49<1998),VLOOKUP(I49,Feuil1!$A$11:$G$29,5),IF(AND(H49>1997,H49<2000),VLOOKUP(I49,Feuil1!$A$11:$G$29,4),IF(AND(H49>1999,H49<2002),VLOOKUP(I49,Feuil1!$A$11:$G$29,3),VLOOKUP(I49,Feuil1!$A$11:$G$29,2))))),IF(OR(H49="SEN",H49<1995),VLOOKUP(I49,Feuil1!$G$11:$L$25,6),IF(AND(H49>1994,H49<1998),VLOOKUP(I49,Feuil1!$G$11:$L$25,5),IF(AND(H49>1997,H49<2000),VLOOKUP(I49,Feuil1!$G$11:$L$25,4),IF(AND(H49>1999,H49<2002),VLOOKUP(I49,Feuil1!$G$11:$L$25,3),VLOOKUP(I49,Feuil1!$G$11:$L$25,2))))))) -> C1 56 | Y49: 172.3522667 | AB49: =T49-HLOOKUP(X49,Feuil1!$C$1:$BL$10,2,FALSE) -> 54 | AC49: =T49-HLOOKUP(X49,Feuil1!$C$1:$BL$10,3,FALSE) -> 34 | AD49: =T49-HLOOKUP(X49,Feuil1!$C$1:$BL$10,4,FALSE) -> 19 | AE49: =T49-HLOOKUP(X49,Feuil1!$C$1:$BL$10,5,FALSE) -> 4 | AF49: =T49-HLOOKUP(X49,Feuil1!$C$1:$BL$10,6,FALSE) -> -11 | AG49: =T49-HLOOKUP(X49,Feuil1!$C$1:$BL$10,7,FALSE) -> -26 | AH49: =T49-HLOOKUP(X49,Feuil1!$C$1:$BL$10,8,FALSE) -> -41 | AI49: =T49-HLOOKUP(X49,Feuil1!$C$1:$BL$10,9,FALSE) -> -66 | AJ49: =T49-HLOOKUP(X49,Feuil1!$C$1:$BL$10,10,FALSE) -> -896 | AQ49: IRG +
A50: H | B50: Nord | C50: NPC | D50: 10 | E50: 383861 | F50: BOULANGER | G50: Christopher | H50: 2001 | I50: 53.3 | J50: AO Sallaumines | K50: F | L50: 42 | M50: -45 | N50: 45 | O50: 45 | P50: 55 | Q50: 59 | R50: -61 | S50: 59 | T50: 104 | U50: -2.6 | V50: IRG + | W50: 4 | X50: =IF(I50="","",IF(A50="H",IF(OR(H50="SEN",H50<1995),VLOOKUP(I50,Feuil1!$A$11:$G$29,6),IF(AND(H50>1994,H50<1998),VLOOKUP(I50,Feuil1!$A$11:$G$29,5),IF(AND(H50>1997,H50<2000),VLOOKUP(I50,Feuil1!$A$11:$G$29,4),IF(AND(H50>1999,H50<2002),VLOOKUP(I50,Feuil1!$A$11:$G$29,3),VLOOKUP(I50,Feuil1!$A$11:$G$29,2))))),IF(OR(H50="SEN",H50<1995),VLOOKUP(I50,Feuil1!$G$11:$L$25,6),IF(AND(H50>1994,H50<1998),VLOOKUP(I50,Feuil1!$G$11:$L$25,5),IF(AND(H50>1997,H50<2000),VLOOKUP(I50,Feuil1!$G$11:$L$25,4),IF(AND(H50>1999,H50<2002),VLOOKUP(I50,Feuil1!$G$11:$L$25,3),VLOOKUP(I50,Feuil1!$G$11:$L$25,2))))))) -> C1 56 | Y50: 168.8709225 | AB50: =T50-HLOOKUP(X50,Feuil1!$C$1:$BL$10,2,FALSE) -> 54 | AC50: =T50-HLOOKUP(X50,Feuil1!$C$1:$BL$10,3,FALSE) -> 34 | AD50: =T50-HLOOKUP(X50,Feuil1!$C$1:$BL$10,4,FALSE) -> 19 | AE50: =T50-HLOOKUP(X50,Feuil1!$C$1:$BL$10,5,FALSE) -> 4 | AF50: =T50-HLOOKUP(X50,Feuil1!$C$1:$BL$10,6,FALSE) -> -11 | AG50: =T50-HLOOKUP(X50,Feuil1!$C$1:$BL$10,7,FALSE) -> -26 | AH50: =T50-HLOOKUP(X50,Feuil1!$C$1:$BL$10,8,FALSE) -> -41 | AI50: =T50-HLOOKUP(X50,Feuil1!$C$1:$BL$10,9,FALSE) -> -66 | AJ50: =T50-HLOOKUP(X50,Feuil1!$C$1:$BL$10,10,FALSE) -> -896 | AQ50: IRG +
A51: H | B51: SE | C51: AUV | D51: 11 | E51: 319977 | F51: ALTAYRAC | G51: Thomas | H51: 2000 | I51: 54.8 | J51: AURILLAC | K51: F | L51: 38 | M51: 42 | N51: 45 | O51: 45 | P51: 52 | Q51: -57 | R51: 57 | S51: 57 | T51: 102 | U51: -7.6 | V51: IRG + | W51: 2 | X51: =IF(I51="","",IF(A51="H",IF(OR(H51="SEN",H51<1995),VLOOKUP(I51,Feuil1!$A$11:$G$29,6),IF(AND(H51>1994,H51<1998),VLOOKUP(I51,Feuil1!$A$11:$G$29,5),IF(AND(H51>1997,H51<2000),VLOOKUP(I51,Feuil1!$A$11:$G$29,4),IF(AND(H51>1999,H51<2002),VLOOKUP(I51,Feuil1!$A$11:$G$29,3),VLOOKUP(I51,Feuil1!$A$11:$G$29,2))))),IF(OR(H51="SEN",H51<1995),VLOOKUP(I51,Feuil1!$G$11:$L$25,6),IF(AND(H51>1994,H51<1998),VLOOKUP(I51,Feuil1!$G$11:$L$25,5),IF(AND(H51>1997,H51<2000),VLOOKUP(I51,Feuil1!$G$11:$L$25,4),IF(AND(H51>1999,H51<2002),VLOOKUP(I51,Feuil1!$G$11:$L$25,3),VLOOKUP(I51,Feuil1!$G$11:$L$25,2))))))) -> C1 56 | Y51: 161.9492695 | AB51: =T51-HLOOKUP(X51,Feuil1!$C$1:$BL$10,2,FALSE) -> 52 | AC51: =T51-HLOOKUP(X51,Feuil1!$C$1:$BL$10,3,FALSE) -> 32 | AD51: =T51-HLOOKUP(X51,Feuil1!$C$1:$BL$10,4,FALSE) -> 17 | AE51: =T51-HLOOKUP(X51,Feuil1!$C$1:$BL$10,5,FALSE) -> 2 | AF51: =T51-HLOOKUP(X51,Feuil1!$C$1:$BL$10,6,FALSE) -> -13 | AG51: =T51-HLOOKUP(X51,Feuil1!$C$1:$BL$10,7,FALSE) -> -28 | AH51: =T51-HLOOKUP(X51,Feuil1!$C$1:$BL$10,8,FALSE) -> -43 | AI51: =T51-HLOOKUP(X51,Feuil1!$C$1:$BL$10,9,FALSE) -> -68 | AJ51: =T51-HLOOKUP(X51,Feuil1!$C$1:$BL$10,10,FALSE) -> -898 | AQ51: IRG +
A52: H | B52: Nord | C52: IDF | D52: 12 | E52: 313327 | F52: TRAN TRI | G52: Hugo | H52: 2000 | I52: 53.6 | J52: CHM Chaville | K52: F | L52: 40 | M52: 45 | N52: -47 | O52: 45 | P52: 50 | Q52: -55 | R52: 55 | S52: 55 | T52: 100 | U52: -7.2 | V52: IRG + | W52: 0 | X52: =IF(I52="","",IF(A52="H",IF(OR(H52="SEN",H52<1995),VLOOKUP(I52,Feuil1!$A$11:$G$29,6),IF(AND(H52>1994,H52<1998),VLOOKUP(I52,Feuil1!$A$11:$G$29,5),IF(AND(H52>1997,H52<2000),VLOOKUP(I52,Feuil1!$A$11:$G$29,4),IF(AND(H52>1999,H52<2002),VLOOKUP(I52,Feuil1!$A$11:$G$29,3),VLOOKUP(I52,Feuil1!$A$11:$G$29,2))))),IF(OR(H52="SEN",H52<1995),VLOOKUP(I52,Feuil1!$G$11:$L$25,6),IF(AND(H52>1994,H52<1998),VLOOKUP(I52,Feuil1!$G$11:$L$25,5),IF(AND(H52>1997,H52<2000),VLOOKUP(I52,Feuil1!$G$11:$L$25,4),IF(AND(H52>1999,H52<2002),VLOOKUP(I52,Feuil1!$G$11:$L$25,3),VLOOKUP(I52,Feuil1!$G$11:$L$25,2))))))) -> C1 56 | Y52: 161.6339635 | AB52: =T52-HLOOKUP(X52,Feuil1!$C$1:$BL$10,2,FALSE) -> 50 | AC52: =T52-HLOOKUP(X52,Feuil1!$C$1:$BL$10,3,FALSE) -> 30 | AD52: =T52-HLOOKUP(X52,Feuil1!$C$1:$BL$10,4,FALSE) -> 15 | AE52: =T52-HLOOKUP(X52,Feuil1!$C$1:$BL$10,5,FALSE) -> 0 | AF52: =T52-HLOOKUP(X52,Feuil1!$C$1:$BL$10,6,FALSE) -> -15 | AG52: =T52-HLOOKUP(X52,Feuil1!$C$1:$BL$10,7,FALSE) -> -30 | AH52: =T52-HLOOKUP(X52,Feuil1!$C$1:$BL$10,8,FALSE) -> -45 | AI52: =T52-HLOOKUP(X52,Feuil1!$C$1:$BL$10,9,FALSE) -> -70 | AJ52: =T52-HLOOKUP(X52,Feuil1!$C$1:$BL$10,10,FALSE) -> -900 | AQ52: IRG +
A54: H | B54: DOM | C54: GUA | D54: 1 | E54: 265989 | F54: BERTILI | G54: Bernard | H54: 2000 | I54: 61.2 | J54: AHCS/Pointois | K54: F | L54: 70 | M54: 75 | N54: 78 | O54: =IF(H54="","",IF(MAXA(L54:N54)<=0,0,MAXA(L54:N54))) -> 78 | P54: 85 | Q54: 90 | R54: -95 | S54: =IF(H54="","",IF(MAXA(P54:R54)<=0,0,MAXA(P54:R54))) -> 90 | T54: =IF(H54="","",IF(OR(O54=0,S54=0),0,O54+S54)) -> 168 | U54: =T54-I54*2 -> 45.6 | V54: =IF(H54="","",AQ54) -> NAT + | W54: =IF(AJ54>=0,AJ54,IF(AI54>=0,AI54,IF(AH54>=0,AH54,IF(AG54>=0,AG54,IF(AF54>=0,AF54,IF(AE54>=0,AE54,IF(AD54>=0,AD54,IF(AC54>=0,AC54,AB54)))))))) -> 18 | X54: =IF(I54="","",IF(A54="H",IF(OR(H54="SEN",H54<1995),VLOOKUP(I54,Feuil1!$A$11:$G$29,6),IF(AND(H54>1994,H54<1998),VLOOKUP(I54,Feuil1!$A$11:$G$29,5),IF(AND(H54>1997,H54<2000),VLOOKUP(I54,Feuil1!$A$11:$G$29,4),IF(AND(H54>1999,H54<2002),VLOOKUP(I54,Feuil1!$A$11:$G$29,3),VLOOKUP(I54,Feuil1!$A$11:$G$29,2))))),IF(OR(H54="SEN",H54<1995),VLOOKUP(I54,Feuil1!$G$11:$L$25,6),IF(AND(H54>1994,H54<1998),VLOOKUP(I54,Feuil1!$G$11:$L$25,5),IF(AND(H54>1997,H54<2000),VLOOKUP(I54,Feuil1!$G$11:$L$25,4),IF(AND(H54>1999,H54<2002),VLOOKUP(I54,Feuil1!$G$11:$L$25,3),VLOOKUP(I54,Feuil1!$G$11:$L$25,2))))))) -> C1 62 | Y54: =IF(I54="","",IF(A54="H",10^(0.794358141*LOG(I54/174.393)^2)*T54,IF(A54="F",10^(0.89726074*LOG(I54/148.026)^2)*T54,""))) -> 245.2452299 | AB54: =T54-HLOOKUP(X54,Feuil1!$C$1:$BL$10,2,FALSE) -> 93 | AC54: =T54-HLOOKUP(X54,Feuil1!$C$1:$BL$10,3,FALSE) -> 73 | AD54: =T54-HLOOKUP(X54,Feuil1!$C$1:$BL$10,4,FALSE) -> 63 | AE54: =T54-HLOOKUP(X54,Feuil1!$C$1:$BL$10,5,FALSE) -> 48 | AF54: =T54-HLOOKUP(X54,Feuil1!$C$1:$BL$10,6,FALSE) -> 33 | AG54: =T54-HLOOKUP(X54,Feuil1!$C$1:$BL$10,7,FALSE) -> 18 | AH54: =T54-HLOOKUP(X54,Feuil1!$C$1:$BL$10,8,FALSE) -> -2 | AI54: =T54-HLOOKUP(X54,Feuil1!$C$1:$BL$10,9,FALSE) -> -22 | AJ54: =T54-HLOOKUP(X54,Feuil1!$C$1:$BL$10,10,FALSE) -> -832 | AQ54: =IF(AJ54>=0,$AJ$4,IF(AI54>=0,$AI$4,IF(AH54>=0,$AH$4,IF(AG54>=0,$AG$4,IF(AF54>=0,$AF$4,IF(AE54>=0,$AE$4,IF(AD54>=0,$AD$4,IF(AC54>=0,$AC$4,$AB$4)))))))) -> NAT +
A55: H | B55: Nord | C55: NPC | D55: 2 | E55: 304778 | F55: DESMAREST | G55: Dylan | H55: 2000 | I55: 61.2 | J55: CHCD Comines | K55: F | L55: 58 | M55: 61 | N55: -64 | O55: 61 | P55: 77 | Q55: 80 | R55: 85 | S55: 85 | T55: 146 | U55: 23.6 | V55: FED + | W55: 11 | X55: =IF(I55="","",IF(A55="H",IF(OR(H55="SEN",H55<1995),VLOOKUP(I55,Feuil1!$A$11:$G$29,6),IF(AND(H55>1994,H55<1998),VLOOKUP(I55,Feuil1!$A$11:$G$29,5),IF(AND(H55>1997,H55<2000),VLOOKUP(I55,Feuil1!$A$11:$G$29,4),IF(AND(H55>1999,H55<2002),VLOOKUP(I55,Feuil1!$A$11:$G$29,3),VLOOKUP(I55,Feuil1!$A$11:$G$29,2))))),IF(OR(H55="SEN",H55<1995),VLOOKUP(I55,Feuil1!$G$11:$L$25,6),IF(AND(H55>1994,H55<1998),VLOOKUP(I55,Feuil1!$G$11:$L$25,5),IF(AND(H55>1997,H55<2000),VLOOKUP(I55,Feuil1!$G$11:$L$25,4),IF(AND(H55>1999,H55<2002),VLOOKUP(I55,Feuil1!$G$11:$L$25,3),VLOOKUP(I55,Feuil1!$G$11:$L$25,2))))))) -> C1 62 | Y55: 213.1297831 | AB55: =T55-HLOOKUP(X55,Feuil1!$C$1:$BL$10,2,FALSE) -> 71 | AC55: =T55-HLOOKUP(X55,Feuil1!$C$1:$BL$10,3,FALSE) -> 51 | AD55: =T55-HLOOKUP(X55,Feuil1!$C$1:$BL$10,4,FALSE) -> 41 | AE55: =T55-HLOOKUP(X55,Feuil1!$C$1:$BL$10,5,FALSE) -> 26 | AF55: =T55-HLOOKUP(X55,Feuil1!$C$1:$BL$10,6,FALSE) -> 11 | AG55: =T55-HLOOKUP(X55,Feuil1!$C$1:$BL$10,7,FALSE) -> -4 | AH55: =T55-HLOOKUP(X55,Feuil1!$C$1:$BL$10,8,FALSE) -> -24 | AI55: =T55-HLOOKUP(X55,Feuil1!$C$1:$BL$10,9,FALSE) -> -44 | AJ55: =T55-HLOOKUP(X55,Feuil1!$C$1:$BL$10,10,FALSE) -> -854 | AQ55: FED +
A56: H | B56: CO | C56: PDL | D56: 3 | E56: 368728 | F56: MELLIER | G56: Romain | H56: 2000 | I56: 57.2 | J56: CA Evron 53 | K56: F | L56: 60 | M56: 65 | N56: -67 | O56: 65 | P56: 70 | Q56: 75 | R56: -78 | S56: 75 | T56: 140 | U56: 25.6 | V56: FED + | W56: 5 | X56: =IF(I56="","",IF(A56="H",IF(OR(H56="SEN",H56<1995),VLOOKUP(I56,Feuil1!$A$11:$G$29,6),IF(AND(H56>1994,H56<1998),VLOOKUP(I56,Feuil1!$A$11:$G$29,5),IF(AND(H56>1997,H56<2000),VLOOKUP(I56,Feuil1!$A$11:$G$29,4),IF(AND(H56>1999,H56<2002),VLOOKUP(I56,Feuil1!$A$11:$G$29,3),VLOOKUP(I56,Feuil1!$A$11:$G$29,2))))),IF(OR(H56="SEN",H56<1995),VLOOKUP(I56,Feuil1!$G$11:$L$25,6),IF(AND(H56>1994,H56<1998),VLOOKUP(I56,Feuil1!$G$11:$L$25,5),IF(AND(H56>1997,H56<2000),VLOOKUP(I56,Feuil1!$G$11:$L$25,4),IF(AND(H56>1999,H56<2002),VLOOKUP(I56,Feuil1!$G$11:$L$25,3),VLOOKUP(I56,Feuil1!$G$11:$L$25,2))))))) -> C1 62 | Y56: 214.9381441 | AB56: =T56-HLOOKUP(X56,Feuil1!$C$1:$BL$10,2,FALSE) -> 65 | AC56: =T56-HLOOKUP(X56,Feuil1!$C$1:$BL$10,3,FALSE) -> 45 | AD56: =T56-HLOOKUP(X56,Feuil1!$C$1:$BL$10,4,FALSE) -> 35 | AE56: =T56-HLOOKUP(X56,Feuil1!$C$1:$BL$10,5,FALSE) -> 20 | AF56: =T56-HLOOKUP(X56,Feuil1!$C$1:$BL$10,6,FALSE) -> 5 | AG56: =T56-HLOOKUP(X56,Feuil1!$C$1:$BL$10,7,FALSE) -> -10 | AH56: =T56-HLOOKUP(X56,Feuil1!$C$1:$BL$10,8,FALSE) -> -30 | AI56: =T56-HLOOKUP(X56,Feuil1!$C$1:$BL$10,9,FALSE) -> -50 | AJ56: =T56-HLOOKUP(X56,Feuil1!$C$1:$BL$10,10,FALSE) -> -860 | AQ56: FED +
A57: H | B57: Nord | C57: NPC | D57: 4 | E57: 355670 | F57: LESSCHAVE | G57: Théo | H57: 2000 | I57: 59.25 | J57: ASPTT Lille Métropole | K57: F | L57: 57 | M57: -61 | N57: -61 | O57: 57 | P57: 70 | Q57: -74 | R57: -78 | S57: 70 | T57: 127 | U57: 8.5 | V57: IRG + | W57: 7 | X57: =IF(I57="","",IF(A57="H",IF(OR(H57="SEN",H57<1995),VLOOKUP(I57,Feuil1!$A$11:$G$29,6),IF(AND(H57>1994,H57<1998),VLOOKUP(I57,Feuil1!$A$11:$G$29,5),IF(AND(H57>1997,H57<2000),VLOOKUP(I57,Feuil1!$A$11:$G$29,4),IF(AND(H57>1999,H57<2002),VLOOKUP(I57,Feuil1!$A$11:$G$29,3),VLOOKUP(I57,Feuil1!$A$11:$G$29,2))))),IF(OR(H57="SEN",H57<1995),VLOOKUP(I57,Feuil1!$G$11:$L$25,6),IF(AND(H57>1994,H57<1998),VLOOKUP(I57,Feuil1!$G$11:$L$25,5),IF(AND(H57>1997,H57<2000),VLOOKUP(I57,Feuil1!$G$11:$L$25,4),IF(AND(H57>1999,H57<2002),VLOOKUP(I57,Feuil1!$G$11:$L$25,3),VLOOKUP(I57,Feuil1!$G$11:$L$25,2))))))) -> C1 62 | Y57: 189.8509838 | AB57: =T57-HLOOKUP(X57,Feuil1!$C$1:$BL$10,2,FALSE) -> 52 | AC57: =T57-HLOOKUP(X57,Feuil1!$C$1:$BL$10,3,FALSE) -> 32 | AD57: =T57-HLOOKUP(X57,Feuil1!$C$1:$BL$10,4,FALSE) -> 22 | AE57: =T57-HLOOKUP(X57,Feuil1!$C$1:$BL$10,5,FALSE) -> 7 | AF57: =T57-HLOOKUP(X57,Feuil1!$C$1:$BL$10,6,FALSE) -> -8 | AG57: =T57-HLOOKUP(X57,Feuil1!$C$1:$BL$10,7,FALSE) -> -23 | AH57: =T57-HLOOKUP(X57,Feuil1!$C$1:$BL$10,8,FALSE) -> -43 | AI57: =T57-HLOOKUP(X57,Feuil1!$C$1:$BL$10,9,FALSE) -> -63 | AJ57: =T57-HLOOKUP(X57,Feuil1!$C$1:$BL$10,10,FALSE) -> -873 | AQ57: IRG +
A58: H | B58: SEST | C58: RAL | D58: 5 | E58: 304551 | F58: DOMINGUEZ | G58: Gaetan | H58: 2001 | I58: 59.9 | J58: GAULOISE de VAISE | K58: F | L58: -55 | M58: 55 | N58: -62 | O58: 55 | P58: 65 | Q58: 72 | R58: -80 | S58: 72 | T58: 127 | U58: 7.2 | V58: IRG + | W58: 7 | X58: =IF(I58="","",IF(A58="H",IF(OR(H58="SEN",H58<1995),VLOOKUP(I58,Feuil1!$A$11:$G$29,6),IF(AND(H58>1994,H58<1998),VLOOKUP(I58,Feuil1!$A$11:$G$29,5),IF(AND(H58>1997,H58<2000),VLOOKUP(I58,Feuil1!$A$11:$G$29,4),IF(AND(H58>1999,H58<2002),VLOOKUP(I58,Feuil1!$A$11:$G$29,3),VLOOKUP(I58,Feuil1!$A$11:$G$29,2))))),IF(OR(H58="SEN",H58<1995),VLOOKUP(I58,Feuil1!$G$11:$L$25,6),IF(AND(H58>1994,H58<1998),VLOOKUP(I58,Feuil1!$G$11:$L$25,5),IF(AND(H58>1997,H58<2000),VLOOKUP(I58,Feuil1!$G$11:$L$25,4),IF(AND(H58>1999,H58<2002),VLOOKUP(I58,Feuil1!$G$11:$L$25,3),VLOOKUP(I58,Feuil1!$G$11:$L$25,2))))))) -> C1 62 | Y58: 188.3220691 | AB58: =T58-HLOOKUP(X58,Feuil1!$C$1:$BL$10,2,FALSE) -> 52 | AC58: =T58-HLOOKUP(X58,Feuil1!$C$1:$BL$10,3,FALSE) -> 32 | AD58: =T58-HLOOKUP(X58,Feuil1!$C$1:$BL$10,4,FALSE) -> 22 | AE58: =T58-HLOOKUP(X58,Feuil1!$C$1:$BL$10,5,FALSE) -> 7 | AF58: =T58-HLOOKUP(X58,Feuil1!$C$1:$BL$10,6,FALSE) -> -8 | AG58: =T58-HLOOKUP(X58,Feuil1!$C$1:$BL$10,7,FALSE) -> -23 | AH58: =T58-HLOOKUP(X58,Feuil1!$C$1:$BL$10,8,FALSE) -> -43 | AI58: =T58-HLOOKUP(X58,Feuil1!$C$1:$BL$10,9,FALSE) -> -63 | AJ58: =T58-HLOOKUP(X58,Feuil1!$C$1:$BL$10,10,FALSE) -> -873 | AQ58: IRG +
A59: H | B59: Nord | C59: NPC | D59: 6 | E59: 248951 | F59: KEMPENAIRE | G59: Cédric | H59: 2001 | I59: 58.1 | J59: CHCD Comines | K59: F | L59: 47 | M59: 50 | N59: 53 | O59: 53 | P59: 63 | Q59: 66 | R59: -69 | S59: 66 | T59: 119 | U59: 2.8 | V59: REG + | W59: 14 | X59: =IF(I59="","",IF(A59="H",IF(OR(H59="SEN",H59<1995),VLOOKUP(I59,Feuil1!$A$11:$G$29,6),IF(AND(H59>1994,H59<1998),VLOOKUP(I59,Feuil1!$A$11:$G$29,5),IF(AND(H59>1997,H59<2000),VLOOKUP(I59,Feuil1!$A$11:$G$29,4),IF(AND(H59>1999,H59<2002),VLOOKUP(I59,Feuil1!$A$11:$G$29,3),VLOOKUP(I59,Feuil1!$A$11:$G$29,2))))),IF(OR(H59="SEN",H59<1995),VLOOKUP(I59,Feuil1!$G$11:$L$25,6),IF(AND(H59>1994,H59<1998),VLOOKUP(I59,Feuil1!$G$11:$L$25,5),IF(AND(H59>1997,H59<2000),VLOOKUP(I59,Feuil1!$G$11:$L$25,4),IF(AND(H59>1999,H59<2002),VLOOKUP(I59,Feuil1!$G$11:$L$25,3),VLOOKUP(I59,Feuil1!$G$11:$L$25,2))))))) -> C1 62 | Y59: 180.5319279 | AB59: =T59-HLOOKUP(X59,Feuil1!$C$1:$BL$10,2,FALSE) -> 44 | AC59: =T59-HLOOKUP(X59,Feuil1!$C$1:$BL$10,3,FALSE) -> 24 | AD59: =T59-HLOOKUP(X59,Feuil1!$C$1:$BL$10,4,FALSE) -> 14 | AE59: =T59-HLOOKUP(X59,Feuil1!$C$1:$BL$10,5,FALSE) -> -1 | AF59: =T59-HLOOKUP(X59,Feuil1!$C$1:$BL$10,6,FALSE) -> -16 | AG59: =T59-HLOOKUP(X59,Feuil1!$C$1:$BL$10,7,FALSE) -> -31 | AH59: =T59-HLOOKUP(X59,Feuil1!$C$1:$BL$10,8,FALSE) -> -51 | AI59: =T59-HLOOKUP(X59,Feuil1!$C$1:$BL$10,9,FALSE) -> -71 | AJ59: =T59-HLOOKUP(X59,Feuil1!$C$1:$BL$10,10,FALSE) -> -881 | AQ59: REG +
A60: H | B60: NE | C60: FCO | D60: 7 | E60: 350181 | F60: BERTHELIN | G60: Simon | H60: 2000 | I60: 59.1 | J60: CH Luxeuil | K60: F | L60: 45 | M60: -50 | N60: 50 | O60: 50 | P60: 60 | Q60: 65 | R60: -70 | S60: 65 | T60: 115 | U60: -3.2 | V60: REG + | W60: 10 | X60: =IF(I60="","",IF(A60="H",IF(OR(H60="SEN",H60<1995),VLOOKUP(I60,Feuil1!$A$11:$G$29,6),IF(AND(H60>1994,H60<1998),VLOOKUP(I60,Feuil1!$A$11:$G$29,5),IF(AND(H60>1997,H60<2000),VLOOKUP(I60,Feuil1!$A$11:$G$29,4),IF(AND(H60>1999,H60<2002),VLOOKUP(I60,Feuil1!$A$11:$G$29,3),VLOOKUP(I60,Feuil1!$A$11:$G$29,2))))),IF(OR(H60="SEN",H60<1995),VLOOKUP(I60,Feuil1!$G$11:$L$25,6),IF(AND(H60>1994,H60<1998),VLOOKUP(I60,Feuil1!$G$11:$L$25,5),IF(AND(H60>1997,H60<2000),VLOOKUP(I60,Feuil1!$G$11:$L$25,4),IF(AND(H60>1999,H60<2002),VLOOKUP(I60,Feuil1!$G$11:$L$25,3),VLOOKUP(I60,Feuil1!$G$11:$L$25,2))))))) -> C1 62 | Y60: 172.2375841 | AB60: =T60-HLOOKUP(X60,Feuil1!$C$1:$BL$10,2,FALSE) -> 40 | AC60: =T60-HLOOKUP(X60,Feuil1!$C$1:$BL$10,3,FALSE) -> 20 | AD60: =T60-HLOOKUP(X60,Feuil1!$C$1:$BL$10,4,FALSE) -> 10 | AE60: =T60-HLOOKUP(X60,Feuil1!$C$1:$BL$10,5,FALSE) -> -5 | AF60: =T60-HLOOKUP(X60,Feuil1!$C$1:$BL$10,6,FALSE) -> -20 | AG60: =T60-HLOOKUP(X60,Feuil1!$C$1:$BL$10,7,FALSE) -> -35 | AH60: =T60-HLOOKUP(X60,Feuil1!$C$1:$BL$10,8,FALSE) -> -55 | AI60: =T60-HLOOKUP(X60,Feuil1!$C$1:$BL$10,9,FALSE) -> -75 | AJ60: =T60-HLOOKUP(X60,Feuil1!$C$1:$BL$10,10,FALSE) -> -885 | AQ60: REG +
A62: H | B62: NE | C62: CHA | D62: 1 | E62: 339573 | F62: MKRTCHYAN | G62: Armen | H62: 2000 | I62: 63.3 | J62: Reims HM | K62: Arm | L62: 62 | M62: 65 | N62: 69 | O62: =IF(H62="","",IF(MAXA(L62:N62)<=0,0,MAXA(L62:N62))) -> 69 | P62: 81 | Q62: 86 | R62: 91 | S62: =IF(H62="","",IF(MAXA(P62:R62)<=0,0,MAXA(P62:R62))) -> 91 | T62: =IF(H62="","",IF(OR(O62=0,S62=0),0,O62+S62)) -> 160 | U62: =T62-I62*2 -> 33.4 | V62: =IF(H62="","",AQ62) -> FED + | W62: =IF(AJ62>=0,AJ62,IF(AI62>=0,AI62,IF(AH62>=0,AH62,IF(AG62>=0,AG62,IF(AF62>=0,AF62,IF(AE62>=0,AE62,IF(AD62>=0,AD62,IF(AC62>=0,AC62,AB62)))))))) -> 10 | X62: =IF(I62="","",IF(A62="H",IF(OR(H62="SEN",H62<1995),VLOOKUP(I62,Feuil1!$A$11:$G$29,6),IF(AND(H62>1994,H62<1998),VLOOKUP(I62,Feuil1!$A$11:$G$29,5),IF(AND(H62>1997,H62<2000),VLOOKUP(I62,Feuil1!$A$11:$G$29,4),IF(AND(H62>1999,H62<2002),VLOOKUP(I62,Feuil1!$A$11:$G$29,3),VLOOKUP(I62,Feuil1!$A$11:$G$29,2))))),IF(OR(H62="SEN",H62<1995),VLOOKUP(I62,Feuil1!$G$11:$L$25,6),IF(AND(H62>1994,H62<1998),VLOOKUP(I62,Feuil1!$G$11:$L$25,5),IF(AND(H62>1997,H62<2000),VLOOKUP(I62,Feuil1!$G$11:$L$25,4),IF(AND(H62>1999,H62<2002),VLOOKUP(I62,Feuil1!$G$11:$L$25,3),VLOOKUP(I62,Feuil1!$G$11:$L$25,2))))))) -> C1 69 | Y62: =IF(I62="","",IF(A62="H",10^(0.794358141*LOG(I62/174.393)^2)*T62,IF(A62="F",10^(0.89726074*LOG(I62/148.026)^2)*T62,""))) -> 228.0317643 | AB62: =T62-HLOOKUP(X62,Feuil1!$C$1:$BL$10,2,FALSE) -> 75 | AC62: =T62-HLOOKUP(X62,Feuil1!$C$1:$BL$10,3,FALSE) -> 55 | AD62: =T62-HLOOKUP(X62,Feuil1!$C$1:$BL$10,4,FALSE) -> 45 | AE62: =T62-HLOOKUP(X62,Feuil1!$C$1:$BL$10,5,FALSE) -> 30 | AF62: =T62-HLOOKUP(X62,Feuil1!$C$1:$BL$10,6,FALSE) -> 10 | AG62: =T62-HLOOKUP(X62,Feuil1!$C$1:$BL$10,7,FALSE) -> -10 | AH62: =T62-HLOOKUP(X62,Feuil1!$C$1:$BL$10,8,FALSE) -> -30 | AI62: =T62-HLOOKUP(X62,Feuil1!$C$1:$BL$10,9,FALSE) -> -50 | AJ62: =T62-HLOOKUP(X62,Feuil1!$C$1:$BL$10,10,FALSE) -> -840 | AQ62: =IF(AJ62>=0,$AJ$4,IF(AI62>=0,$AI$4,IF(AH62>=0,$AH$4,IF(AG62>=0,$AG$4,IF(AF62>=0,$AF$4,IF(AE62>=0,$AE$4,IF(AD62>=0,$AD$4,IF(AC62>=0,$AC$4,$AB$4)))))))) -> FED +
A63: H | B63: Nord | C63: NPC | D63: 2 | E63: 311932 | F63: MAES | G63: Calvin | H63: 2000 | I63: 65.5 | J63: CA Rosendael | K63: F | L63: -63 | M63: 63 | N63: -65 | O63: =IF(H63="","",IF(MAXA(L63:N63)<=0,0,MAXA(L63:N63))) -> 63 | P63: 82 | Q63: -87 | R63: -87 | S63: =IF(H63="","",IF(MAXA(P63:R63)<=0,0,MAXA(P63:R63))) -> 82 | T63: =IF(H63="","",IF(OR(O63=0,S63=0),0,O63+S63)) -> 145 | U63: =T63-I63*2 -> 14 | V63: =IF(H63="","",AQ63) -> IRG + | W63: =IF(AJ63>=0,AJ63,IF(AI63>=0,AI63,IF(AH63>=0,AH63,IF(AG63>=0,AG63,IF(AF63>=0,AF63,IF(AE63>=0,AE63,IF(AD63>=0,AD63,IF(AC63>=0,AC63,AB63)))))))) -> 15 | X63: =IF(I63="","",IF(A63="H",IF(OR(H63="SEN",H63<1995),VLOOKUP(I63,Feuil1!$A$11:$G$29,6),IF(AND(H63>1994,H63<1998),VLOOKUP(I63,Feuil1!$A$11:$G$29,5),IF(AND(H63>1997,H63<2000),VLOOKUP(I63,Feuil1!$A$11:$G$29,4),IF(AND(H63>1999,H63<2002),VLOOKUP(I63,Feuil1!$A$11:$G$29,3),VLOOKUP(I63,Feuil1!$A$11:$G$29,2))))),IF(OR(H63="SEN",H63<1995),VLOOKUP(I63,Feuil1!$G$11:$L$25,6),IF(AND(H63>1994,H63<1998),VLOOKUP(I63,Feuil1!$G$11:$L$25,5),IF(AND(H63>1997,H63<2000),VLOOKUP(I63,Feuil1!$G$11:$L$25,4),IF(AND(H63>1999,H63<2002),VLOOKUP(I63,Feuil1!$G$11:$L$25,3),VLOOKUP(I63,Feuil1!$G$11:$L$25,2))))))) -> C1 69 | Y63: =IF(I63="","",IF(A63="H",10^(0.794358141*LOG(I63/174.393)^2)*T63,IF(A63="F",10^(0.89726074*LOG(I63/148.026)^2)*T63,""))) -> 201.8567592 | AB63: =T63-HLOOKUP(X63,Feuil1!$C$1:$BL$10,2,FALSE) -> 60 | AC63: =T63-HLOOKUP(X63,Feuil1!$C$1:$BL$10,3,FALSE) -> 40 | AD63: =T63-HLOOKUP(X63,Feuil1!$C$1:$BL$10,4,FALSE) -> 30 | AE63: =T63-HLOOKUP(X63,Feuil1!$C$1:$BL$10,5,FALSE) -> 15 | AF63: =T63-HLOOKUP(X63,Feuil1!$C$1:$BL$10,6,FALSE) -> -5 | AG63: =T63-HLOOKUP(X63,Feuil1!$C$1:$BL$10,7,FALSE) -> -25 | AH63: =T63-HLOOKUP(X63,Feuil1!$C$1:$BL$10,8,FALSE) -> -45 | AI63: =T63-HLOOKUP(X63,Feuil1!$C$1:$BL$10,9,FALSE) -> -65 | AJ63: =T63-HLOOKUP(X63,Feuil1!$C$1:$BL$10,10,FALSE) -> -855 | AQ63: =IF(AJ63>=0,$AJ$4,IF(AI63>=0,$AI$4,IF(AH63>=0,$AH$4,IF(AG63>=0,$AG$4,IF(AF63>=0,$AF$4,IF(AE63>=0,$AE$4,IF(AD63>=0,$AD$4,IF(AC63>=0,$AC$4,$AB$4)))))))) -> IRG +
A64: H | B64: CO | C64: BNO | D64: 3 | E64: 327978 | F64: PANNIER | G64: Quentin | H64: 2000 | I64: 63.7 | J64: Caen CHM | K64: F | L64: 50 | M64: 54 | N64: -57 | O64: =IF(H64="","",IF(MAXA(L64:N64)<=0,0,MAXA(L64:N64))) -> 54 | P64: 68 | Q64: 72 | R64: -75 | S64: =IF(H64="","",IF(MAXA(P64:R64)<=0,0,MAXA(P64:R64))) -> 72 | T64: =IF(H64="","",IF(OR(O64=0,S64=0),0,O64+S64)) -> 126 | U64: =T64-I64*2 -> -1.4 | V64: =IF(H64="","",AQ64) -> REG + | W64: =IF(AJ64>=0,AJ64,IF(AI64>=0,AI64,IF(AH64>=0,AH64,IF(AG64>=0,AG64,IF(AF64>=0,AF64,IF(AE64>=0,AE64,IF(AD64>=0,AD64,IF(AC64>=0,AC64,AB64)))))))) -> 11 | X64: =IF(I64="","",IF(A64="H",IF(OR(H64="SEN",H64<1995),VLOOKUP(I64,Feuil1!$A$11:$G$29,6),IF(AND(H64>1994,H64<1998),VLOOKUP(I64,Feuil1!$A$11:$G$29,5),IF(AND(H64>1997,H64<2000),VLOOKUP(I64,Feuil1!$A$11:$G$29,4),IF(AND(H64>1999,H64<2002),VLOOKUP(I64,Feuil1!$A$11:$G$29,3),VLOOKUP(I64,Feuil1!$A$11:$G$29,2))))),IF(OR(H64="SEN",H64<1995),VLOOKUP(I64,Feuil1!$G$11:$L$25,6),IF(AND(H64>1994,H64<1998),VLOOKUP(I64,Feuil1!$G$11:$L$25,5),IF(AND(H64>1997,H64<2000),VLOOKUP(I64,Feuil1!$G$11:$L$25,4),IF(AND(H64>1999,H64<2002),VLOOKUP(I64,Feuil1!$G$11:$L$25,3),VLOOKUP(I64,Feuil1!$G$11:$L$25,2))))))) -> C1 69 | Y64: =IF(I64="","",IF(A64="H",10^(0.794358141*LOG(I64/174.393)^2)*T64,IF(A64="F",10^(0.89726074*LOG(I64/148.026)^2)*T64,""))) -> 178.7882379 | AB64: =T64-HLOOKUP(X64,Feuil1!$C$1:$BL$10,2,FALSE) -> 41 | AC64: =T64-HLOOKUP(X64,Feuil1!$C$1:$BL$10,3,FALSE) -> 21 | AD64: =T64-HLOOKUP(X64,Feuil1!$C$1:$BL$10,4,FALSE) -> 11 | AE64: =T64-HLOOKUP(X64,Feuil1!$C$1:$BL$10,5,FALSE) -> -4 | AF64: =T64-HLOOKUP(X64,Feuil1!$C$1:$BL$10,6,FALSE) -> -24 | AG64: =T64-HLOOKUP(X64,Feuil1!$C$1:$BL$10,7,FALSE) -> -44 | AH64: =T64-HLOOKUP(X64,Feuil1!$C$1:$BL$10,8,FALSE) -> -64 | AI64: =T64-HLOOKUP(X64,Feuil1!$C$1:$BL$10,9,FALSE) -> -84 | AJ64: =T64-HLOOKUP(X64,Feuil1!$C$1:$BL$10,10,FALSE) -> -874 | AQ64: =IF(AJ64>=0,$AJ$4,IF(AI64>=0,$AI$4,IF(AH64>=0,$AH$4,IF(AG64>=0,$AG$4,IF(AF64>=0,$AF$4,IF(AE64>=0,$AE$4,IF(AD64>=0,$AD$4,IF(AC64>=0,$AC$4,$AB$4)))))))) -> REG +
A66: H | B66: Nord | C66: NPC | D66: 1 | E66: 336176 | F66: FARETIE | G66: Sony | H66: 2000 | I66: 69.3 | J66: CA Rosendael | K66: F | L66: 83 | M66: 88 | N66: -93 | O66: =IF(H66="","",IF(MAXA(L66:N66)<=0,0,MAXA(L66:N66))) -> 88 | P66: 96 | Q66: - | R66: - | S66: =IF(H66="","",IF(MAXA(P66:R66)<=0,0,MAXA(P66:R66))) -> 96 | T66: =IF(H66="","",IF(OR(O66=0,S66=0),0,O66+S66)) -> 184 | U66: =T66-I66*2 -> 45.4 | V66: =IF(H66="","",AQ66) -> FED + | W66: =IF(AJ66>=0,AJ66,IF(AI66>=0,AI66,IF(AH66>=0,AH66,IF(AG66>=0,AG66,IF(AF66>=0,AF66,IF(AE66>=0,AE66,IF(AD66>=0,AD66,IF(AC66>=0,AC66,AB66)))))))) -> 14 | X66: =IF(I66="","",IF(A66="H",IF(OR(H66="SEN",H66<1995),VLOOKUP(I66,Feuil1!$A$11:$G$29,6),IF(AND(H66>1994,H66<1998),VLOOKUP(I66,Feuil1!$A$11:$G$29,5),IF(AND(H66>1997,H66<2000),VLOOKUP(I66,Feuil1!$A$11:$G$29,4),IF(AND(H66>1999,H66<2002),VLOOKUP(I66,Feuil1!$A$11:$G$29,3),VLOOKUP(I66,Feuil1!$A$11:$G$29,2))))),IF(OR(H66="SEN",H66<1995),VLOOKUP(I66,Feuil1!$G$11:$L$25,6),IF(AND(H66>1994,H66<1998),VLOOKUP(I66,Feuil1!$G$11:$L$25,5),IF(AND(H66>1997,H66<2000),VLOOKUP(I66,Feuil1!$G$11:$L$25,4),IF(AND(H66>1999,H66<2002),VLOOKUP(I66,Feuil1!$G$11:$L$25,3),VLOOKUP(I66,Feuil1!$G$11:$L$25,2))))))) -> C1 77 | Y66: =IF(I66="","",IF(A66="H",10^(0.794358141*LOG(I66/174.393)^2)*T66,IF(A66="F",10^(0.89726074*LOG(I66/148.026)^2)*T66,""))) -> 246.843308 | AB66: =T66-HLOOKUP(X66,Feuil1!$C$1:$BL$10,2,FALSE) -> 94 | AC66: =T66-HLOOKUP(X66,Feuil1!$C$1:$BL$10,3,FALSE) -> 74 | AD66: =T66-HLOOKUP(X66,Feuil1!$C$1:$BL$10,4,FALSE) -> 54 | AE66: =T66-HLOOKUP(X66,Feuil1!$C$1:$BL$10,5,FALSE) -> 34 | AF66: =T66-HLOOKUP(X66,Feuil1!$C$1:$BL$10,6,FALSE) -> 14 | AG66: =T66-HLOOKUP(X66,Feuil1!$C$1:$BL$10,7,FALSE) -> -1 | AH66: =T66-HLOOKUP(X66,Feuil1!$C$1:$BL$10,8,FALSE) -> -16 | AI66: =T66-HLOOKUP(X66,Feuil1!$C$1:$BL$10,9,FALSE) -> -36 | AJ66: =T66-HLOOKUP(X66,Feuil1!$C$1:$BL$10,10,FALSE) -> -816 | AQ66: =IF(AJ66>=0,$AJ$4,IF(AI66>=0,$AI$4,IF(AH66>=0,$AH$4,IF(AG66>=0,$AG$4,IF(AF66>=0,$AF$4,IF(AE66>=0,$AE$4,IF(AD66>=0,$AD$4,IF(AC66>=0,$AC$4,$AB$4)))))))) -> FED +
A67: H | B67: Nord | C67: NPC | D67: 2 | E67: 360035 | F67: VANDEVOORDE | G67: Kylian | H67: 2000 | I67: 73.3 | J67: CHCD Comines | K67: Belge | L67: -60 | M67: 60 | N67: -64 | O67: =IF(H67="","",IF(MAXA(L67:N67)<=0,0,MAXA(L67:N67))) -> 60 | P67: 84 | Q67: -88 | R67: 88 | S67: =IF(H67="","",IF(MAXA(P67:R67)<=0,0,MAXA(P67:R67))) -> 88 | T67: =IF(H67="","",IF(OR(O67=0,S67=0),0,O67+S67)) -> 148 | U67: =T67-I67*2 -> 1.4 | V67: =IF(H67="","",AQ67) -> REG + | W67: =IF(AJ67>=0,AJ67,IF(AI67>=0,AI67,IF(AH67>=0,AH67,IF(AG67>=0,AG67,IF(AF67>=0,AF67,IF(AE67>=0,AE67,IF(AD67>=0,AD67,IF(AC67>=0,AC67,AB67)))))))) -> 18 | X67: =IF(I67="","",IF(A67="H",IF(OR(H67="SEN",H67<1995),VLOOKUP(I67,Feuil1!$A$11:$G$29,6),IF(AND(H67>1994,H67<1998),VLOOKUP(I67,Feuil1!$A$11:$G$29,5),IF(AND(H67>1997,H67<2000),VLOOKUP(I67,Feuil1!$A$11:$G$29,4),IF(AND(H67>1999,H67<2002),VLOOKUP(I67,Feuil1!$A$11:$G$29,3),VLOOKUP(I67,Feuil1!$A$11:$G$29,2))))),IF(OR(H67="SEN",H67<1995),VLOOKUP(I67,Feuil1!$G$11:$L$25,6),IF(AND(H67>1994,H67<1998),VLOOKUP(I67,Feuil1!$G$11:$L$25,5),IF(AND(H67>1997,H67<2000),VLOOKUP(I67,Feuil1!$G$11:$L$25,4),IF(AND(H67>1999,H67<2002),VLOOKUP(I67,Feuil1!$G$11:$L$25,3),VLOOKUP(I67,Feuil1!$G$11:$L$25,2))))))) -> C1 77 | Y67: =IF(I67="","",IF(A67="H",10^(0.794358141*LOG(I67/174.393)^2)*T67,IF(A67="F",10^(0.89726074*LOG(I67/148.026)^2)*T67,""))) -> 191.7869076 | AB67: =T67-HLOOKUP(X67,Feuil1!$C$1:$BL$10,2,FALSE) -> 58 | AC67: =T67-HLOOKUP(X67,Feuil1!$C$1:$BL$10,3,FALSE) -> 38 | AD67: =T67-HLOOKUP(X67,Feuil1!$C$1:$BL$10,4,FALSE) -> 18 | AE67: =T67-HLOOKUP(X67,Feuil1!$C$1:$BL$10,5,FALSE) -> -2 | AF67: =T67-HLOOKUP(X67,Feuil1!$C$1:$BL$10,6,FALSE) -> -22 | AG67: =T67-HLOOKUP(X67,Feuil1!$C$1:$BL$10,7,FALSE) -> -37 | AH67: =T67-HLOOKUP(X67,Feuil1!$C$1:$BL$10,8,FALSE) -> -52 | AI67: =T67-HLOOKUP(X67,Feuil1!$C$1:$BL$10,9,FALSE) -> -72 | AJ67: =T67-HLOOKUP(X67,Feuil1!$C$1:$BL$10,10,FALSE) -> -852 | AQ67: =IF(AJ67>=0,$AJ$4,IF(AI67>=0,$AI$4,IF(AH67>=0,$AH$4,IF(AG67>=0,$AG$4,IF(AF67>=0,$AF$4,IF(AE67>=0,$AE$4,IF(AD67>=0,$AD$4,IF(AC67>=0,$AC$4,$AB$4)))))))) -> REG +
A68: H | B68: DOM | C68: REU | D68: 3 | E68: 323504 | F68: PATCHIE | G68: TOMMY | H68: 2000 | I68: 75.4 | J68: SCHM St Paul | K68: F | L68: -70 | M68: 70 | N68: 75 | O68: =IF(H68="","",IF(MAXA(L68:N68)<=0,0,MAXA(L68:N68))) -> 75 | P68: 95 | Q68: 100 | R68: -102 | S68: =IF(H68="","",IF(MAXA(P68:R68)<=0,0,MAXA(P68:R68))) -> 100 | T68: =IF(H68="","",IF(OR(O68=0,S68=0),0,O68+S68)) -> 175 | U68: =T68-I68*2 -> 24.2 | V68: =IF(H68="","",AQ68) -> FED + | W68: =IF(AJ68>=0,AJ68,IF(AI68>=0,AI68,IF(AH68>=0,AH68,IF(AG68>=0,AG68,IF(AF68>=0,AF68,IF(AE68>=0,AE68,IF(AD68>=0,AD68,IF(AC68>=0,AC68,AB68)))))))) -> 5 | X68: =IF(I68="","",IF(A68="H",IF(OR(H68="SEN",H68<1995),VLOOKUP(I68,Feuil1!$A$11:$G$29,6),IF(AND(H68>1994,H68<1998),VLOOKUP(I68,Feuil1!$A$11:$G$29,5),IF(AND(H68>1997,H68<2000),VLOOKUP(I68,Feuil1!$A$11:$G$29,4),IF(AND(H68>1999,H68<2002),VLOOKUP(I68,Feuil1!$A$11:$G$29,3),VLOOKUP(I68,Feuil1!$A$11:$G$29,2))))),IF(OR(H68="SEN",H68<1995),VLOOKUP(I68,Feuil1!$G$11:$L$25,6),IF(AND(H68>1994,H68<1998),VLOOKUP(I68,Feuil1!$G$11:$L$25,5),IF(AND(H68>1997,H68<2000),VLOOKUP(I68,Feuil1!$G$11:$L$25,4),IF(AND(H68>1999,H68<2002),VLOOKUP(I68,Feuil1!$G$11:$L$25,3),VLOOKUP(I68,Feuil1!$G$11:$L$25,2))))))) -> C1 77 | Y68: =IF(I68="","",IF(A68="H",10^(0.794358141*LOG(I68/174.393)^2)*T68,IF(A68="F",10^(0.89726074*LOG(I68/148.026)^2)*T68,""))) -> 223.0378362 | AB68: =T68-HLOOKUP(X68,Feuil1!$C$1:$BL$10,2,FALSE) -> 85 | AC68: =T68-HLOOKUP(X68,Feuil1!$C$1:$BL$10,3,FALSE) -> 65 | AD68: =T68-HLOOKUP(X68,Feuil1!$C$1:$BL$10,4,FALSE) -> 45 | AE68: =T68-HLOOKUP(X68,Feuil1!$C$1:$BL$10,5,FALSE) -> 25 | AF68: =T68-HLOOKUP(X68,Feuil1!$C$1:$BL$10,6,FALSE) -> 5 | AG68: =T68-HLOOKUP(X68,Feuil1!$C$1:$BL$10,7,FALSE) -> -10 | AH68: =T68-HLOOKUP(X68,Feuil1!$C$1:$BL$10,8,FALSE) -> -25 | AI68: =T68-HLOOKUP(X68,Feuil1!$C$1:$BL$10,9,FALSE) -> -45 | AJ68: =T68-HLOOKUP(X68,Feuil1!$C$1:$BL$10,10,FALSE) -> -825 | AQ68: =IF(AJ68>=0,$AJ$4,IF(AI68>=0,$AI$4,IF(AH68>=0,$AH$4,IF(AG68>=0,$AG$4,IF(AF68>=0,$AF$4,IF(AE68>=0,$AE$4,IF(AD68>=0,$AD$4,IF(AC68>=0,$AC$4,$AB$4)))))))) -> FED +
A69: H | B69: NE | C69: ALS | D69: 4 | E69: 326143 | F69: SPIELMANN | G69: Arthur | H69: 2000 | I69: 75.4 | J69: SR Obernai HM | K69: F | L69: 74 | M69: 77 | N69: 80 | O69: =IF(H69="","",IF(MAXA(L69:N69)<=0,0,MAXA(L69:N69))) -> 80 | P69: 90 | Q69: -97 | R69: -97 | S69: =IF(H69="","",IF(MAXA(P69:R69)<=0,0,MAXA(P69:R69))) -> 90 | T69: =IF(H69="","",IF(OR(O69=0,S69=0),0,O69+S69)) -> 170 | U69: =T69-I69*2 -> 19.2 | V69: =IF(H69="","",AQ69) -> FED + | W69: =IF(AJ69>=0,AJ69,IF(AI69>=0,AI69,IF(AH69>=0,AH69,IF(AG69>=0,AG69,IF(AF69>=0,AF69,IF(AE69>=0,AE69,IF(AD69>=0,AD69,IF(AC69>=0,AC69,AB69)))))))) -> 0 | X69: =IF(I69="","",IF(A69="H",IF(OR(H69="SEN",H69<1995),VLOOKUP(I69,Feuil1!$A$11:$G$29,6),IF(AND(H69>1994,H69<1998),VLOOKUP(I69,Feuil1!$A$11:$G$29,5),IF(AND(H69>1997,H69<2000),VLOOKUP(I69,Feuil1!$A$11:$G$29,4),IF(AND(H69>1999,H69<2002),VLOOKUP(I69,Feuil1!$A$11:$G$29,3),VLOOKUP(I69,Feuil1!$A$11:$G$29,2))))),IF(OR(H69="SEN",H69<1995),VLOOKUP(I69,Feuil1!$G$11:$L$25,6),IF(AND(H69>1994,H69<1998),VLOOKUP(I69,Feuil1!$G$11:$L$25,5),IF(AND(H69>1997,H69<2000),VLOOKUP(I69,Feuil1!$G$11:$L$25,4),IF(AND(H69>1999,H69<2002),VLOOKUP(I69,Feuil1!$G$11:$L$25,3),VLOOKUP(I69,Feuil1!$G$11:$L$25,2))))))) -> C1 77 | Y69: =IF(I69="","",IF(A69="H",10^(0.794358141*LOG(I69/174.393)^2)*T69,IF(A69="F",10^(0.89726074*LOG(I69/148.026)^2)*T69,""))) -> 216.6653266 | AB69: =T69-HLOOKUP(X69,Feuil1!$C$1:$BL$10,2,FALSE) -> 80 | AC69: =T69-HLOOKUP(X69,Feuil1!$C$1:$BL$10,3,FALSE) -> 60 | AD69: =T69-HLOOKUP(X69,Feuil1!$C$1:$BL$10,4,FALSE) -> 40 | AE69: =T69-HLOOKUP(X69,Feuil1!$C$1:$BL$10,5,FALSE) -> 20 | AF69: =T69-HLOOKUP(X69,Feuil1!$C$1:$BL$10,6,FALSE) -> 0 | AG69: =T69-HLOOKUP(X69,Feuil1!$C$1:$BL$10,7,FALSE) -> -15 | AH69: =T69-HLOOKUP(X69,Feuil1!$C$1:$BL$10,8,FALSE) -> -30 | AI69: =T69-HLOOKUP(X69,Feuil1!$C$1:$BL$10,9,FALSE) -> -50 | AJ69: =T69-HLOOKUP(X69,Feuil1!$C$1:$BL$10,10,FALSE) -> -830 | AQ69: =IF(AJ69>=0,$AJ$4,IF(AI69>=0,$AI$4,IF(AH69>=0,$AH$4,IF(AG69>=0,$AG$4,IF(AF69>=0,$AF$4,IF(AE69>=0,$AE$4,IF(AD69>=0,$AD$4,IF(AC69>=0,$AC$4,$AB$4)))))))) -> FED +
A70: H | B70: Nord | C70: NPC | D70: 5 | E70: 340910 | F70: LABAEYE | G70: Tom | H70: 2000 | I70: 75.6 | J70: St Pol sur Mer | K70: F | L70: 70 | M70: -73 | N70: -73 | O70: =IF(H70="","",IF(MAXA(L70:N70)<=0,0,MAXA(L70:N70))) -> 70 | P70: 90 | Q70: -95 | R70: -100 | S70: =IF(H70="","",IF(MAXA(P70:R70)<=0,0,MAXA(P70:R70))) -> 90 | T70: =IF(H70="","",IF(OR(O70=0,S70=0),0,O70+S70)) -> 160 | U70: =T70-I70*2 -> 8.8 | V70: =IF(H70="","",AQ70) -> IRG + | W70: =IF(AJ70>=0,AJ70,IF(AI70>=0,AI70,IF(AH70>=0,AH70,IF(AG70>=0,AG70,IF(AF70>=0,AF70,IF(AE70>=0,AE70,IF(AD70>=0,AD70,IF(AC70>=0,AC70,AB70)))))))) -> 10 | X70: =IF(I70="","",IF(A70="H",IF(OR(H70="SEN",H70<1995),VLOOKUP(I70,Feuil1!$A$11:$G$29,6),IF(AND(H70>1994,H70<1998),VLOOKUP(I70,Feuil1!$A$11:$G$29,5),IF(AND(H70>1997,H70<2000),VLOOKUP(I70,Feuil1!$A$11:$G$29,4),IF(AND(H70>1999,H70<2002),VLOOKUP(I70,Feuil1!$A$11:$G$29,3),VLOOKUP(I70,Feuil1!$A$11:$G$29,2))))),IF(OR(H70="SEN",H70<1995),VLOOKUP(I70,Feuil1!$G$11:$L$25,6),IF(AND(H70>1994,H70<1998),VLOOKUP(I70,Feuil1!$G$11:$L$25,5),IF(AND(H70>1997,H70<2000),VLOOKUP(I70,Feuil1!$G$11:$L$25,4),IF(AND(H70>1999,H70<2002),VLOOKUP(I70,Feuil1!$G$11:$L$25,3),VLOOKUP(I70,Feuil1!$G$11:$L$25,2))))))) -> C1 77 | Y70: =IF(I70="","",IF(A70="H",10^(0.794358141*LOG(I70/174.393)^2)*T70,IF(A70="F",10^(0.89726074*LOG(I70/148.026)^2)*T70,""))) -> 203.6085183 | AB70: =T70-HLOOKUP(X70,Feuil1!$C$1:$BL$10,2,FALSE) -> 70 | AC70: =T70-HLOOKUP(X70,Feuil1!$C$1:$BL$10,3,FALSE) -> 50 | AD70: =T70-HLOOKUP(X70,Feuil1!$C$1:$BL$10,4,FALSE) -> 30 | AE70: =T70-HLOOKUP(X70,Feuil1!$C$1:$BL$10,5,FALSE) -> 10 | AF70: =T70-HLOOKUP(X70,Feuil1!$C$1:$BL$10,6,FALSE) -> -10 | AG70: =T70-HLOOKUP(X70,Feuil1!$C$1:$BL$10,7,FALSE) -> -25 | AH70: =T70-HLOOKUP(X70,Feuil1!$C$1:$BL$10,8,FALSE) -> -40 | AI70: =T70-HLOOKUP(X70,Feuil1!$C$1:$BL$10,9,FALSE) -> -60 | AJ70: =T70-HLOOKUP(X70,Feuil1!$C$1:$BL$10,10,FALSE) -> -840 | AQ70: =IF(AJ70>=0,$AJ$4,IF(AI70>=0,$AI$4,IF(AH70>=0,$AH$4,IF(AG70>=0,$AG$4,IF(AF70>=0,$AF$4,IF(AE70>=0,$AE$4,IF(AD70>=0,$AD$4,IF(AC70>=0,$AC$4,$AB$4)))))))) -> IRG +
A72: H | B72: Nord | C72: NPC | D72: 1 | E72: 272004 | F72: FRANCHOIS | G72: Kévin | H72: 2000 | I72: 77.5 | J72: St Pol sur Mer | K72: F | L72: 80 | M72: 85 | N72: -87 | O72: =IF(H72="","",IF(MAXA(L72:N72)<=0,0,MAXA(L72:N72))) -> 85 | P72: 100 | Q72: 105 | R72: -108 | S72: =IF(H72="","",IF(MAXA(P72:R72)<=0,0,MAXA(P72:R72))) -> 105 | T72: =IF(H72="","",IF(OR(O72=0,S72=0),0,O72+S72)) -> 190 | U72: =T72-I72*2 -> 35 | V72: =IF(H72="","",AQ72) -> FED + | W72: =IF(AJ72>=0,AJ72,IF(AI72>=0,AI72,IF(AH72>=0,AH72,IF(AG72>=0,AG72,IF(AF72>=0,AF72,IF(AE72>=0,AE72,IF(AD72>=0,AD72,IF(AC72>=0,AC72,AB72)))))))) -> 10 | X72: =IF(I72="","",IF(A72="H",IF(OR(H72="SEN",H72<1995),VLOOKUP(I72,Feuil1!$A$11:$G$29,6),IF(AND(H72>1994,H72<1998),VLOOKUP(I72,Feuil1!$A$11:$G$29,5),IF(AND(H72>1997,H72<2000),VLOOKUP(I72,Feuil1!$A$11:$G$29,4),IF(AND(H72>1999,H72<2002),VLOOKUP(I72,Feuil1!$A$11:$G$29,3),VLOOKUP(I72,Feuil1!$A$11:$G$29,2))))),IF(OR(H72="SEN",H72<1995),VLOOKUP(I72,Feuil1!$G$11:$L$25,6),IF(AND(H72>1994,H72<1998),VLOOKUP(I72,Feuil1!$G$11:$L$25,5),IF(AND(H72>1997,H72<2000),VLOOKUP(I72,Feuil1!$G$11:$L$25,4),IF(AND(H72>1999,H72<2002),VLOOKUP(I72,Feuil1!$G$11:$L$25,3),VLOOKUP(I72,Feuil1!$G$11:$L$25,2))))))) -> C1 85 | Y72: =IF(I72="","",IF(A72="H",10^(0.794358141*LOG(I72/174.393)^2)*T72,IF(A72="F",10^(0.89726074*LOG(I72/148.026)^2)*T72,""))) -> 238.3992756 | AB72: =T72-HLOOKUP(X72,Feuil1!$C$1:$BL$10,2,FALSE) -> 90 | AC72: =T72-HLOOKUP(X72,Feuil1!$C$1:$BL$10,3,FALSE) -> 70 | AD72: =T72-HLOOKUP(X72,Feuil1!$C$1:$BL$10,4,FALSE) -> 50 | AE72: =T72-HLOOKUP(X72,Feuil1!$C$1:$BL$10,5,FALSE) -> 30 | AF72: =T72-HLOOKUP(X72,Feuil1!$C$1:$BL$10,6,FALSE) -> 10 | AG72: =T72-HLOOKUP(X72,Feuil1!$C$1:$BL$10,7,FALSE) -> -10 | AH72: =T72-HLOOKUP(X72,Feuil1!$C$1:$BL$10,8,FALSE) -> -30 | AI72: =T72-HLOOKUP(X72,Feuil1!$C$1:$BL$10,9,FALSE) -> -50 | AJ72: =T72-HLOOKUP(X72,Feuil1!$C$1:$BL$10,10,FALSE) -> -9810 | AQ72: =IF(AJ72>=0,$AJ$4,IF(AI72>=0,$AI$4,IF(AH72>=0,$AH$4,IF(AG72>=0,$AG$4,IF(AF72>=0,$AF$4,IF(AE72>=0,$AE$4,IF(AD72>=0,$AD$4,IF(AC72>=0,$AC$4,$AB$4)))))))) -> FED +
A74: H | O74: =IF(H74="","",IF(MAXA(L74:N74)<=0,0,MAXA(L74:N74))) ->  | S74: =IF(H74="","",IF(MAXA(P74:R74)<=0,0,MAXA(P74:R74))) ->  | T74: =IF(H74="","",IF(OR(O74=0,S74=0),0,O74+S74)) ->  | U74: =T74-I74*2 ->  | V74: =IF(H74="","",AQ74) ->  | W74: =IF(AJ74>=0,AJ74,IF(AI74>=0,AI74,IF(AH74>=0,AH74,IF(AG74>=0,AG74,IF(AF74>=0,AF74,IF(AE74>=0,AE74,IF(AD74>=0,AD74,IF(AC74>=0,AC74,AB74)))))))) ->  | X74: =IF(I74="","",IF(A74="H",IF(OR(H74="SEN",H74<1995),VLOOKUP(I74,Feuil1!$A$11:$G$29,6),IF(AND(H74>1994,H74<1998),VLOOKUP(I74,Feuil1!$A$11:$G$29,5),IF(AND(H74>1997,H74<2000),VLOOKUP(I74,Feuil1!$A$11:$G$29,4),IF(AND(H74>1999,H74<2002),VLOOKUP(I74,Feuil1!$A$11:$G$29,3),VLOOKUP(I74,Feuil1!$A$11:$G$29,2))))),IF(OR(H74="SEN",H74<1995),VLOOKUP(I74,Feuil1!$G$11:$L$25,6),IF(AND(H74>1994,H74<1998),VLOOKUP(I74,Feuil1!$G$11:$L$25,5),IF(AND(H74>1997,H74<2000),VLOOKUP(I74,Feuil1!$G$11:$L$25,4),IF(AND(H74>1999,H74<2002),VLOOKUP(I74,Feuil1!$G$11:$L$25,3),VLOOKUP(I74,Feuil1!$G$11:$L$25,2))))))) ->  | Y74: =IF(I74="","",IF(A74="H",10^(0.794358141*LOG(I74/174.393)^2)*T74,IF(A74="F",10^(0.89726074*LOG(I74/148.026)^2)*T74,""))) ->  | AB74: =T74-HLOOKUP(X74,Feuil1!$C$1:$BL$10,2,FALSE) ->  | AC74: =T74-HLOOKUP(X74,Feuil1!$C$1:$BL$10,3,FALSE) ->  | AD74: =T74-HLOOKUP(X74,Feuil1!$C$1:$BL$10,4,FALSE) ->  | AE74: =T74-HLOOKUP(X74,Feuil1!$C$1:$BL$10,5,FALSE) ->  | AF74: =T74-HLOOKUP(X74,Feuil1!$C$1:$BL$10,6,FALSE) ->  | AG74: =T74-HLOOKUP(X74,Feuil1!$C$1:$BL$10,7,FALSE) ->  | AH74: =T74-HLOOKUP(X74,Feuil1!$C$1:$BL$10,8,FALSE) ->  | AI74: =T74-HLOOKUP(X74,Feuil1!$C$1:$BL$10,9,FALSE) ->  | AJ74: =T74-HLOOKUP(X74,Feuil1!$C$1:$BL$10,10,FALSE) ->  | AQ74: =IF(AJ74>=0,$AJ$4,IF(AI74>=0,$AI$4,IF(AH74>=0,$AH$4,IF(AG74>=0,$AG$4,IF(AF74>=0,$AF$4,IF(AE74>=0,$AE$4,IF(AD74>=0,$AD$4,IF(AC74>=0,$AC$4,$AB$4)))))))) -> 
AB511: J77 | AC511: J85 | AD511: J94 | AE511: J105 | AF511: J+105 | AH511: J56 | AI511: J62 | AJ511: J69 | AK511: J77 | AL511: J85 | AM511: J94 | AN511: J105 | AO511: J+105 | AQ511: S56 | AR511: S62 | AS511: S69 | AT511: S77 | AU511: S85 | AV511: S94 | AW511: S105 | AX511: S+105
AB512: 145 | AC512: 160 | AD512: 170 | AE512: 180 | AF512: 190 | AH512: 100 | AI512: 115 | AJ512: 130 | AK512: 145 | AL512: 160 | AM512: 170 | AN512: 180 | AO512: 190 | AQ512: 115 | AR512: 135 | AS512: 150 | AT512: 165 | AU512: 180 | AV512: 190 | AW512: 200 | AX512: 210
AB513: 165 | AC513: 180 | AD513: 190 | AE513: 200 | AF513: 210 | AH513: 115 | AI513: 135 | AJ513: 150 | AK513: 165 | AL513: 180 | AM513: 190 | AN513: 200 | AO513: 210 | AQ513: 130 | AR513: 150 | AS513: 165 | AT513: 185 | AU513: 200 | AV513: 210 | AW513: 220 | AX513: 230
AB514: 185 | AC514: 200 | AD514: 210 | AE514: 220 | AF514: 230 | AH514: 130 | AI514: 150 | AJ514: 165 | AK514: 185 | AL514: 200 | AM514: 210 | AN514: 220 | AO514: 230 | AQ514: 145 | AR514: 165 | AS514: 180 | AT514: 200 | AU514: 220 | AV514: 230 | AW514: 240 | AX514: 250
AB515: 200 | AC515: 220 | AD515: 230 | AE515: 240 | AF515: 250 | AH515: 145 | AI515: 165 | AJ515: 180 | AK515: 200 | AL515: 220 | AM515: 230 | AN515: 240 | AO515: 250 | AQ515: 175 | AR515: 195 | AS515: 215 | AT515: 235 | AU515: 250 | AV515: 260 | AW515: 275 | AX515: 280
AB516: 235 | AC516: 250 | AD516: 260 | AE516: 275 | AF516: 280 | AH516: 175 | AI516: 195 | AJ516: 215 | AK516: 235 | AL516: 250 | AM516: 260 | AN516: 275 | AO516: 280 | AQ516: 210 | AR516: 230 | AS516: 250 | AT516: 270 | AU516: 290 | AV516: 300 | AW516: 310 | AX516: 325
AB517: 270 | AC517: 290 | AD517: 300 | AE517: 310 | AF517: 325 | AH517: 210 | AI517: 230 | AJ517: 250 | AK517: 270 | AL517: 290 | AM517: 300 | AN517: 310 | AO517: 325 | AQ517: 230 | AR517: 255 | AS517: 275 | AT517: 300 | AU517: 315 | AV517: 335 | AW517: 345 | AX517: 355
AB518: 320 | AC518: 335 | AD518: 355 | AE518: 370 | AF518: 380 | AH518: 245 | AI518: 270 | AJ518: 295 | AK518: 320 | AL518: 335 | AM518: 355 | AN518: 370 | AO518: 380 | AQ518: 245 | AR518: 270 | AS518: 295 | AT518: 320 | AU518: 335 | AV518: 355 | AW518: 370 | AX518: 380

Sheet CADETS 2
H1: Championnat de Zone de Printemps | Q1: DATE : | S1: 2015-04-05
G2: CLASSEMENT NATIONAL des ZONES
A4: SEXE | B4: ZONE | C4: REG. | D4: CL. | E4: LICENCE | F4: NOMS | G4: Prénoms | H4: AN | I4: POIDS | J4: CLUB | K4: NAT | L4: 1 | M4: 2 | N4: 3 | O4: ARR | P4: 1 | Q4: 2 | R4: 3 | S4: EP-J | T4: Total | U4: KP-2PC | V4: SERIE | X4: Catég | Y4: IWF | AB4: DEB | AC4: DEP + | AD4: REG + | AE4: IRG + | AF4: FED + | AG4: NAT + | AH4: INTB + | AI4: INTA + | AJ4: OLY +
A6: F | B6: CO | C6: PDL | D6: 1 | E6: 191138 | F6: L'HERMIER | G6: Nolwen | H6: 1999 | I6: 43.7 | J6: CJF Laval-Voutré | K6: F | L6: 43 | M6: 45 | N6: 47 | O6: =IF(H6="","",IF(MAXA(L6:N6)<=0,0,MAXA(L6:N6))) -> 47 | P6: 59 | Q6: -63 | R6: -63 | S6: =IF(H6="","",IF(MAXA(P6:R6)<=0,0,MAXA(P6:R6))) -> 59 | T6: =IF(H6="","",IF(OR(O6=0,S6=0),0,O6+S6)) -> 106 | U6: =T6-I6*2 -> 18.6 | V6: =IF(H6="","",AQ6) -> INTA + | W6: =IF(AJ6>=0,AJ6,IF(AI6>=0,AI6,IF(AH6>=0,AH6,IF(AG6>=0,AG6,IF(AF6>=0,AF6,IF(AE6>=0,AE6,IF(AD6>=0,AD6,IF(AC6>=0,AC6,AB6)))))))) -> 6 | X6: =IF(I6="","",IF(A6="H",IF(OR(H6="SEN",H6<1995),VLOOKUP(I6,Feuil1!$A$11:$G$29,6),IF(AND(H6>1994,H6<1998),VLOOKUP(I6,Feuil1!$A$11:$G$29,5),IF(AND(H6>1997,H6<2000),VLOOKUP(I6,Feuil1!$A$11:$G$29,4),IF(AND(H6>1999,H6<2002),VLOOKUP(I6,Feuil1!$A$11:$G$29,3),VLOOKUP(I6,Feuil1!$A$11:$G$29,2))))),IF(OR(H6="SEN",H6<1995),VLOOKUP(I6,Feuil1!$G$11:$L$25,6),IF(AND(H6>1994,H6<1998),VLOOKUP(I6,Feuil1!$G$11:$L$25,5),IF(AND(H6>1997,H6<2000),VLOOKUP(I6,Feuil1!$G$11:$L$25,4),IF(AND(H6>1999,H6<2002),VLOOKUP(I6,Feuil1!$G$11:$L$25,3),VLOOKUP(I6,Feuil1!$G$11:$L$25,2))))))) -> FC2 44 | Y6: =IF(I6="","",IF(A6="H",10^(0.794358141*LOG(I6/174.393)^2)*T6,IF(A6="F",10^(0.89726074*LOG(I6/148.026)^2)*T6,""))) -> 189.3258898 | AB6: =T6-HLOOKUP(X6,Feuil1!$C$1:$BL$10,2,FALSE) -> 76 | AC6: =T6-HLOOKUP(X6,Feuil1!$C$1:$BL$10,3,FALSE) -> 66 | AD6: =T6-HLOOKUP(X6,Feuil1!$C$1:$BL$10,4,FALSE) -> 56 | AE6: =T6-HLOOKUP(X6,Feuil1!$C$1:$BL$10,5,FALSE) -> 46 | AF6: =T6-HLOOKUP(X6,Feuil1!$C$1:$BL$10,6,FALSE) -> 36 | AG6: =T6-HLOOKUP(X6,Feuil1!$C$1:$BL$10,7,FALSE) -> 26 | AH6: =T6-HLOOKUP(X6,Feuil1!$C$1:$BL$10,8,FALSE) -> 16 | AI6: =T6-HLOOKUP(X6,Feuil1!$C$1:$BL$10,9,FALSE) -> 6 | AJ6: =T6-HLOOKUP(X6,Feuil1!$C$1:$BL$10,10,FALSE) -> -894 | AQ6: =IF(AJ6>=0,$AJ$4,IF(AI6>=0,$AI$4,IF(AH6>=0,$AH$4,IF(AG6>=0,$AG$4,IF(AF6>=0,$AF$4,IF(AE6>=0,$AE$4,IF(AD6>=0,$AD$4,IF(AC6>=0,$AC$4,$AB$4)))))))) -> INTA +
A8: F | B8: SEST | C8: CAZ | D8: 1 | E8: 363002 | F8: MAILLOT | G8: Asia | H8: 1998 | I8: 46.54 | J8: ASLDD. TOULON | K8: F | L8: 39 | M8: 41 | N8: -44 | O8: =IF(H8="","",IF(MAXA(L8:N8)<=0,0,MAXA(L8:N8))) -> 41 | P8: 54 | Q8: 56 | R8: 58 | S8: =IF(H8="","",IF(MAXA(P8:R8)<=0,0,MAXA(P8:R8))) -> 58 | T8: =IF(H8="","",IF(OR(O8=0,S8=0),0,O8+S8)) -> 99 | U8: =T8-I8*2 -> 5.92 | V8: =IF(H8="","",AQ8) -> INTB + | W8: =IF(AJ8>=0,AJ8,IF(AI8>=0,AI8,IF(AH8>=0,AH8,IF(AG8>=0,AG8,IF(AF8>=0,AF8,IF(AE8>=0,AE8,IF(AD8>=0,AD8,IF(AC8>=0,AC8,AB8)))))))) -> 4 | X8: =IF(I8="","",IF(A8="H",IF(OR(H8="SEN",H8<1995),VLOOKUP(I8,Feuil1!$A$11:$G$29,6),IF(AND(H8>1994,H8<1998),VLOOKUP(I8,Feuil1!$A$11:$G$29,5),IF(AND(H8>1997,H8<2000),VLOOKUP(I8,Feuil1!$A$11:$G$29,4),IF(AND(H8>1999,H8<2002),VLOOKUP(I8,Feuil1!$A$11:$G$29,3),VLOOKUP(I8,Feuil1!$A$11:$G$29,2))))),IF(OR(H8="SEN",H8<1995),VLOOKUP(I8,Feuil1!$G$11:$L$25,6),IF(AND(H8>1994,H8<1998),VLOOKUP(I8,Feuil1!$G$11:$L$25,5),IF(AND(H8>1997,H8<2000),VLOOKUP(I8,Feuil1!$G$11:$L$25,4),IF(AND(H8>1999,H8<2002),VLOOKUP(I8,Feuil1!$G$11:$L$25,3),VLOOKUP(I8,Feuil1!$G$11:$L$25,2))))))) -> FC2 48 | Y8: =IF(I8="","",IF(A8="H",10^(0.794358141*LOG(I8/174.393)^2)*T8,IF(A8="F",10^(0.89726074*LOG(I8/148.026)^2)*T8,""))) -> 166.8052141 | AB8: =T8-HLOOKUP(X8,Feuil1!$C$1:$BL$10,2,FALSE) -> 64 | AC8: =T8-HLOOKUP(X8,Feuil1!$C$1:$BL$10,3,FALSE) -> 54 | AD8: =T8-HLOOKUP(X8,Feuil1!$C$1:$BL$10,4,FALSE) -> 44 | AE8: =T8-HLOOKUP(X8,Feuil1!$C$1:$BL$10,5,FALSE) -> 34 | AF8: =T8-HLOOKUP(X8,Feuil1!$C$1:$BL$10,6,FALSE) -> 24 | AG8: =T8-HLOOKUP(X8,Feuil1!$C$1:$BL$10,7,FALSE) -> 14 | AH8: =T8-HLOOKUP(X8,Feuil1!$C$1:$BL$10,8,FALSE) -> 4 | AI8: =T8-HLOOKUP(X8,Feuil1!$C$1:$BL$10,9,FALSE) -> -11 | AJ8: =T8-HLOOKUP(X8,Feuil1!$C$1:$BL$10,10,FALSE) -> -901 | AQ8: =IF(AJ8>=0,$AJ$4,IF(AI8>=0,$AI$4,IF(AH8>=0,$AH$4,IF(AG8>=0,$AG$4,IF(AF8>=0,$AF$4,IF(AE8>=0,$AE$4,IF(AD8>=0,$AD$4,IF(AC8>=0,$AC$4,$AB$4)))))))) -> INTB +
A9: F | B9: SEST | C9: CAZ | D9: 2 | E9: 387211 | F9: CUDIA | G9: Charlotte | H9: 1999 | I9: 46.14 | J9: ASLDD. TOULON | K9: F | L9: 29 | M9: 31 | N9: 33 | O9: 33 | P9: -41 | Q9: 41 | R9: -42 | S9: 41 | T9: 74 | U9: -18.28 | V9: IRG + | W9: 9 | X9: =IF(I9="","",IF(A9="H",IF(OR(H9="SEN",H9<1995),VLOOKUP(I9,Feuil1!$A$11:$G$29,6),IF(AND(H9>1994,H9<1998),VLOOKUP(I9,Feuil1!$A$11:$G$29,5),IF(AND(H9>1997,H9<2000),VLOOKUP(I9,Feuil1!$A$11:$G$29,4),IF(AND(H9>1999,H9<2002),VLOOKUP(I9,Feuil1!$A$11:$G$29,3),VLOOKUP(I9,Feuil1!$A$11:$G$29,2))))),IF(OR(H9="SEN",H9<1995),VLOOKUP(I9,Feuil1!$G$11:$L$25,6),IF(AND(H9>1994,H9<1998),VLOOKUP(I9,Feuil1!$G$11:$L$25,5),IF(AND(H9>1997,H9<2000),VLOOKUP(I9,Feuil1!$G$11:$L$25,4),IF(AND(H9>1999,H9<2002),VLOOKUP(I9,Feuil1!$G$11:$L$25,3),VLOOKUP(I9,Feuil1!$G$11:$L$25,2))))))) -> FC2 48 | Y9: 125.6606478 | AB9: =T9-HLOOKUP(X9,Feuil1!$C$1:$BL$10,2,FALSE) -> 39 | AC9: =T9-HLOOKUP(X9,Feuil1!$C$1:$BL$10,3,FALSE) -> 29 | AD9: =T9-HLOOKUP(X9,Feuil1!$C$1:$BL$10,4,FALSE) -> 19 | AE9: =T9-HLOOKUP(X9,Feuil1!$C$1:$BL$10,5,FALSE) -> 9 | AF9: =T9-HLOOKUP(X9,Feuil1!$C$1:$BL$10,6,FALSE) -> -1 | AG9: =T9-HLOOKUP(X9,Feuil1!$C$1:$BL$10,7,FALSE) -> -11 | AH9: =T9-HLOOKUP(X9,Feuil1!$C$1:$BL$10,8,FALSE) -> -21 | AI9: =T9-HLOOKUP(X9,Feuil1!$C$1:$BL$10,9,FALSE) -> -36 | AJ9: =T9-HLOOKUP(X9,Feuil1!$C$1:$BL$10,10,FALSE) -> -926 | AQ9: IRG +
A11: F | B11: SEST | C11: RAL | D11: 1 | E11: 392577 | F11: TESTE | G11: Flavie | H11: 1998 | I11: 52.2 | J11: A.C. SAINT MARCELLIN | K11: F | L11: 40 | M11: 44 | N11: 47 | O11: =IF(H11="","",IF(MAXA(L11:N11)<=0,0,MAXA(L11:N11))) -> 47 | P11: 58 | Q11: -62 | R11: -62 | S11: =IF(H11="","",IF(MAXA(P11:R11)<=0,0,MAXA(P11:R11))) -> 58 | T11: =IF(H11="","",IF(OR(O11=0,S11=0),0,O11+S11)) -> 105 | U11: =T11-I11*2 -> 0.6 | V11: =IF(H11="","",AQ11) -> INTB + | W11: =IF(AJ11>=0,AJ11,IF(AI11>=0,AI11,IF(AH11>=0,AH11,IF(AG11>=0,AG11,IF(AF11>=0,AF11,IF(AE11>=0,AE11,IF(AD11>=0,AD11,IF(AC11>=0,AC11,AB11)))))))) -> 0 | X11: =IF(I11="","",IF(A11="H",IF(OR(H11="SEN",H11<1995),VLOOKUP(I11,Feuil1!$A$11:$G$29,6),IF(AND(H11>1994,H11<1998),VLOOKUP(I11,Feuil1!$A$11:$G$29,5),IF(AND(H11>1997,H11<2000),VLOOKUP(I11,Feuil1!$A$11:$G$29,4),IF(AND(H11>1999,H11<2002),VLOOKUP(I11,Feuil1!$A$11:$G$29,3),VLOOKUP(I11,Feuil1!$A$11:$G$29,2))))),IF(OR(H11="SEN",H11<1995),VLOOKUP(I11,Feuil1!$G$11:$L$25,6),IF(AND(H11>1994,H11<1998),VLOOKUP(I11,Feuil1!$G$11:$L$25,5),IF(AND(H11>1997,H11<2000),VLOOKUP(I11,Feuil1!$G$11:$L$25,4),IF(AND(H11>1999,H11<2002),VLOOKUP(I11,Feuil1!$G$11:$L$25,3),VLOOKUP(I11,Feuil1!$G$11:$L$25,2))))))) -> FC2 53 | Y11: =IF(I11="","",IF(A11="H",10^(0.794358141*LOG(I11/174.393)^2)*T11,IF(A11="F",10^(0.89726074*LOG(I11/148.026)^2)*T11,""))) -> 160.3411827 | AB11: =T11-HLOOKUP(X11,Feuil1!$C$1:$BL$10,2,FALSE) -> 60 | AC11: =T11-HLOOKUP(X11,Feuil1!$C$1:$BL$10,3,FALSE) -> 50 | AD11: =T11-HLOOKUP(X11,Feuil1!$C$1:$BL$10,4,FALSE) -> 40 | AE11: =T11-HLOOKUP(X11,Feuil1!$C$1:$BL$10,5,FALSE) -> 30 | AF11: =T11-HLOOKUP(X11,Feuil1!$C$1:$BL$10,6,FALSE) -> 20 | AG11: =T11-HLOOKUP(X11,Feuil1!$C$1:$BL$10,7,FALSE) -> 10 | AH11: =T11-HLOOKUP(X11,Feuil1!$C$1:$BL$10,8,FALSE) -> 0 | AI11: =T11-HLOOKUP(X11,Feuil1!$C$1:$BL$10,9,FALSE) -> -15 | AJ11: =T11-HLOOKUP(X11,Feuil1!$C$1:$BL$10,10,FALSE) -> -895 | AQ11: =IF(AJ11>=0,$AJ$4,IF(AI11>=0,$AI$4,IF(AH11>=0,$AH$4,IF(AG11>=0,$AG$4,IF(AF11>=0,$AF$4,IF(AE11>=0,$AE$4,IF(AD11>=0,$AD$4,IF(AC11>=0,$AC$4,$AB$4)))))))) -> INTB +
A12: F | B12: DOM | C12: MAR | D12: 2 | E12: 362590 | F12: BOISFER | G12: Priscilla | H12: 1999 | I12: 51 | J12: ABBC/Foyal Didier | K12: F | L12: 35 | M12: 40 | N12: -42 | O12: 40 | P12: 47 | Q12: 52 | R12: 55 | S12: 55 | T12: 95 | U12: -7 | V12: NAT + | W12: 0 | X12: =IF(I12="","",IF(A12="H",IF(OR(H12="SEN",H12<1995),VLOOKUP(I12,Feuil1!$A$11:$G$29,6),IF(AND(H12>1994,H12<1998),VLOOKUP(I12,Feuil1!$A$11:$G$29,5),IF(AND(H12>1997,H12<2000),VLOOKUP(I12,Feuil1!$A$11:$G$29,4),IF(AND(H12>1999,H12<2002),VLOOKUP(I12,Feuil1!$A$11:$G$29,3),VLOOKUP(I12,Feuil1!$A$11:$G$29,2))))),IF(OR(H12="SEN",H12<1995),VLOOKUP(I12,Feuil1!$G$11:$L$25,6),IF(AND(H12>1994,H12<1998),VLOOKUP(I12,Feuil1!$G$11:$L$25,5),IF(AND(H12>1997,H12<2000),VLOOKUP(I12,Feuil1!$G$11:$L$25,4),IF(AND(H12>1999,H12<2002),VLOOKUP(I12,Feuil1!$G$11:$L$25,3),VLOOKUP(I12,Feuil1!$G$11:$L$25,2))))))) -> FC2 53 | Y12: 147.8684899 | AB12: =T12-HLOOKUP(X12,Feuil1!$C$1:$BL$10,2,FALSE) -> 50 | AC12: =T12-HLOOKUP(X12,Feuil1!$C$1:$BL$10,3,FALSE) -> 40 | AD12: =T12-HLOOKUP(X12,Feuil1!$C$1:$BL$10,4,FALSE) -> 30 | AE12: =T12-HLOOKUP(X12,Feuil1!$C$1:$BL$10,5,FALSE) -> 20 | AF12: =T12-HLOOKUP(X12,Feuil1!$C$1:$BL$10,6,FALSE) -> 10 | AG12: =T12-HLOOKUP(X12,Feuil1!$C$1:$BL$10,7,FALSE) -> 0 | AH12: =T12-HLOOKUP(X12,Feuil1!$C$1:$BL$10,8,FALSE) -> -10 | AI12: =T12-HLOOKUP(X12,Feuil1!$C$1:$BL$10,9,FALSE) -> -25 | AJ12: =T12-HLOOKUP(X12,Feuil1!$C$1:$BL$10,10,FALSE) -> -905 | AQ12: NAT +
A13: F | B13: NE | C13: ALS | D13: 3 | E13: 381293 | F13: FEILLARD | G13: Lea | H13: 1998 | I13: 51.4 | J13: SR Obernai HM | K13: F | L13: 34 | M13: 36 | N13: -38 | O13: 36 | P13: 46 | Q13: 49 | R13: -51 | S13: 49 | T13: 85 | U13: -17.8 | V13: FED + | W13: 0 | X13: =IF(I13="","",IF(A13="H",IF(OR(H13="SEN",H13<1995),VLOOKUP(I13,Feuil1!$A$11:$G$29,6),IF(AND(H13>1994,H13<1998),VLOOKUP(I13,Feuil1!$A$11:$G$29,5),IF(AND(H13>1997,H13<2000),VLOOKUP(I13,Feuil1!$A$11:$G$29,4),IF(AND(H13>1999,H13<2002),VLOOKUP(I13,Feuil1!$A$11:$G$29,3),VLOOKUP(I13,Feuil1!$A$11:$G$29,2))))),IF(OR(H13="SEN",H13<1995),VLOOKUP(I13,Feuil1!$G$11:$L$25,6),IF(AND(H13>1994,H13<1998),VLOOKUP(I13,Feuil1!$G$11:$L$25,5),IF(AND(H13>1997,H13<2000),VLOOKUP(I13,Feuil1!$G$11:$L$25,4),IF(AND(H13>1999,H13<2002),VLOOKUP(I13,Feuil1!$G$11:$L$25,3),VLOOKUP(I13,Feuil1!$G$11:$L$25,2))))))) -> FC2 53 | Y13: 131.4509196 | AB13: =T13-HLOOKUP(X13,Feuil1!$C$1:$BL$10,2,FALSE) -> 40 | AC13: =T13-HLOOKUP(X13,Feuil1!$C$1:$BL$10,3,FALSE) -> 30 | AD13: =T13-HLOOKUP(X13,Feuil1!$C$1:$BL$10,4,FALSE) -> 20 | AE13: =T13-HLOOKUP(X13,Feuil1!$C$1:$BL$10,5,FALSE) -> 10 | AF13: =T13-HLOOKUP(X13,Feuil1!$C$1:$BL$10,6,FALSE) -> 0 | AG13: =T13-HLOOKUP(X13,Feuil1!$C$1:$BL$10,7,FALSE) -> -10 | AH13: =T13-HLOOKUP(X13,Feuil1!$C$1:$BL$10,8,FALSE) -> -20 | AI13: =T13-HLOOKUP(X13,Feuil1!$C$1:$BL$10,9,FALSE) -> -35 | AJ13: =T13-HLOOKUP(X13,Feuil1!$C$1:$BL$10,10,FALSE) -> -915 | AQ13: FED +
A15: F | B15: DOM | C15: MAR | D15: 1 | E15: 286912 | F15: KICHENAMA | G15: Clara | H15: 1999 | I15: 56.5 | J15: ABBC/Foyal Didier | K15: F | L15: 45 | M15: 50 | N15: -53 | O15: 50 | P15: 55 | Q15: 60 | R15: -63 | S15: 60 | T15: 110 | U15: -3 | V15: NAT + | W15: 10 | X15: =IF(I15="","",IF(A15="H",IF(OR(H15="SEN",H15<1995),VLOOKUP(I15,Feuil1!$A$11:$G$29,6),IF(AND(H15>1994,H15<1998),VLOOKUP(I15,Feuil1!$A$11:$G$29,5),IF(AND(H15>1997,H15<2000),VLOOKUP(I15,Feuil1!$A$11:$G$29,4),IF(AND(H15>1999,H15<2002),VLOOKUP(I15,Feuil1!$A$11:$G$29,3),VLOOKUP(I15,Feuil1!$A$11:$G$29,2))))),IF(OR(H15="SEN",H15<1995),VLOOKUP(I15,Feuil1!$G$11:$L$25,6),IF(AND(H15>1994,H15<1998),VLOOKUP(I15,Feuil1!$G$11:$L$25,5),IF(AND(H15>1997,H15<2000),VLOOKUP(I15,Feuil1!$G$11:$L$25,4),IF(AND(H15>1999,H15<2002),VLOOKUP(I15,Feuil1!$G$11:$L$25,3),VLOOKUP(I15,Feuil1!$G$11:$L$25,2))))))) -> FC2 58 | Y15: 157.9002962 | AB15: =T15-HLOOKUP(X15,Feuil1!$C$1:$BL$10,2,FALSE) -> 60 | AC15: =T15-HLOOKUP(X15,Feuil1!$C$1:$BL$10,3,FALSE) -> 50 | AD15: =T15-HLOOKUP(X15,Feuil1!$C$1:$BL$10,4,FALSE) -> 40 | AE15: =T15-HLOOKUP(X15,Feuil1!$C$1:$BL$10,5,FALSE) -> 30 | AF15: =T15-HLOOKUP(X15,Feuil1!$C$1:$BL$10,6,FALSE) -> 20 | AG15: =T15-HLOOKUP(X15,Feuil1!$C$1:$BL$10,7,FALSE) -> 10 | AH15: =T15-HLOOKUP(X15,Feuil1!$C$1:$BL$10,8,FALSE) -> -5 | AI15: =T15-HLOOKUP(X15,Feuil1!$C$1:$BL$10,9,FALSE) -> -20 | AJ15: =T15-HLOOKUP(X15,Feuil1!$C$1:$BL$10,10,FALSE) -> -890 | AQ15: NAT +
A16: F | B16: SEST | C16: RAL | D16: 2 | E16: 379666 | F16: RAILLON | G16: Emilie | H16: 1998 | I16: 56.79 | J16: VALENCE HALTERO | K16: F | L16: -40 | M16: -40 | N16: 40 | O16: 40 | P16: 50 | Q16: 52 | R16: -54 | S16: 52 | T16: 92 | U16: -21.58 | V16: FED + | W16: 2 | X16: =IF(I16="","",IF(A16="H",IF(OR(H16="SEN",H16<1995),VLOOKUP(I16,Feuil1!$A$11:$G$29,6),IF(AND(H16>1994,H16<1998),VLOOKUP(I16,Feuil1!$A$11:$G$29,5),IF(AND(H16>1997,H16<2000),VLOOKUP(I16,Feuil1!$A$11:$G$29,4),IF(AND(H16>1999,H16<2002),VLOOKUP(I16,Feuil1!$A$11:$G$29,3),VLOOKUP(I16,Feuil1!$A$11:$G$29,2))))),IF(OR(H16="SEN",H16<1995),VLOOKUP(I16,Feuil1!$G$11:$L$25,6),IF(AND(H16>1994,H16<1998),VLOOKUP(I16,Feuil1!$G$11:$L$25,5),IF(AND(H16>1997,H16<2000),VLOOKUP(I16,Feuil1!$G$11:$L$25,4),IF(AND(H16>1999,H16<2002),VLOOKUP(I16,Feuil1!$G$11:$L$25,3),VLOOKUP(I16,Feuil1!$G$11:$L$25,2))))))) -> FC2 58 | Y16: 131.5568775 | AB16: =T16-HLOOKUP(X16,Feuil1!$C$1:$BL$10,2,FALSE) -> 42 | AC16: =T16-HLOOKUP(X16,Feuil1!$C$1:$BL$10,3,FALSE) -> 32 | AD16: =T16-HLOOKUP(X16,Feuil1!$C$1:$BL$10,4,FALSE) -> 22 | AE16: =T16-HLOOKUP(X16,Feuil1!$C$1:$BL$10,5,FALSE) -> 12 | AF16: =T16-HLOOKUP(X16,Feuil1!$C$1:$BL$10,6,FALSE) -> 2 | AG16: =T16-HLOOKUP(X16,Feuil1!$C$1:$BL$10,7,FALSE) -> -8 | AH16: =T16-HLOOKUP(X16,Feuil1!$C$1:$BL$10,8,FALSE) -> -23 | AI16: =T16-HLOOKUP(X16,Feuil1!$C$1:$BL$10,9,FALSE) -> -38 | AJ16: =T16-HLOOKUP(X16,Feuil1!$C$1:$BL$10,10,FALSE) -> -908 | AQ16: FED +
A17: F | B17: SEST | C17: CAZ | D17: 3 | E17: 385817 | F17: POIRSON | G17: Samantha | H17: 1998 | I17: 56.14 | J17: ASLDD. TOULON | K17: F | L17: 35 | M17: -37 | N17: -37 | O17: =IF(H17="","",IF(MAXA(L17:N17)<=0,0,MAXA(L17:N17))) -> 35 | P17: 50 | Q17: -53 | R17: 53 | S17: =IF(H17="","",IF(MAXA(P17:R17)<=0,0,MAXA(P17:R17))) -> 53 | T17: =IF(H17="","",IF(OR(O17=0,S17=0),0,O17+S17)) -> 88 | U17: =T17-I17*2 -> -24.28 | V17: =IF(H17="","",AQ17) -> IRG + | W17: =IF(AJ17>=0,AJ17,IF(AI17>=0,AI17,IF(AH17>=0,AH17,IF(AG17>=0,AG17,IF(AF17>=0,AF17,IF(AE17>=0,AE17,IF(AD17>=0,AD17,IF(AC17>=0,AC17,AB17)))))))) -> 8 | X17: =IF(I17="","",IF(A17="H",IF(OR(H17="SEN",H17<1995),VLOOKUP(I17,Feuil1!$A$11:$G$29,6),IF(AND(H17>1994,H17<1998),VLOOKUP(I17,Feuil1!$A$11:$G$29,5),IF(AND(H17>1997,H17<2000),VLOOKUP(I17,Feuil1!$A$11:$G$29,4),IF(AND(H17>1999,H17<2002),VLOOKUP(I17,Feuil1!$A$11:$G$29,3),VLOOKUP(I17,Feuil1!$A$11:$G$29,2))))),IF(OR(H17="SEN",H17<1995),VLOOKUP(I17,Feuil1!$G$11:$L$25,6),IF(AND(H17>1994,H17<1998),VLOOKUP(I17,Feuil1!$G$11:$L$25,5),IF(AND(H17>1997,H17<2000),VLOOKUP(I17,Feuil1!$G$11:$L$25,4),IF(AND(H17>1999,H17<2002),VLOOKUP(I17,Feuil1!$G$11:$L$25,3),VLOOKUP(I17,Feuil1!$G$11:$L$25,2))))))) -> FC2 58 | Y17: =IF(I17="","",IF(A17="H",10^(0.794358141*LOG(I17/174.393)^2)*T17,IF(A17="F",10^(0.89726074*LOG(I17/148.026)^2)*T17,""))) -> 126.9298082 | AB17: =T17-HLOOKUP(X17,Feuil1!$C$1:$BL$10,2,FALSE) -> 38 | AC17: =T17-HLOOKUP(X17,Feuil1!$C$1:$BL$10,3,FALSE) -> 28 | AD17: =T17-HLOOKUP(X17,Feuil1!$C$1:$BL$10,4,FALSE) -> 18 | AE17: =T17-HLOOKUP(X17,Feuil1!$C$1:$BL$10,5,FALSE) -> 8 | AF17: =T17-HLOOKUP(X17,Feuil1!$C$1:$BL$10,6,FALSE) -> -2 | AG17: =T17-HLOOKUP(X17,Feuil1!$C$1:$BL$10,7,FALSE) -> -12 | AH17: =T17-HLOOKUP(X17,Feuil1!$C$1:$BL$10,8,FALSE) -> -27 | AI17: =T17-HLOOKUP(X17,Feuil1!$C$1:$BL$10,9,FALSE) -> -42 | AJ17: =T17-HLOOKUP(X17,Feuil1!$C$1:$BL$10,10,FALSE) -> -912 | AQ17: =IF(AJ17>=0,$AJ$4,IF(AI17>=0,$AI$4,IF(AH17>=0,$AH$4,IF(AG17>=0,$AG$4,IF(AF17>=0,$AF$4,IF(AE17>=0,$AE$4,IF(AD17>=0,$AD$4,IF(AC17>=0,$AC$4,$AB$4)))))))) -> IRG +
A19: F | B19: DOM | C19: GUA | D19: 1 | E19: 382038 | F19: NUIRO | G19: Naomy | H19: 1999 | I19: 62 | J19: AHCS/Pointois | K19: F | L19: 50 | M19: 55 | N19: -58 | O19: =IF(H19="","",IF(MAXA(L19:N19)<=0,0,MAXA(L19:N19))) -> 55 | P19: 60 | Q19: 65 | R19: -70 | S19: =IF(H19="","",IF(MAXA(P19:R19)<=0,0,MAXA(P19:R19))) -> 65 | T19: =IF(H19="","",IF(OR(O19=0,S19=0),0,O19+S19)) -> 120 | U19: =T19-I19*2 -> -4 | V19: =IF(H19="","",AQ19) -> NAT + | W19: =IF(AJ19>=0,AJ19,IF(AI19>=0,AI19,IF(AH19>=0,AH19,IF(AG19>=0,AG19,IF(AF19>=0,AF19,IF(AE19>=0,AE19,IF(AD19>=0,AD19,IF(AC19>=0,AC19,AB19)))))))) -> 10 | X19: =IF(I19="","",IF(A19="H",IF(OR(H19="SEN",H19<1995),VLOOKUP(I19,Feuil1!$A$11:$G$29,6),IF(AND(H19>1994,H19<1998),VLOOKUP(I19,Feuil1!$A$11:$G$29,5),IF(AND(H19>1997,H19<2000),VLOOKUP(I19,Feuil1!$A$11:$G$29,4),IF(AND(H19>1999,H19<2002),VLOOKUP(I19,Feuil1!$A$11:$G$29,3),VLOOKUP(I19,Feuil1!$A$11:$G$29,2))))),IF(OR(H19="SEN",H19<1995),VLOOKUP(I19,Feuil1!$G$11:$L$25,6),IF(AND(H19>1994,H19<1998),VLOOKUP(I19,Feuil1!$G$11:$L$25,5),IF(AND(H19>1997,H19<2000),VLOOKUP(I19,Feuil1!$G$11:$L$25,4),IF(AND(H19>1999,H19<2002),VLOOKUP(I19,Feuil1!$G$11:$L$25,3),VLOOKUP(I19,Feuil1!$G$11:$L$25,2))))))) -> FC2 63 | Y19: =IF(I19="","",IF(A19="H",10^(0.794358141*LOG(I19/174.393)^2)*T19,IF(A19="F",10^(0.89726074*LOG(I19/148.026)^2)*T19,""))) -> 161.1940606 | AB19: =T19-HLOOKUP(X19,Feuil1!$C$1:$BL$10,2,FALSE) -> 65 | AC19: =T19-HLOOKUP(X19,Feuil1!$C$1:$BL$10,3,FALSE) -> 55 | AD19: =T19-HLOOKUP(X19,Feuil1!$C$1:$BL$10,4,FALSE) -> 45 | AE19: =T19-HLOOKUP(X19,Feuil1!$C$1:$BL$10,5,FALSE) -> 35 | AF19: =T19-HLOOKUP(X19,Feuil1!$C$1:$BL$10,6,FALSE) -> 25 | AG19: =T19-HLOOKUP(X19,Feuil1!$C$1:$BL$10,7,FALSE) -> 10 | AH19: =T19-HLOOKUP(X19,Feuil1!$C$1:$BL$10,8,FALSE) -> -5 | AI19: =T19-HLOOKUP(X19,Feuil1!$C$1:$BL$10,9,FALSE) -> -20 | AJ19: =T19-HLOOKUP(X19,Feuil1!$C$1:$BL$10,10,FALSE) -> -880 | AQ19: =IF(AJ19>=0,$AJ$4,IF(AI19>=0,$AI$4,IF(AH19>=0,$AH$4,IF(AG19>=0,$AG$4,IF(AF19>=0,$AF$4,IF(AE19>=0,$AE$4,IF(AD19>=0,$AD$4,IF(AC19>=0,$AC$4,$AB$4)))))))) -> NAT +
A20: F | B20: SEST | C20: CAZ | D20: 2 | E20: 339283 | F20: DULIO | G20: Ambre | H20: 1999 | I20: 60.28 | J20: E.S. VILLENEUVE LOUBET | K20: F | L20: 46 | M20: 50 | N20: 52 | O20: 52 | P20: 56 | Q20: -60 | R20: -60 | S20: 56 | T20: 108 | U20: -12.56 | V20: FED + | W20: 13 | X20: =IF(I20="","",IF(A20="H",IF(OR(H20="SEN",H20<1995),VLOOKUP(I20,Feuil1!$A$11:$G$29,6),IF(AND(H20>1994,H20<1998),VLOOKUP(I20,Feuil1!$A$11:$G$29,5),IF(AND(H20>1997,H20<2000),VLOOKUP(I20,Feuil1!$A$11:$G$29,4),IF(AND(H20>1999,H20<2002),VLOOKUP(I20,Feuil1!$A$11:$G$29,3),VLOOKUP(I20,Feuil1!$A$11:$G$29,2))))),IF(OR(H20="SEN",H20<1995),VLOOKUP(I20,Feuil1!$G$11:$L$25,6),IF(AND(H20>1994,H20<1998),VLOOKUP(I20,Feuil1!$G$11:$L$25,5),IF(AND(H20>1997,H20<2000),VLOOKUP(I20,Feuil1!$G$11:$L$25,4),IF(AND(H20>1999,H20<2002),VLOOKUP(I20,Feuil1!$G$11:$L$25,3),VLOOKUP(I20,Feuil1!$G$11:$L$25,2))))))) -> FC2 63 | Y20: 147.9150784 | AB20: =T20-HLOOKUP(X20,Feuil1!$C$1:$BL$10,2,FALSE) -> 53 | AC20: =T20-HLOOKUP(X20,Feuil1!$C$1:$BL$10,3,FALSE) -> 43 | AD20: =T20-HLOOKUP(X20,Feuil1!$C$1:$BL$10,4,FALSE) -> 33 | AE20: =T20-HLOOKUP(X20,Feuil1!$C$1:$BL$10,5,FALSE) -> 23 | AF20: =T20-HLOOKUP(X20,Feuil1!$C$1:$BL$10,6,FALSE) -> 13 | AG20: =T20-HLOOKUP(X20,Feuil1!$C$1:$BL$10,7,FALSE) -> -2 | AH20: =T20-HLOOKUP(X20,Feuil1!$C$1:$BL$10,8,FALSE) -> -17 | AI20: =T20-HLOOKUP(X20,Feuil1!$C$1:$BL$10,9,FALSE) -> -32 | AJ20: =T20-HLOOKUP(X20,Feuil1!$C$1:$BL$10,10,FALSE) -> -892 | AQ20: FED +
A21: F | B21: Nord | C21: NPC | D21: 3 | E21: 208590 | F21: HOUZÉ | G21: Océane | H21: 1998 | I21: 59.05 | J21: CHCD Comines | K21: F | L21: -43 | M21: 43 | N21: -45 | O21: 43 | P21: 57 | Q21: 59 | R21: -62 | S21: 59 | T21: 102 | U21: -16.1 | V21: FED + | W21: 7 | X21: =IF(I21="","",IF(A21="H",IF(OR(H21="SEN",H21<1995),VLOOKUP(I21,Feuil1!$A$11:$G$29,6),IF(AND(H21>1994,H21<1998),VLOOKUP(I21,Feuil1!$A$11:$G$29,5),IF(AND(H21>1997,H21<2000),VLOOKUP(I21,Feuil1!$A$11:$G$29,4),IF(AND(H21>1999,H21<2002),VLOOKUP(I21,Feuil1!$A$11:$G$29,3),VLOOKUP(I21,Feuil1!$A$11:$G$29,2))))),IF(OR(H21="SEN",H21<1995),VLOOKUP(I21,Feuil1!$G$11:$L$25,6),IF(AND(H21>1994,H21<1998),VLOOKUP(I21,Feuil1!$G$11:$L$25,5),IF(AND(H21>1997,H21<2000),VLOOKUP(I21,Feuil1!$G$11:$L$25,4),IF(AND(H21>1999,H21<2002),VLOOKUP(I21,Feuil1!$G$11:$L$25,3),VLOOKUP(I21,Feuil1!$G$11:$L$25,2))))))) -> FC2 63 | Y21: 141.7521171 | AB21: =T21-HLOOKUP(X21,Feuil1!$C$1:$BL$10,2,FALSE) -> 47 | AC21: =T21-HLOOKUP(X21,Feuil1!$C$1:$BL$10,3,FALSE) -> 37 | AD21: =T21-HLOOKUP(X21,Feuil1!$C$1:$BL$10,4,FALSE) -> 27 | AE21: =T21-HLOOKUP(X21,Feuil1!$C$1:$BL$10,5,FALSE) -> 17 | AF21: =T21-HLOOKUP(X21,Feuil1!$C$1:$BL$10,6,FALSE) -> 7 | AG21: =T21-HLOOKUP(X21,Feuil1!$C$1:$BL$10,7,FALSE) -> -8 | AH21: =T21-HLOOKUP(X21,Feuil1!$C$1:$BL$10,8,FALSE) -> -23 | AI21: =T21-HLOOKUP(X21,Feuil1!$C$1:$BL$10,9,FALSE) -> -38 | AJ21: =T21-HLOOKUP(X21,Feuil1!$C$1:$BL$10,10,FALSE) -> -898 | AQ21: FED +
A22: F | B22: Nord | C22: NPC | D22: 4 | E22: 280129 | F22: BOUDRAHEM | G22: Inès | H22: 1999 | I22: 58.57 | J22: St Pol sur Mer | K22: F | L22: 40 | M22: -43 | N22: 43 | O22: 43 | P22: 52 | Q22: 55 | R22: -58 | S22: 55 | T22: 98 | U22: -19.14 | V22: FED + | W22: 3 | X22: =IF(I22="","",IF(A22="H",IF(OR(H22="SEN",H22<1995),VLOOKUP(I22,Feuil1!$A$11:$G$29,6),IF(AND(H22>1994,H22<1998),VLOOKUP(I22,Feuil1!$A$11:$G$29,5),IF(AND(H22>1997,H22<2000),VLOOKUP(I22,Feuil1!$A$11:$G$29,4),IF(AND(H22>1999,H22<2002),VLOOKUP(I22,Feuil1!$A$11:$G$29,3),VLOOKUP(I22,Feuil1!$A$11:$G$29,2))))),IF(OR(H22="SEN",H22<1995),VLOOKUP(I22,Feuil1!$G$11:$L$25,6),IF(AND(H22>1994,H22<1998),VLOOKUP(I22,Feuil1!$G$11:$L$25,5),IF(AND(H22>1997,H22<2000),VLOOKUP(I22,Feuil1!$G$11:$L$25,4),IF(AND(H22>1999,H22<2002),VLOOKUP(I22,Feuil1!$G$11:$L$25,3),VLOOKUP(I22,Feuil1!$G$11:$L$25,2))))))) -> FC2 63 | Y22: 136.9952541 | AB22: =T22-HLOOKUP(X22,Feuil1!$C$1:$BL$10,2,FALSE) -> 43 | AC22: =T22-HLOOKUP(X22,Feuil1!$C$1:$BL$10,3,FALSE) -> 33 | AD22: =T22-HLOOKUP(X22,Feuil1!$C$1:$BL$10,4,FALSE) -> 23 | AE22: =T22-HLOOKUP(X22,Feuil1!$C$1:$BL$10,5,FALSE) -> 13 | AF22: =T22-HLOOKUP(X22,Feuil1!$C$1:$BL$10,6,FALSE) -> 3 | AG22: =T22-HLOOKUP(X22,Feuil1!$C$1:$BL$10,7,FALSE) -> -12 | AH22: =T22-HLOOKUP(X22,Feuil1!$C$1:$BL$10,8,FALSE) -> -27 | AI22: =T22-HLOOKUP(X22,Feuil1!$C$1:$BL$10,9,FALSE) -> -42 | AJ22: =T22-HLOOKUP(X22,Feuil1!$C$1:$BL$10,10,FALSE) -> -902 | AQ22: FED +
A23: F | B23: SEST | C23: RAL | D23: 5 | E23: 344106 | F23: LAFAURIE | G23: Lise | H23: 1998 | I23: 61.26 | J23: C.H. L'ARBRESLE | K23: F | L23: 40 | M23: -45 | N23: -45 | O23: 40 | P23: 52 | Q23: 55 | R23: -58 | S23: 55 | T23: 95 | U23: -27.52 | V23: FED + | W23: 0 | X23: =IF(I23="","",IF(A23="H",IF(OR(H23="SEN",H23<1995),VLOOKUP(I23,Feuil1!$A$11:$G$29,6),IF(AND(H23>1994,H23<1998),VLOOKUP(I23,Feuil1!$A$11:$G$29,5),IF(AND(H23>1997,H23<2000),VLOOKUP(I23,Feuil1!$A$11:$G$29,4),IF(AND(H23>1999,H23<2002),VLOOKUP(I23,Feuil1!$A$11:$G$29,3),VLOOKUP(I23,Feuil1!$A$11:$G$29,2))))),IF(OR(H23="SEN",H23<1995),VLOOKUP(I23,Feuil1!$G$11:$L$25,6),IF(AND(H23>1994,H23<1998),VLOOKUP(I23,Feuil1!$G$11:$L$25,5),IF(AND(H23>1997,H23<2000),VLOOKUP(I23,Feuil1!$G$11:$L$25,4),IF(AND(H23>1999,H23<2002),VLOOKUP(I23,Feuil1!$G$11:$L$25,3),VLOOKUP(I23,Feuil1!$G$11:$L$25,2))))))) -> FC2 63 | Y23: 128.6626738 | AB23: =T23-HLOOKUP(X23,Feuil1!$C$1:$BL$10,2,FALSE) -> 40 | AC23: =T23-HLOOKUP(X23,Feuil1!$C$1:$BL$10,3,FALSE) -> 30 | AD23: =T23-HLOOKUP(X23,Feuil1!$C$1:$BL$10,4,FALSE) -> 20 | AE23: =T23-HLOOKUP(X23,Feuil1!$C$1:$BL$10,5,FALSE) -> 10 | AF23: =T23-HLOOKUP(X23,Feuil1!$C$1:$BL$10,6,FALSE) -> 0 | AG23: =T23-HLOOKUP(X23,Feuil1!$C$1:$BL$10,7,FALSE) -> -15 | AH23: =T23-HLOOKUP(X23,Feuil1!$C$1:$BL$10,8,FALSE) -> -30 | AI23: =T23-HLOOKUP(X23,Feuil1!$C$1:$BL$10,9,FALSE) -> -45 | AJ23: =T23-HLOOKUP(X23,Feuil1!$C$1:$BL$10,10,FALSE) -> -905 | AQ23: FED +
A24: F | B24: DOM | C24: GUA | D24: 6 | E24: 367889 | F24: UFREN | G24: Aurore | H24: 1998 | I24: 62 | J24: AHCS/Pointois | K24: F | L24: 35 | M24: -40 | N24: 40 | O24: 40 | P24: 50 | Q24: 55 | R24: -58 | S24: 55 | T24: 95 | U24: -29 | V24: FED + | W24: 0 | X24: =IF(I24="","",IF(A24="H",IF(OR(H24="SEN",H24<1995),VLOOKUP(I24,Feuil1!$A$11:$G$29,6),IF(AND(H24>1994,H24<1998),VLOOKUP(I24,Feuil1!$A$11:$G$29,5),IF(AND(H24>1997,H24<2000),VLOOKUP(I24,Feuil1!$A$11:$G$29,4),IF(AND(H24>1999,H24<2002),VLOOKUP(I24,Feuil1!$A$11:$G$29,3),VLOOKUP(I24,Feuil1!$A$11:$G$29,2))))),IF(OR(H24="SEN",H24<1995),VLOOKUP(I24,Feuil1!$G$11:$L$25,6),IF(AND(H24>1994,H24<1998),VLOOKUP(I24,Feuil1!$G$11:$L$25,5),IF(AND(H24>1997,H24<2000),VLOOKUP(I24,Feuil1!$G$11:$L$25,4),IF(AND(H24>1999,H24<2002),VLOOKUP(I24,Feuil1!$G$11:$L$25,3),VLOOKUP(I24,Feuil1!$G$11:$L$25,2))))))) -> FC2 63 | Y24: 127.6119646 | AB24: =T24-HLOOKUP(X24,Feuil1!$C$1:$BL$10,2,FALSE) -> 40 | AC24: =T24-HLOOKUP(X24,Feuil1!$C$1:$BL$10,3,FALSE) -> 30 | AD24: =T24-HLOOKUP(X24,Feuil1!$C$1:$BL$10,4,FALSE) -> 20 | AE24: =T24-HLOOKUP(X24,Feuil1!$C$1:$BL$10,5,FALSE) -> 10 | AF24: =T24-HLOOKUP(X24,Feuil1!$C$1:$BL$10,6,FALSE) -> 0 | AG24: =T24-HLOOKUP(X24,Feuil1!$C$1:$BL$10,7,FALSE) -> -15 | AH24: =T24-HLOOKUP(X24,Feuil1!$C$1:$BL$10,8,FALSE) -> -30 | AI24: =T24-HLOOKUP(X24,Feuil1!$C$1:$BL$10,9,FALSE) -> -45 | AJ24: =T24-HLOOKUP(X24,Feuil1!$C$1:$BL$10,10,FALSE) -> -905 | AQ24: FED +
A26: F | B26: NE | C26: CHA | D26: 1 | E26: 239747 | F26: VAUTARD | G26: Priscillia | H26: 1999 | I26: 67 | J26: Langres HM | K26: F | L26: 50 | M26: -53 | N26: -53 | O26: 50 | P26: 55 | Q26: 58 | R26: 61 | S26: 61 | T26: 111 | U26: -23 | V26: FED + | W26: 6 | X26: =IF(I26="","",IF(A26="H",IF(OR(H26="SEN",H26<1995),VLOOKUP(I26,Feuil1!$A$11:$G$29,6),IF(AND(H26>1994,H26<1998),VLOOKUP(I26,Feuil1!$A$11:$G$29,5),IF(AND(H26>1997,H26<2000),VLOOKUP(I26,Feuil1!$A$11:$G$29,4),IF(AND(H26>1999,H26<2002),VLOOKUP(I26,Feuil1!$A$11:$G$29,3),VLOOKUP(I26,Feuil1!$A$11:$G$29,2))))),IF(OR(H26="SEN",H26<1995),VLOOKUP(I26,Feuil1!$G$11:$L$25,6),IF(AND(H26>1994,H26<1998),VLOOKUP(I26,Feuil1!$G$11:$L$25,5),IF(AND(H26>1997,H26<2000),VLOOKUP(I26,Feuil1!$G$11:$L$25,4),IF(AND(H26>1999,H26<2002),VLOOKUP(I26,Feuil1!$G$11:$L$25,3),VLOOKUP(I26,Feuil1!$G$11:$L$25,2))))))) -> FC2 69 | Y26: 141.7959302 | AB26: =T26-HLOOKUP(X26,Feuil1!$C$1:$BL$10,2,FALSE) -> 51 | AC26: =T26-HLOOKUP(X26,Feuil1!$C$1:$BL$10,3,FALSE) -> 41 | AD26: =T26-HLOOKUP(X26,Feuil1!$C$1:$BL$10,4,FALSE) -> 31 | AE26: =T26-HLOOKUP(X26,Feuil1!$C$1:$BL$10,5,FALSE) -> 21 | AF26: =T26-HLOOKUP(X26,Feuil1!$C$1:$BL$10,6,FALSE) -> 6 | AG26: =T26-HLOOKUP(X26,Feuil1!$C$1:$BL$10,7,FALSE) -> -9 | AH26: =T26-HLOOKUP(X26,Feuil1!$C$1:$BL$10,8,FALSE) -> -24 | AI26: =T26-HLOOKUP(X26,Feuil1!$C$1:$BL$10,9,FALSE) -> -39 | AJ26: =T26-HLOOKUP(X26,Feuil1!$C$1:$BL$10,10,FALSE) -> -889 | AQ26: FED +
A28: F | B28: Nord | C28: NPC | D28: 1 | E28: 362261 | F28: GODEFROIDT | G28: Charline | H28: 1999 | I28: 81.05 | J28: CHCD Comines | K28: F | L28: 48 | M28: -52 | N28: 52 | O28: 52 | P28: 60 | Q28: -63 | R28: 63 | S28: 63 | T28: 115 | U28: -47.1 | V28: FED + | W28: 0 | X28: =IF(I28="","",IF(A28="H",IF(OR(H28="SEN",H28<1995),VLOOKUP(I28,Feuil1!$A$11:$G$29,6),IF(AND(H28>1994,H28<1998),VLOOKUP(I28,Feuil1!$A$11:$G$29,5),IF(AND(H28>1997,H28<2000),VLOOKUP(I28,Feuil1!$A$11:$G$29,4),IF(AND(H28>1999,H28<2002),VLOOKUP(I28,Feuil1!$A$11:$G$29,3),VLOOKUP(I28,Feuil1!$A$11:$G$29,2))))),IF(OR(H28="SEN",H28<1995),VLOOKUP(I28,Feuil1!$G$11:$L$25,6),IF(AND(H28>1994,H28<1998),VLOOKUP(I28,Feuil1!$G$11:$L$25,5),IF(AND(H28>1997,H28<2000),VLOOKUP(I28,Feuil1!$G$11:$L$25,4),IF(AND(H28>1999,H28<2002),VLOOKUP(I28,Feuil1!$G$11:$L$25,3),VLOOKUP(I28,Feuil1!$G$11:$L$25,2))))))) -> FC2 +69 | Y28: 132.4629539 | AB28: =T28-HLOOKUP(X28,Feuil1!$C$1:$BL$10,2,FALSE) -> 45 | AC28: =T28-HLOOKUP(X28,Feuil1!$C$1:$BL$10,3,FALSE) -> 35 | AD28: =T28-HLOOKUP(X28,Feuil1!$C$1:$BL$10,4,FALSE) -> 20 | AE28: =T28-HLOOKUP(X28,Feuil1!$C$1:$BL$10,5,FALSE) -> 10 | AF28: =T28-HLOOKUP(X28,Feuil1!$C$1:$BL$10,6,FALSE) -> 0 | AG28: =T28-HLOOKUP(X28,Feuil1!$C$1:$BL$10,7,FALSE) -> -15 | AH28: =T28-HLOOKUP(X28,Feuil1!$C$1:$BL$10,8,FALSE) -> -30 | AI28: =T28-HLOOKUP(X28,Feuil1!$C$1:$BL$10,9,FALSE) -> -45 | AJ28: =T28-HLOOKUP(X28,Feuil1!$C$1:$BL$10,10,FALSE) -> -885 | AQ28: FED +
A32: H | B32: CO | C32: BNO | D32: 1 | E32: 234307 | F32: ROUSSELET | G32: Clément | H32: 1999 | I32: 49.2 | J32: Giberville | K32: F | L32: -46 | M32: 46 | N32: 50 | O32: =IF(H32="","",IF(MAXA(L32:N32)<=0,0,MAXA(L32:N32))) -> 50 | P32: 60 | Q32: 64 | R32: 66 | S32: =IF(H32="","",IF(MAXA(P32:R32)<=0,0,MAXA(P32:R32))) -> 66 | T32: =IF(H32="","",IF(OR(O32=0,S32=0),0,O32+S32)) -> 116 | U32: =T32-I32*2 -> 17.6 | V32: =IF(H32="","",AQ32) -> FED + | W32: =IF(AJ32>=0,AJ32,IF(AI32>=0,AI32,IF(AH32>=0,AH32,IF(AG32>=0,AG32,IF(AF32>=0,AF32,IF(AE32>=0,AE32,IF(AD32>=0,AD32,IF(AC32>=0,AC32,AB32)))))))) -> 6 | X32: =IF(I32="","",IF(A32="H",IF(OR(H32="SEN",H32<1995),VLOOKUP(I32,Feuil1!$A$11:$G$29,6),IF(AND(H32>1994,H32<1998),VLOOKUP(I32,Feuil1!$A$11:$G$29,5),IF(AND(H32>1997,H32<2000),VLOOKUP(I32,Feuil1!$A$11:$G$29,4),IF(AND(H32>1999,H32<2002),VLOOKUP(I32,Feuil1!$A$11:$G$29,3),VLOOKUP(I32,Feuil1!$A$11:$G$29,2))))),IF(OR(H32="SEN",H32<1995),VLOOKUP(I32,Feuil1!$G$11:$L$25,6),IF(AND(H32>1994,H32<1998),VLOOKUP(I32,Feuil1!$G$11:$L$25,5),IF(AND(H32>1997,H32<2000),VLOOKUP(I32,Feuil1!$G$11:$L$25,4),IF(AND(H32>1999,H32<2002),VLOOKUP(I32,Feuil1!$G$11:$L$25,3),VLOOKUP(I32,Feuil1!$G$11:$L$25,2))))))) -> C2 50 | Y32: =IF(I32="","",IF(A32="H",10^(0.794358141*LOG(I32/174.393)^2)*T32,IF(A32="F",10^(0.89726074*LOG(I32/148.026)^2)*T32,""))) -> 201.5442705 | AB32: =T32-HLOOKUP(X32,Feuil1!$C$1:$BL$10,2,FALSE) -> 71 | AC32: =T32-HLOOKUP(X32,Feuil1!$C$1:$BL$10,3,FALSE) -> 51 | AD32: =T32-HLOOKUP(X32,Feuil1!$C$1:$BL$10,4,FALSE) -> 36 | AE32: =T32-HLOOKUP(X32,Feuil1!$C$1:$BL$10,5,FALSE) -> 21 | AF32: =T32-HLOOKUP(X32,Feuil1!$C$1:$BL$10,6,FALSE) -> 6 | AG32: =T32-HLOOKUP(X32,Feuil1!$C$1:$BL$10,7,FALSE) -> -4 | AH32: =T32-HLOOKUP(X32,Feuil1!$C$1:$BL$10,8,FALSE) -> -19 | AI32: =T32-HLOOKUP(X32,Feuil1!$C$1:$BL$10,9,FALSE) -> -34 | AJ32: =T32-HLOOKUP(X32,Feuil1!$C$1:$BL$10,10,FALSE) -> -884 | AQ32: =IF(AJ32>=0,$AJ$4,IF(AI32>=0,$AI$4,IF(AH32>=0,$AH$4,IF(AG32>=0,$AG$4,IF(AF32>=0,$AF$4,IF(AE32>=0,$AE$4,IF(AD32>=0,$AD$4,IF(AC32>=0,$AC$4,$AB$4)))))))) -> FED +
A34: H | B34: Nord | C34: NPC | D34: 1 | E34: 328452 | F34: HOELLE | G34: Alexis | H34: 1998 | I34: 55.1 | J34: CA Rosendael | K34: F | L34: 75 | M34: -78 | N34: 80 | O34: =IF(H34="","",IF(MAXA(L34:N34)<=0,0,MAXA(L34:N34))) -> 80 | P34: -96 | Q34: 96 | R34: 101 | S34: =IF(H34="","",IF(MAXA(P34:R34)<=0,0,MAXA(P34:R34))) -> 101 | T34: =IF(H34="","",IF(OR(O34=0,S34=0),0,O34+S34)) -> 181 | U34: =T34-I34*2 -> 70.8 | V34: =IF(H34="","",AQ34) -> INTB + | W34: =IF(AJ34>=0,AJ34,IF(AI34>=0,AI34,IF(AH34>=0,AH34,IF(AG34>=0,AG34,IF(AF34>=0,AF34,IF(AE34>=0,AE34,IF(AD34>=0,AD34,IF(AC34>=0,AC34,AB34)))))))) -> 11 | X34: =IF(I34="","",IF(A34="H",IF(OR(H34="SEN",H34<1995),VLOOKUP(I34,Feuil1!$A$11:$G$29,6),IF(AND(H34>1994,H34<1998),VLOOKUP(I34,Feuil1!$A$11:$G$29,5),IF(AND(H34>1997,H34<2000),VLOOKUP(I34,Feuil1!$A$11:$G$29,4),IF(AND(H34>1999,H34<2002),VLOOKUP(I34,Feuil1!$A$11:$G$29,3),VLOOKUP(I34,Feuil1!$A$11:$G$29,2))))),IF(OR(H34="SEN",H34<1995),VLOOKUP(I34,Feuil1!$G$11:$L$25,6),IF(AND(H34>1994,H34<1998),VLOOKUP(I34,Feuil1!$G$11:$L$25,5),IF(AND(H34>1997,H34<2000),VLOOKUP(I34,Feuil1!$G$11:$L$25,4),IF(AND(H34>1999,H34<2002),VLOOKUP(I34,Feuil1!$G$11:$L$25,3),VLOOKUP(I34,Feuil1!$G$11:$L$25,2))))))) -> C2 56 | Y34: =IF(I34="","",IF(A34="H",10^(0.794358141*LOG(I34/174.393)^2)*T34,IF(A34="F",10^(0.89726074*LOG(I34/148.026)^2)*T34,""))) -> 286.1330694 | AB34: =T34-HLOOKUP(X34,Feuil1!$C$1:$BL$10,2,FALSE) -> 116 | AC34: =T34-HLOOKUP(X34,Feuil1!$C$1:$BL$10,3,FALSE) -> 96 | AD34: =T34-HLOOKUP(X34,Feuil1!$C$1:$BL$10,4,FALSE) -> 81 | AE34: =T34-HLOOKUP(X34,Feuil1!$C$1:$BL$10,5,FALSE) -> 66 | AF34: =T34-HLOOKUP(X34,Feuil1!$C$1:$BL$10,6,FALSE) -> 51 | AG34: =T34-HLOOKUP(X34,Feuil1!$C$1:$BL$10,7,FALSE) -> 36 | AH34: =T34-HLOOKUP(X34,Feuil1!$C$1:$BL$10,8,FALSE) -> 11 | AI34: =T34-HLOOKUP(X34,Feuil1!$C$1:$BL$10,9,FALSE) -> -9 | AJ34: =T34-HLOOKUP(X34,Feuil1!$C$1:$BL$10,10,FALSE) -> -819 | AQ34: =IF(AJ34>=0,$AJ$4,IF(AI34>=0,$AI$4,IF(AH34>=0,$AH$4,IF(AG34>=0,$AG$4,IF(AF34>=0,$AF$4,IF(AE34>=0,$AE$4,IF(AD34>=0,$AD$4,IF(AC34>=0,$AC$4,$AB$4)))))))) -> INTB +
A35: H | B35: DOM | C35: REU | D35: 2 | E35: 250368 | F35: MARKA | G35: ERWAN | H35: 1999 | I35: 55.2 | J35: CSPJ St Denis | K35: F | L35: 57 | M35: -61 | N35: 61 | O35: =IF(H35="","",IF(MAXA(L35:N35)<=0,0,MAXA(L35:N35))) -> 61 | P35: 73 | Q35: -78 | R35: -78 | S35: =IF(H35="","",IF(MAXA(P35:R35)<=0,0,MAXA(P35:R35))) -> 73 | T35: =IF(H35="","",IF(OR(O35=0,S35=0),0,O35+S35)) -> 134 | U35: =T35-I35*2 -> 23.6 | V35: =IF(H35="","",AQ35) -> FED + | W35: =IF(AJ35>=0,AJ35,IF(AI35>=0,AI35,IF(AH35>=0,AH35,IF(AG35>=0,AG35,IF(AF35>=0,AF35,IF(AE35>=0,AE35,IF(AD35>=0,AD35,IF(AC35>=0,AC35,AB35)))))))) -> 4 | X35: =IF(I35="","",IF(A35="H",IF(OR(H35="SEN",H35<1995),VLOOKUP(I35,Feuil1!$A$11:$G$29,6),IF(AND(H35>1994,H35<1998),VLOOKUP(I35,Feuil1!$A$11:$G$29,5),IF(AND(H35>1997,H35<2000),VLOOKUP(I35,Feuil1!$A$11:$G$29,4),IF(AND(H35>1999,H35<2002),VLOOKUP(I35,Feuil1!$A$11:$G$29,3),VLOOKUP(I35,Feuil1!$A$11:$G$29,2))))),IF(OR(H35="SEN",H35<1995),VLOOKUP(I35,Feuil1!$G$11:$L$25,6),IF(AND(H35>1994,H35<1998),VLOOKUP(I35,Feuil1!$G$11:$L$25,5),IF(AND(H35>1997,H35<2000),VLOOKUP(I35,Feuil1!$G$11:$L$25,4),IF(AND(H35>1999,H35<2002),VLOOKUP(I35,Feuil1!$G$11:$L$25,3),VLOOKUP(I35,Feuil1!$G$11:$L$25,2))))))) -> C2 56 | Y35: =IF(I35="","",IF(A35="H",10^(0.794358141*LOG(I35/174.393)^2)*T35,IF(A35="F",10^(0.89726074*LOG(I35/148.026)^2)*T35,""))) -> 211.5284355 | AB35: =T35-HLOOKUP(X35,Feuil1!$C$1:$BL$10,2,FALSE) -> 69 | AC35: =T35-HLOOKUP(X35,Feuil1!$C$1:$BL$10,3,FALSE) -> 49 | AD35: =T35-HLOOKUP(X35,Feuil1!$C$1:$BL$10,4,FALSE) -> 34 | AE35: =T35-HLOOKUP(X35,Feuil1!$C$1:$BL$10,5,FALSE) -> 19 | AF35: =T35-HLOOKUP(X35,Feuil1!$C$1:$BL$10,6,FALSE) -> 4 | AG35: =T35-HLOOKUP(X35,Feuil1!$C$1:$BL$10,7,FALSE) -> -11 | AH35: =T35-HLOOKUP(X35,Feuil1!$C$1:$BL$10,8,FALSE) -> -36 | AI35: =T35-HLOOKUP(X35,Feuil1!$C$1:$BL$10,9,FALSE) -> -56 | AJ35: =T35-HLOOKUP(X35,Feuil1!$C$1:$BL$10,10,FALSE) -> -866 | AQ35: =IF(AJ35>=0,$AJ$4,IF(AI35>=0,$AI$4,IF(AH35>=0,$AH$4,IF(AG35>=0,$AG$4,IF(AF35>=0,$AF$4,IF(AE35>=0,$AE$4,IF(AD35>=0,$AD$4,IF(AC35>=0,$AC$4,$AB$4)))))))) -> FED +
A36: H | B36: SEST | C36: CAZ | D36: 3 | E36: 357026 | F36: MONTAGNOLI | G36: Corentin | H36: 1998 | I36: 51.2 | J36: E.S. VILLENEUVE LOUBET | K36: F | L36: 50 | M36: -52 | N36: 52 | O36: =IF(H36="","",IF(MAXA(L36:N36)<=0,0,MAXA(L36:N36))) -> 52 | P36: 60 | Q36: 64 | R36: -67 | S36: =IF(H36="","",IF(MAXA(P36:R36)<=0,0,MAXA(P36:R36))) -> 64 | T36: =IF(H36="","",IF(OR(O36=0,S36=0),0,O36+S36)) -> 116 | U36: =T36-I36*2 -> 13.6 | V36: =IF(H36="","",AQ36) -> IRG + | W36: =IF(AJ36>=0,AJ36,IF(AI36>=0,AI36,IF(AH36>=0,AH36,IF(AG36>=0,AG36,IF(AF36>=0,AF36,IF(AE36>=0,AE36,IF(AD36>=0,AD36,IF(AC36>=0,AC36,AB36)))))))) -> 1 | X36: =IF(I36="","",IF(A36="H",IF(OR(H36="SEN",H36<1995),VLOOKUP(I36,Feuil1!$A$11:$G$29,6),IF(AND(H36>1994,H36<1998),VLOOKUP(I36,Feuil1!$A$11:$G$29,5),IF(AND(H36>1997,H36<2000),VLOOKUP(I36,Feuil1!$A$11:$G$29,4),IF(AND(H36>1999,H36<2002),VLOOKUP(I36,Feuil1!$A$11:$G$29,3),VLOOKUP(I36,Feuil1!$A$11:$G$29,2))))),IF(OR(H36="SEN",H36<1995),VLOOKUP(I36,Feuil1!$G$11:$L$25,6),IF(AND(H36>1994,H36<1998),VLOOKUP(I36,Feuil1!$G$11:$L$25,5),IF(AND(H36>1997,H36<2000),VLOOKUP(I36,Feuil1!$G$11:$L$25,4),IF(AND(H36>1999,H36<2002),VLOOKUP(I36,Feuil1!$G$11:$L$25,3),VLOOKUP(I36,Feuil1!$G$11:$L$25,2))))))) -> C2 56 | Y36: =IF(I36="","",IF(A36="H",10^(0.794358141*LOG(I36/174.393)^2)*T36,IF(A36="F",10^(0.89726074*LOG(I36/148.026)^2)*T36,""))) -> 194.7598544 | AB36: =T36-HLOOKUP(X36,Feuil1!$C$1:$BL$10,2,FALSE) -> 51 | AC36: =T36-HLOOKUP(X36,Feuil1!$C$1:$BL$10,3,FALSE) -> 31 | AD36: =T36-HLOOKUP(X36,Feuil1!$C$1:$BL$10,4,FALSE) -> 16 | AE36: =T36-HLOOKUP(X36,Feuil1!$C$1:$BL$10,5,FALSE) -> 1 | AF36: =T36-HLOOKUP(X36,Feuil1!$C$1:$BL$10,6,FALSE) -> -14 | AG36: =T36-HLOOKUP(X36,Feuil1!$C$1:$BL$10,7,FALSE) -> -29 | AH36: =T36-HLOOKUP(X36,Feuil1!$C$1:$BL$10,8,FALSE) -> -54 | AI36: =T36-HLOOKUP(X36,Feuil1!$C$1:$BL$10,9,FALSE) -> -74 | AJ36: =T36-HLOOKUP(X36,Feuil1!$C$1:$BL$10,10,FALSE) -> -884 | AQ36: =IF(AJ36>=0,$AJ$4,IF(AI36>=0,$AI$4,IF(AH36>=0,$AH$4,IF(AG36>=0,$AG$4,IF(AF36>=0,$AF$4,IF(AE36>=0,$AE$4,IF(AD36>=0,$AD$4,IF(AC36>=0,$AC$4,$AB$4)))))))) -> IRG +
A37: H | B37: Nord | C37: NPC | D37: NC | E37: 279997 | F37: RIQUIER | G37: Dimitri | H37: 1999 | I37: 52.3 | J37: CHCD Comines | K37: F | L37: 50 | M37: 55 | N37: -57 | O37: =IF(H37="","",IF(MAXA(L37:N37)<=0,0,MAXA(L37:N37))) -> 55 | P37: -70 | Q37: -70 | R37: -70 | S37: =IF(H37="","",IF(MAXA(P37:R37)<=0,0,MAXA(P37:R37))) -> 0 | T37: =IF(H37="","",IF(OR(O37=0,S37=0),0,O37+S37)) -> 0 | U37: =T37-I37*2 -> -104.6 | V37: =IF(H37="","",AQ37) -> DEB | W37: =IF(AJ37>=0,AJ37,IF(AI37>=0,AI37,IF(AH37>=0,AH37,IF(AG37>=0,AG37,IF(AF37>=0,AF37,IF(AE37>=0,AE37,IF(AD37>=0,AD37,IF(AC37>=0,AC37,AB37)))))))) -> -65 | X37: =IF(I37="","",IF(A37="H",IF(OR(H37="SEN",H37<1995),VLOOKUP(I37,Feuil1!$A$11:$G$29,6),IF(AND(H37>1994,H37<1998),VLOOKUP(I37,Feuil1!$A$11:$G$29,5),IF(AND(H37>1997,H37<2000),VLOOKUP(I37,Feuil1!$A$11:$G$29,4),IF(AND(H37>1999,H37<2002),VLOOKUP(I37,Feuil1!$A$11:$G$29,3),VLOOKUP(I37,Feuil1!$A$11:$G$29,2))))),IF(OR(H37="SEN",H37<1995),VLOOKUP(I37,Feuil1!$G$11:$L$25,6),IF(AND(H37>1994,H37<1998),VLOOKUP(I37,Feuil1!$G$11:$L$25,5),IF(AND(H37>1997,H37<2000),VLOOKUP(I37,Feuil1!$G$11:$L$25,4),IF(AND(H37>1999,H37<2002),VLOOKUP(I37,Feuil1!$G$11:$L$25,3),VLOOKUP(I37,Feuil1!$G$11:$L$25,2))))))) -> C2 56 | Y37: =IF(I37="","",IF(A37="H",10^(0.794358141*LOG(I37/174.393)^2)*T37,IF(A37="F",10^(0.89726074*LOG(I37/148.026)^2)*T37,""))) -> 0 | AB37: =T37-HLOOKUP(X37,Feuil1!$C$1:$BL$10,2,FALSE) -> -65 | AC37: =T37-HLOOKUP(X37,Feuil1!$C$1:$BL$10,3,FALSE) -> -85 | AD37: =T37-HLOOKUP(X37,Feuil1!$C$1:$BL$10,4,FALSE) -> -100 | AE37: =T37-HLOOKUP(X37,Feuil1!$C$1:$BL$10,5,FALSE) -> -115 | AF37: =T37-HLOOKUP(X37,Feuil1!$C$1:$BL$10,6,FALSE) -> -130 | AG37: =T37-HLOOKUP(X37,Feuil1!$C$1:$BL$10,7,FALSE) -> -145 | AH37: =T37-HLOOKUP(X37,Feuil1!$C$1:$BL$10,8,FALSE) -> -170 | AI37: =T37-HLOOKUP(X37,Feuil1!$C$1:$BL$10,9,FALSE) -> -190 | AJ37: =T37-HLOOKUP(X37,Feuil1!$C$1:$BL$10,10,FALSE) -> -1000 | AQ37: =IF(AJ37>=0,$AJ$4,IF(AI37>=0,$AI$4,IF(AH37>=0,$AH$4,IF(AG37>=0,$AG$4,IF(AF37>=0,$AF$4,IF(AE37>=0,$AE$4,IF(AD37>=0,$AD$4,IF(AC37>=0,$AC$4,$AB$4)))))))) -> DEB
A39: H | B39: SEST | C39: CAZ | D39: 1 | E39: 305873 | F39: LANDAIS | G39: Alexis | H39: 1999 | I39: 56.6 | J39: E.S. VILLENEUVE LOUBET | K39: F | L39: 72 | M39: 76 | N39: 79 | O39: =IF(H39="","",IF(MAXA(L39:N39)<=0,0,MAXA(L39:N39))) -> 79 | P39: 95 | Q39: 100 | R39: -103 | S39: =IF(H39="","",IF(MAXA(P39:R39)<=0,0,MAXA(P39:R39))) -> 100 | T39: =IF(H39="","",IF(OR(O39=0,S39=0),0,O39+S39)) -> 179 | U39: =T39-I39*2 -> 65.8 | V39: =IF(H39="","",AQ39) -> NAT + | W39: =IF(AJ39>=0,AJ39,IF(AI39>=0,AI39,IF(AH39>=0,AH39,IF(AG39>=0,AG39,IF(AF39>=0,AF39,IF(AE39>=0,AE39,IF(AD39>=0,AD39,IF(AC39>=0,AC39,AB39)))))))) -> 9 | X39: =IF(I39="","",IF(A39="H",IF(OR(H39="SEN",H39<1995),VLOOKUP(I39,Feuil1!$A$11:$G$29,6),IF(AND(H39>1994,H39<1998),VLOOKUP(I39,Feuil1!$A$11:$G$29,5),IF(AND(H39>1997,H39<2000),VLOOKUP(I39,Feuil1!$A$11:$G$29,4),IF(AND(H39>1999,H39<2002),VLOOKUP(I39,Feuil1!$A$11:$G$29,3),VLOOKUP(I39,Feuil1!$A$11:$G$29,2))))),IF(OR(H39="SEN",H39<1995),VLOOKUP(I39,Feuil1!$G$11:$L$25,6),IF(AND(H39>1994,H39<1998),VLOOKUP(I39,Feuil1!$G$11:$L$25,5),IF(AND(H39>1997,H39<2000),VLOOKUP(I39,Feuil1!$G$11:$L$25,4),IF(AND(H39>1999,H39<2002),VLOOKUP(I39,Feuil1!$G$11:$L$25,3),VLOOKUP(I39,Feuil1!$G$11:$L$25,2))))))) -> C2 62 | Y39: =IF(I39="","",IF(A39="H",10^(0.794358141*LOG(I39/174.393)^2)*T39,IF(A39="F",10^(0.89726074*LOG(I39/148.026)^2)*T39,""))) -> 277.0623715 | AB39: =T39-HLOOKUP(X39,Feuil1!$C$1:$BL$10,2,FALSE) -> 94 | AC39: =T39-HLOOKUP(X39,Feuil1!$C$1:$BL$10,3,FALSE) -> 74 | AD39: =T39-HLOOKUP(X39,Feuil1!$C$1:$BL$10,4,FALSE) -> 59 | AE39: =T39-HLOOKUP(X39,Feuil1!$C$1:$BL$10,5,FALSE) -> 44 | AF39: =T39-HLOOKUP(X39,Feuil1!$C$1:$BL$10,6,FALSE) -> 29 | AG39: =T39-HLOOKUP(X39,Feuil1!$C$1:$BL$10,7,FALSE) -> 9 | AH39: =T39-HLOOKUP(X39,Feuil1!$C$1:$BL$10,8,FALSE) -> -11 | AI39: =T39-HLOOKUP(X39,Feuil1!$C$1:$BL$10,9,FALSE) -> -31 | AJ39: =T39-HLOOKUP(X39,Feuil1!$C$1:$BL$10,10,FALSE) -> -821 | AQ39: =IF(AJ39>=0,$AJ$4,IF(AI39>=0,$AI$4,IF(AH39>=0,$AH$4,IF(AG39>=0,$AG$4,IF(AF39>=0,$AF$4,IF(AE39>=0,$AE$4,IF(AD39>=0,$AD$4,IF(AC39>=0,$AC$4,$AB$4)))))))) -> NAT +
A40: H | B40: Nord | C40: PIC | D40: 2 | E40: 274621 | F40: CABON | G40: Lilian | H40: 1998 | I40: 60.7 | J40: Péronne AAEEP | K40: F | L40: -78 | M40: 78 | N40: -82 | O40: 78 | P40: 100 | Q40: -108 | R40: -108 | S40: 100 | T40: 178 | U40: 56.6 | V40: NAT + | W40: 8 | X40: =IF(I40="","",IF(A40="H",IF(OR(H40="SEN",H40<1995),VLOOKUP(I40,Feuil1!$A$11:$G$29,6),IF(AND(H40>1994,H40<1998),VLOOKUP(I40,Feuil1!$A$11:$G$29,5),IF(AND(H40>1997,H40<2000),VLOOKUP(I40,Feuil1!$A$11:$G$29,4),IF(AND(H40>1999,H40<2002),VLOOKUP(I40,Feuil1!$A$11:$G$29,3),VLOOKUP(I40,Feuil1!$A$11:$G$29,2))))),IF(OR(H40="SEN",H40<1995),VLOOKUP(I40,Feuil1!$G$11:$L$25,6),IF(AND(H40>1994,H40<1998),VLOOKUP(I40,Feuil1!$G$11:$L$25,5),IF(AND(H40>1997,H40<2000),VLOOKUP(I40,Feuil1!$G$11:$L$25,4),IF(AND(H40>1999,H40<2002),VLOOKUP(I40,Feuil1!$G$11:$L$25,3),VLOOKUP(I40,Feuil1!$G$11:$L$25,2))))))) -> C2 62 | Y40: 261.3939253 | AB40: =T40-HLOOKUP(X40,Feuil1!$C$1:$BL$10,2,FALSE) -> 93 | AC40: =T40-HLOOKUP(X40,Feuil1!$C$1:$BL$10,3,FALSE) -> 73 | AD40: =T40-HLOOKUP(X40,Feuil1!$C$1:$BL$10,4,FALSE) -> 58 | AE40: =T40-HLOOKUP(X40,Feuil1!$C$1:$BL$10,5,FALSE) -> 43 | AF40: =T40-HLOOKUP(X40,Feuil1!$C$1:$BL$10,6,FALSE) -> 28 | AG40: =T40-HLOOKUP(X40,Feuil1!$C$1:$BL$10,7,FALSE) -> 8 | AH40: =T40-HLOOKUP(X40,Feuil1!$C$1:$BL$10,8,FALSE) -> -12 | AI40: =T40-HLOOKUP(X40,Feuil1!$C$1:$BL$10,9,FALSE) -> -32 | AJ40: =T40-HLOOKUP(X40,Feuil1!$C$1:$BL$10,10,FALSE) -> -822 | AQ40: NAT +
A41: H | B41: Nord | C41: PIC | D41: 3 | E41: 279883 | F41: SEGARD | G41: Lilian | H41: 1998 | I41: 56.22 | J41: La Vaillante St Quentin | K41: F | L41: 70 | M41: 75 | N41: -78 | O41: 75 | P41: 90 | Q41: -95 | R41: -100 | S41: 90 | T41: 165 | U41: 52.56 | V41: FED + | W41: 15 | X41: =IF(I41="","",IF(A41="H",IF(OR(H41="SEN",H41<1995),VLOOKUP(I41,Feuil1!$A$11:$G$29,6),IF(AND(H41>1994,H41<1998),VLOOKUP(I41,Feuil1!$A$11:$G$29,5),IF(AND(H41>1997,H41<2000),VLOOKUP(I41,Feuil1!$A$11:$G$29,4),IF(AND(H41>1999,H41<2002),VLOOKUP(I41,Feuil1!$A$11:$G$29,3),VLOOKUP(I41,Feuil1!$A$11:$G$29,2))))),IF(OR(H41="SEN",H41<1995),VLOOKUP(I41,Feuil1!$G$11:$L$25,6),IF(AND(H41>1994,H41<1998),VLOOKUP(I41,Feuil1!$G$11:$L$25,5),IF(AND(H41>1997,H41<2000),VLOOKUP(I41,Feuil1!$G$11:$L$25,4),IF(AND(H41>1999,H41<2002),VLOOKUP(I41,Feuil1!$G$11:$L$25,3),VLOOKUP(I41,Feuil1!$G$11:$L$25,2))))))) -> C2 62 | Y41: 256.7359953 | AB41: =T41-HLOOKUP(X41,Feuil1!$C$1:$BL$10,2,FALSE) -> 80 | AC41: =T41-HLOOKUP(X41,Feuil1!$C$1:$BL$10,3,FALSE) -> 60 | AD41: =T41-HLOOKUP(X41,Feuil1!$C$1:$BL$10,4,FALSE) -> 45 | AE41: =T41-HLOOKUP(X41,Feuil1!$C$1:$BL$10,5,FALSE) -> 30 | AF41: =T41-HLOOKUP(X41,Feuil1!$C$1:$BL$10,6,FALSE) -> 15 | AG41: =T41-HLOOKUP(X41,Feuil1!$C$1:$BL$10,7,FALSE) -> -5 | AH41: =T41-HLOOKUP(X41,Feuil1!$C$1:$BL$10,8,FALSE) -> -25 | AI41: =T41-HLOOKUP(X41,Feuil1!$C$1:$BL$10,9,FALSE) -> -45 | AJ41: =T41-HLOOKUP(X41,Feuil1!$C$1:$BL$10,10,FALSE) -> -835 | AQ41: FED +
A42: H | B42: Nord | C42: PIC | D42: 4 | E42: 343406 | F42: CANUT | G42: Timothé | H42: 1999 | I42: 56.59 | J42: La Vaillante St Quentin | K42: F | L42: -64 | M42: 64 | N42: 68 | O42: 68 | P42: 77 | Q42: 82 | R42: 85 | S42: 85 | T42: 153 | U42: 39.82 | V42: FED + | W42: 3 | X42: =IF(I42="","",IF(A42="H",IF(OR(H42="SEN",H42<1995),VLOOKUP(I42,Feuil1!$A$11:$G$29,6),IF(AND(H42>1994,H42<1998),VLOOKUP(I42,Feuil1!$A$11:$G$29,5),IF(AND(H42>1997,H42<2000),VLOOKUP(I42,Feuil1!$A$11:$G$29,4),IF(AND(H42>1999,H42<2002),VLOOKUP(I42,Feuil1!$A$11:$G$29,3),VLOOKUP(I42,Feuil1!$A$11:$G$29,2))))),IF(OR(H42="SEN",H42<1995),VLOOKUP(I42,Feuil1!$G$11:$L$25,6),IF(AND(H42>1994,H42<1998),VLOOKUP(I42,Feuil1!$G$11:$L$25,5),IF(AND(H42>1997,H42<2000),VLOOKUP(I42,Feuil1!$G$11:$L$25,4),IF(AND(H42>1999,H42<2002),VLOOKUP(I42,Feuil1!$G$11:$L$25,3),VLOOKUP(I42,Feuil1!$G$11:$L$25,2))))))) -> C2 62 | Y42: 236.851169 | AB42: =T42-HLOOKUP(X42,Feuil1!$C$1:$BL$10,2,FALSE) -> 68 | AC42: =T42-HLOOKUP(X42,Feuil1!$C$1:$BL$10,3,FALSE) -> 48 | AD42: =T42-HLOOKUP(X42,Feuil1!$C$1:$BL$10,4,FALSE) -> 33 | AE42: =T42-HLOOKUP(X42,Feuil1!$C$1:$BL$10,5,FALSE) -> 18 | AF42: =T42-HLOOKUP(X42,Feuil1!$C$1:$BL$10,6,FALSE) -> 3 | AG42: =T42-HLOOKUP(X42,Feuil1!$C$1:$BL$10,7,FALSE) -> -17 | AH42: =T42-HLOOKUP(X42,Feuil1!$C$1:$BL$10,8,FALSE) -> -37 | AI42: =T42-HLOOKUP(X42,Feuil1!$C$1:$BL$10,9,FALSE) -> -57 | AJ42: =T42-HLOOKUP(X42,Feuil1!$C$1:$BL$10,10,FALSE) -> -847 | AQ42: FED +
A43: H | B43: SEST | C43: RAL | D43: 5 | E43: 305314 | F43: ABRAS | G43: Remy | H43: 1999 | I43: 61.25 | J43: H.C. CHAMBON-FEUGEROLLES | K43: F | L43: 60 | M43: -64 | N43: -65 | O43: 60 | P43: 80 | Q43: 85 | R43: -90 | S43: 85 | T43: 145 | U43: 22.5 | V43: IRG + | W43: 10 | X43: =IF(I43="","",IF(A43="H",IF(OR(H43="SEN",H43<1995),VLOOKUP(I43,Feuil1!$A$11:$G$29,6),IF(AND(H43>1994,H43<1998),VLOOKUP(I43,Feuil1!$A$11:$G$29,5),IF(AND(H43>1997,H43<2000),VLOOKUP(I43,Feuil1!$A$11:$G$29,4),IF(AND(H43>1999,H43<2002),VLOOKUP(I43,Feuil1!$A$11:$G$29,3),VLOOKUP(I43,Feuil1!$A$11:$G$29,2))))),IF(OR(H43="SEN",H43<1995),VLOOKUP(I43,Feuil1!$G$11:$L$25,6),IF(AND(H43>1994,H43<1998),VLOOKUP(I43,Feuil1!$G$11:$L$25,5),IF(AND(H43>1997,H43<2000),VLOOKUP(I43,Feuil1!$G$11:$L$25,4),IF(AND(H43>1999,H43<2002),VLOOKUP(I43,Feuil1!$G$11:$L$25,3),VLOOKUP(I43,Feuil1!$G$11:$L$25,2))))))) -> C2 62 | Y43: 211.5451803 | AB43: =T43-HLOOKUP(X43,Feuil1!$C$1:$BL$10,2,FALSE) -> 60 | AC43: =T43-HLOOKUP(X43,Feuil1!$C$1:$BL$10,3,FALSE) -> 40 | AD43: =T43-HLOOKUP(X43,Feuil1!$C$1:$BL$10,4,FALSE) -> 25 | AE43: =T43-HLOOKUP(X43,Feuil1!$C$1:$BL$10,5,FALSE) -> 10 | AF43: =T43-HLOOKUP(X43,Feuil1!$C$1:$BL$10,6,FALSE) -> -5 | AG43: =T43-HLOOKUP(X43,Feuil1!$C$1:$BL$10,7,FALSE) -> -25 | AH43: =T43-HLOOKUP(X43,Feuil1!$C$1:$BL$10,8,FALSE) -> -45 | AI43: =T43-HLOOKUP(X43,Feuil1!$C$1:$BL$10,9,FALSE) -> -65 | AJ43: =T43-HLOOKUP(X43,Feuil1!$C$1:$BL$10,10,FALSE) -> -855 | AQ43: IRG +
A44: H | B44: Nord | C44: NPC | D44: 6 | E44: 316430 | F44: CHOQUET | G44: Mathieu | H44: 1999 | I44: 60.1 | J44: St Pol sur Mer | K44: F | L44: 53 | M44: 57 | N44: 60 | O44: 60 | P44: 75 | Q44: 80 | R44: -83 | S44: 80 | T44: 140 | U44: 19.8 | V44: IRG + | W44: 5 | X44: =IF(I44="","",IF(A44="H",IF(OR(H44="SEN",H44<1995),VLOOKUP(I44,Feuil1!$A$11:$G$29,6),IF(AND(H44>1994,H44<1998),VLOOKUP(I44,Feuil1!$A$11:$G$29,5),IF(AND(H44>1997,H44<2000),VLOOKUP(I44,Feuil1!$A$11:$G$29,4),IF(AND(H44>1999,H44<2002),VLOOKUP(I44,Feuil1!$A$11:$G$29,3),VLOOKUP(I44,Feuil1!$A$11:$G$29,2))))),IF(OR(H44="SEN",H44<1995),VLOOKUP(I44,Feuil1!$G$11:$L$25,6),IF(AND(H44>1994,H44<1998),VLOOKUP(I44,Feuil1!$G$11:$L$25,5),IF(AND(H44>1997,H44<2000),VLOOKUP(I44,Feuil1!$G$11:$L$25,4),IF(AND(H44>1999,H44<2002),VLOOKUP(I44,Feuil1!$G$11:$L$25,3),VLOOKUP(I44,Feuil1!$G$11:$L$25,2))))))) -> C2 62 | Y44: 207.0903232 | AB44: =T44-HLOOKUP(X44,Feuil1!$C$1:$BL$10,2,FALSE) -> 55 | AC44: =T44-HLOOKUP(X44,Feuil1!$C$1:$BL$10,3,FALSE) -> 35 | AD44: =T44-HLOOKUP(X44,Feuil1!$C$1:$BL$10,4,FALSE) -> 20 | AE44: =T44-HLOOKUP(X44,Feuil1!$C$1:$BL$10,5,FALSE) -> 5 | AF44: =T44-HLOOKUP(X44,Feuil1!$C$1:$BL$10,6,FALSE) -> -10 | AG44: =T44-HLOOKUP(X44,Feuil1!$C$1:$BL$10,7,FALSE) -> -30 | AH44: =T44-HLOOKUP(X44,Feuil1!$C$1:$BL$10,8,FALSE) -> -50 | AI44: =T44-HLOOKUP(X44,Feuil1!$C$1:$BL$10,9,FALSE) -> -70 | AJ44: =T44-HLOOKUP(X44,Feuil1!$C$1:$BL$10,10,FALSE) -> -860 | AQ44: IRG +
A45: H | B45: NE | C45: BOU | D45: NC | E45: 166540 | F45: LAMBERT | G45: Brice | H45: 1998 | I45: 57.9 | J45: HC Saint Honoré les Bains | K45: F | L45: -61 | M45: -63 | N45: -65 | O45: 0 | P45: - | Q45: - | R45: - | S45: 0 | T45: 0 | U45: -115.8 | V45: DEB | W45: -85 | X45: =IF(I45="","",IF(A45="H",IF(OR(H45="SEN",H45<1995),VLOOKUP(I45,Feuil1!$A$11:$G$29,6),IF(AND(H45>1994,H45<1998),VLOOKUP(I45,Feuil1!$A$11:$G$29,5),IF(AND(H45>1997,H45<2000),VLOOKUP(I45,Feuil1!$A$11:$G$29,4),IF(AND(H45>1999,H45<2002),VLOOKUP(I45,Feuil1!$A$11:$G$29,3),VLOOKUP(I45,Feuil1!$A$11:$G$29,2))))),IF(OR(H45="SEN",H45<1995),VLOOKUP(I45,Feuil1!$G$11:$L$25,6),IF(AND(H45>1994,H45<1998),VLOOKUP(I45,Feuil1!$G$11:$L$25,5),IF(AND(H45>1997,H45<2000),VLOOKUP(I45,Feuil1!$G$11:$L$25,4),IF(AND(H45>1999,H45<2002),VLOOKUP(I45,Feuil1!$G$11:$L$25,3),VLOOKUP(I45,Feuil1!$G$11:$L$25,2))))))) -> C2 62 | Y45: 0 | AB45: =T45-HLOOKUP(X45,Feuil1!$C$1:$BL$10,2,FALSE) -> -85 | AC45: =T45-HLOOKUP(X45,Feuil1!$C$1:$BL$10,3,FALSE) -> -105 | AD45: =T45-HLOOKUP(X45,Feuil1!$C$1:$BL$10,4,FALSE) -> -120 | AE45: =T45-HLOOKUP(X45,Feuil1!$C$1:$BL$10,5,FALSE) -> -135 | AF45: =T45-HLOOKUP(X45,Feuil1!$C$1:$BL$10,6,FALSE) -> -150 | AG45: =T45-HLOOKUP(X45,Feuil1!$C$1:$BL$10,7,FALSE) -> -170 | AH45: =T45-HLOOKUP(X45,Feuil1!$C$1:$BL$10,8,FALSE) -> -190 | AI45: =T45-HLOOKUP(X45,Feuil1!$C$1:$BL$10,9,FALSE) -> -210 | AJ45: =T45-HLOOKUP(X45,Feuil1!$C$1:$BL$10,10,FALSE) -> -1000 | AQ45: DEB
A46: H | B46: Nord | C46: IDF | D46: NC | E46: 356185 | F46: FERRET | G46: Geoffrey | H46: 1999 | I46: 60.8 | J46: VGA St Maur | K46: F | L46: 60 | M46: 65 | N46: -67 | O46: 65 | P46: -80 | Q46: -80 | R46: -85 | S46: 0 | T46: 0 | U46: -121.6 | V46: DEB | W46: -85 | X46: =IF(I46="","",IF(A46="H",IF(OR(H46="SEN",H46<1995),VLOOKUP(I46,Feuil1!$A$11:$G$29,6),IF(AND(H46>1994,H46<1998),VLOOKUP(I46,Feuil1!$A$11:$G$29,5),IF(AND(H46>1997,H46<2000),VLOOKUP(I46,Feuil1!$A$11:$G$29,4),IF(AND(H46>1999,H46<2002),VLOOKUP(I46,Feuil1!$A$11:$G$29,3),VLOOKUP(I46,Feuil1!$A$11:$G$29,2))))),IF(OR(H46="SEN",H46<1995),VLOOKUP(I46,Feuil1!$G$11:$L$25,6),IF(AND(H46>1994,H46<1998),VLOOKUP(I46,Feuil1!$G$11:$L$25,5),IF(AND(H46>1997,H46<2000),VLOOKUP(I46,Feuil1!$G$11:$L$25,4),IF(AND(H46>1999,H46<2002),VLOOKUP(I46,Feuil1!$G$11:$L$25,3),VLOOKUP(I46,Feuil1!$G$11:$L$25,2))))))) -> C2 62 | Y46: 0 | AB46: =T46-HLOOKUP(X46,Feuil1!$C$1:$BL$10,2,FALSE) -> -85 | AC46: =T46-HLOOKUP(X46,Feuil1!$C$1:$BL$10,3,FALSE) -> -105 | AD46: =T46-HLOOKUP(X46,Feuil1!$C$1:$BL$10,4,FALSE) -> -120 | AE46: =T46-HLOOKUP(X46,Feuil1!$C$1:$BL$10,5,FALSE) -> -135 | AF46: =T46-HLOOKUP(X46,Feuil1!$C$1:$BL$10,6,FALSE) -> -150 | AG46: =T46-HLOOKUP(X46,Feuil1!$C$1:$BL$10,7,FALSE) -> -170 | AH46: =T46-HLOOKUP(X46,Feuil1!$C$1:$BL$10,8,FALSE) -> -190 | AI46: =T46-HLOOKUP(X46,Feuil1!$C$1:$BL$10,9,FALSE) -> -210 | AJ46: =T46-HLOOKUP(X46,Feuil1!$C$1:$BL$10,10,FALSE) -> -1000 | AQ46: DEB
A48: H | B48: NE | C48: ALS | D48: 1 | E48: 295214 | F48: YILDIRIM | G48: Mario | H48: 1998 | I48: 68.5 | J48: SR Obernai HM | K48: F | L48: 95 | M48: -100 | N48: -100 | O48: =IF(H48="","",IF(MAXA(L48:N48)<=0,0,MAXA(L48:N48))) -> 95 | P48: -115 | Q48: 115 | R48: -120 | S48: =IF(H48="","",IF(MAXA(P48:R48)<=0,0,MAXA(P48:R48))) -> 115 | T48: =IF(H48="","",IF(OR(O48=0,S48=0),0,O48+S48)) -> 210 | U48: =T48-I48*2 -> 73 | V48: =IF(H48="","",AQ48) -> INTB + | W48: =IF(AJ48>=0,AJ48,IF(AI48>=0,AI48,IF(AH48>=0,AH48,IF(AG48>=0,AG48,IF(AF48>=0,AF48,IF(AE48>=0,AE48,IF(AD48>=0,AD48,IF(AC48>=0,AC48,AB48)))))))) -> 0 | X48: =IF(I48="","",IF(A48="H",IF(OR(H48="SEN",H48<1995),VLOOKUP(I48,Feuil1!$A$11:$G$29,6),IF(AND(H48>1994,H48<1998),VLOOKUP(I48,Feuil1!$A$11:$G$29,5),IF(AND(H48>1997,H48<2000),VLOOKUP(I48,Feuil1!$A$11:$G$29,4),IF(AND(H48>1999,H48<2002),VLOOKUP(I48,Feuil1!$A$11:$G$29,3),VLOOKUP(I48,Feuil1!$A$11:$G$29,2))))),IF(OR(H48="SEN",H48<1995),VLOOKUP(I48,Feuil1!$G$11:$L$25,6),IF(AND(H48>1994,H48<1998),VLOOKUP(I48,Feuil1!$G$11:$L$25,5),IF(AND(H48>1997,H48<2000),VLOOKUP(I48,Feuil1!$G$11:$L$25,4),IF(AND(H48>1999,H48<2002),VLOOKUP(I48,Feuil1!$G$11:$L$25,3),VLOOKUP(I48,Feuil1!$G$11:$L$25,2))))))) -> C2 69 | Y48: =IF(I48="","",IF(A48="H",10^(0.794358141*LOG(I48/174.393)^2)*T48,IF(A48="F",10^(0.89726074*LOG(I48/148.026)^2)*T48,""))) -> 283.8271581 | AB48: =T48-HLOOKUP(X48,Feuil1!$C$1:$BL$10,2,FALSE) -> 115 | AC48: =T48-HLOOKUP(X48,Feuil1!$C$1:$BL$10,3,FALSE) -> 95 | AD48: =T48-HLOOKUP(X48,Feuil1!$C$1:$BL$10,4,FALSE) -> 80 | AE48: =T48-HLOOKUP(X48,Feuil1!$C$1:$BL$10,5,FALSE) -> 60 | AF48: =T48-HLOOKUP(X48,Feuil1!$C$1:$BL$10,6,FALSE) -> 40 | AG48: =T48-HLOOKUP(X48,Feuil1!$C$1:$BL$10,7,FALSE) -> 20 | AH48: =T48-HLOOKUP(X48,Feuil1!$C$1:$BL$10,8,FALSE) -> 0 | AI48: =T48-HLOOKUP(X48,Feuil1!$C$1:$BL$10,9,FALSE) -> -20 | AJ48: =T48-HLOOKUP(X48,Feuil1!$C$1:$BL$10,10,FALSE) -> -790 | AQ48: =IF(AJ48>=0,$AJ$4,IF(AI48>=0,$AI$4,IF(AH48>=0,$AH$4,IF(AG48>=0,$AG$4,IF(AF48>=0,$AF$4,IF(AE48>=0,$AE$4,IF(AD48>=0,$AD$4,IF(AC48>=0,$AC$4,$AB$4)))))))) -> INTB +
A49: H | B49: NE | C49: ALS | D49: 2 | E49: 273469 | F49: SPAGNULO | G49: PAOLO | H49: 1998 | I49: 66.1 | J49: SHC Haguenau | K49: F | L49: 77 | M49: -80 | N49: 80 | O49: 80 | P49: -106 | Q49: 110 | R49: -114 | S49: 110 | T49: 190 | U49: 57.8 | V49: NAT + | W49: 0 | X49: =IF(I49="","",IF(A49="H",IF(OR(H49="SEN",H49<1995),VLOOKUP(I49,Feuil1!$A$11:$G$29,6),IF(AND(H49>1994,H49<1998),VLOOKUP(I49,Feuil1!$A$11:$G$29,5),IF(AND(H49>1997,H49<2000),VLOOKUP(I49,Feuil1!$A$11:$G$29,4),IF(AND(H49>1999,H49<2002),VLOOKUP(I49,Feuil1!$A$11:$G$29,3),VLOOKUP(I49,Feuil1!$A$11:$G$29,2))))),IF(OR(H49="SEN",H49<1995),VLOOKUP(I49,Feuil1!$G$11:$L$25,6),IF(AND(H49>1994,H49<1998),VLOOKUP(I49,Feuil1!$G$11:$L$25,5),IF(AND(H49>1997,H49<2000),VLOOKUP(I49,Feuil1!$G$11:$L$25,4),IF(AND(H49>1999,H49<2002),VLOOKUP(I49,Feuil1!$G$11:$L$25,3),VLOOKUP(I49,Feuil1!$G$11:$L$25,2))))))) -> C2 69 | Y49: 262.8848905 | AB49: =T49-HLOOKUP(X49,Feuil1!$C$1:$BL$10,2,FALSE) -> 95 | AC49: =T49-HLOOKUP(X49,Feuil1!$C$1:$BL$10,3,FALSE) -> 75 | AD49: =T49-HLOOKUP(X49,Feuil1!$C$1:$BL$10,4,FALSE) -> 60 | AE49: =T49-HLOOKUP(X49,Feuil1!$C$1:$BL$10,5,FALSE) -> 40 | AF49: =T49-HLOOKUP(X49,Feuil1!$C$1:$BL$10,6,FALSE) -> 20 | AG49: =T49-HLOOKUP(X49,Feuil1!$C$1:$BL$10,7,FALSE) -> 0 | AH49: =T49-HLOOKUP(X49,Feuil1!$C$1:$BL$10,8,FALSE) -> -20 | AI49: =T49-HLOOKUP(X49,Feuil1!$C$1:$BL$10,9,FALSE) -> -40 | AJ49: =T49-HLOOKUP(X49,Feuil1!$C$1:$BL$10,10,FALSE) -> -810 | AQ49: NAT +
A50: H | B50: CO | C50: PDL | D50: 3 | E50: 379231 | F50: HEUZE | G50: Alexandre | H50: 1998 | I50: 68.9 | J50: CA Evron 53 | K50: F | L50: 78 | M50: -81 | N50: 81 | O50: 81 | P50: 109 | Q50: -113 | R50: -113 | S50: 109 | T50: 190 | U50: 52.2 | V50: NAT + | W50: 0 | X50: =IF(I50="","",IF(A50="H",IF(OR(H50="SEN",H50<1995),VLOOKUP(I50,Feuil1!$A$11:$G$29,6),IF(AND(H50>1994,H50<1998),VLOOKUP(I50,Feuil1!$A$11:$G$29,5),IF(AND(H50>1997,H50<2000),VLOOKUP(I50,Feuil1!$A$11:$G$29,4),IF(AND(H50>1999,H50<2002),VLOOKUP(I50,Feuil1!$A$11:$G$29,3),VLOOKUP(I50,Feuil1!$A$11:$G$29,2))))),IF(OR(H50="SEN",H50<1995),VLOOKUP(I50,Feuil1!$G$11:$L$25,6),IF(AND(H50>1994,H50<1998),VLOOKUP(I50,Feuil1!$G$11:$L$25,5),IF(AND(H50>1997,H50<2000),VLOOKUP(I50,Feuil1!$G$11:$L$25,4),IF(AND(H50>1999,H50<2002),VLOOKUP(I50,Feuil1!$G$11:$L$25,3),VLOOKUP(I50,Feuil1!$G$11:$L$25,2))))))) -> C2 69 | Y50: 255.8367656 | AB50: =T50-HLOOKUP(X50,Feuil1!$C$1:$BL$10,2,FALSE) -> 95 | AC50: =T50-HLOOKUP(X50,Feuil1!$C$1:$BL$10,3,FALSE) -> 75 | AD50: =T50-HLOOKUP(X50,Feuil1!$C$1:$BL$10,4,FALSE) -> 60 | AE50: =T50-HLOOKUP(X50,Feuil1!$C$1:$BL$10,5,FALSE) -> 40 | AF50: =T50-HLOOKUP(X50,Feuil1!$C$1:$BL$10,6,FALSE) -> 20 | AG50: =T50-HLOOKUP(X50,Feuil1!$C$1:$BL$10,7,FALSE) -> 0 | AH50: =T50-HLOOKUP(X50,Feuil1!$C$1:$BL$10,8,FALSE) -> -20 | AI50: =T50-HLOOKUP(X50,Feuil1!$C$1:$BL$10,9,FALSE) -> -40 | AJ50: =T50-HLOOKUP(X50,Feuil1!$C$1:$BL$10,10,FALSE) -> -810 | AQ50: NAT +
A51: H | B51: SEST | C51: CAZ | D51: 4 | E51: 305874 | F51: FOLCHER | G51: Guilhem | H51: 1998 | I51: 63.8 | J51: E.S. VILLENEUVE LOUBET | K51: F | L51: 76 | M51: -79 | N51: 79 | O51: 79 | P51: 92 | Q51: -96 | R51: 97 | S51: 97 | T51: 176 | U51: 48.4 | V51: FED + | W51: 6 | X51: =IF(I51="","",IF(A51="H",IF(OR(H51="SEN",H51<1995),VLOOKUP(I51,Feuil1!$A$11:$G$29,6),IF(AND(H51>1994,H51<1998),VLOOKUP(I51,Feuil1!$A$11:$G$29,5),IF(AND(H51>1997,H51<2000),VLOOKUP(I51,Feuil1!$A$11:$G$29,4),IF(AND(H51>1999,H51<2002),VLOOKUP(I51,Feuil1!$A$11:$G$29,3),VLOOKUP(I51,Feuil1!$A$11:$G$29,2))))),IF(OR(H51="SEN",H51<1995),VLOOKUP(I51,Feuil1!$G$11:$L$25,6),IF(AND(H51>1994,H51<1998),VLOOKUP(I51,Feuil1!$G$11:$L$25,5),IF(AND(H51>1997,H51<2000),VLOOKUP(I51,Feuil1!$G$11:$L$25,4),IF(AND(H51>1999,H51<2002),VLOOKUP(I51,Feuil1!$G$11:$L$25,3),VLOOKUP(I51,Feuil1!$G$11:$L$25,2))))))) -> C2 69 | Y51: 249.4640941 | AB51: =T51-HLOOKUP(X51,Feuil1!$C$1:$BL$10,2,FALSE) -> 81 | AC51: =T51-HLOOKUP(X51,Feuil1!$C$1:$BL$10,3,FALSE) -> 61 | AD51: =T51-HLOOKUP(X51,Feuil1!$C$1:$BL$10,4,FALSE) -> 46 | AE51: =T51-HLOOKUP(X51,Feuil1!$C$1:$BL$10,5,FALSE) -> 26 | AF51: =T51-HLOOKUP(X51,Feuil1!$C$1:$BL$10,6,FALSE) -> 6 | AG51: =T51-HLOOKUP(X51,Feuil1!$C$1:$BL$10,7,FALSE) -> -14 | AH51: =T51-HLOOKUP(X51,Feuil1!$C$1:$BL$10,8,FALSE) -> -34 | AI51: =T51-HLOOKUP(X51,Feuil1!$C$1:$BL$10,9,FALSE) -> -54 | AJ51: =T51-HLOOKUP(X51,Feuil1!$C$1:$BL$10,10,FALSE) -> -824 | AQ51: FED +
A52: H | B52: SEST | C52: CAZ | D52: 5 | E52: 307138 | F52: BLAIN | G52: Remi | H52: 1998 | I52: 67.7 | J52: E.S. VILLENEUVE LOUBET | K52: F | L52: 77 | M52: -79 | N52: -79 | O52: 77 | P52: -87 | Q52: 87 | R52: 93 | S52: 93 | T52: 170 | U52: 34.6 | V52: FED + | W52: 0 | X52: =IF(I52="","",IF(A52="H",IF(OR(H52="SEN",H52<1995),VLOOKUP(I52,Feuil1!$A$11:$G$29,6),IF(AND(H52>1994,H52<1998),VLOOKUP(I52,Feuil1!$A$11:$G$29,5),IF(AND(H52>1997,H52<2000),VLOOKUP(I52,Feuil1!$A$11:$G$29,4),IF(AND(H52>1999,H52<2002),VLOOKUP(I52,Feuil1!$A$11:$G$29,3),VLOOKUP(I52,Feuil1!$A$11:$G$29,2))))),IF(OR(H52="SEN",H52<1995),VLOOKUP(I52,Feuil1!$G$11:$L$25,6),IF(AND(H52>1994,H52<1998),VLOOKUP(I52,Feuil1!$G$11:$L$25,5),IF(AND(H52>1997,H52<2000),VLOOKUP(I52,Feuil1!$G$11:$L$25,4),IF(AND(H52>1999,H52<2002),VLOOKUP(I52,Feuil1!$G$11:$L$25,3),VLOOKUP(I52,Feuil1!$G$11:$L$25,2))))))) -> C2 69 | Y52: 231.5228 | AB52: =T52-HLOOKUP(X52,Feuil1!$C$1:$BL$10,2,FALSE) -> 75 | AC52: =T52-HLOOKUP(X52,Feuil1!$C$1:$BL$10,3,FALSE) -> 55 | AD52: =T52-HLOOKUP(X52,Feuil1!$C$1:$BL$10,4,FALSE) -> 40 | AE52: =T52-HLOOKUP(X52,Feuil1!$C$1:$BL$10,5,FALSE) -> 20 | AF52: =T52-HLOOKUP(X52,Feuil1!$C$1:$BL$10,6,FALSE) -> 0 | AG52: =T52-HLOOKUP(X52,Feuil1!$C$1:$BL$10,7,FALSE) -> -20 | AH52: =T52-HLOOKUP(X52,Feuil1!$C$1:$BL$10,8,FALSE) -> -40 | AI52: =T52-HLOOKUP(X52,Feuil1!$C$1:$BL$10,9,FALSE) -> -60 | AJ52: =T52-HLOOKUP(X52,Feuil1!$C$1:$BL$10,10,FALSE) -> -830 | AQ52: FED +
A53: H | B53: DOM | C53: GUA | D53: 6 | E53: 292762 | F53: GALVANI | G53: Dylan | H53: 1998 | I53: 69 | J53: Body Club Domien | K53: F | L53: 70 | M53: 75 | N53: -78 | O53: 75 | P53: 85 | Q53: 90 | R53: 95 | S53: 95 | T53: 170 | U53: 32 | V53: FED + | W53: 0 | X53: =IF(I53="","",IF(A53="H",IF(OR(H53="SEN",H53<1995),VLOOKUP(I53,Feuil1!$A$11:$G$29,6),IF(AND(H53>1994,H53<1998),VLOOKUP(I53,Feuil1!$A$11:$G$29,5),IF(AND(H53>1997,H53<2000),VLOOKUP(I53,Feuil1!$A$11:$G$29,4),IF(AND(H53>1999,H53<2002),VLOOKUP(I53,Feuil1!$A$11:$G$29,3),VLOOKUP(I53,Feuil1!$A$11:$G$29,2))))),IF(OR(H53="SEN",H53<1995),VLOOKUP(I53,Feuil1!$G$11:$L$25,6),IF(AND(H53>1994,H53<1998),VLOOKUP(I53,Feuil1!$G$11:$L$25,5),IF(AND(H53>1997,H53<2000),VLOOKUP(I53,Feuil1!$G$11:$L$25,4),IF(AND(H53>1999,H53<2002),VLOOKUP(I53,Feuil1!$G$11:$L$25,3),VLOOKUP(I53,Feuil1!$G$11:$L$25,2))))))) -> C2 69 | Y53: 228.6941241 | AB53: =T53-HLOOKUP(X53,Feuil1!$C$1:$BL$10,2,FALSE) -> 75 | AC53: =T53-HLOOKUP(X53,Feuil1!$C$1:$BL$10,3,FALSE) -> 55 | AD53: =T53-HLOOKUP(X53,Feuil1!$C$1:$BL$10,4,FALSE) -> 40 | AE53: =T53-HLOOKUP(X53,Feuil1!$C$1:$BL$10,5,FALSE) -> 20 | AF53: =T53-HLOOKUP(X53,Feuil1!$C$1:$BL$10,6,FALSE) -> 0 | AG53: =T53-HLOOKUP(X53,Feuil1!$C$1:$BL$10,7,FALSE) -> -20 | AH53: =T53-HLOOKUP(X53,Feuil1!$C$1:$BL$10,8,FALSE) -> -40 | AI53: =T53-HLOOKUP(X53,Feuil1!$C$1:$BL$10,9,FALSE) -> -60 | AJ53: =T53-HLOOKUP(X53,Feuil1!$C$1:$BL$10,10,FALSE) -> -830 | AQ53: FED +
A54: H | B54: CO | C54: BRE | D54: 7 | E54: 355842 | F54: LOZACHMEUR | G54: David | H54: 1998 | I54: 65.7 | J54: AL Quimper | K54: F | L54: 71 | M54: 74 | N54: -76 | O54: 74 | P54: 90 | Q54: -96 | R54: -96 | S54: 90 | T54: 164 | U54: 32.6 | V54: IRG + | W54: 14 | X54: =IF(I54="","",IF(A54="H",IF(OR(H54="SEN",H54<1995),VLOOKUP(I54,Feuil1!$A$11:$G$29,6),IF(AND(H54>1994,H54<1998),VLOOKUP(I54,Feuil1!$A$11:$G$29,5),IF(AND(H54>1997,H54<2000),VLOOKUP(I54,Feuil1!$A$11:$G$29,4),IF(AND(H54>1999,H54<2002),VLOOKUP(I54,Feuil1!$A$11:$G$29,3),VLOOKUP(I54,Feuil1!$A$11:$G$29,2))))),IF(OR(H54="SEN",H54<1995),VLOOKUP(I54,Feuil1!$G$11:$L$25,6),IF(AND(H54>1994,H54<1998),VLOOKUP(I54,Feuil1!$G$11:$L$25,5),IF(AND(H54>1997,H54<2000),VLOOKUP(I54,Feuil1!$G$11:$L$25,4),IF(AND(H54>1999,H54<2002),VLOOKUP(I54,Feuil1!$G$11:$L$25,3),VLOOKUP(I54,Feuil1!$G$11:$L$25,2))))))) -> C2 69 | Y54: 227.83787 | AB54: =T54-HLOOKUP(X54,Feuil1!$C$1:$BL$10,2,FALSE) -> 69 | AC54: =T54-HLOOKUP(X54,Feuil1!$C$1:$BL$10,3,FALSE) -> 49 | AD54: =T54-HLOOKUP(X54,Feuil1!$C$1:$BL$10,4,FALSE) -> 34 | AE54: =T54-HLOOKUP(X54,Feuil1!$C$1:$BL$10,5,FALSE) -> 14 | AF54: =T54-HLOOKUP(X54,Feuil1!$C$1:$BL$10,6,FALSE) -> -6 | AG54: =T54-HLOOKUP(X54,Feuil1!$C$1:$BL$10,7,FALSE) -> -26 | AH54: =T54-HLOOKUP(X54,Feuil1!$C$1:$BL$10,8,FALSE) -> -46 | AI54: =T54-HLOOKUP(X54,Feuil1!$C$1:$BL$10,9,FALSE) -> -66 | AJ54: =T54-HLOOKUP(X54,Feuil1!$C$1:$BL$10,10,FALSE) -> -836 | AQ54: IRG +
A55: H | B55: CO | C55: BNO | D55: 8 | E55: 312349 | F55: RENOUF | G55: Tom | H55: 1999 | I55: 64.5 | J55: Caen CHM | K55: F | L55: 70 | M55: 75 | N55: -77 | O55: 75 | P55: 80 | Q55: 87 | R55: -90 | S55: 87 | T55: 162 | U55: 33 | V55: IRG + | W55: 12 | X55: =IF(I55="","",IF(A55="H",IF(OR(H55="SEN",H55<1995),VLOOKUP(I55,Feuil1!$A$11:$G$29,6),IF(AND(H55>1994,H55<1998),VLOOKUP(I55,Feuil1!$A$11:$G$29,5),IF(AND(H55>1997,H55<2000),VLOOKUP(I55,Feuil1!$A$11:$G$29,4),IF(AND(H55>1999,H55<2002),VLOOKUP(I55,Feuil1!$A$11:$G$29,3),VLOOKUP(I55,Feuil1!$A$11:$G$29,2))))),IF(OR(H55="SEN",H55<1995),VLOOKUP(I55,Feuil1!$G$11:$L$25,6),IF(AND(H55>1994,H55<1998),VLOOKUP(I55,Feuil1!$G$11:$L$25,5),IF(AND(H55>1997,H55<2000),VLOOKUP(I55,Feuil1!$G$11:$L$25,4),IF(AND(H55>1999,H55<2002),VLOOKUP(I55,Feuil1!$G$11:$L$25,3),VLOOKUP(I55,Feuil1!$G$11:$L$25,2))))))) -> C2 69 | Y55: 227.8978679 | AB55: =T55-HLOOKUP(X55,Feuil1!$C$1:$BL$10,2,FALSE) -> 67 | AC55: =T55-HLOOKUP(X55,Feuil1!$C$1:$BL$10,3,FALSE) -> 47 | AD55: =T55-HLOOKUP(X55,Feuil1!$C$1:$BL$10,4,FALSE) -> 32 | AE55: =T55-HLOOKUP(X55,Feuil1!$C$1:$BL$10,5,FALSE) -> 12 | AF55: =T55-HLOOKUP(X55,Feuil1!$C$1:$BL$10,6,FALSE) -> -8 | AG55: =T55-HLOOKUP(X55,Feuil1!$C$1:$BL$10,7,FALSE) -> -28 | AH55: =T55-HLOOKUP(X55,Feuil1!$C$1:$BL$10,8,FALSE) -> -48 | AI55: =T55-HLOOKUP(X55,Feuil1!$C$1:$BL$10,9,FALSE) -> -68 | AJ55: =T55-HLOOKUP(X55,Feuil1!$C$1:$BL$10,10,FALSE) -> -838 | AQ55: IRG +
A57: H | B57: NE | C57: ALS | D57: 1 | E57: 326137 | F57: CASPAR | G57: Jean | H57: 1998 | I57: 74.7 | J57: CS Brumath | K57: F | L57: 82 | M57: 86 | N57: 89 | O57: =IF(H57="","",IF(MAXA(L57:N57)<=0,0,MAXA(L57:N57))) -> 89 | P57: 103 | Q57: 107 | R57: -111 | S57: =IF(H57="","",IF(MAXA(P57:R57)<=0,0,MAXA(P57:R57))) -> 107 | T57: =IF(H57="","",IF(OR(O57=0,S57=0),0,O57+S57)) -> 196 | U57: =T57-I57*2 -> 46.6 | V57: =IF(H57="","",AQ57) -> FED + | W57: =IF(AJ57>=0,AJ57,IF(AI57>=0,AI57,IF(AH57>=0,AH57,IF(AG57>=0,AG57,IF(AF57>=0,AF57,IF(AE57>=0,AE57,IF(AD57>=0,AD57,IF(AC57>=0,AC57,AB57)))))))) -> 11 | X57: =IF(I57="","",IF(A57="H",IF(OR(H57="SEN",H57<1995),VLOOKUP(I57,Feuil1!$A$11:$G$29,6),IF(AND(H57>1994,H57<1998),VLOOKUP(I57,Feuil1!$A$11:$G$29,5),IF(AND(H57>1997,H57<2000),VLOOKUP(I57,Feuil1!$A$11:$G$29,4),IF(AND(H57>1999,H57<2002),VLOOKUP(I57,Feuil1!$A$11:$G$29,3),VLOOKUP(I57,Feuil1!$A$11:$G$29,2))))),IF(OR(H57="SEN",H57<1995),VLOOKUP(I57,Feuil1!$G$11:$L$25,6),IF(AND(H57>1994,H57<1998),VLOOKUP(I57,Feuil1!$G$11:$L$25,5),IF(AND(H57>1997,H57<2000),VLOOKUP(I57,Feuil1!$G$11:$L$25,4),IF(AND(H57>1999,H57<2002),VLOOKUP(I57,Feuil1!$G$11:$L$25,3),VLOOKUP(I57,Feuil1!$G$11:$L$25,2))))))) -> C2 77 | Y57: =IF(I57="","",IF(A57="H",10^(0.794358141*LOG(I57/174.393)^2)*T57,IF(A57="F",10^(0.89726074*LOG(I57/148.026)^2)*T57,""))) -> 251.1615362 | AB57: =T57-HLOOKUP(X57,Feuil1!$C$1:$BL$10,2,FALSE) -> 86 | AC57: =T57-HLOOKUP(X57,Feuil1!$C$1:$BL$10,3,FALSE) -> 66 | AD57: =T57-HLOOKUP(X57,Feuil1!$C$1:$BL$10,4,FALSE) -> 46 | AE57: =T57-HLOOKUP(X57,Feuil1!$C$1:$BL$10,5,FALSE) -> 26 | AF57: =T57-HLOOKUP(X57,Feuil1!$C$1:$BL$10,6,FALSE) -> 11 | AG57: =T57-HLOOKUP(X57,Feuil1!$C$1:$BL$10,7,FALSE) -> -4 | AH57: =T57-HLOOKUP(X57,Feuil1!$C$1:$BL$10,8,FALSE) -> -24 | AI57: =T57-HLOOKUP(X57,Feuil1!$C$1:$BL$10,9,FALSE) -> -54 | AJ57: =T57-HLOOKUP(X57,Feuil1!$C$1:$BL$10,10,FALSE) -> -804 | AQ57: =IF(AJ57>=0,$AJ$4,IF(AI57>=0,$AI$4,IF(AH57>=0,$AH$4,IF(AG57>=0,$AG$4,IF(AF57>=0,$AF$4,IF(AE57>=0,$AE$4,IF(AD57>=0,$AD$4,IF(AC57>=0,$AC$4,$AB$4)))))))) -> FED +
A58: H | B58: SEST | C58: CAZ | D58: 2 | E58: 295872 | F58: RICHET | G58: Benoit | H58: 1999 | I58: 69.8 | J58: E.S. VILLENEUVE LOUBET | K58: F | L58: 82 | M58: 86 | N58: 90 | O58: =IF(H58="","",IF(MAXA(L58:N58)<=0,0,MAXA(L58:N58))) -> 90 | P58: 100 | Q58: 105 | R58: -110 | S58: =IF(H58="","",IF(MAXA(P58:R58)<=0,0,MAXA(P58:R58))) -> 105 | T58: =IF(H58="","",IF(OR(O58=0,S58=0),0,O58+S58)) -> 195 | U58: =T58-I58*2 -> 55.4 | V58: =IF(H58="","",AQ58) -> FED + | W58: =IF(AJ58>=0,AJ58,IF(AI58>=0,AI58,IF(AH58>=0,AH58,IF(AG58>=0,AG58,IF(AF58>=0,AF58,IF(AE58>=0,AE58,IF(AD58>=0,AD58,IF(AC58>=0,AC58,AB58)))))))) -> 10 | X58: =IF(I58="","",IF(A58="H",IF(OR(H58="SEN",H58<1995),VLOOKUP(I58,Feuil1!$A$11:$G$29,6),IF(AND(H58>1994,H58<1998),VLOOKUP(I58,Feuil1!$A$11:$G$29,5),IF(AND(H58>1997,H58<2000),VLOOKUP(I58,Feuil1!$A$11:$G$29,4),IF(AND(H58>1999,H58<2002),VLOOKUP(I58,Feuil1!$A$11:$G$29,3),VLOOKUP(I58,Feuil1!$A$11:$G$29,2))))),IF(OR(H58="SEN",H58<1995),VLOOKUP(I58,Feuil1!$G$11:$L$25,6),IF(AND(H58>1994,H58<1998),VLOOKUP(I58,Feuil1!$G$11:$L$25,5),IF(AND(H58>1997,H58<2000),VLOOKUP(I58,Feuil1!$G$11:$L$25,4),IF(AND(H58>1999,H58<2002),VLOOKUP(I58,Feuil1!$G$11:$L$25,3),VLOOKUP(I58,Feuil1!$G$11:$L$25,2))))))) -> C2 77 | Y58: =IF(I58="","",IF(A58="H",10^(0.794358141*LOG(I58/174.393)^2)*T58,IF(A58="F",10^(0.89726074*LOG(I58/148.026)^2)*T58,""))) -> 260.4101057 | AB58: =T58-HLOOKUP(X58,Feuil1!$C$1:$BL$10,2,FALSE) -> 85 | AC58: =T58-HLOOKUP(X58,Feuil1!$C$1:$BL$10,3,FALSE) -> 65 | AD58: =T58-HLOOKUP(X58,Feuil1!$C$1:$BL$10,4,FALSE) -> 45 | AE58: =T58-HLOOKUP(X58,Feuil1!$C$1:$BL$10,5,FALSE) -> 25 | AF58: =T58-HLOOKUP(X58,Feuil1!$C$1:$BL$10,6,FALSE) -> 10 | AG58: =T58-HLOOKUP(X58,Feuil1!$C$1:$BL$10,7,FALSE) -> -5 | AH58: =T58-HLOOKUP(X58,Feuil1!$C$1:$BL$10,8,FALSE) -> -25 | AI58: =T58-HLOOKUP(X58,Feuil1!$C$1:$BL$10,9,FALSE) -> -55 | AJ58: =T58-HLOOKUP(X58,Feuil1!$C$1:$BL$10,10,FALSE) -> -805 | AQ58: =IF(AJ58>=0,$AJ$4,IF(AI58>=0,$AI$4,IF(AH58>=0,$AH$4,IF(AG58>=0,$AG$4,IF(AF58>=0,$AF$4,IF(AE58>=0,$AE$4,IF(AD58>=0,$AD$4,IF(AC58>=0,$AC$4,$AB$4)))))))) -> FED +
A59: H | B59: CO | C59: BNO | D59: 3 | E59: 247806 | F59: PANNIER | G59: Julien | H59: 1998 | I59: 70.5 | J59: Caen CHM | K59: F | L59: -74 | M59: -74 | N59: 75 | O59: =IF(H59="","",IF(MAXA(L59:N59)<=0,0,MAXA(L59:N59))) -> 75 | P59: 90 | Q59: -95 | R59: 0 | S59: =IF(H59="","",IF(MAXA(P59:R59)<=0,0,MAXA(P59:R59))) -> 90 | T59: =IF(H59="","",IF(OR(O59=0,S59=0),0,O59+S59)) -> 165 | U59: =T59-I59*2 -> 24 | V59: =IF(H59="","",AQ59) -> REG + | W59: =IF(AJ59>=0,AJ59,IF(AI59>=0,AI59,IF(AH59>=0,AH59,IF(AG59>=0,AG59,IF(AF59>=0,AF59,IF(AE59>=0,AE59,IF(AD59>=0,AD59,IF(AC59>=0,AC59,AB59)))))))) -> 15 | X59: =IF(I59="","",IF(A59="H",IF(OR(H59="SEN",H59<1995),VLOOKUP(I59,Feuil1!$A$11:$G$29,6),IF(AND(H59>1994,H59<1998),VLOOKUP(I59,Feuil1!$A$11:$G$29,5),IF(AND(H59>1997,H59<2000),VLOOKUP(I59,Feuil1!$A$11:$G$29,4),IF(AND(H59>1999,H59<2002),VLOOKUP(I59,Feuil1!$A$11:$G$29,3),VLOOKUP(I59,Feuil1!$A$11:$G$29,2))))),IF(OR(H59="SEN",H59<1995),VLOOKUP(I59,Feuil1!$G$11:$L$25,6),IF(AND(H59>1994,H59<1998),VLOOKUP(I59,Feuil1!$G$11:$L$25,5),IF(AND(H59>1997,H59<2000),VLOOKUP(I59,Feuil1!$G$11:$L$25,4),IF(AND(H59>1999,H59<2002),VLOOKUP(I59,Feuil1!$G$11:$L$25,3),VLOOKUP(I59,Feuil1!$G$11:$L$25,2))))))) -> C2 77 | Y59: =IF(I59="","",IF(A59="H",10^(0.794358141*LOG(I59/174.393)^2)*T59,IF(A59="F",10^(0.89726074*LOG(I59/148.026)^2)*T59,""))) -> 218.9697377 | AB59: =T59-HLOOKUP(X59,Feuil1!$C$1:$BL$10,2,FALSE) -> 55 | AC59: =T59-HLOOKUP(X59,Feuil1!$C$1:$BL$10,3,FALSE) -> 35 | AD59: =T59-HLOOKUP(X59,Feuil1!$C$1:$BL$10,4,FALSE) -> 15 | AE59: =T59-HLOOKUP(X59,Feuil1!$C$1:$BL$10,5,FALSE) -> -5 | AF59: =T59-HLOOKUP(X59,Feuil1!$C$1:$BL$10,6,FALSE) -> -20 | AG59: =T59-HLOOKUP(X59,Feuil1!$C$1:$BL$10,7,FALSE) -> -35 | AH59: =T59-HLOOKUP(X59,Feuil1!$C$1:$BL$10,8,FALSE) -> -55 | AI59: =T59-HLOOKUP(X59,Feuil1!$C$1:$BL$10,9,FALSE) -> -85 | AJ59: =T59-HLOOKUP(X59,Feuil1!$C$1:$BL$10,10,FALSE) -> -835 | AQ59: =IF(AJ59>=0,$AJ$4,IF(AI59>=0,$AI$4,IF(AH59>=0,$AH$4,IF(AG59>=0,$AG$4,IF(AF59>=0,$AF$4,IF(AE59>=0,$AE$4,IF(AD59>=0,$AD$4,IF(AC59>=0,$AC$4,$AB$4)))))))) -> REG +
A60: H | B60: CO | C60: PDL | D60: NC | E60: 273245 | F60: BERTIN | G60: Aymeric | H60: 1998 | I60: 76.6 | J60: CJF Laval-Voutré | K60: F | L60: 85 | M60: -87 | N60: -87 | O60: =IF(H60="","",IF(MAXA(L60:N60)<=0,0,MAXA(L60:N60))) -> 85 | P60: -100 | Q60: -100 | R60: -100 | S60: =IF(H60="","",IF(MAXA(P60:R60)<=0,0,MAXA(P60:R60))) -> 0 | T60: =IF(H60="","",IF(OR(O60=0,S60=0),0,O60+S60)) -> 0 | U60: =T60-I60*2 -> -153.2 | V60: =IF(H60="","",AQ60) -> DEB | W60: =IF(AJ60>=0,AJ60,IF(AI60>=0,AI60,IF(AH60>=0,AH60,IF(AG60>=0,AG60,IF(AF60>=0,AF60,IF(AE60>=0,AE60,IF(AD60>=0,AD60,IF(AC60>=0,AC60,AB60)))))))) -> -110 | X60: =IF(I60="","",IF(A60="H",IF(OR(H60="SEN",H60<1995),VLOOKUP(I60,Feuil1!$A$11:$G$29,6),IF(AND(H60>1994,H60<1998),VLOOKUP(I60,Feuil1!$A$11:$G$29,5),IF(AND(H60>1997,H60<2000),VLOOKUP(I60,Feuil1!$A$11:$G$29,4),IF(AND(H60>1999,H60<2002),VLOOKUP(I60,Feuil1!$A$11:$G$29,3),VLOOKUP(I60,Feuil1!$A$11:$G$29,2))))),IF(OR(H60="SEN",H60<1995),VLOOKUP(I60,Feuil1!$G$11:$L$25,6),IF(AND(H60>1994,H60<1998),VLOOKUP(I60,Feuil1!$G$11:$L$25,5),IF(AND(H60>1997,H60<2000),VLOOKUP(I60,Feuil1!$G$11:$L$25,4),IF(AND(H60>1999,H60<2002),VLOOKUP(I60,Feuil1!$G$11:$L$25,3),VLOOKUP(I60,Feuil1!$G$11:$L$25,2))))))) -> C2 77 | Y60: =IF(I60="","",IF(A60="H",10^(0.794358141*LOG(I60/174.393)^2)*T60,IF(A60="F",10^(0.89726074*LOG(I60/148.026)^2)*T60,""))) -> 0 | AB60: =T60-HLOOKUP(X60,Feuil1!$C$1:$BL$10,2,FALSE) -> -110 | AC60: =T60-HLOOKUP(X60,Feuil1!$C$1:$BL$10,3,FALSE) -> -130 | AD60: =T60-HLOOKUP(X60,Feuil1!$C$1:$BL$10,4,FALSE) -> -150 | AE60: =T60-HLOOKUP(X60,Feuil1!$C$1:$BL$10,5,FALSE) -> -170 | AF60: =T60-HLOOKUP(X60,Feuil1!$C$1:$BL$10,6,FALSE) -> -185 | AG60: =T60-HLOOKUP(X60,Feuil1!$C$1:$BL$10,7,FALSE) -> -200 | AH60: =T60-HLOOKUP(X60,Feuil1!$C$1:$BL$10,8,FALSE) -> -220 | AI60: =T60-HLOOKUP(X60,Feuil1!$C$1:$BL$10,9,FALSE) -> -250 | AJ60: =T60-HLOOKUP(X60,Feuil1!$C$1:$BL$10,10,FALSE) -> -1000 | AQ60: =IF(AJ60>=0,$AJ$4,IF(AI60>=0,$AI$4,IF(AH60>=0,$AH$4,IF(AG60>=0,$AG$4,IF(AF60>=0,$AF$4,IF(AE60>=0,$AE$4,IF(AD60>=0,$AD$4,IF(AC60>=0,$AC$4,$AB$4)))))))) -> DEB
A62: H | B62: NE | C62: LOR | D62: 1 | E62: 222911 | F62: FLAUS | G62: Dylan | H62: 1998 | I62: 77.1 | J62: A.O.C.Pte-ROSSELLE | K62: F | L62: 96 | M62: -102 | N62: 102 | O62: =IF(H62="","",IF(MAXA(L62:N62)<=0,0,MAXA(L62:N62))) -> 102 | P62: 118 | Q62: 123 | R62: -125 | S62: =IF(H62="","",IF(MAXA(P62:R62)<=0,0,MAXA(P62:R62))) -> 123 | T62: =IF(H62="","",IF(OR(O62=0,S62=0),0,O62+S62)) -> 225 | U62: =T62-I62*2 -> 70.8 | V62: =IF(H62="","",AQ62) -> NAT + | W62: =IF(AJ62>=0,AJ62,IF(AI62>=0,AI62,IF(AH62>=0,AH62,IF(AG62>=0,AG62,IF(AF62>=0,AF62,IF(AE62>=0,AE62,IF(AD62>=0,AD62,IF(AC62>=0,AC62,AB62)))))))) -> 5 | X62: =IF(I62="","",IF(A62="H",IF(OR(H62="SEN",H62<1995),VLOOKUP(I62,Feuil1!$A$11:$G$29,6),IF(AND(H62>1994,H62<1998),VLOOKUP(I62,Feuil1!$A$11:$G$29,5),IF(AND(H62>1997,H62<2000),VLOOKUP(I62,Feuil1!$A$11:$G$29,4),IF(AND(H62>1999,H62<2002),VLOOKUP(I62,Feuil1!$A$11:$G$29,3),VLOOKUP(I62,Feuil1!$A$11:$G$29,2))))),IF(OR(H62="SEN",H62<1995),VLOOKUP(I62,Feuil1!$G$11:$L$25,6),IF(AND(H62>1994,H62<1998),VLOOKUP(I62,Feuil1!$G$11:$L$25,5),IF(AND(H62>1997,H62<2000),VLOOKUP(I62,Feuil1!$G$11:$L$25,4),IF(AND(H62>1999,H62<2002),VLOOKUP(I62,Feuil1!$G$11:$L$25,3),VLOOKUP(I62,Feuil1!$G$11:$L$25,2))))))) -> C2 85 | Y62: =IF(I62="","",IF(A62="H",10^(0.794358141*LOG(I62/174.393)^2)*T62,IF(A62="F",10^(0.89726074*LOG(I62/148.026)^2)*T62,""))) -> 283.1362262 | AB62: =T62-HLOOKUP(X62,Feuil1!$C$1:$BL$10,2,FALSE) -> 105 | AC62: =T62-HLOOKUP(X62,Feuil1!$C$1:$BL$10,3,FALSE) -> 85 | AD62: =T62-HLOOKUP(X62,Feuil1!$C$1:$BL$10,4,FALSE) -> 65 | AE62: =T62-HLOOKUP(X62,Feuil1!$C$1:$BL$10,5,FALSE) -> 45 | AF62: =T62-HLOOKUP(X62,Feuil1!$C$1:$BL$10,6,FALSE) -> 25 | AG62: =T62-HLOOKUP(X62,Feuil1!$C$1:$BL$10,7,FALSE) -> 5 | AH62: =T62-HLOOKUP(X62,Feuil1!$C$1:$BL$10,8,FALSE) -> -15 | AI62: =T62-HLOOKUP(X62,Feuil1!$C$1:$BL$10,9,FALSE) -> -35 | AJ62: =T62-HLOOKUP(X62,Feuil1!$C$1:$BL$10,10,FALSE) -> -9775 | AQ62: =IF(AJ62>=0,$AJ$4,IF(AI62>=0,$AI$4,IF(AH62>=0,$AH$4,IF(AG62>=0,$AG$4,IF(AF62>=0,$AF$4,IF(AE62>=0,$AE$4,IF(AD62>=0,$AD$4,IF(AC62>=0,$AC$4,$AB$4)))))))) -> NAT +
A63: H | B63: SEST | C63: PRO | D63: 2 | E63: 316093 | F63: GIRAUD | G63: Florian | H63: 1998 | I63: 89.8 | J63: H.C. NOVES | K63: F | L63: 75 | M63: -80 | N63: -82 | O63: =IF(H63="","",IF(MAXA(L63:N63)<=0,0,MAXA(L63:N63))) -> 75 | P63: 100 | Q63: 106 | R63: -110 | S63: =IF(H63="","",IF(MAXA(P63:R63)<=0,0,MAXA(P63:R63))) -> 106 | T63: =IF(H63="","",IF(OR(O63=0,S63=0),0,O63+S63)) -> 181 | U63: =T63-I63*2 -> 1.4 | V63: =IF(H63="","",AQ63) -> REG + | W63: =IF(AJ63>=0,AJ63,IF(AI63>=0,AI63,IF(AH63>=0,AH63,IF(AG63>=0,AG63,IF(AF63>=0,AF63,IF(AE63>=0,AE63,IF(AD63>=0,AD63,IF(AC63>=0,AC63,AB63)))))))) -> 16 | X63: =IF(I63="","",IF(A63="H",IF(OR(H63="SEN",H63<1995),VLOOKUP(I63,Feuil1!$A$11:$G$29,6),IF(AND(H63>1994,H63<1998),VLOOKUP(I63,Feuil1!$A$11:$G$29,5),IF(AND(H63>1997,H63<2000),VLOOKUP(I63,Feuil1!$A$11:$G$29,4),IF(AND(H63>1999,H63<2002),VLOOKUP(I63,Feuil1!$A$11:$G$29,3),VLOOKUP(I63,Feuil1!$A$11:$G$29,2))))),IF(OR(H63="SEN",H63<1995),VLOOKUP(I63,Feuil1!$G$11:$L$25,6),IF(AND(H63>1994,H63<1998),VLOOKUP(I63,Feuil1!$G$11:$L$25,5),IF(AND(H63>1997,H63<2000),VLOOKUP(I63,Feuil1!$G$11:$L$25,4),IF(AND(H63>1999,H63<2002),VLOOKUP(I63,Feuil1!$G$11:$L$25,3),VLOOKUP(I63,Feuil1!$G$11:$L$25,2))))))) -> C2 94 | Y63: =IF(I63="","",IF(A63="H",10^(0.794358141*LOG(I63/174.393)^2)*T63,IF(A63="F",10^(0.89726074*LOG(I63/148.026)^2)*T63,""))) -> 210.7082284 | AB63: =T63-HLOOKUP(X63,Feuil1!$C$1:$BL$10,2,FALSE) -> 56 | AC63: =T63-HLOOKUP(X63,Feuil1!$C$1:$BL$10,3,FALSE) -> 36 | AD63: =T63-HLOOKUP(X63,Feuil1!$C$1:$BL$10,4,FALSE) -> 16 | AE63: =T63-HLOOKUP(X63,Feuil1!$C$1:$BL$10,5,FALSE) -> -4 | AF63: =T63-HLOOKUP(X63,Feuil1!$C$1:$BL$10,6,FALSE) -> -29 | AG63: =T63-HLOOKUP(X63,Feuil1!$C$1:$BL$10,7,FALSE) -> -44 | AH63: =T63-HLOOKUP(X63,Feuil1!$C$1:$BL$10,8,FALSE) -> -69 | AI63: =T63-HLOOKUP(X63,Feuil1!$C$1:$BL$10,9,FALSE) -> -99 | AJ63: =T63-HLOOKUP(X63,Feuil1!$C$1:$BL$10,10,FALSE) -> -819 | AQ63: =IF(AJ63>=0,$AJ$4,IF(AI63>=0,$AI$4,IF(AH63>=0,$AH$4,IF(AG63>=0,$AG$4,IF(AF63>=0,$AF$4,IF(AE63>=0,$AE$4,IF(AD63>=0,$AD$4,IF(AC63>=0,$AC$4,$AB$4)))))))) -> REG +
A65: H | B65: Nord | C65: NPC | D65: 1 | E65: 376451 | F65: CEYLAN | G65: Umut | H65: 1998 | I65: 114.3 | J65: CA Rosendael | K65: Belge | L65: 90 | M65: -95 | N65: -97 | O65: =IF(H65="","",IF(MAXA(L65:N65)<=0,0,MAXA(L65:N65))) -> 90 | P65: 98 | Q65: 103 | R65: 105 | S65: =IF(H65="","",IF(MAXA(P65:R65)<=0,0,MAXA(P65:R65))) -> 105 | T65: =IF(H65="","",IF(OR(O65=0,S65=0),0,O65+S65)) -> 195 | U65: =T65-I65*2 -> -33.6 | V65: =IF(H65="","",AQ65) -> IRG + | W65: =IF(AJ65>=0,AJ65,IF(AI65>=0,AI65,IF(AH65>=0,AH65,IF(AG65>=0,AG65,IF(AF65>=0,AF65,IF(AE65>=0,AE65,IF(AD65>=0,AD65,IF(AC65>=0,AC65,AB65)))))))) -> 0 | X65: =IF(I65="","",IF(A65="H",IF(OR(H65="SEN",H65<1995),VLOOKUP(I65,Feuil1!$A$11:$G$29,6),IF(AND(H65>1994,H65<1998),VLOOKUP(I65,Feuil1!$A$11:$G$29,5),IF(AND(H65>1997,H65<2000),VLOOKUP(I65,Feuil1!$A$11:$G$29,4),IF(AND(H65>1999,H65<2002),VLOOKUP(I65,Feuil1!$A$11:$G$29,3),VLOOKUP(I65,Feuil1!$A$11:$G$29,2))))),IF(OR(H65="SEN",H65<1995),VLOOKUP(I65,Feuil1!$G$11:$L$25,6),IF(AND(H65>1994,H65<1998),VLOOKUP(I65,Feuil1!$G$11:$L$25,5),IF(AND(H65>1997,H65<2000),VLOOKUP(I65,Feuil1!$G$11:$L$25,4),IF(AND(H65>1999,H65<2002),VLOOKUP(I65,Feuil1!$G$11:$L$25,3),VLOOKUP(I65,Feuil1!$G$11:$L$25,2))))))) -> C2 +94 | Y65: =IF(I65="","",IF(A65="H",10^(0.794358141*LOG(I65/174.393)^2)*T65,IF(A65="F",10^(0.89726074*LOG(I65/148.026)^2)*T65,""))) -> 207.3850418 | AB65: =T65-HLOOKUP(X65,Feuil1!$C$1:$BL$10,2,FALSE) -> 60 | AC65: =T65-HLOOKUP(X65,Feuil1!$C$1:$BL$10,3,FALSE) -> 40 | AD65: =T65-HLOOKUP(X65,Feuil1!$C$1:$BL$10,4,FALSE) -> 20 | AE65: =T65-HLOOKUP(X65,Feuil1!$C$1:$BL$10,5,FALSE) -> 0 | AF65: =T65-HLOOKUP(X65,Feuil1!$C$1:$BL$10,6,FALSE) -> -25 | AG65: =T65-HLOOKUP(X65,Feuil1!$C$1:$BL$10,7,FALSE) -> -40 | AH65: =T65-HLOOKUP(X65,Feuil1!$C$1:$BL$10,8,FALSE) -> -65 | AI65: =T65-HLOOKUP(X65,Feuil1!$C$1:$BL$10,9,FALSE) -> -85 | AJ65: =T65-HLOOKUP(X65,Feuil1!$C$1:$BL$10,10,FALSE) -> -805 | AQ65: =IF(AJ65>=0,$AJ$4,IF(AI65>=0,$AI$4,IF(AH65>=0,$AH$4,IF(AG65>=0,$AG$4,IF(AF65>=0,$AF$4,IF(AE65>=0,$AE$4,IF(AD65>=0,$AD$4,IF(AC65>=0,$AC$4,$AB$4)))))))) -> IRG +
A67: H | O67: =IF(H67="","",IF(MAXA(L67:N67)<=0,0,MAXA(L67:N67))) ->  | S67: =IF(H67="","",IF(MAXA(P67:R67)<=0,0,MAXA(P67:R67))) ->  | T67: =IF(H67="","",IF(OR(O67=0,S67=0),0,O67+S67)) ->  | U67: =T67-I67*2 ->  | V67: =IF(H67="","",AQ67) ->  | W67: =IF(AJ67>=0,AJ67,IF(AI67>=0,AI67,IF(AH67>=0,AH67,IF(AG67>=0,AG67,IF(AF67>=0,AF67,IF(AE67>=0,AE67,IF(AD67>=0,AD67,IF(AC67>=0,AC67,AB67)))))))) ->  | X67: =IF(I67="","",IF(A67="H",IF(OR(H67="SEN",H67<1995),VLOOKUP(I67,Feuil1!$A$11:$G$29,6),IF(AND(H67>1994,H67<1998),VLOOKUP(I67,Feuil1!$A$11:$G$29,5),IF(AND(H67>1997,H67<2000),VLOOKUP(I67,Feuil1!$A$11:$G$29,4),IF(AND(H67>1999,H67<2002),VLOOKUP(I67,Feuil1!$A$11:$G$29,3),VLOOKUP(I67,Feuil1!$A$11:$G$29,2))))),IF(OR(H67="SEN",H67<1995),VLOOKUP(I67,Feuil1!$G$11:$L$25,6),IF(AND(H67>1994,H67<1998),VLOOKUP(I67,Feuil1!$G$11:$L$25,5),IF(AND(H67>1997,H67<2000),VLOOKUP(I67,Feuil1!$G$11:$L$25,4),IF(AND(H67>1999,H67<2002),VLOOKUP(I67,Feuil1!$G$11:$L$25,3),VLOOKUP(I67,Feuil1!$G$11:$L$25,2))))))) ->  | Y67: =IF(I67="","",IF(A67="H",10^(0.794358141*LOG(I67/174.393)^2)*T67,IF(A67="F",10^(0.89726074*LOG(I67/148.026)^2)*T67,""))) ->  | AB67: =T67-HLOOKUP(X67,Feuil1!$C$1:$BL$10,2,FALSE) ->  | AC67: =T67-HLOOKUP(X67,Feuil1!$C$1:$BL$10,3,FALSE) ->  | AD67: =T67-HLOOKUP(X67,Feuil1!$C$1:$BL$10,4,FALSE) ->  | AE67: =T67-HLOOKUP(X67,Feuil1!$C$1:$BL$10,5,FALSE) ->  | AF67: =T67-HLOOKUP(X67,Feuil1!$C$1:$BL$10,6,FALSE) ->  | AG67: =T67-HLOOKUP(X67,Feuil1!$C$1:$BL$10,7,FALSE) ->  | AH67: =T67-HLOOKUP(X67,Feuil1!$C$1:$BL$10,8,FALSE) ->  | AI67: =T67-HLOOKUP(X67,Feuil1!$C$1:$BL$10,9,FALSE) ->  | AJ67: =T67-HLOOKUP(X67,Feuil1!$C$1:$BL$10,10,FALSE) ->  | AQ67: =IF(AJ67>=0,$AJ$4,IF(AI67>=0,$AI$4,IF(AH67>=0,$AH$4,IF(AG67>=0,$AG$4,IF(AF67>=0,$AF$4,IF(AE67>=0,$AE$4,IF(AD67>=0,$AD$4,IF(AC67>=0,$AC$4,$AB$4)))))))) -> 
AB504: J77 | AC504: J85 | AD504: J94 | AE504: J105 | AF504: J+105 | AH504: J56 | AI504: J62 | AJ504: J69 | AK504: J77 | AL504: J85 | AM504: J94 | AN504: J105 | AO504: J+105 | AQ504: S56 | AR504: S62 | AS504: S69 | AT504: S77 | AU504: S85 | AV504: S94 | AW504: S105 | AX504: S+105
AB505: 145 | AC505: 160 | AD505: 170 | AE505: 180 | AF505: 190 | AH505: 100 | AI505: 115 | AJ505: 130 | AK505: 145 | AL505: 160 | AM505: 170 | AN505: 180 | AO505: 190 | AQ505: 115 | AR505: 135 | AS505: 150 | AT505: 165 | AU505: 180 | AV505: 190 | AW505: 200 | AX505: 210
AB506: 165 | AC506: 180 | AD506: 190 | AE506: 200 | AF506: 210 | AH506: 115 | AI506: 135 | AJ506: 150 | AK506: 165 | AL506: 180 | AM506: 190 | AN506: 200 | AO506: 210 | AQ506: 130 | AR506: 150 | AS506: 165 | AT506: 185 | AU506: 200 | AV506: 210 | AW506: 220 | AX506: 230
AB507: 185 | AC507: 200 | AD507: 210 | AE507: 220 | AF507: 230 | AH507: 130 | AI507: 150 | AJ507: 165 | AK507: 185 | AL507: 200 | AM507: 210 | AN507: 220 | AO507: 230 | AQ507: 145 | AR507: 165 | AS507: 180 | AT507: 200 | AU507: 220 | AV507: 230 | AW507: 240 | AX507: 250
AB508: 200 | AC508: 220 | AD508: 230 | AE508: 240 | AF508: 250 | AH508: 145 | AI508: 165 | AJ508: 180 | AK508: 200 | AL508: 220 | AM508: 230 | AN508: 240 | AO508: 250 | AQ508: 175 | AR508: 195 | AS508: 215 | AT508: 235 | AU508: 250 | AV508: 260 | AW508: 275 | AX508: 280
AB509: 235 | AC509: 250 | AD509: 260 | AE509: 275 | AF509: 280 | AH509: 175 | AI509: 195 | AJ509: 215 | AK509: 235 | AL509: 250 | AM509: 260 | AN509: 275 | AO509: 280 | AQ509: 210 | AR509: 230 | AS509: 250 | AT509: 270 | AU509: 290 | AV509: 300 | AW509: 310 | AX509: 325
AB510: 270 | AC510: 290 | AD510: 300 | AE510: 310 | AF510: 325 | AH510: 210 | AI510: 230 | AJ510: 250 | AK510: 270 | AL510: 290 | AM510: 300 | AN510: 310 | AO510: 325 | AQ510: 230 | AR510: 255 | AS510: 275 | AT510: 300 | AU510: 315 | AV510: 335 | AW510: 345 | AX510: 355
AB511: 320 | AC511: 335 | AD511: 355 | AE511: 370 | AF511: 380 | AH511: 245 | AI511: 270 | AJ511: 295 | AK511: 320 | AL511: 335 | AM511: 355 | AN511: 370 | AO511: 380 | AQ511: 245 | AR511: 270 | AS511: 295 | AT511: 320 | AU511: 335 | AV511: 355 | AW511: 370 | AX511: 380

Sheet JUNIORS
H1: Championnat de Zone de Printemps | Q1: DATE : | S1: 2015-04-05
G2: CLASSEMENT NATIONAL des ZONES
A4: SEXE | B4: ZONE | C4: REG. | D4: CL. | E4: LICENCE | F4: NOMS | G4: Prénoms | H4: AN | I4: POIDS | J4: CLUB | K4: NAT | L4: 1 | M4: 2 | N4: 3 | O4: ARR | P4: 1 | Q4: 2 | R4: 3 | S4: EP-J | T4: Total | U4: KP-2PC | V4: SERIE | X4: Catég | Y4: IWF | AB4: DEB | AC4: DEP + | AD4: REG + | AE4: IRG + | AF4: FED + | AG4: NAT + | AH4: INTB + | AI4: INTA + | AJ4: OLY +
A6: F | B6: SEST | C6: PRO | D6: 1 | E6: 361701 | F6: DELEUIL | G6: Fanny | H6: 1995 | I6: 48 | J6: EEAR. MONTEUX | K6: F | L6: 48 | M6: -50 | N6: -50 | O6: =IF(H6="","",IF(MAXA(L6:N6)<=0,0,MAXA(L6:N6))) -> 48 | P6: 58 | Q6: 62 | R6: -64 | S6: =IF(H6="","",IF(MAXA(P6:R6)<=0,0,MAXA(P6:R6))) -> 62 | T6: =IF(H6="","",IF(OR(O6=0,S6=0),0,O6+S6)) -> 110 | U6: =T6-I6*2 -> 14 | V6: =IF(H6="","",AQ6) -> INTB + | W6: =IF(AJ6>=0,AJ6,IF(AI6>=0,AI6,IF(AH6>=0,AH6,IF(AG6>=0,AG6,IF(AF6>=0,AF6,IF(AE6>=0,AE6,IF(AD6>=0,AD6,IF(AC6>=0,AC6,AB6)))))))) -> 0 | X6: =IF(I6="","",IF(A6="H",IF(OR(H6="SEN",H6<1995),VLOOKUP(I6,Feuil1!$A$11:$F$29,6),IF(AND(H6>1994,H6<1998),VLOOKUP(I6,Feuil1!$A$11:$F$29,5),IF(AND(H6>1997,H6<2000),VLOOKUP(I6,Feuil1!$A$11:$F$29,4),IF(AND(H6>1999,H6<2002),VLOOKUP(I6,Feuil1!$A$11:$F$29,3),VLOOKUP(I6,Feuil1!$A$11:$F$29,2))))),IF(OR(H6="SEN",H6<1995),VLOOKUP(I6,Feuil1!$G$11:$L$25,6),IF(AND(H6>1994,H6<1998),VLOOKUP(I6,Feuil1!$G$11:$L$25,5),IF(AND(H6>1997,H6<2000),VLOOKUP(I6,Feuil1!$G$11:$L$25,4),IF(AND(H6>1999,H6<2002),VLOOKUP(I6,Feuil1!$G$11:$L$25,3),VLOOKUP(I6,Feuil1!$G$11:$L$25,2))))))) -> FJ48 | Y6: =IF(I6="","",IF(A6="H",10^(0.794358141*LOG(I6/174.393)^2)*T6,IF(A6="F",10^(0.89726074*LOG(I6/148.026)^2)*T6,""))) -> 180.3148494 | AB6: =T6-HLOOKUP(X6,Feuil1!$C$1:$BL$10,2,FALSE) -> 65 | AC6: =T6-HLOOKUP(X6,Feuil1!$C$1:$BL$10,3,FALSE) -> 55 | AD6: =T6-HLOOKUP(X6,Feuil1!$C$1:$BL$10,4,FALSE) -> 45 | AE6: =T6-HLOOKUP(X6,Feuil1!$C$1:$BL$10,5,FALSE) -> 35 | AF6: =T6-HLOOKUP(X6,Feuil1!$C$1:$BL$10,6,FALSE) -> 25 | AG6: =T6-HLOOKUP(X6,Feuil1!$C$1:$BL$10,7,FALSE) -> 15 | AH6: =T6-HLOOKUP(X6,Feuil1!$C$1:$BL$10,8,FALSE) -> 0 | AI6: =T6-HLOOKUP(X6,Feuil1!$C$1:$BL$10,9,FALSE) -> -15 | AJ6: =T6-HLOOKUP(X6,Feuil1!$C$1:$BL$10,10,FALSE) -> -890 | AQ6: =IF(AJ6>=0,$AJ$4,IF(AI6>=0,$AI$4,IF(AH6>=0,$AH$4,IF(AG6>=0,$AG$4,IF(AF6>=0,$AF$4,IF(AE6>=0,$AE$4,IF(AD6>=0,$AD$4,IF(AC6>=0,$AC$4,$AB$4)))))))) -> INTB +
A7: F | B7: Nord | C7: PIC | D7: 2 | E7: 308200 | F7: LEBON | G7: Vanessa | H7: 1997 | I7: 44.9 | J7: Hirson CEHT | K7: F | L7: -33 | M7: 33 | N7: -35 | O7: =IF(H7="","",IF(MAXA(L7:N7)<=0,0,MAXA(L7:N7))) -> 33 | P7: 45 | Q7: 48 | R7: -50 | S7: =IF(H7="","",IF(MAXA(P7:R7)<=0,0,MAXA(P7:R7))) -> 48 | T7: =IF(H7="","",IF(OR(O7=0,S7=0),0,O7+S7)) -> 81 | U7: =T7-I7*2 -> -8.8 | V7: =IF(H7="","",AQ7) -> IRG + | W7: =IF(AJ7>=0,AJ7,IF(AI7>=0,AI7,IF(AH7>=0,AH7,IF(AG7>=0,AG7,IF(AF7>=0,AF7,IF(AE7>=0,AE7,IF(AD7>=0,AD7,IF(AC7>=0,AC7,AB7)))))))) -> 6 | X7: =IF(I7="","",IF(A7="H",IF(OR(H7="SEN",H7<1995),VLOOKUP(I7,Feuil1!$A$11:$F$29,6),IF(AND(H7>1994,H7<1998),VLOOKUP(I7,Feuil1!$A$11:$F$29,5),IF(AND(H7>1997,H7<2000),VLOOKUP(I7,Feuil1!$A$11:$F$29,4),IF(AND(H7>1999,H7<2002),VLOOKUP(I7,Feuil1!$A$11:$F$29,3),VLOOKUP(I7,Feuil1!$A$11:$F$29,2))))),IF(OR(H7="SEN",H7<1995),VLOOKUP(I7,Feuil1!$G$11:$L$25,6),IF(AND(H7>1994,H7<1998),VLOOKUP(I7,Feuil1!$G$11:$L$25,5),IF(AND(H7>1997,H7<2000),VLOOKUP(I7,Feuil1!$G$11:$L$25,4),IF(AND(H7>1999,H7<2002),VLOOKUP(I7,Feuil1!$G$11:$L$25,3),VLOOKUP(I7,Feuil1!$G$11:$L$25,2))))))) -> FJ48 | Y7: =IF(I7="","",IF(A7="H",10^(0.794358141*LOG(I7/174.393)^2)*T7,IF(A7="F",10^(0.89726074*LOG(I7/148.026)^2)*T7,""))) -> 141.0349742 | AB7: =T7-HLOOKUP(X7,Feuil1!$C$1:$BL$10,2,FALSE) -> 36 | AC7: =T7-HLOOKUP(X7,Feuil1!$C$1:$BL$10,3,FALSE) -> 26 | AD7: =T7-HLOOKUP(X7,Feuil1!$C$1:$BL$10,4,FALSE) -> 16 | AE7: =T7-HLOOKUP(X7,Feuil1!$C$1:$BL$10,5,FALSE) -> 6 | AF7: =T7-HLOOKUP(X7,Feuil1!$C$1:$BL$10,6,FALSE) -> -4 | AG7: =T7-HLOOKUP(X7,Feuil1!$C$1:$BL$10,7,FALSE) -> -14 | AH7: =T7-HLOOKUP(X7,Feuil1!$C$1:$BL$10,8,FALSE) -> -29 | AI7: =T7-HLOOKUP(X7,Feuil1!$C$1:$BL$10,9,FALSE) -> -44 | AJ7: =T7-HLOOKUP(X7,Feuil1!$C$1:$BL$10,10,FALSE) -> -919 | AQ7: =IF(AJ7>=0,$AJ$4,IF(AI7>=0,$AI$4,IF(AH7>=0,$AH$4,IF(AG7>=0,$AG$4,IF(AF7>=0,$AF$4,IF(AE7>=0,$AE$4,IF(AD7>=0,$AD$4,IF(AC7>=0,$AC$4,$AB$4)))))))) -> IRG +
A9: F | B9: SO | C9: MPY | D9: 1 | E9: 253454 | F9: JOURNET | G9: Mégane | H9: 1995 | I9: 51.5 | J9: FIGEAC HC | K9: F | L9: 43 | M9: 46 | N9: 48 | O9: =IF(H9="","",IF(MAXA(L9:N9)<=0,0,MAXA(L9:N9))) -> 48 | P9: 53 | Q9: 57 | R9: -60 | S9: =IF(H9="","",IF(MAXA(P9:R9)<=0,0,MAXA(P9:R9))) -> 57 | T9: =IF(H9="","",IF(OR(O9=0,S9=0),0,O9+S9)) -> 105 | U9: =T9-I9*2 -> 2 | V9: =IF(H9="","",AQ9) -> NAT + | W9: =IF(AJ9>=0,AJ9,IF(AI9>=0,AI9,IF(AH9>=0,AH9,IF(AG9>=0,AG9,IF(AF9>=0,AF9,IF(AE9>=0,AE9,IF(AD9>=0,AD9,IF(AC9>=0,AC9,AB9)))))))) -> 0 | X9: =IF(I9="","",IF(A9="H",IF(OR(H9="SEN",H9<1995),VLOOKUP(I9,Feuil1!$A$11:$F$29,6),IF(AND(H9>1994,H9<1998),VLOOKUP(I9,Feuil1!$A$11:$F$29,5),IF(AND(H9>1997,H9<2000),VLOOKUP(I9,Feuil1!$A$11:$F$29,4),IF(AND(H9>1999,H9<2002),VLOOKUP(I9,Feuil1!$A$11:$F$29,3),VLOOKUP(I9,Feuil1!$A$11:$F$29,2))))),IF(OR(H9="SEN",H9<1995),VLOOKUP(I9,Feuil1!$G$11:$L$25,6),IF(AND(H9>1994,H9<1998),VLOOKUP(I9,Feuil1!$G$11:$L$25,5),IF(AND(H9>1997,H9<2000),VLOOKUP(I9,Feuil1!$G$11:$L$25,4),IF(AND(H9>1999,H9<2002),VLOOKUP(I9,Feuil1!$G$11:$L$25,3),VLOOKUP(I9,Feuil1!$G$11:$L$25,2))))))) -> FJ53 | Y9: =IF(I9="","",IF(A9="H",10^(0.794358141*LOG(I9/174.393)^2)*T9,IF(A9="F",10^(0.89726074*LOG(I9/148.026)^2)*T9,""))) -> 162.1208203 | AB9: =T9-HLOOKUP(X9,Feuil1!$C$1:$BL$10,2,FALSE) -> 50 | AC9: =T9-HLOOKUP(X9,Feuil1!$C$1:$BL$10,3,FALSE) -> 40 | AD9: =T9-HLOOKUP(X9,Feuil1!$C$1:$BL$10,4,FALSE) -> 30 | AE9: =T9-HLOOKUP(X9,Feuil1!$C$1:$BL$10,5,FALSE) -> 20 | AF9: =T9-HLOOKUP(X9,Feuil1!$C$1:$BL$10,6,FALSE) -> 10 | AG9: =T9-HLOOKUP(X9,Feuil1!$C$1:$BL$10,7,FALSE) -> 0 | AH9: =T9-HLOOKUP(X9,Feuil1!$C$1:$BL$10,8,FALSE) -> -15 | AI9: =T9-HLOOKUP(X9,Feuil1!$C$1:$BL$10,9,FALSE) -> -30 | AJ9: =T9-HLOOKUP(X9,Feuil1!$C$1:$BL$10,10,FALSE) -> -895 | AQ9: =IF(AJ9>=0,$AJ$4,IF(AI9>=0,$AI$4,IF(AH9>=0,$AH$4,IF(AG9>=0,$AG$4,IF(AF9>=0,$AF$4,IF(AE9>=0,$AE$4,IF(AD9>=0,$AD$4,IF(AC9>=0,$AC$4,$AB$4)))))))) -> NAT +
A10: F | B10: CO | C10: PDL | D10: 2 | E10: 97644 | F10: L'HERMIER | G10: Mélanie | H10: 1996 | I10: 48.4 | J10: CJF Laval-Voutré | K10: F | L10: 45 | M10: -48 | N10: 48 | O10: =IF(H10="","",IF(MAXA(L10:N10)<=0,0,MAXA(L10:N10))) -> 48 | P10: 54 | Q10: -58 | R10: -58 | S10: =IF(H10="","",IF(MAXA(P10:R10)<=0,0,MAXA(P10:R10))) -> 54 | T10: =IF(H10="","",IF(OR(O10=0,S10=0),0,O10+S10)) -> 102 | U10: =T10-I10*2 -> 5.2 | V10: =IF(H10="","",AQ10) -> FED + | W10: =IF(AJ10>=0,AJ10,IF(AI10>=0,AI10,IF(AH10>=0,AH10,IF(AG10>=0,AG10,IF(AF10>=0,AF10,IF(AE10>=0,AE10,IF(AD10>=0,AD10,IF(AC10>=0,AC10,AB10)))))))) -> 7 | X10: =IF(I10="","",IF(A10="H",IF(OR(H10="SEN",H10<1995),VLOOKUP(I10,Feuil1!$A$11:$F$29,6),IF(AND(H10>1994,H10<1998),VLOOKUP(I10,Feuil1!$A$11:$F$29,5),IF(AND(H10>1997,H10<2000),VLOOKUP(I10,Feuil1!$A$11:$F$29,4),IF(AND(H10>1999,H10<2002),VLOOKUP(I10,Feuil1!$A$11:$F$29,3),VLOOKUP(I10,Feuil1!$A$11:$F$29,2))))),IF(OR(H10="SEN",H10<1995),VLOOKUP(I10,Feuil1!$G$11:$L$25,6),IF(AND(H10>1994,H10<1998),VLOOKUP(I10,Feuil1!$G$11:$L$25,5),IF(AND(H10>1997,H10<2000),VLOOKUP(I10,Feuil1!$G$11:$L$25,4),IF(AND(H10>1999,H10<2002),VLOOKUP(I10,Feuil1!$G$11:$L$25,3),VLOOKUP(I10,Feuil1!$G$11:$L$25,2))))))) -> FJ53 | Y10: =IF(I10="","",IF(A10="H",10^(0.794358141*LOG(I10/174.393)^2)*T10,IF(A10="F",10^(0.89726074*LOG(I10/148.026)^2)*T10,""))) -> 165.99206 | AB10: =T10-HLOOKUP(X10,Feuil1!$C$1:$BL$10,2,FALSE) -> 47 | AC10: =T10-HLOOKUP(X10,Feuil1!$C$1:$BL$10,3,FALSE) -> 37 | AD10: =T10-HLOOKUP(X10,Feuil1!$C$1:$BL$10,4,FALSE) -> 27 | AE10: =T10-HLOOKUP(X10,Feuil1!$C$1:$BL$10,5,FALSE) -> 17 | AF10: =T10-HLOOKUP(X10,Feuil1!$C$1:$BL$10,6,FALSE) -> 7 | AG10: =T10-HLOOKUP(X10,Feuil1!$C$1:$BL$10,7,FALSE) -> -3 | AH10: =T10-HLOOKUP(X10,Feuil1!$C$1:$BL$10,8,FALSE) -> -18 | AI10: =T10-HLOOKUP(X10,Feuil1!$C$1:$BL$10,9,FALSE) -> -33 | AJ10: =T10-HLOOKUP(X10,Feuil1!$C$1:$BL$10,10,FALSE) -> -898 | AQ10: =IF(AJ10>=0,$AJ$4,IF(AI10>=0,$AI$4,IF(AH10>=0,$AH$4,IF(AG10>=0,$AG$4,IF(AF10>=0,$AF$4,IF(AE10>=0,$AE$4,IF(AD10>=0,$AD$4,IF(AC10>=0,$AC$4,$AB$4)))))))) -> FED +
A11: F | B11: SEST | C11: CAZ | D11: 3 | E11: 323896 | F11: DUPEYROUX | G11: Elise | H11: 1997 | I11: 51.64 | J11: ASLDD. TOULON | K11: F | L11: 45 | M11: -48 | N11: -48 | O11: =IF(H11="","",IF(MAXA(L11:N11)<=0,0,MAXA(L11:N11))) -> 45 | P11: -54 | Q11: 54 | R11: -57 | S11: =IF(H11="","",IF(MAXA(P11:R11)<=0,0,MAXA(P11:R11))) -> 54 | T11: =IF(H11="","",IF(OR(O11=0,S11=0),0,O11+S11)) -> 99 | U11: =T11-I11*2 -> -4.28 | V11: =IF(H11="","",AQ11) -> FED + | W11: =IF(AJ11>=0,AJ11,IF(AI11>=0,AI11,IF(AH11>=0,AH11,IF(AG11>=0,AG11,IF(AF11>=0,AF11,IF(AE11>=0,AE11,IF(AD11>=0,AD11,IF(AC11>=0,AC11,AB11)))))))) -> 4 | X11: =IF(I11="","",IF(A11="H",IF(OR(H11="SEN",H11<1995),VLOOKUP(I11,Feuil1!$A$11:$F$29,6),IF(AND(H11>1994,H11<1998),VLOOKUP(I11,Feuil1!$A$11:$F$29,5),IF(AND(H11>1997,H11<2000),VLOOKUP(I11,Feuil1!$A$11:$F$29,4),IF(AND(H11>1999,H11<2002),VLOOKUP(I11,Feuil1!$A$11:$F$29,3),VLOOKUP(I11,Feuil1!$A$11:$F$29,2))))),IF(OR(H11="SEN",H11<1995),VLOOKUP(I11,Feuil1!$G$11:$L$25,6),IF(AND(H11>1994,H11<1998),VLOOKUP(I11,Feuil1!$G$11:$L$25,5),IF(AND(H11>1997,H11<2000),VLOOKUP(I11,Feuil1!$G$11:$L$25,4),IF(AND(H11>1999,H11<2002),VLOOKUP(I11,Feuil1!$G$11:$L$25,3),VLOOKUP(I11,Feuil1!$G$11:$L$25,2))))))) -> FJ53 | Y11: =IF(I11="","",IF(A11="H",10^(0.794358141*LOG(I11/174.393)^2)*T11,IF(A11="F",10^(0.89726074*LOG(I11/148.026)^2)*T11,""))) -> 152.5161379 | AB11: =T11-HLOOKUP(X11,Feuil1!$C$1:$BL$10,2,FALSE) -> 44 | AC11: =T11-HLOOKUP(X11,Feuil1!$C$1:$BL$10,3,FALSE) -> 34 | AD11: =T11-HLOOKUP(X11,Feuil1!$C$1:$BL$10,4,FALSE) -> 24 | AE11: =T11-HLOOKUP(X11,Feuil1!$C$1:$BL$10,5,FALSE) -> 14 | AF11: =T11-HLOOKUP(X11,Feuil1!$C$1:$BL$10,6,FALSE) -> 4 | AG11: =T11-HLOOKUP(X11,Feuil1!$C$1:$BL$10,7,FALSE) -> -6 | AH11: =T11-HLOOKUP(X11,Feuil1!$C$1:$BL$10,8,FALSE) -> -21 | AI11: =T11-HLOOKUP(X11,Feuil1!$C$1:$BL$10,9,FALSE) -> -36 | AJ11: =T11-HLOOKUP(X11,Feuil1!$C$1:$BL$10,10,FALSE) -> -901 | AQ11: =IF(AJ11>=0,$AJ$4,IF(AI11>=0,$AI$4,IF(AH11>=0,$AH$4,IF(AG11>=0,$AG$4,IF(AF11>=0,$AF$4,IF(AE11>=0,$AE$4,IF(AD11>=0,$AD$4,IF(AC11>=0,$AC$4,$AB$4)))))))) -> FED +
A12: F | B12: Nord | C12: NPC | D12: 4 | E12: 203629 | F12: DEZERABLE | G12: Kathy | H12: 1997 | I12: 48.53 | J12: AO Sallaumines | K12: F | L12: 36 | M12: -39 | N12: 39 | O12: =IF(H12="","",IF(MAXA(L12:N12)<=0,0,MAXA(L12:N12))) -> 39 | P12: -47 | Q12: 47 | R12: 50 | S12: =IF(H12="","",IF(MAXA(P12:R12)<=0,0,MAXA(P12:R12))) -> 50 | T12: =IF(H12="","",IF(OR(O12=0,S12=0),0,O12+S12)) -> 89 | U12: =T12-I12*2 -> -8.06 | V12: =IF(H12="","",AQ12) -> IRG + | W12: =IF(AJ12>=0,AJ12,IF(AI12>=0,AI12,IF(AH12>=0,AH12,IF(AG12>=0,AG12,IF(AF12>=0,AF12,IF(AE12>=0,AE12,IF(AD12>=0,AD12,IF(AC12>=0,AC12,AB12)))))))) -> 4 | X12: =IF(I12="","",IF(A12="H",IF(OR(H12="SEN",H12<1995),VLOOKUP(I12,Feuil1!$A$11:$F$29,6),IF(AND(H12>1994,H12<1998),VLOOKUP(I12,Feuil1!$A$11:$F$29,5),IF(AND(H12>1997,H12<2000),VLOOKUP(I12,Feuil1!$A$11:$F$29,4),IF(AND(H12>1999,H12<2002),VLOOKUP(I12,Feuil1!$A$11:$F$29,3),VLOOKUP(I12,Feuil1!$A$11:$F$29,2))))),IF(OR(H12="SEN",H12<1995),VLOOKUP(I12,Feuil1!$G$11:$L$25,6),IF(AND(H12>1994,H12<1998),VLOOKUP(I12,Feuil1!$G$11:$L$25,5),IF(AND(H12>1997,H12<2000),VLOOKUP(I12,Feuil1!$G$11:$L$25,4),IF(AND(H12>1999,H12<2002),VLOOKUP(I12,Feuil1!$G$11:$L$25,3),VLOOKUP(I12,Feuil1!$G$11:$L$25,2))))))) -> FJ53 | Y12: =IF(I12="","",IF(A12="H",10^(0.794358141*LOG(I12/174.393)^2)*T12,IF(A12="F",10^(0.89726074*LOG(I12/148.026)^2)*T12,""))) -> 144.4985366 | AB12: =T12-HLOOKUP(X12,Feuil1!$C$1:$BL$10,2,FALSE) -> 34 | AC12: =T12-HLOOKUP(X12,Feuil1!$C$1:$BL$10,3,FALSE) -> 24 | AD12: =T12-HLOOKUP(X12,Feuil1!$C$1:$BL$10,4,FALSE) -> 14 | AE12: =T12-HLOOKUP(X12,Feuil1!$C$1:$BL$10,5,FALSE) -> 4 | AF12: =T12-HLOOKUP(X12,Feuil1!$C$1:$BL$10,6,FALSE) -> -6 | AG12: =T12-HLOOKUP(X12,Feuil1!$C$1:$BL$10,7,FALSE) -> -16 | AH12: =T12-HLOOKUP(X12,Feuil1!$C$1:$BL$10,8,FALSE) -> -31 | AI12: =T12-HLOOKUP(X12,Feuil1!$C$1:$BL$10,9,FALSE) -> -46 | AJ12: =T12-HLOOKUP(X12,Feuil1!$C$1:$BL$10,10,FALSE) -> -911 | AQ12: =IF(AJ12>=0,$AJ$4,IF(AI12>=0,$AI$4,IF(AH12>=0,$AH$4,IF(AG12>=0,$AG$4,IF(AF12>=0,$AF$4,IF(AE12>=0,$AE$4,IF(AD12>=0,$AD$4,IF(AC12>=0,$AC$4,$AB$4)))))))) -> IRG +
A13: F | B13: SEST | C13: RAL | D13: NC | E13: 385864 | F13: BERRUYER | G13: Amelie | H13: 1997 | I13: 53 | J13: A.C. SAINT MARCELLIN | K13: F | L13: -40 | M13: -40 | N13: -40 | O13: =IF(H13="","",IF(MAXA(L13:N13)<=0,0,MAXA(L13:N13))) -> 0 | P13: - | Q13: - | R13: - | S13: =IF(H13="","",IF(MAXA(P13:R13)<=0,0,MAXA(P13:R13))) -> 0 | T13: =IF(H13="","",IF(OR(O13=0,S13=0),0,O13+S13)) -> 0 | U13: =T13-I13*2 -> -106 | V13: =IF(H13="","",AQ13) -> DEB | W13: =IF(AJ13>=0,AJ13,IF(AI13>=0,AI13,IF(AH13>=0,AH13,IF(AG13>=0,AG13,IF(AF13>=0,AF13,IF(AE13>=0,AE13,IF(AD13>=0,AD13,IF(AC13>=0,AC13,AB13)))))))) -> -55 | X13: =IF(I13="","",IF(A13="H",IF(OR(H13="SEN",H13<1995),VLOOKUP(I13,Feuil1!$A$11:$F$29,6),IF(AND(H13>1994,H13<1998),VLOOKUP(I13,Feuil1!$A$11:$F$29,5),IF(AND(H13>1997,H13<2000),VLOOKUP(I13,Feuil1!$A$11:$F$29,4),IF(AND(H13>1999,H13<2002),VLOOKUP(I13,Feuil1!$A$11:$F$29,3),VLOOKUP(I13,Feuil1!$A$11:$F$29,2))))),IF(OR(H13="SEN",H13<1995),VLOOKUP(I13,Feuil1!$G$11:$L$25,6),IF(AND(H13>1994,H13<1998),VLOOKUP(I13,Feuil1!$G$11:$L$25,5),IF(AND(H13>1997,H13<2000),VLOOKUP(I13,Feuil1!$G$11:$L$25,4),IF(AND(H13>1999,H13<2002),VLOOKUP(I13,Feuil1!$G$11:$L$25,3),VLOOKUP(I13,Feuil1!$G$11:$L$25,2))))))) -> FJ53 | Y13: =IF(I13="","",IF(A13="H",10^(0.794358141*LOG(I13/174.393)^2)*T13,IF(A13="F",10^(0.89726074*LOG(I13/148.026)^2)*T13,""))) -> 0 | AB13: =T13-HLOOKUP(X13,Feuil1!$C$1:$BL$10,2,FALSE) -> -55 | AC13: =T13-HLOOKUP(X13,Feuil1!$C$1:$BL$10,3,FALSE) -> -65 | AD13: =T13-HLOOKUP(X13,Feuil1!$C$1:$BL$10,4,FALSE) -> -75 | AE13: =T13-HLOOKUP(X13,Feuil1!$C$1:$BL$10,5,FALSE) -> -85 | AF13: =T13-HLOOKUP(X13,Feuil1!$C$1:$BL$10,6,FALSE) -> -95 | AG13: =T13-HLOOKUP(X13,Feuil1!$C$1:$BL$10,7,FALSE) -> -105 | AH13: =T13-HLOOKUP(X13,Feuil1!$C$1:$BL$10,8,FALSE) -> -120 | AI13: =T13-HLOOKUP(X13,Feuil1!$C$1:$BL$10,9,FALSE) -> -135 | AJ13: =T13-HLOOKUP(X13,Feuil1!$C$1:$BL$10,10,FALSE) -> -1000 | AQ13: =IF(AJ13>=0,$AJ$4,IF(AI13>=0,$AI$4,IF(AH13>=0,$AH$4,IF(AG13>=0,$AG$4,IF(AF13>=0,$AF$4,IF(AE13>=0,$AE$4,IF(AD13>=0,$AD$4,IF(AC13>=0,$AC$4,$AB$4)))))))) -> DEB
A15: F | B15: SEST | C15: RAL | D15: 1 | E15: 171425 | F15: HOSTALIER | G15: Melinda | H15: 1997 | I15: 55.6 | J15: H.C. ST BALDOPH | K15: F | L15: 50 | M15: 54 | N15: 55 | O15: =IF(H15="","",IF(MAXA(L15:N15)<=0,0,MAXA(L15:N15))) -> 55 | P15: 67 | Q15: -70 | R15: 71 | S15: =IF(H15="","",IF(MAXA(P15:R15)<=0,0,MAXA(P15:R15))) -> 71 | T15: =IF(H15="","",IF(OR(O15=0,S15=0),0,O15+S15)) -> 126 | U15: =T15-I15*2 -> 14.8 | V15: =IF(H15="","",AQ15) -> NAT + | W15: =IF(AJ15>=0,AJ15,IF(AI15>=0,AI15,IF(AH15>=0,AH15,IF(AG15>=0,AG15,IF(AF15>=0,AF15,IF(AE15>=0,AE15,IF(AD15>=0,AD15,IF(AC15>=0,AC15,AB15)))))))) -> 11 | X15: =IF(I15="","",IF(A15="H",IF(OR(H15="SEN",H15<1995),VLOOKUP(I15,Feuil1!$A$11:$F$29,6),IF(AND(H15>1994,H15<1998),VLOOKUP(I15,Feuil1!$A$11:$F$29,5),IF(AND(H15>1997,H15<2000),VLOOKUP(I15,Feuil1!$A$11:$F$29,4),IF(AND(H15>1999,H15<2002),VLOOKUP(I15,Feuil1!$A$11:$F$29,3),VLOOKUP(I15,Feuil1!$A$11:$F$29,2))))),IF(OR(H15="SEN",H15<1995),VLOOKUP(I15,Feuil1!$G$11:$L$25,6),IF(AND(H15>1994,H15<1998),VLOOKUP(I15,Feuil1!$G$11:$L$25,5),IF(AND(H15>1997,H15<2000),VLOOKUP(I15,Feuil1!$G$11:$L$25,4),IF(AND(H15>1999,H15<2002),VLOOKUP(I15,Feuil1!$G$11:$L$25,3),VLOOKUP(I15,Feuil1!$G$11:$L$25,2))))))) -> FJ58 | Y15: =IF(I15="","",IF(A15="H",10^(0.794358141*LOG(I15/174.393)^2)*T15,IF(A15="F",10^(0.89726074*LOG(I15/148.026)^2)*T15,""))) -> 183.0792282 | AB15: =T15-HLOOKUP(X15,Feuil1!$C$1:$BL$10,2,FALSE) -> 66 | AC15: =T15-HLOOKUP(X15,Feuil1!$C$1:$BL$10,3,FALSE) -> 56 | AD15: =T15-HLOOKUP(X15,Feuil1!$C$1:$BL$10,4,FALSE) -> 46 | AE15: =T15-HLOOKUP(X15,Feuil1!$C$1:$BL$10,5,FALSE) -> 36 | AF15: =T15-HLOOKUP(X15,Feuil1!$C$1:$BL$10,6,FALSE) -> 26 | AG15: =T15-HLOOKUP(X15,Feuil1!$C$1:$BL$10,7,FALSE) -> 11 | AH15: =T15-HLOOKUP(X15,Feuil1!$C$1:$BL$10,8,FALSE) -> -4 | AI15: =T15-HLOOKUP(X15,Feuil1!$C$1:$BL$10,9,FALSE) -> -24 | AJ15: =T15-HLOOKUP(X15,Feuil1!$C$1:$BL$10,10,FALSE) -> -874 | AQ15: =IF(AJ15>=0,$AJ$4,IF(AI15>=0,$AI$4,IF(AH15>=0,$AH$4,IF(AG15>=0,$AG$4,IF(AF15>=0,$AF$4,IF(AE15>=0,$AE$4,IF(AD15>=0,$AD$4,IF(AC15>=0,$AC$4,$AB$4)))))))) -> NAT +
A16: F | B16: Nord | C16: PIC | D16: 2 | E16: 140592 | F16: ARANJO | G16: Caroline | H16: 1995 | I16: 57.3 | J16: Villers-Bretonneux KC | K16: F | L16: 53 | M16: -56 | N16: -56 | O16: 53 | P16: 65 | Q16: 68 | R16: -71 | S16: 68 | T16: 121 | U16: 6.4 | V16: NAT + | W16: 6 | X16: =IF(I16="","",IF(A16="H",IF(OR(H16="SEN",H16<1995),VLOOKUP(I16,Feuil1!$A$11:$F$29,6),IF(AND(H16>1994,H16<1998),VLOOKUP(I16,Feuil1!$A$11:$F$29,5),IF(AND(H16>1997,H16<2000),VLOOKUP(I16,Feuil1!$A$11:$F$29,4),IF(AND(H16>1999,H16<2002),VLOOKUP(I16,Feuil1!$A$11:$F$29,3),VLOOKUP(I16,Feuil1!$A$11:$F$29,2))))),IF(OR(H16="SEN",H16<1995),VLOOKUP(I16,Feuil1!$G$11:$L$25,6),IF(AND(H16>1994,H16<1998),VLOOKUP(I16,Feuil1!$G$11:$L$25,5),IF(AND(H16>1997,H16<2000),VLOOKUP(I16,Feuil1!$G$11:$L$25,4),IF(AND(H16>1999,H16<2002),VLOOKUP(I16,Feuil1!$G$11:$L$25,3),VLOOKUP(I16,Feuil1!$G$11:$L$25,2))))))) -> FJ58 | Y16: 171.8801047 | AB16: =T16-HLOOKUP(X16,Feuil1!$C$1:$BL$10,2,FALSE) -> 61 | AC16: =T16-HLOOKUP(X16,Feuil1!$C$1:$BL$10,3,FALSE) -> 51 | AD16: =T16-HLOOKUP(X16,Feuil1!$C$1:$BL$10,4,FALSE) -> 41 | AE16: =T16-HLOOKUP(X16,Feuil1!$C$1:$BL$10,5,FALSE) -> 31 | AF16: =T16-HLOOKUP(X16,Feuil1!$C$1:$BL$10,6,FALSE) -> 21 | AG16: =T16-HLOOKUP(X16,Feuil1!$C$1:$BL$10,7,FALSE) -> 6 | AH16: =T16-HLOOKUP(X16,Feuil1!$C$1:$BL$10,8,FALSE) -> -9 | AI16: =T16-HLOOKUP(X16,Feuil1!$C$1:$BL$10,9,FALSE) -> -29 | AJ16: =T16-HLOOKUP(X16,Feuil1!$C$1:$BL$10,10,FALSE) -> -879 | AQ16: NAT +
A17: F | B17: CO | C17: BRE | D17: 3 | E17: 146079 | F17: DEBIAIS | G17: Joanna | H17: 1996 | I17: 57.8 | J17: ES Saint Avé | K17: F | L17: 48 | M17: -52 | N17: 52 | O17: 52 | P17: 58 | Q17: 63 | R17: - | S17: 63 | T17: 115 | U17: -0.6 | V17: NAT + | W17: 0 | X17: =IF(I17="","",IF(A17="H",IF(OR(H17="SEN",H17<1995),VLOOKUP(I17,Feuil1!$A$11:$F$29,6),IF(AND(H17>1994,H17<1998),VLOOKUP(I17,Feuil1!$A$11:$F$29,5),IF(AND(H17>1997,H17<2000),VLOOKUP(I17,Feuil1!$A$11:$F$29,4),IF(AND(H17>1999,H17<2002),VLOOKUP(I17,Feuil1!$A$11:$F$29,3),VLOOKUP(I17,Feuil1!$A$11:$F$29,2))))),IF(OR(H17="SEN",H17<1995),VLOOKUP(I17,Feuil1!$G$11:$L$25,6),IF(AND(H17>1994,H17<1998),VLOOKUP(I17,Feuil1!$G$11:$L$25,5),IF(AND(H17>1997,H17<2000),VLOOKUP(I17,Feuil1!$G$11:$L$25,4),IF(AND(H17>1999,H17<2002),VLOOKUP(I17,Feuil1!$G$11:$L$25,3),VLOOKUP(I17,Feuil1!$G$11:$L$25,2))))))) -> FJ58 | Y17: 162.3154693 | AB17: =T17-HLOOKUP(X17,Feuil1!$C$1:$BL$10,2,FALSE) -> 55 | AC17: =T17-HLOOKUP(X17,Feuil1!$C$1:$BL$10,3,FALSE) -> 45 | AD17: =T17-HLOOKUP(X17,Feuil1!$C$1:$BL$10,4,FALSE) -> 35 | AE17: =T17-HLOOKUP(X17,Feuil1!$C$1:$BL$10,5,FALSE) -> 25 | AF17: =T17-HLOOKUP(X17,Feuil1!$C$1:$BL$10,6,FALSE) -> 15 | AG17: =T17-HLOOKUP(X17,Feuil1!$C$1:$BL$10,7,FALSE) -> 0 | AH17: =T17-HLOOKUP(X17,Feuil1!$C$1:$BL$10,8,FALSE) -> -15 | AI17: =T17-HLOOKUP(X17,Feuil1!$C$1:$BL$10,9,FALSE) -> -35 | AJ17: =T17-HLOOKUP(X17,Feuil1!$C$1:$BL$10,10,FALSE) -> -885 | AQ17: NAT +
A18: F | B18: CO | C18: BRE | D18: 4 | E18: 389192 | F18: RAHARISOA | G18: Karen | H18: 1997 | I18: 57.35 | J18: AL Quimper | K18: F | L18: 42 | M18: 45 | N18: -47 | O18: 45 | P18: 55 | Q18: 58 | R18: 60 | S18: 60 | T18: 105 | U18: -9.7 | V18: FED + | W18: 5 | X18: =IF(I18="","",IF(A18="H",IF(OR(H18="SEN",H18<1995),VLOOKUP(I18,Feuil1!$A$11:$F$29,6),IF(AND(H18>1994,H18<1998),VLOOKUP(I18,Feuil1!$A$11:$F$29,5),IF(AND(H18>1997,H18<2000),VLOOKUP(I18,Feuil1!$A$11:$F$29,4),IF(AND(H18>1999,H18<2002),VLOOKUP(I18,Feuil1!$A$11:$F$29,3),VLOOKUP(I18,Feuil1!$A$11:$F$29,2))))),IF(OR(H18="SEN",H18<1995),VLOOKUP(I18,Feuil1!$G$11:$L$25,6),IF(AND(H18>1994,H18<1998),VLOOKUP(I18,Feuil1!$G$11:$L$25,5),IF(AND(H18>1997,H18<2000),VLOOKUP(I18,Feuil1!$G$11:$L$25,4),IF(AND(H18>1999,H18<2002),VLOOKUP(I18,Feuil1!$G$11:$L$25,3),VLOOKUP(I18,Feuil1!$G$11:$L$25,2))))))) -> FJ58 | Y18: 149.0560057 | AB18: =T18-HLOOKUP(X18,Feuil1!$C$1:$BL$10,2,FALSE) -> 45 | AC18: =T18-HLOOKUP(X18,Feuil1!$C$1:$BL$10,3,FALSE) -> 35 | AD18: =T18-HLOOKUP(X18,Feuil1!$C$1:$BL$10,4,FALSE) -> 25 | AE18: =T18-HLOOKUP(X18,Feuil1!$C$1:$BL$10,5,FALSE) -> 15 | AF18: =T18-HLOOKUP(X18,Feuil1!$C$1:$BL$10,6,FALSE) -> 5 | AG18: =T18-HLOOKUP(X18,Feuil1!$C$1:$BL$10,7,FALSE) -> -10 | AH18: =T18-HLOOKUP(X18,Feuil1!$C$1:$BL$10,8,FALSE) -> -25 | AI18: =T18-HLOOKUP(X18,Feuil1!$C$1:$BL$10,9,FALSE) -> -45 | AJ18: =T18-HLOOKUP(X18,Feuil1!$C$1:$BL$10,10,FALSE) -> -895 | AQ18: FED +
A19: F | B19: Nord | C19: PIC | D19: 5 | E19: 309751 | F19: SEIGNEUR | G19: Manon | H19: 1995 | I19: 53.7 | J19: Villers-Bretonneux KC | K19: F | L19: 45 | M19: 49 | N19: -52 | O19: 49 | P19: 55 | Q19: -62 | R19: -68 | S19: 55 | T19: 104 | U19: -3.4 | V19: FED + | W19: 4 | X19: =IF(I19="","",IF(A19="H",IF(OR(H19="SEN",H19<1995),VLOOKUP(I19,Feuil1!$A$11:$F$29,6),IF(AND(H19>1994,H19<1998),VLOOKUP(I19,Feuil1!$A$11:$F$29,5),IF(AND(H19>1997,H19<2000),VLOOKUP(I19,Feuil1!$A$11:$F$29,4),IF(AND(H19>1999,H19<2002),VLOOKUP(I19,Feuil1!$A$11:$F$29,3),VLOOKUP(I19,Feuil1!$A$11:$F$29,2))))),IF(OR(H19="SEN",H19<1995),VLOOKUP(I19,Feuil1!$G$11:$L$25,6),IF(AND(H19>1994,H19<1998),VLOOKUP(I19,Feuil1!$G$11:$L$25,5),IF(AND(H19>1997,H19<2000),VLOOKUP(I19,Feuil1!$G$11:$L$25,4),IF(AND(H19>1999,H19<2002),VLOOKUP(I19,Feuil1!$G$11:$L$25,3),VLOOKUP(I19,Feuil1!$G$11:$L$25,2))))))) -> FJ58 | Y19: 155.2495411 | AB19: =T19-HLOOKUP(X19,Feuil1!$C$1:$BL$10,2,FALSE) -> 44 | AC19: =T19-HLOOKUP(X19,Feuil1!$C$1:$BL$10,3,FALSE) -> 34 | AD19: =T19-HLOOKUP(X19,Feuil1!$C$1:$BL$10,4,FALSE) -> 24 | AE19: =T19-HLOOKUP(X19,Feuil1!$C$1:$BL$10,5,FALSE) -> 14 | AF19: =T19-HLOOKUP(X19,Feuil1!$C$1:$BL$10,6,FALSE) -> 4 | AG19: =T19-HLOOKUP(X19,Feuil1!$C$1:$BL$10,7,FALSE) -> -11 | AH19: =T19-HLOOKUP(X19,Feuil1!$C$1:$BL$10,8,FALSE) -> -26 | AI19: =T19-HLOOKUP(X19,Feuil1!$C$1:$BL$10,9,FALSE) -> -46 | AJ19: =T19-HLOOKUP(X19,Feuil1!$C$1:$BL$10,10,FALSE) -> -896 | AQ19: FED +
A20: F | B20: NE | C20: BOU | D20: 6 | E20: 154500 | F20: LAMBERT | G20: Cécile | H20: 1995 | I20: 54.8 | J20: HC Saint Honoré les Bains | K20: F | L20: 45 | M20: 47 | N20: -49 | O20: 47 | P20: 53 | Q20: 55 | R20: 57 | S20: 57 | T20: 104 | U20: -5.6 | V20: FED + | W20: 4 | X20: =IF(I20="","",IF(A20="H",IF(OR(H20="SEN",H20<1995),VLOOKUP(I20,Feuil1!$A$11:$F$29,6),IF(AND(H20>1994,H20<1998),VLOOKUP(I20,Feuil1!$A$11:$F$29,5),IF(AND(H20>1997,H20<2000),VLOOKUP(I20,Feuil1!$A$11:$F$29,4),IF(AND(H20>1999,H20<2002),VLOOKUP(I20,Feuil1!$A$11:$F$29,3),VLOOKUP(I20,Feuil1!$A$11:$F$29,2))))),IF(OR(H20="SEN",H20<1995),VLOOKUP(I20,Feuil1!$G$11:$L$25,6),IF(AND(H20>1994,H20<1998),VLOOKUP(I20,Feuil1!$G$11:$L$25,5),IF(AND(H20>1997,H20<2000),VLOOKUP(I20,Feuil1!$G$11:$L$25,4),IF(AND(H20>1999,H20<2002),VLOOKUP(I20,Feuil1!$G$11:$L$25,3),VLOOKUP(I20,Feuil1!$G$11:$L$25,2))))))) -> FJ58 | Y20: 152.8061452 | AB20: =T20-HLOOKUP(X20,Feuil1!$C$1:$BL$10,2,FALSE) -> 44 | AC20: =T20-HLOOKUP(X20,Feuil1!$C$1:$BL$10,3,FALSE) -> 34 | AD20: =T20-HLOOKUP(X20,Feuil1!$C$1:$BL$10,4,FALSE) -> 24 | AE20: =T20-HLOOKUP(X20,Feuil1!$C$1:$BL$10,5,FALSE) -> 14 | AF20: =T20-HLOOKUP(X20,Feuil1!$C$1:$BL$10,6,FALSE) -> 4 | AG20: =T20-HLOOKUP(X20,Feuil1!$C$1:$BL$10,7,FALSE) -> -11 | AH20: =T20-HLOOKUP(X20,Feuil1!$C$1:$BL$10,8,FALSE) -> -26 | AI20: =T20-HLOOKUP(X20,Feuil1!$C$1:$BL$10,9,FALSE) -> -46 | AJ20: =T20-HLOOKUP(X20,Feuil1!$C$1:$BL$10,10,FALSE) -> -896 | AQ20: FED +
A21: F | B21: Nord | C21: NPC | D21: 7 | E21: 345628 | F21: HENIN | G21: Manon | H21: 1995 | I21: 55.97 | J21: Berck sur Mer | K21: F | L21: 42 | M21: 45 | N21: -47 | O21: 45 | P21: 55 | Q21: 57 | R21: -60 | S21: 57 | T21: 102 | U21: -9.94 | V21: FED + | W21: 2 | X21: =IF(I21="","",IF(A21="H",IF(OR(H21="SEN",H21<1995),VLOOKUP(I21,Feuil1!$A$11:$F$29,6),IF(AND(H21>1994,H21<1998),VLOOKUP(I21,Feuil1!$A$11:$F$29,5),IF(AND(H21>1997,H21<2000),VLOOKUP(I21,Feuil1!$A$11:$F$29,4),IF(AND(H21>1999,H21<2002),VLOOKUP(I21,Feuil1!$A$11:$F$29,3),VLOOKUP(I21,Feuil1!$A$11:$F$29,2))))),IF(OR(H21="SEN",H21<1995),VLOOKUP(I21,Feuil1!$G$11:$L$25,6),IF(AND(H21>1994,H21<1998),VLOOKUP(I21,Feuil1!$G$11:$L$25,5),IF(AND(H21>1997,H21<2000),VLOOKUP(I21,Feuil1!$G$11:$L$25,4),IF(AND(H21>1999,H21<2002),VLOOKUP(I21,Feuil1!$G$11:$L$25,3),VLOOKUP(I21,Feuil1!$G$11:$L$25,2))))))) -> FJ58 | Y21: 147.4612451 | AB21: =T21-HLOOKUP(X21,Feuil1!$C$1:$BL$10,2,FALSE) -> 42 | AC21: =T21-HLOOKUP(X21,Feuil1!$C$1:$BL$10,3,FALSE) -> 32 | AD21: =T21-HLOOKUP(X21,Feuil1!$C$1:$BL$10,4,FALSE) -> 22 | AE21: =T21-HLOOKUP(X21,Feuil1!$C$1:$BL$10,5,FALSE) -> 12 | AF21: =T21-HLOOKUP(X21,Feuil1!$C$1:$BL$10,6,FALSE) -> 2 | AG21: =T21-HLOOKUP(X21,Feuil1!$C$1:$BL$10,7,FALSE) -> -13 | AH21: =T21-HLOOKUP(X21,Feuil1!$C$1:$BL$10,8,FALSE) -> -28 | AI21: =T21-HLOOKUP(X21,Feuil1!$C$1:$BL$10,9,FALSE) -> -48 | AJ21: =T21-HLOOKUP(X21,Feuil1!$C$1:$BL$10,10,FALSE) -> -898 | AQ21: FED +
A22: F | B22: NE | C22: ALS | D22: 8 | E22: 327036 | F22: HELL | G22: Marine | H22: 1997 | I22: 57.7 | J22: US Wittenheim | K22: F | L22: 43 | M22: 45 | N22: 47 | O22: 47 | P22: 50 | Q22: 53 | R22: -56 | S22: 53 | T22: 100 | U22: -15.4 | V22: FED + | W22: 0 | X22: =IF(I22="","",IF(A22="H",IF(OR(H22="SEN",H22<1995),VLOOKUP(I22,Feuil1!$A$11:$F$29,6),IF(AND(H22>1994,H22<1998),VLOOKUP(I22,Feuil1!$A$11:$F$29,5),IF(AND(H22>1997,H22<2000),VLOOKUP(I22,Feuil1!$A$11:$F$29,4),IF(AND(H22>1999,H22<2002),VLOOKUP(I22,Feuil1!$A$11:$F$29,3),VLOOKUP(I22,Feuil1!$A$11:$F$29,2))))),IF(OR(H22="SEN",H22<1995),VLOOKUP(I22,Feuil1!$G$11:$L$25,6),IF(AND(H22>1994,H22<1998),VLOOKUP(I22,Feuil1!$G$11:$L$25,5),IF(AND(H22>1997,H22<2000),VLOOKUP(I22,Feuil1!$G$11:$L$25,4),IF(AND(H22>1999,H22<2002),VLOOKUP(I22,Feuil1!$G$11:$L$25,3),VLOOKUP(I22,Feuil1!$G$11:$L$25,2))))))) -> FJ58 | Y22: 141.3232898 | AB22: =T22-HLOOKUP(X22,Feuil1!$C$1:$BL$10,2,FALSE) -> 40 | AC22: =T22-HLOOKUP(X22,Feuil1!$C$1:$BL$10,3,FALSE) -> 30 | AD22: =T22-HLOOKUP(X22,Feuil1!$C$1:$BL$10,4,FALSE) -> 20 | AE22: =T22-HLOOKUP(X22,Feuil1!$C$1:$BL$10,5,FALSE) -> 10 | AF22: =T22-HLOOKUP(X22,Feuil1!$C$1:$BL$10,6,FALSE) -> 0 | AG22: =T22-HLOOKUP(X22,Feuil1!$C$1:$BL$10,7,FALSE) -> -15 | AH22: =T22-HLOOKUP(X22,Feuil1!$C$1:$BL$10,8,FALSE) -> -30 | AI22: =T22-HLOOKUP(X22,Feuil1!$C$1:$BL$10,9,FALSE) -> -50 | AJ22: =T22-HLOOKUP(X22,Feuil1!$C$1:$BL$10,10,FALSE) -> -900 | AQ22: FED +
A23: F | B23: SEST | C23: RAL | D23: 9 | E23: 142218 | F23: MONTORIER | G23: Clara | H23: 1997 | I23: 57.62 | J23: O.S. ST QUENTIN FALLAVIER | K23: F | L23: 40 | M23: -43 | N23: 43 | O23: 43 | P23: 50 | Q23: -54 | R23: -54 | S23: 50 | T23: 93 | U23: -22.24 | V23: IRG + | W23: 3 | X23: =IF(I23="","",IF(A23="H",IF(OR(H23="SEN",H23<1995),VLOOKUP(I23,Feuil1!$A$11:$F$29,6),IF(AND(H23>1994,H23<1998),VLOOKUP(I23,Feuil1!$A$11:$F$29,5),IF(AND(H23>1997,H23<2000),VLOOKUP(I23,Feuil1!$A$11:$F$29,4),IF(AND(H23>1999,H23<2002),VLOOKUP(I23,Feuil1!$A$11:$F$29,3),VLOOKUP(I23,Feuil1!$A$11:$F$29,2))))),IF(OR(H23="SEN",H23<1995),VLOOKUP(I23,Feuil1!$G$11:$L$25,6),IF(AND(H23>1994,H23<1998),VLOOKUP(I23,Feuil1!$G$11:$L$25,5),IF(AND(H23>1997,H23<2000),VLOOKUP(I23,Feuil1!$G$11:$L$25,4),IF(AND(H23>1999,H23<2002),VLOOKUP(I23,Feuil1!$G$11:$L$25,3),VLOOKUP(I23,Feuil1!$G$11:$L$25,2))))))) -> FJ58 | Y23: 131.5647189 | AB23: =T23-HLOOKUP(X23,Feuil1!$C$1:$BL$10,2,FALSE) -> 33 | AC23: =T23-HLOOKUP(X23,Feuil1!$C$1:$BL$10,3,FALSE) -> 23 | AD23: =T23-HLOOKUP(X23,Feuil1!$C$1:$BL$10,4,FALSE) -> 13 | AE23: =T23-HLOOKUP(X23,Feuil1!$C$1:$BL$10,5,FALSE) -> 3 | AF23: =T23-HLOOKUP(X23,Feuil1!$C$1:$BL$10,6,FALSE) -> -7 | AG23: =T23-HLOOKUP(X23,Feuil1!$C$1:$BL$10,7,FALSE) -> -22 | AH23: =T23-HLOOKUP(X23,Feuil1!$C$1:$BL$10,8,FALSE) -> -37 | AI23: =T23-HLOOKUP(X23,Feuil1!$C$1:$BL$10,9,FALSE) -> -57 | AJ23: =T23-HLOOKUP(X23,Feuil1!$C$1:$BL$10,10,FALSE) -> -907 | AQ23: IRG +
A24: F | B24: Nord | C24: NPC | D24: 10 | E24: 211905 | F24: FREMAUX | G24: Julie | H24: 1995 | I24: 54.6 | J24: CHCD Comines | K24: F | L24: 30 | M24: 33 | N24: -36 | O24: 33 | P24: -43 | Q24: 43 | R24: - | S24: 43 | T24: 76 | U24: -33.2 | V24: DEP + | W24: 6 | X24: =IF(I24="","",IF(A24="H",IF(OR(H24="SEN",H24<1995),VLOOKUP(I24,Feuil1!$A$11:$F$29,6),IF(AND(H24>1994,H24<1998),VLOOKUP(I24,Feuil1!$A$11:$F$29,5),IF(AND(H24>1997,H24<2000),VLOOKUP(I24,Feuil1!$A$11:$F$29,4),IF(AND(H24>1999,H24<2002),VLOOKUP(I24,Feuil1!$A$11:$F$29,3),VLOOKUP(I24,Feuil1!$A$11:$F$29,2))))),IF(OR(H24="SEN",H24<1995),VLOOKUP(I24,Feuil1!$G$11:$L$25,6),IF(AND(H24>1994,H24<1998),VLOOKUP(I24,Feuil1!$G$11:$L$25,5),IF(AND(H24>1997,H24<2000),VLOOKUP(I24,Feuil1!$G$11:$L$25,4),IF(AND(H24>1999,H24<2002),VLOOKUP(I24,Feuil1!$G$11:$L$25,3),VLOOKUP(I24,Feuil1!$G$11:$L$25,2))))))) -> FJ58 | Y24: 111.9832531 | AB24: =T24-HLOOKUP(X24,Feuil1!$C$1:$BL$10,2,FALSE) -> 16 | AC24: =T24-HLOOKUP(X24,Feuil1!$C$1:$BL$10,3,FALSE) -> 6 | AD24: =T24-HLOOKUP(X24,Feuil1!$C$1:$BL$10,4,FALSE) -> -4 | AE24: =T24-HLOOKUP(X24,Feuil1!$C$1:$BL$10,5,FALSE) -> -14 | AF24: =T24-HLOOKUP(X24,Feuil1!$C$1:$BL$10,6,FALSE) -> -24 | AG24: =T24-HLOOKUP(X24,Feuil1!$C$1:$BL$10,7,FALSE) -> -39 | AH24: =T24-HLOOKUP(X24,Feuil1!$C$1:$BL$10,8,FALSE) -> -54 | AI24: =T24-HLOOKUP(X24,Feuil1!$C$1:$BL$10,9,FALSE) -> -74 | AJ24: =T24-HLOOKUP(X24,Feuil1!$C$1:$BL$10,10,FALSE) -> -924 | AQ24: DEP +
A25: F | B25: Nord | C25: NPC | D25: NC | E25: 192187 | F25: BAERT | G25: Blandine | H25: 1995 | I25: 54.03 | J25: CHCD Comines | K25: F | L25: -42 | M25: 42 | N25: -44 | O25: 42 | P25: -52 | Q25: -53 | R25: -53 | S25: 0 | T25: 0 | U25: -108.06 | V25: DEB | W25: -60 | X25: =IF(I25="","",IF(A25="H",IF(OR(H25="SEN",H25<1995),VLOOKUP(I25,Feuil1!$A$11:$F$29,6),IF(AND(H25>1994,H25<1998),VLOOKUP(I25,Feuil1!$A$11:$F$29,5),IF(AND(H25>1997,H25<2000),VLOOKUP(I25,Feuil1!$A$11:$F$29,4),IF(AND(H25>1999,H25<2002),VLOOKUP(I25,Feuil1!$A$11:$F$29,3),VLOOKUP(I25,Feuil1!$A$11:$F$29,2))))),IF(OR(H25="SEN",H25<1995),VLOOKUP(I25,Feuil1!$G$11:$L$25,6),IF(AND(H25>1994,H25<1998),VLOOKUP(I25,Feuil1!$G$11:$L$25,5),IF(AND(H25>1997,H25<2000),VLOOKUP(I25,Feuil1!$G$11:$L$25,4),IF(AND(H25>1999,H25<2002),VLOOKUP(I25,Feuil1!$G$11:$L$25,3),VLOOKUP(I25,Feuil1!$G$11:$L$25,2))))))) -> FJ58 | Y25: 0 | AB25: =T25-HLOOKUP(X25,Feuil1!$C$1:$BL$10,2,FALSE) -> -60 | AC25: =T25-HLOOKUP(X25,Feuil1!$C$1:$BL$10,3,FALSE) -> -70 | AD25: =T25-HLOOKUP(X25,Feuil1!$C$1:$BL$10,4,FALSE) -> -80 | AE25: =T25-HLOOKUP(X25,Feuil1!$C$1:$BL$10,5,FALSE) -> -90 | AF25: =T25-HLOOKUP(X25,Feuil1!$C$1:$BL$10,6,FALSE) -> -100 | AG25: =T25-HLOOKUP(X25,Feuil1!$C$1:$BL$10,7,FALSE) -> -115 | AH25: =T25-HLOOKUP(X25,Feuil1!$C$1:$BL$10,8,FALSE) -> -130 | AI25: =T25-HLOOKUP(X25,Feuil1!$C$1:$BL$10,9,FALSE) -> -150 | AJ25: =T25-HLOOKUP(X25,Feuil1!$C$1:$BL$10,10,FALSE) -> -1000 | AQ25: DEB
A27: F | B27: NE | C27: CHA | D27: 1 | E27: 274946 | F27: GROSJEAN | G27: Loriane | H27: 1997 | I27: 61.8 | J27: Langres HM | K27: F | L27: 57 | M27: 60 | N27: -63 | O27: =IF(H27="","",IF(MAXA(L27:N27)<=0,0,MAXA(L27:N27))) -> 60 | P27: 70 | Q27: 74 | R27: 77 | S27: =IF(H27="","",IF(MAXA(P27:R27)<=0,0,MAXA(P27:R27))) -> 77 | T27: =IF(H27="","",IF(OR(O27=0,S27=0),0,O27+S27)) -> 137 | U27: =T27-I27*2 -> 13.4 | V27: =IF(H27="","",AQ27) -> NAT + | W27: =IF(AJ27>=0,AJ27,IF(AI27>=0,AI27,IF(AH27>=0,AH27,IF(AG27>=0,AG27,IF(AF27>=0,AF27,IF(AE27>=0,AE27,IF(AD27>=0,AD27,IF(AC27>=0,AC27,AB27)))))))) -> 12 | X27: =IF(I27="","",IF(A27="H",IF(OR(H27="SEN",H27<1995),VLOOKUP(I27,Feuil1!$A$11:$F$29,6),IF(AND(H27>1994,H27<1998),VLOOKUP(I27,Feuil1!$A$11:$F$29,5),IF(AND(H27>1997,H27<2000),VLOOKUP(I27,Feuil1!$A$11:$F$29,4),IF(AND(H27>1999,H27<2002),VLOOKUP(I27,Feuil1!$A$11:$F$29,3),VLOOKUP(I27,Feuil1!$A$11:$F$29,2))))),IF(OR(H27="SEN",H27<1995),VLOOKUP(I27,Feuil1!$G$11:$L$25,6),IF(AND(H27>1994,H27<1998),VLOOKUP(I27,Feuil1!$G$11:$L$25,5),IF(AND(H27>1997,H27<2000),VLOOKUP(I27,Feuil1!$G$11:$L$25,4),IF(AND(H27>1999,H27<2002),VLOOKUP(I27,Feuil1!$G$11:$L$25,3),VLOOKUP(I27,Feuil1!$G$11:$L$25,2))))))) -> FJ63 | Y27: =IF(I27="","",IF(A27="H",10^(0.794358141*LOG(I27/174.393)^2)*T27,IF(A27="F",10^(0.89726074*LOG(I27/148.026)^2)*T27,""))) -> 184.4343584 | AB27: =T27-HLOOKUP(X27,Feuil1!$C$1:$BL$10,2,FALSE) -> 72 | AC27: =T27-HLOOKUP(X27,Feuil1!$C$1:$BL$10,3,FALSE) -> 62 | AD27: =T27-HLOOKUP(X27,Feuil1!$C$1:$BL$10,4,FALSE) -> 52 | AE27: =T27-HLOOKUP(X27,Feuil1!$C$1:$BL$10,5,FALSE) -> 42 | AF27: =T27-HLOOKUP(X27,Feuil1!$C$1:$BL$10,6,FALSE) -> 27 | AG27: =T27-HLOOKUP(X27,Feuil1!$C$1:$BL$10,7,FALSE) -> 12 | AH27: =T27-HLOOKUP(X27,Feuil1!$C$1:$BL$10,8,FALSE) -> -3 | AI27: =T27-HLOOKUP(X27,Feuil1!$C$1:$BL$10,9,FALSE) -> -23 | AJ27: =T27-HLOOKUP(X27,Feuil1!$C$1:$BL$10,10,FALSE) -> -863 | AQ27: =IF(AJ27>=0,$AJ$4,IF(AI27>=0,$AI$4,IF(AH27>=0,$AH$4,IF(AG27>=0,$AG$4,IF(AF27>=0,$AF$4,IF(AE27>=0,$AE$4,IF(AD27>=0,$AD$4,IF(AC27>=0,$AC$4,$AB$4)))))))) -> NAT +
A28: F | B28: SEST | C28: PRO | D28: 2 | E28: 375285 | F28: GIRARD | G28: Sarah | H28: 1996 | I28: 62.4 | J28: ISTRES SPORTS | K28: F | L28: -50 | M28: 50 | N28: -55 | O28: =IF(H28="","",IF(MAXA(L28:N28)<=0,0,MAXA(L28:N28))) -> 50 | P28: 65 | Q28: -70 | R28: -70 | S28: =IF(H28="","",IF(MAXA(P28:R28)<=0,0,MAXA(P28:R28))) -> 65 | T28: =IF(H28="","",IF(OR(O28=0,S28=0),0,O28+S28)) -> 115 | U28: =T28-I28*2 -> -9.8 | V28: =IF(H28="","",AQ28) -> FED + | W28: =IF(AJ28>=0,AJ28,IF(AI28>=0,AI28,IF(AH28>=0,AH28,IF(AG28>=0,AG28,IF(AF28>=0,AF28,IF(AE28>=0,AE28,IF(AD28>=0,AD28,IF(AC28>=0,AC28,AB28)))))))) -> 5 | X28: =IF(I28="","",IF(A28="H",IF(OR(H28="SEN",H28<1995),VLOOKUP(I28,Feuil1!$A$11:$F$29,6),IF(AND(H28>1994,H28<1998),VLOOKUP(I28,Feuil1!$A$11:$F$29,5),IF(AND(H28>1997,H28<2000),VLOOKUP(I28,Feuil1!$A$11:$F$29,4),IF(AND(H28>1999,H28<2002),VLOOKUP(I28,Feuil1!$A$11:$F$29,3),VLOOKUP(I28,Feuil1!$A$11:$F$29,2))))),IF(OR(H28="SEN",H28<1995),VLOOKUP(I28,Feuil1!$G$11:$L$25,6),IF(AND(H28>1994,H28<1998),VLOOKUP(I28,Feuil1!$G$11:$L$25,5),IF(AND(H28>1997,H28<2000),VLOOKUP(I28,Feuil1!$G$11:$L$25,4),IF(AND(H28>1999,H28<2002),VLOOKUP(I28,Feuil1!$G$11:$L$25,3),VLOOKUP(I28,Feuil1!$G$11:$L$25,2))))))) -> FJ63 | Y28: =IF(I28="","",IF(A28="H",10^(0.794358141*LOG(I28/174.393)^2)*T28,IF(A28="F",10^(0.89726074*LOG(I28/148.026)^2)*T28,""))) -> 153.8078114 | AB28: =T28-HLOOKUP(X28,Feuil1!$C$1:$BL$10,2,FALSE) -> 50 | AC28: =T28-HLOOKUP(X28,Feuil1!$C$1:$BL$10,3,FALSE) -> 40 | AD28: =T28-HLOOKUP(X28,Feuil1!$C$1:$BL$10,4,FALSE) -> 30 | AE28: =T28-HLOOKUP(X28,Feuil1!$C$1:$BL$10,5,FALSE) -> 20 | AF28: =T28-HLOOKUP(X28,Feuil1!$C$1:$BL$10,6,FALSE) -> 5 | AG28: =T28-HLOOKUP(X28,Feuil1!$C$1:$BL$10,7,FALSE) -> -10 | AH28: =T28-HLOOKUP(X28,Feuil1!$C$1:$BL$10,8,FALSE) -> -25 | AI28: =T28-HLOOKUP(X28,Feuil1!$C$1:$BL$10,9,FALSE) -> -45 | AJ28: =T28-HLOOKUP(X28,Feuil1!$C$1:$BL$10,10,FALSE) -> -885 | AQ28: =IF(AJ28>=0,$AJ$4,IF(AI28>=0,$AI$4,IF(AH28>=0,$AH$4,IF(AG28>=0,$AG$4,IF(AF28>=0,$AF$4,IF(AE28>=0,$AE$4,IF(AD28>=0,$AD$4,IF(AC28>=0,$AC$4,$AB$4)))))))) -> FED +
A29: F | B29: SO | C29: AQU | D29: 3 | E29: 380660 | F29: DARMON | G29: Mélodie | H29: 1997 | I29: 62.1 | J29: BORDEAUX ASPOM | K29: F | L29: 38 | M29: 42 | N29: -45 | O29: =IF(H29="","",IF(MAXA(L29:N29)<=0,0,MAXA(L29:N29))) -> 42 | P29: -55 | Q29: 55 | R29: -60 | S29: =IF(H29="","",IF(MAXA(P29:R29)<=0,0,MAXA(P29:R29))) -> 55 | T29: =IF(H29="","",IF(OR(O29=0,S29=0),0,O29+S29)) -> 97 | U29: =T29-I29*2 -> -27.2 | V29: =IF(H29="","",AQ29) -> IRG + | W29: =IF(AJ29>=0,AJ29,IF(AI29>=0,AI29,IF(AH29>=0,AH29,IF(AG29>=0,AG29,IF(AF29>=0,AF29,IF(AE29>=0,AE29,IF(AD29>=0,AD29,IF(AC29>=0,AC29,AB29)))))))) -> 2 | X29: =IF(I29="","",IF(A29="H",IF(OR(H29="SEN",H29<1995),VLOOKUP(I29,Feuil1!$A$11:$F$29,6),IF(AND(H29>1994,H29<1998),VLOOKUP(I29,Feuil1!$A$11:$F$29,5),IF(AND(H29>1997,H29<2000),VLOOKUP(I29,Feuil1!$A$11:$F$29,4),IF(AND(H29>1999,H29<2002),VLOOKUP(I29,Feuil1!$A$11:$F$29,3),VLOOKUP(I29,Feuil1!$A$11:$F$29,2))))),IF(OR(H29="SEN",H29<1995),VLOOKUP(I29,Feuil1!$G$11:$L$25,6),IF(AND(H29>1994,H29<1998),VLOOKUP(I29,Feuil1!$G$11:$L$25,5),IF(AND(H29>1997,H29<2000),VLOOKUP(I29,Feuil1!$G$11:$L$25,4),IF(AND(H29>1999,H29<2002),VLOOKUP(I29,Feuil1!$G$11:$L$25,3),VLOOKUP(I29,Feuil1!$G$11:$L$25,2))))))) -> FJ63 | Y29: =IF(I29="","",IF(A29="H",10^(0.794358141*LOG(I29/174.393)^2)*T29,IF(A29="F",10^(0.89726074*LOG(I29/148.026)^2)*T29,""))) -> 130.15632 | AB29: =T29-HLOOKUP(X29,Feuil1!$C$1:$BL$10,2,FALSE) -> 32 | AC29: =T29-HLOOKUP(X29,Feuil1!$C$1:$BL$10,3,FALSE) -> 22 | AD29: =T29-HLOOKUP(X29,Feuil1!$C$1:$BL$10,4,FALSE) -> 12 | AE29: =T29-HLOOKUP(X29,Feuil1!$C$1:$BL$10,5,FALSE) -> 2 | AF29: =T29-HLOOKUP(X29,Feuil1!$C$1:$BL$10,6,FALSE) -> -13 | AG29: =T29-HLOOKUP(X29,Feuil1!$C$1:$BL$10,7,FALSE) -> -28 | AH29: =T29-HLOOKUP(X29,Feuil1!$C$1:$BL$10,8,FALSE) -> -43 | AI29: =T29-HLOOKUP(X29,Feuil1!$C$1:$BL$10,9,FALSE) -> -63 | AJ29: =T29-HLOOKUP(X29,Feuil1!$C$1:$BL$10,10,FALSE) -> -903 | AQ29: =IF(AJ29>=0,$AJ$4,IF(AI29>=0,$AI$4,IF(AH29>=0,$AH$4,IF(AG29>=0,$AG$4,IF(AF29>=0,$AF$4,IF(AE29>=0,$AE$4,IF(AD29>=0,$AD$4,IF(AC29>=0,$AC$4,$AB$4)))))))) -> IRG +
A30: F | B30: DOM | C30: REU | D30: NC | E30: 250369 | F30: MARKA | G30: SEVETLANA | H30: 1997 | I30: 60.96 | J30: CSPJ St Denis | K30: F | L30: -50 | M30: -50 | N30: -50 | O30: =IF(H30="","",IF(MAXA(L30:N30)<=0,0,MAXA(L30:N30))) -> 0 | P30: 53 | Q30: -57 | R30: -57 | S30: =IF(H30="","",IF(MAXA(P30:R30)<=0,0,MAXA(P30:R30))) -> 53 | T30: =IF(H30="","",IF(OR(O30=0,S30=0),0,O30+S30)) -> 0 | U30: =T30-I30*2 -> -121.92 | V30: =IF(H30="","",AQ30) -> DEB | W30: =IF(AJ30>=0,AJ30,IF(AI30>=0,AI30,IF(AH30>=0,AH30,IF(AG30>=0,AG30,IF(AF30>=0,AF30,IF(AE30>=0,AE30,IF(AD30>=0,AD30,IF(AC30>=0,AC30,AB30)))))))) -> -65 | X30: =IF(I30="","",IF(A30="H",IF(OR(H30="SEN",H30<1995),VLOOKUP(I30,Feuil1!$A$11:$F$29,6),IF(AND(H30>1994,H30<1998),VLOOKUP(I30,Feuil1!$A$11:$F$29,5),IF(AND(H30>1997,H30<2000),VLOOKUP(I30,Feuil1!$A$11:$F$29,4),IF(AND(H30>1999,H30<2002),VLOOKUP(I30,Feuil1!$A$11:$F$29,3),VLOOKUP(I30,Feuil1!$A$11:$F$29,2))))),IF(OR(H30="SEN",H30<1995),VLOOKUP(I30,Feuil1!$G$11:$L$25,6),IF(AND(H30>1994,H30<1998),VLOOKUP(I30,Feuil1!$G$11:$L$25,5),IF(AND(H30>1997,H30<2000),VLOOKUP(I30,Feuil1!$G$11:$L$25,4),IF(AND(H30>1999,H30<2002),VLOOKUP(I30,Feuil1!$G$11:$L$25,3),VLOOKUP(I30,Feuil1!$G$11:$L$25,2))))))) -> FJ63 | Y30: =IF(I30="","",IF(A30="H",10^(0.794358141*LOG(I30/174.393)^2)*T30,IF(A30="F",10^(0.89726074*LOG(I30/148.026)^2)*T30,""))) -> 0 | AB30: =T30-HLOOKUP(X30,Feuil1!$C$1:$BL$10,2,FALSE) -> -65 | AC30: =T30-HLOOKUP(X30,Feuil1!$C$1:$BL$10,3,FALSE) -> -75 | AD30: =T30-HLOOKUP(X30,Feuil1!$C$1:$BL$10,4,FALSE) -> -85 | AE30: =T30-HLOOKUP(X30,Feuil1!$C$1:$BL$10,5,FALSE) -> -95 | AF30: =T30-HLOOKUP(X30,Feuil1!$C$1:$BL$10,6,FALSE) -> -110 | AG30: =T30-HLOOKUP(X30,Feuil1!$C$1:$BL$10,7,FALSE) -> -125 | AH30: =T30-HLOOKUP(X30,Feuil1!$C$1:$BL$10,8,FALSE) -> -140 | AI30: =T30-HLOOKUP(X30,Feuil1!$C$1:$BL$10,9,FALSE) -> -160 | AJ30: =T30-HLOOKUP(X30,Feuil1!$C$1:$BL$10,10,FALSE) -> -1000 | AQ30: =IF(AJ30>=0,$AJ$4,IF(AI30>=0,$AI$4,IF(AH30>=0,$AH$4,IF(AG30>=0,$AG$4,IF(AF30>=0,$AF$4,IF(AE30>=0,$AE$4,IF(AD30>=0,$AD$4,IF(AC30>=0,$AC$4,$AB$4)))))))) -> DEB
A32: F | B32: NE | C32: ALS | D32: 1 | E32: 298196 | F32: CERDAN | G32: Margot | H32: 1997 | I32: 67 | J32: US Wittenheim | K32: F | L32: 52 | M32: 54 | N32: 56 | O32: =IF(H32="","",IF(MAXA(L32:N32)<=0,0,MAXA(L32:N32))) -> 56 | P32: 73 | Q32: 76 | R32: -78 | S32: =IF(H32="","",IF(MAXA(P32:R32)<=0,0,MAXA(P32:R32))) -> 76 | T32: =IF(H32="","",IF(OR(O32=0,S32=0),0,O32+S32)) -> 132 | U32: =T32-I32*2 -> -2 | V32: =IF(H32="","",AQ32) -> FED + | W32: =IF(AJ32>=0,AJ32,IF(AI32>=0,AI32,IF(AH32>=0,AH32,IF(AG32>=0,AG32,IF(AF32>=0,AF32,IF(AE32>=0,AE32,IF(AD32>=0,AD32,IF(AC32>=0,AC32,AB32)))))))) -> 12 | X32: =IF(I32="","",IF(A32="H",IF(OR(H32="SEN",H32<1995),VLOOKUP(I32,Feuil1!$A$11:$F$29,6),IF(AND(H32>1994,H32<1998),VLOOKUP(I32,Feuil1!$A$11:$F$29,5),IF(AND(H32>1997,H32<2000),VLOOKUP(I32,Feuil1!$A$11:$F$29,4),IF(AND(H32>1999,H32<2002),VLOOKUP(I32,Feuil1!$A$11:$F$29,3),VLOOKUP(I32,Feuil1!$A$11:$F$29,2))))),IF(OR(H32="SEN",H32<1995),VLOOKUP(I32,Feuil1!$G$11:$L$25,6),IF(AND(H32>1994,H32<1998),VLOOKUP(I32,Feuil1!$G$11:$L$25,5),IF(AND(H32>1997,H32<2000),VLOOKUP(I32,Feuil1!$G$11:$L$25,4),IF(AND(H32>1999,H32<2002),VLOOKUP(I32,Feuil1!$G$11:$L$25,3),VLOOKUP(I32,Feuil1!$G$11:$L$25,2))))))) -> FJ69 | Y32: =IF(I32="","",IF(A32="H",10^(0.794358141*LOG(I32/174.393)^2)*T32,IF(A32="F",10^(0.89726074*LOG(I32/148.026)^2)*T32,""))) -> 168.6221872 | AB32: =T32-HLOOKUP(X32,Feuil1!$C$1:$BL$10,2,FALSE) -> 62 | AC32: =T32-HLOOKUP(X32,Feuil1!$C$1:$BL$10,3,FALSE) -> 52 | AD32: =T32-HLOOKUP(X32,Feuil1!$C$1:$BL$10,4,FALSE) -> 42 | AE32: =T32-HLOOKUP(X32,Feuil1!$C$1:$BL$10,5,FALSE) -> 27 | AF32: =T32-HLOOKUP(X32,Feuil1!$C$1:$BL$10,6,FALSE) -> 12 | AG32: =T32-HLOOKUP(X32,Feuil1!$C$1:$BL$10,7,FALSE) -> -3 | AH32: =T32-HLOOKUP(X32,Feuil1!$C$1:$BL$10,8,FALSE) -> -18 | AI32: =T32-HLOOKUP(X32,Feuil1!$C$1:$BL$10,9,FALSE) -> -38 | AJ32: =T32-HLOOKUP(X32,Feuil1!$C$1:$BL$10,10,FALSE) -> -868 | AQ32: =IF(AJ32>=0,$AJ$4,IF(AI32>=0,$AI$4,IF(AH32>=0,$AH$4,IF(AG32>=0,$AG$4,IF(AF32>=0,$AF$4,IF(AE32>=0,$AE$4,IF(AD32>=0,$AD$4,IF(AC32>=0,$AC$4,$AB$4)))))))) -> FED +
A33: F | B33: SEST | C33: CAZ | D33: 2 | E33: 231757 | F33: RONCO | G33: Emmanuelle | H33: 1995 | I33: 65.23 | J33: E.S. VILLENEUVE LOUBET | K33: F | L33: 58 | M33: 62 | N33: -65 | O33: =IF(H33="","",IF(MAXA(L33:N33)<=0,0,MAXA(L33:N33))) -> 62 | P33: 65 | Q33: -69 | R33: -71 | S33: =IF(H33="","",IF(MAXA(P33:R33)<=0,0,MAXA(P33:R33))) -> 65 | T33: =IF(H33="","",IF(OR(O33=0,S33=0),0,O33+S33)) -> 127 | U33: =T33-I33*2 -> -3.46 | V33: =IF(H33="","",AQ33) -> FED + | W33: =IF(AJ33>=0,AJ33,IF(AI33>=0,AI33,IF(AH33>=0,AH33,IF(AG33>=0,AG33,IF(AF33>=0,AF33,IF(AE33>=0,AE33,IF(AD33>=0,AD33,IF(AC33>=0,AC33,AB33)))))))) -> 7 | X33: =IF(I33="","",IF(A33="H",IF(OR(H33="SEN",H33<1995),VLOOKUP(I33,Feuil1!$A$11:$F$29,6),IF(AND(H33>1994,H33<1998),VLOOKUP(I33,Feuil1!$A$11:$F$29,5),IF(AND(H33>1997,H33<2000),VLOOKUP(I33,Feuil1!$A$11:$F$29,4),IF(AND(H33>1999,H33<2002),VLOOKUP(I33,Feuil1!$A$11:$F$29,3),VLOOKUP(I33,Feuil1!$A$11:$F$29,2))))),IF(OR(H33="SEN",H33<1995),VLOOKUP(I33,Feuil1!$G$11:$L$25,6),IF(AND(H33>1994,H33<1998),VLOOKUP(I33,Feuil1!$G$11:$L$25,5),IF(AND(H33>1997,H33<2000),VLOOKUP(I33,Feuil1!$G$11:$L$25,4),IF(AND(H33>1999,H33<2002),VLOOKUP(I33,Feuil1!$G$11:$L$25,3),VLOOKUP(I33,Feuil1!$G$11:$L$25,2))))))) -> FJ69 | Y33: =IF(I33="","",IF(A33="H",10^(0.794358141*LOG(I33/174.393)^2)*T33,IF(A33="F",10^(0.89726074*LOG(I33/148.026)^2)*T33,""))) -> 164.9867603 | AB33: =T33-HLOOKUP(X33,Feuil1!$C$1:$BL$10,2,FALSE) -> 57 | AC33: =T33-HLOOKUP(X33,Feuil1!$C$1:$BL$10,3,FALSE) -> 47 | AD33: =T33-HLOOKUP(X33,Feuil1!$C$1:$BL$10,4,FALSE) -> 37 | AE33: =T33-HLOOKUP(X33,Feuil1!$C$1:$BL$10,5,FALSE) -> 22 | AF33: =T33-HLOOKUP(X33,Feuil1!$C$1:$BL$10,6,FALSE) -> 7 | AG33: =T33-HLOOKUP(X33,Feuil1!$C$1:$BL$10,7,FALSE) -> -8 | AH33: =T33-HLOOKUP(X33,Feuil1!$C$1:$BL$10,8,FALSE) -> -23 | AI33: =T33-HLOOKUP(X33,Feuil1!$C$1:$BL$10,9,FALSE) -> -43 | AJ33: =T33-HLOOKUP(X33,Feuil1!$C$1:$BL$10,10,FALSE) -> -873 | AQ33: =IF(AJ33>=0,$AJ$4,IF(AI33>=0,$AI$4,IF(AH33>=0,$AH$4,IF(AG33>=0,$AG$4,IF(AF33>=0,$AF$4,IF(AE33>=0,$AE$4,IF(AD33>=0,$AD$4,IF(AC33>=0,$AC$4,$AB$4)))))))) -> FED +
A34: F | B34: NE | C34: ALS | D34: 3 | E34: 348083 | F34: LEIBUNDGUTH | G34: Lisa | H34: 1997 | I34: 68.5 | J34: ASI Avenir HM | K34: F | L34: -52 | M34: -52 | N34: 52 | O34: =IF(H34="","",IF(MAXA(L34:N34)<=0,0,MAXA(L34:N34))) -> 52 | P34: 70 | Q34: 73 | R34: -76 | S34: =IF(H34="","",IF(MAXA(P34:R34)<=0,0,MAXA(P34:R34))) -> 73 | T34: =IF(H34="","",IF(OR(O34=0,S34=0),0,O34+S34)) -> 125 | U34: =T34-I34*2 -> -12 | V34: =IF(H34="","",AQ34) -> FED + | W34: =IF(AJ34>=0,AJ34,IF(AI34>=0,AI34,IF(AH34>=0,AH34,IF(AG34>=0,AG34,IF(AF34>=0,AF34,IF(AE34>=0,AE34,IF(AD34>=0,AD34,IF(AC34>=0,AC34,AB34)))))))) -> 5 | X34: =IF(I34="","",IF(A34="H",IF(OR(H34="SEN",H34<1995),VLOOKUP(I34,Feuil1!$A$11:$F$29,6),IF(AND(H34>1994,H34<1998),VLOOKUP(I34,Feuil1!$A$11:$F$29,5),IF(AND(H34>1997,H34<2000),VLOOKUP(I34,Feuil1!$A$11:$F$29,4),IF(AND(H34>1999,H34<2002),VLOOKUP(I34,Feuil1!$A$11:$F$29,3),VLOOKUP(I34,Feuil1!$A$11:$F$29,2))))),IF(OR(H34="SEN",H34<1995),VLOOKUP(I34,Feuil1!$G$11:$L$25,6),IF(AND(H34>1994,H34<1998),VLOOKUP(I34,Feuil1!$G$11:$L$25,5),IF(AND(H34>1997,H34<2000),VLOOKUP(I34,Feuil1!$G$11:$L$25,4),IF(AND(H34>1999,H34<2002),VLOOKUP(I34,Feuil1!$G$11:$L$25,3),VLOOKUP(I34,Feuil1!$G$11:$L$25,2))))))) -> FJ69 | Y34: =IF(I34="","",IF(A34="H",10^(0.794358141*LOG(I34/174.393)^2)*T34,IF(A34="F",10^(0.89726074*LOG(I34/148.026)^2)*T34,""))) -> 157.5408774 | AB34: =T34-HLOOKUP(X34,Feuil1!$C$1:$BL$10,2,FALSE) -> 55 | AC34: =T34-HLOOKUP(X34,Feuil1!$C$1:$BL$10,3,FALSE) -> 45 | AD34: =T34-HLOOKUP(X34,Feuil1!$C$1:$BL$10,4,FALSE) -> 35 | AE34: =T34-HLOOKUP(X34,Feuil1!$C$1:$BL$10,5,FALSE) -> 20 | AF34: =T34-HLOOKUP(X34,Feuil1!$C$1:$BL$10,6,FALSE) -> 5 | AG34: =T34-HLOOKUP(X34,Feuil1!$C$1:$BL$10,7,FALSE) -> -10 | AH34: =T34-HLOOKUP(X34,Feuil1!$C$1:$BL$10,8,FALSE) -> -25 | AI34: =T34-HLOOKUP(X34,Feuil1!$C$1:$BL$10,9,FALSE) -> -45 | AJ34: =T34-HLOOKUP(X34,Feuil1!$C$1:$BL$10,10,FALSE) -> -875 | AQ34: =IF(AJ34>=0,$AJ$4,IF(AI34>=0,$AI$4,IF(AH34>=0,$AH$4,IF(AG34>=0,$AG$4,IF(AF34>=0,$AF$4,IF(AE34>=0,$AE$4,IF(AD34>=0,$AD$4,IF(AC34>=0,$AC$4,$AB$4)))))))) -> FED +
A35: F | B35: SO | C35: MPY | D35: 4 | E35: 253453 | F35: JOURNET | G35: Anaïs | H35: 1995 | I35: 65.9 | J35: FIGEAC HC | K35: F | L35: 47 | M35: 50 | N35: 52 | O35: =IF(H35="","",IF(MAXA(L35:N35)<=0,0,MAXA(L35:N35))) -> 52 | P35: 65 | Q35: 70 | R35: 72 | S35: =IF(H35="","",IF(MAXA(P35:R35)<=0,0,MAXA(P35:R35))) -> 72 | T35: =IF(H35="","",IF(OR(O35=0,S35=0),0,O35+S35)) -> 124 | U35: =T35-I35*2 -> -7.8 | V35: =IF(H35="","",AQ35) -> FED + | W35: =IF(AJ35>=0,AJ35,IF(AI35>=0,AI35,IF(AH35>=0,AH35,IF(AG35>=0,AG35,IF(AF35>=0,AF35,IF(AE35>=0,AE35,IF(AD35>=0,AD35,IF(AC35>=0,AC35,AB35)))))))) -> 4 | X35: =IF(I35="","",IF(A35="H",IF(OR(H35="SEN",H35<1995),VLOOKUP(I35,Feuil1!$A$11:$F$29,6),IF(AND(H35>1994,H35<1998),VLOOKUP(I35,Feuil1!$A$11:$F$29,5),IF(AND(H35>1997,H35<2000),VLOOKUP(I35,Feuil1!$A$11:$F$29,4),IF(AND(H35>1999,H35<2002),VLOOKUP(I35,Feuil1!$A$11:$F$29,3),VLOOKUP(I35,Feuil1!$A$11:$F$29,2))))),IF(OR(H35="SEN",H35<1995),VLOOKUP(I35,Feuil1!$G$11:$L$25,6),IF(AND(H35>1994,H35<1998),VLOOKUP(I35,Feuil1!$G$11:$L$25,5),IF(AND(H35>1997,H35<2000),VLOOKUP(I35,Feuil1!$G$11:$L$25,4),IF(AND(H35>1999,H35<2002),VLOOKUP(I35,Feuil1!$G$11:$L$25,3),VLOOKUP(I35,Feuil1!$G$11:$L$25,2))))))) -> FJ69 | Y35: =IF(I35="","",IF(A35="H",10^(0.794358141*LOG(I35/174.393)^2)*T35,IF(A35="F",10^(0.89726074*LOG(I35/148.026)^2)*T35,""))) -> 160.0480418 | AB35: =T35-HLOOKUP(X35,Feuil1!$C$1:$BL$10,2,FALSE) -> 54 | AC35: =T35-HLOOKUP(X35,Feuil1!$C$1:$BL$10,3,FALSE) -> 44 | AD35: =T35-HLOOKUP(X35,Feuil1!$C$1:$BL$10,4,FALSE) -> 34 | AE35: =T35-HLOOKUP(X35,Feuil1!$C$1:$BL$10,5,FALSE) -> 19 | AF35: =T35-HLOOKUP(X35,Feuil1!$C$1:$BL$10,6,FALSE) -> 4 | AG35: =T35-HLOOKUP(X35,Feuil1!$C$1:$BL$10,7,FALSE) -> -11 | AH35: =T35-HLOOKUP(X35,Feuil1!$C$1:$BL$10,8,FALSE) -> -26 | AI35: =T35-HLOOKUP(X35,Feuil1!$C$1:$BL$10,9,FALSE) -> -46 | AJ35: =T35-HLOOKUP(X35,Feuil1!$C$1:$BL$10,10,FALSE) -> -876 | AQ35: =IF(AJ35>=0,$AJ$4,IF(AI35>=0,$AI$4,IF(AH35>=0,$AH$4,IF(AG35>=0,$AG$4,IF(AF35>=0,$AF$4,IF(AE35>=0,$AE$4,IF(AD35>=0,$AD$4,IF(AC35>=0,$AC$4,$AB$4)))))))) -> FED +
A36: F | B36: SEST | C36: RAL | D36: 5 | E36: 356024 | F36: PARENTI | G36: Elora | H36: 1995 | I36: 64.3 | J36: C.H. L'ARBRESLE | K36: F | L36: 42 | M36: -46 | N36: -46 | O36: =IF(H36="","",IF(MAXA(L36:N36)<=0,0,MAXA(L36:N36))) -> 42 | P36: 55 | Q36: -60 | R36: -60 | S36: =IF(H36="","",IF(MAXA(P36:R36)<=0,0,MAXA(P36:R36))) -> 55 | T36: =IF(H36="","",IF(OR(O36=0,S36=0),0,O36+S36)) -> 97 | U36: =T36-I36*2 -> -31.6 | V36: =IF(H36="","",AQ36) -> REG + | W36: =IF(AJ36>=0,AJ36,IF(AI36>=0,AI36,IF(AH36>=0,AH36,IF(AG36>=0,AG36,IF(AF36>=0,AF36,IF(AE36>=0,AE36,IF(AD36>=0,AD36,IF(AC36>=0,AC36,AB36)))))))) -> 7 | X36: =IF(I36="","",IF(A36="H",IF(OR(H36="SEN",H36<1995),VLOOKUP(I36,Feuil1!$A$11:$F$29,6),IF(AND(H36>1994,H36<1998),VLOOKUP(I36,Feuil1!$A$11:$F$29,5),IF(AND(H36>1997,H36<2000),VLOOKUP(I36,Feuil1!$A$11:$F$29,4),IF(AND(H36>1999,H36<2002),VLOOKUP(I36,Feuil1!$A$11:$F$29,3),VLOOKUP(I36,Feuil1!$A$11:$F$29,2))))),IF(OR(H36="SEN",H36<1995),VLOOKUP(I36,Feuil1!$G$11:$L$25,6),IF(AND(H36>1994,H36<1998),VLOOKUP(I36,Feuil1!$G$11:$L$25,5),IF(AND(H36>1997,H36<2000),VLOOKUP(I36,Feuil1!$G$11:$L$25,4),IF(AND(H36>1999,H36<2002),VLOOKUP(I36,Feuil1!$G$11:$L$25,3),VLOOKUP(I36,Feuil1!$G$11:$L$25,2))))))) -> FJ69 | Y36: =IF(I36="","",IF(A36="H",10^(0.794358141*LOG(I36/174.393)^2)*T36,IF(A36="F",10^(0.89726074*LOG(I36/148.026)^2)*T36,""))) -> 127.1847107 | AB36: =T36-HLOOKUP(X36,Feuil1!$C$1:$BL$10,2,FALSE) -> 27 | AC36: =T36-HLOOKUP(X36,Feuil1!$C$1:$BL$10,3,FALSE) -> 17 | AD36: =T36-HLOOKUP(X36,Feuil1!$C$1:$BL$10,4,FALSE) -> 7 | AE36: =T36-HLOOKUP(X36,Feuil1!$C$1:$BL$10,5,FALSE) -> -8 | AF36: =T36-HLOOKUP(X36,Feuil1!$C$1:$BL$10,6,FALSE) -> -23 | AG36: =T36-HLOOKUP(X36,Feuil1!$C$1:$BL$10,7,FALSE) -> -38 | AH36: =T36-HLOOKUP(X36,Feuil1!$C$1:$BL$10,8,FALSE) -> -53 | AI36: =T36-HLOOKUP(X36,Feuil1!$C$1:$BL$10,9,FALSE) -> -73 | AJ36: =T36-HLOOKUP(X36,Feuil1!$C$1:$BL$10,10,FALSE) -> -903 | AQ36: =IF(AJ36>=0,$AJ$4,IF(AI36>=0,$AI$4,IF(AH36>=0,$AH$4,IF(AG36>=0,$AG$4,IF(AF36>=0,$AF$4,IF(AE36>=0,$AE$4,IF(AD36>=0,$AD$4,IF(AC36>=0,$AC$4,$AB$4)))))))) -> REG +
A38: F | B38: DOM | C38: GUA | D38: 1 | E38: 183203 | F38: GRAVA | G38: Naomi | H38: 1996 | I38: 70.5 | J38: AHCS/Pointois | K38: F | L38: 65 | M38: 70 | N38: 72 | O38: 72 | P38: 85 | Q38: 90 | R38: -92 | S38: 90 | T38: 162 | U38: 21 | V38: INTB + | W38: 2 | X38: =IF(I38="","",IF(A38="H",IF(OR(H38="SEN",H38<1995),VLOOKUP(I38,Feuil1!$A$11:$F$29,6),IF(AND(H38>1994,H38<1998),VLOOKUP(I38,Feuil1!$A$11:$F$29,5),IF(AND(H38>1997,H38<2000),VLOOKUP(I38,Feuil1!$A$11:$F$29,4),IF(AND(H38>1999,H38<2002),VLOOKUP(I38,Feuil1!$A$11:$F$29,3),VLOOKUP(I38,Feuil1!$A$11:$F$29,2))))),IF(OR(H38="SEN",H38<1995),VLOOKUP(I38,Feuil1!$G$11:$L$25,6),IF(AND(H38>1994,H38<1998),VLOOKUP(I38,Feuil1!$G$11:$L$25,5),IF(AND(H38>1997,H38<2000),VLOOKUP(I38,Feuil1!$G$11:$L$25,4),IF(AND(H38>1999,H38<2002),VLOOKUP(I38,Feuil1!$G$11:$L$25,3),VLOOKUP(I38,Feuil1!$G$11:$L$25,2))))))) -> FJ75 | Y38: 200.7394126 | AB38: =T38-HLOOKUP(X38,Feuil1!$C$1:$BL$10,2,FALSE) -> 82 | AC38: =T38-HLOOKUP(X38,Feuil1!$C$1:$BL$10,3,FALSE) -> 67 | AD38: =T38-HLOOKUP(X38,Feuil1!$C$1:$BL$10,4,FALSE) -> 57 | AE38: =T38-HLOOKUP(X38,Feuil1!$C$1:$BL$10,5,FALSE) -> 47 | AF38: =T38-HLOOKUP(X38,Feuil1!$C$1:$BL$10,6,FALSE) -> 32 | AG38: =T38-HLOOKUP(X38,Feuil1!$C$1:$BL$10,7,FALSE) -> 17 | AH38: =T38-HLOOKUP(X38,Feuil1!$C$1:$BL$10,8,FALSE) -> 2 | AI38: =T38-HLOOKUP(X38,Feuil1!$C$1:$BL$10,9,FALSE) -> -18 | AJ38: =T38-HLOOKUP(X38,Feuil1!$C$1:$BL$10,10,FALSE) -> -838 | AQ38: INTB +
A39: F | B39: NE | C39: CHA | D39: 2 | E39: 247364 | F39: LECUREUIL | G39: Adeline | H39: 1996 | I39: 72.9 | J39: Langres HM | K39: F | L39: 49 | M39: -52 | N39: -52 | O39: 49 | P39: 58 | Q39: -61 | R39: 61 | S39: 61 | T39: 110 | U39: -35.8 | V39: REG + | W39: 5 | X39: =IF(I39="","",IF(A39="H",IF(OR(H39="SEN",H39<1995),VLOOKUP(I39,Feuil1!$A$11:$F$29,6),IF(AND(H39>1994,H39<1998),VLOOKUP(I39,Feuil1!$A$11:$F$29,5),IF(AND(H39>1997,H39<2000),VLOOKUP(I39,Feuil1!$A$11:$F$29,4),IF(AND(H39>1999,H39<2002),VLOOKUP(I39,Feuil1!$A$11:$F$29,3),VLOOKUP(I39,Feuil1!$A$11:$F$29,2))))),IF(OR(H39="SEN",H39<1995),VLOOKUP(I39,Feuil1!$G$11:$L$25,6),IF(AND(H39>1994,H39<1998),VLOOKUP(I39,Feuil1!$G$11:$L$25,5),IF(AND(H39>1997,H39<2000),VLOOKUP(I39,Feuil1!$G$11:$L$25,4),IF(AND(H39>1999,H39<2002),VLOOKUP(I39,Feuil1!$G$11:$L$25,3),VLOOKUP(I39,Feuil1!$G$11:$L$25,2))))))) -> FJ75 | Y39: 133.7504553 | AB39: =T39-HLOOKUP(X39,Feuil1!$C$1:$BL$10,2,FALSE) -> 30 | AC39: =T39-HLOOKUP(X39,Feuil1!$C$1:$BL$10,3,FALSE) -> 15 | AD39: =T39-HLOOKUP(X39,Feuil1!$C$1:$BL$10,4,FALSE) -> 5 | AE39: =T39-HLOOKUP(X39,Feuil1!$C$1:$BL$10,5,FALSE) -> -5 | AF39: =T39-HLOOKUP(X39,Feuil1!$C$1:$BL$10,6,FALSE) -> -20 | AG39: =T39-HLOOKUP(X39,Feuil1!$C$1:$BL$10,7,FALSE) -> -35 | AH39: =T39-HLOOKUP(X39,Feuil1!$C$1:$BL$10,8,FALSE) -> -50 | AI39: =T39-HLOOKUP(X39,Feuil1!$C$1:$BL$10,9,FALSE) -> -70 | AJ39: =T39-HLOOKUP(X39,Feuil1!$C$1:$BL$10,10,FALSE) -> -890 | AQ39: REG +
A41: F | B41: DOM | C41: GUA | D41: 1 | E41: 212730 | F41: ROSAN | G41: Kysia | H41: 1996 | I41: 82 | J41: AHCS/Pointois | K41: F | L41: 60 | M41: 65 | N41: -68 | O41: 65 | P41: 80 | Q41: 85 | R41: -90 | S41: 85 | T41: 150 | U41: -14 | V41: NAT + | W41: 0 | X41: =IF(I41="","",IF(A41="H",IF(OR(H41="SEN",H41<1995),VLOOKUP(I41,Feuil1!$A$11:$F$29,6),IF(AND(H41>1994,H41<1998),VLOOKUP(I41,Feuil1!$A$11:$F$29,5),IF(AND(H41>1997,H41<2000),VLOOKUP(I41,Feuil1!$A$11:$F$29,4),IF(AND(H41>1999,H41<2002),VLOOKUP(I41,Feuil1!$A$11:$F$29,3),VLOOKUP(I41,Feuil1!$A$11:$F$29,2))))),IF(OR(H41="SEN",H41<1995),VLOOKUP(I41,Feuil1!$G$11:$L$25,6),IF(AND(H41>1994,H41<1998),VLOOKUP(I41,Feuil1!$G$11:$L$25,5),IF(AND(H41>1997,H41<2000),VLOOKUP(I41,Feuil1!$G$11:$L$25,4),IF(AND(H41>1999,H41<2002),VLOOKUP(I41,Feuil1!$G$11:$L$25,3),VLOOKUP(I41,Feuil1!$G$11:$L$25,2))))))) -> FJ+75 | Y41: 171.8443189 | AB41: =T41-HLOOKUP(X41,Feuil1!$C$1:$BL$10,2,FALSE) -> 60 | AC41: =T41-HLOOKUP(X41,Feuil1!$C$1:$BL$10,3,FALSE) -> 50 | AD41: =T41-HLOOKUP(X41,Feuil1!$C$1:$BL$10,4,FALSE) -> 40 | AE41: =T41-HLOOKUP(X41,Feuil1!$C$1:$BL$10,5,FALSE) -> 25 | AF41: =T41-HLOOKUP(X41,Feuil1!$C$1:$BL$10,6,FALSE) -> 10 | AG41: =T41-HLOOKUP(X41,Feuil1!$C$1:$BL$10,7,FALSE) -> 0 | AH41: =T41-HLOOKUP(X41,Feuil1!$C$1:$BL$10,8,FALSE) -> -20 | AI41: =T41-HLOOKUP(X41,Feuil1!$C$1:$BL$10,9,FALSE) -> -40 | AJ41: =T41-HLOOKUP(X41,Feuil1!$C$1:$BL$10,10,FALSE) -> -850 | AQ41: NAT +
A44: H | B44: CO | C44: AQU | D44: 1 | E44: 220892 | F44: MOCAER LORGER | G44: Alan | H44: 1996 | I44: 50.3 | J44: ST MEDARD | K44: F | L44: 67 | M44: 70 | N44: -73 | O44: =IF(H44="","",IF(MAXA(L44:N44)<=0,0,MAXA(L44:N44))) -> 70 | P44: 95 | Q44: -100 | R44: -100 | S44: =IF(H44="","",IF(MAXA(P44:R44)<=0,0,MAXA(P44:R44))) -> 95 | T44: =IF(H44="","",IF(OR(O44=0,S44=0),0,O44+S44)) -> 165 | U44: =T44-I44*2 -> 64.4 | V44: =IF(H44="","",AQ44) -> FED + | W44: =IF(AJ44>=0,AJ44,IF(AI44>=0,AI44,IF(AH44>=0,AH44,IF(AG44>=0,AG44,IF(AF44>=0,AF44,IF(AE44>=0,AE44,IF(AD44>=0,AD44,IF(AC44>=0,AC44,AB44)))))))) -> 20 | X44: =IF(I44="","",IF(A44="H",IF(OR(H44="SEN",H44<1995),VLOOKUP(I44,Feuil1!$A$11:$F$29,6),IF(AND(H44>1994,H44<1998),VLOOKUP(I44,Feuil1!$A$11:$F$29,5),IF(AND(H44>1997,H44<2000),VLOOKUP(I44,Feuil1!$A$11:$F$29,4),IF(AND(H44>1999,H44<2002),VLOOKUP(I44,Feuil1!$A$11:$F$29,3),VLOOKUP(I44,Feuil1!$A$11:$F$29,2))))),IF(OR(H44="SEN",H44<1995),VLOOKUP(I44,Feuil1!$G$11:$L$25,6),IF(AND(H44>1994,H44<1998),VLOOKUP(I44,Feuil1!$G$11:$L$25,5),IF(AND(H44>1997,H44<2000),VLOOKUP(I44,Feuil1!$G$11:$L$25,4),IF(AND(H44>1999,H44<2002),VLOOKUP(I44,Feuil1!$G$11:$L$25,3),VLOOKUP(I44,Feuil1!$G$11:$L$25,2))))))) -> J56 | Y44: =IF(I44="","",IF(A44="H",10^(0.794358141*LOG(I44/174.393)^2)*T44,IF(A44="F",10^(0.89726074*LOG(I44/148.026)^2)*T44,""))) -> 281.2453661 | AB44: =T44-HLOOKUP(X44,Feuil1!$C$1:$BL$10,2,FALSE) -> 85 | AC44: =T44-HLOOKUP(X44,Feuil1!$C$1:$BL$10,3,FALSE) -> 65 | AD44: =T44-HLOOKUP(X44,Feuil1!$C$1:$BL$10,4,FALSE) -> 50 | AE44: =T44-HLOOKUP(X44,Feuil1!$C$1:$BL$10,5,FALSE) -> 35 | AF44: =T44-HLOOKUP(X44,Feuil1!$C$1:$BL$10,6,FALSE) -> 20 | AG44: =T44-HLOOKUP(X44,Feuil1!$C$1:$BL$10,7,FALSE) -> -5 | AH44: =T44-HLOOKUP(X44,Feuil1!$C$1:$BL$10,8,FALSE) -> -25 | AI44: =T44-HLOOKUP(X44,Feuil1!$C$1:$BL$10,9,FALSE) -> -45 | AJ44: =T44-HLOOKUP(X44,Feuil1!$C$1:$BL$10,10,FALSE) -> -835 | AQ44: =IF(AJ44>=0,$AJ$4,IF(AI44>=0,$AI$4,IF(AH44>=0,$AH$4,IF(AG44>=0,$AG$4,IF(AF44>=0,$AF$4,IF(AE44>=0,$AE$4,IF(AD44>=0,$AD$4,IF(AC44>=0,$AC$4,$AB$4)))))))) -> FED +
A45: H | B45: NE | C45: CHA | D45: 2 | E45: 214038 | F45: NOEL | G45: Tanguy | H45: 1996 | I45: 53 | J45: Langres HM | K45: F | L45: 65 | M45: 69 | N45: 71 | O45: =IF(H45="","",IF(MAXA(L45:N45)<=0,0,MAXA(L45:N45))) -> 71 | P45: 76 | Q45: 79 | R45: 82 | S45: =IF(H45="","",IF(MAXA(P45:R45)<=0,0,MAXA(P45:R45))) -> 82 | T45: =IF(H45="","",IF(OR(O45=0,S45=0),0,O45+S45)) -> 153 | U45: =T45-I45*2 -> 47 | V45: =IF(H45="","",AQ45) -> FED + | W45: =IF(AJ45>=0,AJ45,IF(AI45>=0,AI45,IF(AH45>=0,AH45,IF(AG45>=0,AG45,IF(AF45>=0,AF45,IF(AE45>=0,AE45,IF(AD45>=0,AD45,IF(AC45>=0,AC45,AB45)))))))) -> 8 | X45: =IF(I45="","",IF(A45="H",IF(OR(H45="SEN",H45<1995),VLOOKUP(I45,Feuil1!$A$11:$F$29,6),IF(AND(H45>1994,H45<1998),VLOOKUP(I45,Feuil1!$A$11:$F$29,5),IF(AND(H45>1997,H45<2000),VLOOKUP(I45,Feuil1!$A$11:$F$29,4),IF(AND(H45>1999,H45<2002),VLOOKUP(I45,Feuil1!$A$11:$F$29,3),VLOOKUP(I45,Feuil1!$A$11:$F$29,2))))),IF(OR(H45="SEN",H45<1995),VLOOKUP(I45,Feuil1!$G$11:$L$25,6),IF(AND(H45>1994,H45<1998),VLOOKUP(I45,Feuil1!$G$11:$L$25,5),IF(AND(H45>1997,H45<2000),VLOOKUP(I45,Feuil1!$G$11:$L$25,4),IF(AND(H45>1999,H45<2002),VLOOKUP(I45,Feuil1!$G$11:$L$25,3),VLOOKUP(I45,Feuil1!$G$11:$L$25,2))))))) -> J56 | Y45: =IF(I45="","",IF(A45="H",10^(0.794358141*LOG(I45/174.393)^2)*T45,IF(A45="F",10^(0.89726074*LOG(I45/148.026)^2)*T45,""))) -> 249.5873832 | AB45: =T45-HLOOKUP(X45,Feuil1!$C$1:$BL$10,2,FALSE) -> 73 | AC45: =T45-HLOOKUP(X45,Feuil1!$C$1:$BL$10,3,FALSE) -> 53 | AD45: =T45-HLOOKUP(X45,Feuil1!$C$1:$BL$10,4,FALSE) -> 38 | AE45: =T45-HLOOKUP(X45,Feuil1!$C$1:$BL$10,5,FALSE) -> 23 | AF45: =T45-HLOOKUP(X45,Feuil1!$C$1:$BL$10,6,FALSE) -> 8 | AG45: =T45-HLOOKUP(X45,Feuil1!$C$1:$BL$10,7,FALSE) -> -17 | AH45: =T45-HLOOKUP(X45,Feuil1!$C$1:$BL$10,8,FALSE) -> -37 | AI45: =T45-HLOOKUP(X45,Feuil1!$C$1:$BL$10,9,FALSE) -> -57 | AJ45: =T45-HLOOKUP(X45,Feuil1!$C$1:$BL$10,10,FALSE) -> -847 | AQ45: =IF(AJ45>=0,$AJ$4,IF(AI45>=0,$AI$4,IF(AH45>=0,$AH$4,IF(AG45>=0,$AG$4,IF(AF45>=0,$AF$4,IF(AE45>=0,$AE$4,IF(AD45>=0,$AD$4,IF(AC45>=0,$AC$4,$AB$4)))))))) -> FED +
A46: H | B46: SEST | C46: PRO | D46: 3 | E46: 196545 | F46: REYNAUD | G46: Loic | H46: 1996 | I46: 55.8 | J46: H.C. NOVES | K46: F | L46: 60 | M46: -65 | N46: 65 | O46: =IF(H46="","",IF(MAXA(L46:N46)<=0,0,MAXA(L46:N46))) -> 65 | P46: 80 | Q46: -84 | R46: -86 | S46: =IF(H46="","",IF(MAXA(P46:R46)<=0,0,MAXA(P46:R46))) -> 80 | T46: =IF(H46="","",IF(OR(O46=0,S46=0),0,O46+S46)) -> 145 | U46: =T46-I46*2 -> 33.4 | V46: =IF(H46="","",AQ46) -> FED + | W46: =IF(AJ46>=0,AJ46,IF(AI46>=0,AI46,IF(AH46>=0,AH46,IF(AG46>=0,AG46,IF(AF46>=0,AF46,IF(AE46>=0,AE46,IF(AD46>=0,AD46,IF(AC46>=0,AC46,AB46)))))))) -> 0 | X46: =IF(I46="","",IF(A46="H",IF(OR(H46="SEN",H46<1995),VLOOKUP(I46,Feuil1!$A$11:$F$29,6),IF(AND(H46>1994,H46<1998),VLOOKUP(I46,Feuil1!$A$11:$F$29,5),IF(AND(H46>1997,H46<2000),VLOOKUP(I46,Feuil1!$A$11:$F$29,4),IF(AND(H46>1999,H46<2002),VLOOKUP(I46,Feuil1!$A$11:$F$29,3),VLOOKUP(I46,Feuil1!$A$11:$F$29,2))))),IF(OR(H46="SEN",H46<1995),VLOOKUP(I46,Feuil1!$G$11:$L$25,6),IF(AND(H46>1994,H46<1998),VLOOKUP(I46,Feuil1!$G$11:$L$25,5),IF(AND(H46>1997,H46<2000),VLOOKUP(I46,Feuil1!$G$11:$L$25,4),IF(AND(H46>1999,H46<2002),VLOOKUP(I46,Feuil1!$G$11:$L$25,3),VLOOKUP(I46,Feuil1!$G$11:$L$25,2))))))) -> J56 | Y46: =IF(I46="","",IF(A46="H",10^(0.794358141*LOG(I46/174.393)^2)*T46,IF(A46="F",10^(0.89726074*LOG(I46/148.026)^2)*T46,""))) -> 226.9462039 | AB46: =T46-HLOOKUP(X46,Feuil1!$C$1:$BL$10,2,FALSE) -> 65 | AC46: =T46-HLOOKUP(X46,Feuil1!$C$1:$BL$10,3,FALSE) -> 45 | AD46: =T46-HLOOKUP(X46,Feuil1!$C$1:$BL$10,4,FALSE) -> 30 | AE46: =T46-HLOOKUP(X46,Feuil1!$C$1:$BL$10,5,FALSE) -> 15 | AF46: =T46-HLOOKUP(X46,Feuil1!$C$1:$BL$10,6,FALSE) -> 0 | AG46: =T46-HLOOKUP(X46,Feuil1!$C$1:$BL$10,7,FALSE) -> -25 | AH46: =T46-HLOOKUP(X46,Feuil1!$C$1:$BL$10,8,FALSE) -> -45 | AI46: =T46-HLOOKUP(X46,Feuil1!$C$1:$BL$10,9,FALSE) -> -65 | AJ46: =T46-HLOOKUP(X46,Feuil1!$C$1:$BL$10,10,FALSE) -> -855 | AQ46: =IF(AJ46>=0,$AJ$4,IF(AI46>=0,$AI$4,IF(AH46>=0,$AH$4,IF(AG46>=0,$AG$4,IF(AF46>=0,$AF$4,IF(AE46>=0,$AE$4,IF(AD46>=0,$AD$4,IF(AC46>=0,$AC$4,$AB$4)))))))) -> FED +
A47: H | B47: Nord | C47: IDF | D47: 4 | E47: 307426 | F47: ROUGE | G47: Nicolas | H47: 1996 | I47: 56 | J47: Franconville | K47: F | L47: 64 | M47: -66 | N47: -66 | O47: =IF(H47="","",IF(MAXA(L47:N47)<=0,0,MAXA(L47:N47))) -> 64 | P47: 75 | Q47: -81 | R47: -81 | S47: =IF(H47="","",IF(MAXA(P47:R47)<=0,0,MAXA(P47:R47))) -> 75 | T47: =IF(H47="","",IF(OR(O47=0,S47=0),0,O47+S47)) -> 139 | U47: =T47-I47*2 -> 27 | V47: =IF(H47="","",AQ47) -> IRG + | W47: =IF(AJ47>=0,AJ47,IF(AI47>=0,AI47,IF(AH47>=0,AH47,IF(AG47>=0,AG47,IF(AF47>=0,AF47,IF(AE47>=0,AE47,IF(AD47>=0,AD47,IF(AC47>=0,AC47,AB47)))))))) -> 9 | X47: =IF(I47="","",IF(A47="H",IF(OR(H47="SEN",H47<1995),VLOOKUP(I47,Feuil1!$A$11:$F$29,6),IF(AND(H47>1994,H47<1998),VLOOKUP(I47,Feuil1!$A$11:$F$29,5),IF(AND(H47>1997,H47<2000),VLOOKUP(I47,Feuil1!$A$11:$F$29,4),IF(AND(H47>1999,H47<2002),VLOOKUP(I47,Feuil1!$A$11:$F$29,3),VLOOKUP(I47,Feuil1!$A$11:$F$29,2))))),IF(OR(H47="SEN",H47<1995),VLOOKUP(I47,Feuil1!$G$11:$L$25,6),IF(AND(H47>1994,H47<1998),VLOOKUP(I47,Feuil1!$G$11:$L$25,5),IF(AND(H47>1997,H47<2000),VLOOKUP(I47,Feuil1!$G$11:$L$25,4),IF(AND(H47>1999,H47<2002),VLOOKUP(I47,Feuil1!$G$11:$L$25,3),VLOOKUP(I47,Feuil1!$G$11:$L$25,2))))))) -> J56 | Y47: =IF(I47="","",IF(A47="H",10^(0.794358141*LOG(I47/174.393)^2)*T47,IF(A47="F",10^(0.89726074*LOG(I47/148.026)^2)*T47,""))) -> 216.9451499 | AB47: =T47-HLOOKUP(X47,Feuil1!$C$1:$BL$10,2,FALSE) -> 59 | AC47: =T47-HLOOKUP(X47,Feuil1!$C$1:$BL$10,3,FALSE) -> 39 | AD47: =T47-HLOOKUP(X47,Feuil1!$C$1:$BL$10,4,FALSE) -> 24 | AE47: =T47-HLOOKUP(X47,Feuil1!$C$1:$BL$10,5,FALSE) -> 9 | AF47: =T47-HLOOKUP(X47,Feuil1!$C$1:$BL$10,6,FALSE) -> -6 | AG47: =T47-HLOOKUP(X47,Feuil1!$C$1:$BL$10,7,FALSE) -> -31 | AH47: =T47-HLOOKUP(X47,Feuil1!$C$1:$BL$10,8,FALSE) -> -51 | AI47: =T47-HLOOKUP(X47,Feuil1!$C$1:$BL$10,9,FALSE) -> -71 | AJ47: =T47-HLOOKUP(X47,Feuil1!$C$1:$BL$10,10,FALSE) -> -861 | AQ47: =IF(AJ47>=0,$AJ$4,IF(AI47>=0,$AI$4,IF(AH47>=0,$AH$4,IF(AG47>=0,$AG$4,IF(AF47>=0,$AF$4,IF(AE47>=0,$AE$4,IF(AD47>=0,$AD$4,IF(AC47>=0,$AC$4,$AB$4)))))))) -> IRG +
A48: H | B48: SO | C48: MPY | D48: 5 | E48: 300998 | F48: DELPECH | G48: Rémy | H48: 1997 | I48: 53.7 | J48: FIGEAC | K48: F | L48: 45 | M48: 48 | N48: 50 | O48: =IF(H48="","",IF(MAXA(L48:N48)<=0,0,MAXA(L48:N48))) -> 50 | P48: 50 | Q48: 60 | R48: 70 | S48: =IF(H48="","",IF(MAXA(P48:R48)<=0,0,MAXA(P48:R48))) -> 70 | T48: =IF(H48="","",IF(OR(O48=0,S48=0),0,O48+S48)) -> 120 | U48: =T48-I48*2 -> 12.6 | V48: =IF(H48="","",AQ48) -> REG + | W48: =IF(AJ48>=0,AJ48,IF(AI48>=0,AI48,IF(AH48>=0,AH48,IF(AG48>=0,AG48,IF(AF48>=0,AF48,IF(AE48>=0,AE48,IF(AD48>=0,AD48,IF(AC48>=0,AC48,AB48)))))))) -> 5 | X48: =IF(I48="","",IF(A48="H",IF(OR(H48="SEN",H48<1995),VLOOKUP(I48,Feuil1!$A$11:$F$29,6),IF(AND(H48>1994,H48<1998),VLOOKUP(I48,Feuil1!$A$11:$F$29,5),IF(AND(H48>1997,H48<2000),VLOOKUP(I48,Feuil1!$A$11:$F$29,4),IF(AND(H48>1999,H48<2002),VLOOKUP(I48,Feuil1!$A$11:$F$29,3),VLOOKUP(I48,Feuil1!$A$11:$F$29,2))))),IF(OR(H48="SEN",H48<1995),VLOOKUP(I48,Feuil1!$G$11:$L$25,6),IF(AND(H48>1994,H48<1998),VLOOKUP(I48,Feuil1!$G$11:$L$25,5),IF(AND(H48>1997,H48<2000),VLOOKUP(I48,Feuil1!$G$11:$L$25,4),IF(AND(H48>1999,H48<2002),VLOOKUP(I48,Feuil1!$G$11:$L$25,3),VLOOKUP(I48,Feuil1!$G$11:$L$25,2))))))) -> J56 | Y48: =IF(I48="","",IF(A48="H",10^(0.794358141*LOG(I48/174.393)^2)*T48,IF(A48="F",10^(0.89726074*LOG(I48/148.026)^2)*T48,""))) -> 193.6669255 | AB48: =T48-HLOOKUP(X48,Feuil1!$C$1:$BL$10,2,FALSE) -> 40 | AC48: =T48-HLOOKUP(X48,Feuil1!$C$1:$BL$10,3,FALSE) -> 20 | AD48: =T48-HLOOKUP(X48,Feuil1!$C$1:$BL$10,4,FALSE) -> 5 | AE48: =T48-HLOOKUP(X48,Feuil1!$C$1:$BL$10,5,FALSE) -> -10 | AF48: =T48-HLOOKUP(X48,Feuil1!$C$1:$BL$10,6,FALSE) -> -25 | AG48: =T48-HLOOKUP(X48,Feuil1!$C$1:$BL$10,7,FALSE) -> -50 | AH48: =T48-HLOOKUP(X48,Feuil1!$C$1:$BL$10,8,FALSE) -> -70 | AI48: =T48-HLOOKUP(X48,Feuil1!$C$1:$BL$10,9,FALSE) -> -90 | AJ48: =T48-HLOOKUP(X48,Feuil1!$C$1:$BL$10,10,FALSE) -> -880 | AQ48: =IF(AJ48>=0,$AJ$4,IF(AI48>=0,$AI$4,IF(AH48>=0,$AH$4,IF(AG48>=0,$AG$4,IF(AF48>=0,$AF$4,IF(AE48>=0,$AE$4,IF(AD48>=0,$AD$4,IF(AC48>=0,$AC$4,$AB$4)))))))) -> REG +
A50: H | B50: Nord | C50: NPC | D50: 1 | E50: 387642 | F50: SAERENT | G50: Brent | H50: 1997 | I50: 61.2 | J50: St Pol sur Mer | K50: BEL | L50: 80 | M50: 85 | N50: 90 | O50: =IF(H50="","",IF(MAXA(L50:N50)<=0,0,MAXA(L50:N50))) -> 90 | P50: 100 | Q50: 105 | R50: -108 | S50: =IF(H50="","",IF(MAXA(P50:R50)<=0,0,MAXA(P50:R50))) -> 105 | T50: =IF(H50="","",IF(OR(O50=0,S50=0),0,O50+S50)) -> 195 | U50: =T50-I50*2 -> 72.6 | V50: =IF(H50="","",AQ50) -> NAT + | W50: =IF(AJ50>=0,AJ50,IF(AI50>=0,AI50,IF(AH50>=0,AH50,IF(AG50>=0,AG50,IF(AF50>=0,AF50,IF(AE50>=0,AE50,IF(AD50>=0,AD50,IF(AC50>=0,AC50,AB50)))))))) -> 5 | X50: =IF(I50="","",IF(A50="H",IF(OR(H50="SEN",H50<1995),VLOOKUP(I50,Feuil1!$A$11:$F$29,6),IF(AND(H50>1994,H50<1998),VLOOKUP(I50,Feuil1!$A$11:$F$29,5),IF(AND(H50>1997,H50<2000),VLOOKUP(I50,Feuil1!$A$11:$F$29,4),IF(AND(H50>1999,H50<2002),VLOOKUP(I50,Feuil1!$A$11:$F$29,3),VLOOKUP(I50,Feuil1!$A$11:$F$29,2))))),IF(OR(H50="SEN",H50<1995),VLOOKUP(I50,Feuil1!$G$11:$L$25,6),IF(AND(H50>1994,H50<1998),VLOOKUP(I50,Feuil1!$G$11:$L$25,5),IF(AND(H50>1997,H50<2000),VLOOKUP(I50,Feuil1!$G$11:$L$25,4),IF(AND(H50>1999,H50<2002),VLOOKUP(I50,Feuil1!$G$11:$L$25,3),VLOOKUP(I50,Feuil1!$G$11:$L$25,2))))))) -> J62 | Y50: =IF(I50="","",IF(A50="H",10^(0.794358141*LOG(I50/174.393)^2)*T50,IF(A50="F",10^(0.89726074*LOG(I50/148.026)^2)*T50,""))) -> 284.6596418 | AB50: =T50-HLOOKUP(X50,Feuil1!$C$1:$BL$10,2,FALSE) -> 105 | AC50: =T50-HLOOKUP(X50,Feuil1!$C$1:$BL$10,3,FALSE) -> 75 | AD50: =T50-HLOOKUP(X50,Feuil1!$C$1:$BL$10,4,FALSE) -> 60 | AE50: =T50-HLOOKUP(X50,Feuil1!$C$1:$BL$10,5,FALSE) -> 45 | AF50: =T50-HLOOKUP(X50,Feuil1!$C$1:$BL$10,6,FALSE) -> 25 | AG50: =T50-HLOOKUP(X50,Feuil1!$C$1:$BL$10,7,FALSE) -> 5 | AH50: =T50-HLOOKUP(X50,Feuil1!$C$1:$BL$10,8,FALSE) -> -15 | AI50: =T50-HLOOKUP(X50,Feuil1!$C$1:$BL$10,9,FALSE) -> -35 | AJ50: =T50-HLOOKUP(X50,Feuil1!$C$1:$BL$10,10,FALSE) -> -805 | AQ50: =IF(AJ50>=0,$AJ$4,IF(AI50>=0,$AI$4,IF(AH50>=0,$AH$4,IF(AG50>=0,$AG$4,IF(AF50>=0,$AF$4,IF(AE50>=0,$AE$4,IF(AD50>=0,$AD$4,IF(AC50>=0,$AC$4,$AB$4)))))))) -> NAT +
A51: H | B51: SEST | C51: PRO | D51: 2 | E51: 245875 | F51: MARI | G51: Edouard | H51: 1997 | I51: 56.2 | J51: H.M. SAINTE TULLE | K51: F | L51: 77 | M51: 81 | N51: -83 | O51: 81 | P51: 100 | Q51: 105 | R51: -109 | S51: 105 | T51: 186 | U51: 73.6 | V51: FED + | W51: 16 | X51: =IF(I51="","",IF(A51="H",IF(OR(H51="SEN",H51<1995),VLOOKUP(I51,Feuil1!$A$11:$F$29,6),IF(AND(H51>1994,H51<1998),VLOOKUP(I51,Feuil1!$A$11:$F$29,5),IF(AND(H51>1997,H51<2000),VLOOKUP(I51,Feuil1!$A$11:$F$29,4),IF(AND(H51>1999,H51<2002),VLOOKUP(I51,Feuil1!$A$11:$F$29,3),VLOOKUP(I51,Feuil1!$A$11:$F$29,2))))),IF(OR(H51="SEN",H51<1995),VLOOKUP(I51,Feuil1!$G$11:$L$25,6),IF(AND(H51>1994,H51<1998),VLOOKUP(I51,Feuil1!$G$11:$L$25,5),IF(AND(H51>1997,H51<2000),VLOOKUP(I51,Feuil1!$G$11:$L$25,4),IF(AND(H51>1999,H51<2002),VLOOKUP(I51,Feuil1!$G$11:$L$25,3),VLOOKUP(I51,Feuil1!$G$11:$L$25,2))))))) -> J62 | Y51: 289.4919406 | AB51: =T51-HLOOKUP(X51,Feuil1!$C$1:$BL$10,2,FALSE) -> 96 | AC51: =T51-HLOOKUP(X51,Feuil1!$C$1:$BL$10,3,FALSE) -> 66 | AD51: =T51-HLOOKUP(X51,Feuil1!$C$1:$BL$10,4,FALSE) -> 51 | AE51: =T51-HLOOKUP(X51,Feuil1!$C$1:$BL$10,5,FALSE) -> 36 | AF51: =T51-HLOOKUP(X51,Feuil1!$C$1:$BL$10,6,FALSE) -> 16 | AG51: =T51-HLOOKUP(X51,Feuil1!$C$1:$BL$10,7,FALSE) -> -4 | AH51: =T51-HLOOKUP(X51,Feuil1!$C$1:$BL$10,8,FALSE) -> -24 | AI51: =T51-HLOOKUP(X51,Feuil1!$C$1:$BL$10,9,FALSE) -> -44 | AJ51: =T51-HLOOKUP(X51,Feuil1!$C$1:$BL$10,10,FALSE) -> -814 | AQ51: FED +
A52: H | B52: SO | C52: AQU | D52: 3 | E52: 263946 | F52: LECOMTE | G52: Ewen | H52: 1997 | I52: 58.3 | J52: ST MEDARD | K52: F | L52: 75 | M52: 79 | N52: 81 | O52: 81 | P52: 92 | Q52: 98 | R52: -100 | S52: 98 | T52: 179 | U52: 62.4 | V52: FED + | W52: 9 | X52: =IF(I52="","",IF(A52="H",IF(OR(H52="SEN",H52<1995),VLOOKUP(I52,Feuil1!$A$11:$F$29,6),IF(AND(H52>1994,H52<1998),VLOOKUP(I52,Feuil1!$A$11:$F$29,5),IF(AND(H52>1997,H52<2000),VLOOKUP(I52,Feuil1!$A$11:$F$29,4),IF(AND(H52>1999,H52<2002),VLOOKUP(I52,Feuil1!$A$11:$F$29,3),VLOOKUP(I52,Feuil1!$A$11:$F$29,2))))),IF(OR(H52="SEN",H52<1995),VLOOKUP(I52,Feuil1!$G$11:$L$25,6),IF(AND(H52>1994,H52<1998),VLOOKUP(I52,Feuil1!$G$11:$L$25,5),IF(AND(H52>1997,H52<2000),VLOOKUP(I52,Feuil1!$G$11:$L$25,4),IF(AND(H52>1999,H52<2002),VLOOKUP(I52,Feuil1!$G$11:$L$25,3),VLOOKUP(I52,Feuil1!$G$11:$L$25,2))))))) -> J62 | Y52: 270.8507472 | AB52: =T52-HLOOKUP(X52,Feuil1!$C$1:$BL$10,2,FALSE) -> 89 | AC52: =T52-HLOOKUP(X52,Feuil1!$C$1:$BL$10,3,FALSE) -> 59 | AD52: =T52-HLOOKUP(X52,Feuil1!$C$1:$BL$10,4,FALSE) -> 44 | AE52: =T52-HLOOKUP(X52,Feuil1!$C$1:$BL$10,5,FALSE) -> 29 | AF52: =T52-HLOOKUP(X52,Feuil1!$C$1:$BL$10,6,FALSE) -> 9 | AG52: =T52-HLOOKUP(X52,Feuil1!$C$1:$BL$10,7,FALSE) -> -11 | AH52: =T52-HLOOKUP(X52,Feuil1!$C$1:$BL$10,8,FALSE) -> -31 | AI52: =T52-HLOOKUP(X52,Feuil1!$C$1:$BL$10,9,FALSE) -> -51 | AJ52: =T52-HLOOKUP(X52,Feuil1!$C$1:$BL$10,10,FALSE) -> -821 | AQ52: FED +
A53: H | B53: NE | C53: ALS | D53: 4 | E53: 200062 | F53: KNITTEL | G53: Cédric | H53: 1996 | I53: 59.8 | J53: SHC Haguenau | K53: F | L53: 70 | M53: 74 | N53: 76 | O53: 76 | P53: 90 | Q53: -94 | R53: 94 | S53: 94 | T53: 170 | U53: 50.4 | V53: FED + | W53: 0 | X53: =IF(I53="","",IF(A53="H",IF(OR(H53="SEN",H53<1995),VLOOKUP(I53,Feuil1!$A$11:$F$29,6),IF(AND(H53>1994,H53<1998),VLOOKUP(I53,Feuil1!$A$11:$F$29,5),IF(AND(H53>1997,H53<2000),VLOOKUP(I53,Feuil1!$A$11:$F$29,4),IF(AND(H53>1999,H53<2002),VLOOKUP(I53,Feuil1!$A$11:$F$29,3),VLOOKUP(I53,Feuil1!$A$11:$F$29,2))))),IF(OR(H53="SEN",H53<1995),VLOOKUP(I53,Feuil1!$G$11:$L$25,6),IF(AND(H53>1994,H53<1998),VLOOKUP(I53,Feuil1!$G$11:$L$25,5),IF(AND(H53>1997,H53<2000),VLOOKUP(I53,Feuil1!$G$11:$L$25,4),IF(AND(H53>1999,H53<2002),VLOOKUP(I53,Feuil1!$G$11:$L$25,3),VLOOKUP(I53,Feuil1!$G$11:$L$25,2))))))) -> J62 | Y53: 252.3956517 | AB53: =T53-HLOOKUP(X53,Feuil1!$C$1:$BL$10,2,FALSE) -> 80 | AC53: =T53-HLOOKUP(X53,Feuil1!$C$1:$BL$10,3,FALSE) -> 50 | AD53: =T53-HLOOKUP(X53,Feuil1!$C$1:$BL$10,4,FALSE) -> 35 | AE53: =T53-HLOOKUP(X53,Feuil1!$C$1:$BL$10,5,FALSE) -> 20 | AF53: =T53-HLOOKUP(X53,Feuil1!$C$1:$BL$10,6,FALSE) -> 0 | AG53: =T53-HLOOKUP(X53,Feuil1!$C$1:$BL$10,7,FALSE) -> -20 | AH53: =T53-HLOOKUP(X53,Feuil1!$C$1:$BL$10,8,FALSE) -> -40 | AI53: =T53-HLOOKUP(X53,Feuil1!$C$1:$BL$10,9,FALSE) -> -60 | AJ53: =T53-HLOOKUP(X53,Feuil1!$C$1:$BL$10,10,FALSE) -> -830 | AQ53: FED +
A54: H | B54: NE | C54: FCO | D54: 5 | E54: 330809 | F54: VENERI | G54: Kory | H54: 1997 | I54: 61.9 | J54: CH Luxeuil | K54: F | L54: 75 | M54: -77 | N54: -77 | O54: 75 | P54: -87 | Q54: 87 | R54: -95 | S54: 87 | T54: 162 | U54: 38.2 | V54: IRG + | W54: 12 | X54: =IF(I54="","",IF(A54="H",IF(OR(H54="SEN",H54<1995),VLOOKUP(I54,Feuil1!$A$11:$F$29,6),IF(AND(H54>1994,H54<1998),VLOOKUP(I54,Feuil1!$A$11:$F$29,5),IF(AND(H54>1997,H54<2000),VLOOKUP(I54,Feuil1!$A$11:$F$29,4),IF(AND(H54>1999,H54<2002),VLOOKUP(I54,Feuil1!$A$11:$F$29,3),VLOOKUP(I54,Feuil1!$A$11:$F$29,2))))),IF(OR(H54="SEN",H54<1995),VLOOKUP(I54,Feuil1!$G$11:$L$25,6),IF(AND(H54>1994,H54<1998),VLOOKUP(I54,Feuil1!$G$11:$L$25,5),IF(AND(H54>1997,H54<2000),VLOOKUP(I54,Feuil1!$G$11:$L$25,4),IF(AND(H54>1999,H54<2002),VLOOKUP(I54,Feuil1!$G$11:$L$25,3),VLOOKUP(I54,Feuil1!$G$11:$L$25,2))))))) -> J62 | Y54: 234.5616604 | AB54: =T54-HLOOKUP(X54,Feuil1!$C$1:$BL$10,2,FALSE) -> 72 | AC54: =T54-HLOOKUP(X54,Feuil1!$C$1:$BL$10,3,FALSE) -> 42 | AD54: =T54-HLOOKUP(X54,Feuil1!$C$1:$BL$10,4,FALSE) -> 27 | AE54: =T54-HLOOKUP(X54,Feuil1!$C$1:$BL$10,5,FALSE) -> 12 | AF54: =T54-HLOOKUP(X54,Feuil1!$C$1:$BL$10,6,FALSE) -> -8 | AG54: =T54-HLOOKUP(X54,Feuil1!$C$1:$BL$10,7,FALSE) -> -28 | AH54: =T54-HLOOKUP(X54,Feuil1!$C$1:$BL$10,8,FALSE) -> -48 | AI54: =T54-HLOOKUP(X54,Feuil1!$C$1:$BL$10,9,FALSE) -> -68 | AJ54: =T54-HLOOKUP(X54,Feuil1!$C$1:$BL$10,10,FALSE) -> -838 | AQ54: IRG +
A55: H | B55: SEST | C55: CAZ | D55: 6 | E55: 325142 | F55: MONTAGNOLI | G55: Valentin | H55: 1996 | I55: 56.8 | J55: E.S. VILLENEUVE LOUBET | K55: F | L55: 58 | M55: 62 | N55: -64 | O55: 62 | P55: 77 | Q55: 82 | R55: -85 | S55: 82 | T55: 144 | U55: 30.4 | V55: REG + | W55: 9 | X55: =IF(I55="","",IF(A55="H",IF(OR(H55="SEN",H55<1995),VLOOKUP(I55,Feuil1!$A$11:$F$29,6),IF(AND(H55>1994,H55<1998),VLOOKUP(I55,Feuil1!$A$11:$F$29,5),IF(AND(H55>1997,H55<2000),VLOOKUP(I55,Feuil1!$A$11:$F$29,4),IF(AND(H55>1999,H55<2002),VLOOKUP(I55,Feuil1!$A$11:$F$29,3),VLOOKUP(I55,Feuil1!$A$11:$F$29,2))))),IF(OR(H55="SEN",H55<1995),VLOOKUP(I55,Feuil1!$G$11:$L$25,6),IF(AND(H55>1994,H55<1998),VLOOKUP(I55,Feuil1!$G$11:$L$25,5),IF(AND(H55>1997,H55<2000),VLOOKUP(I55,Feuil1!$G$11:$L$25,4),IF(AND(H55>1999,H55<2002),VLOOKUP(I55,Feuil1!$G$11:$L$25,3),VLOOKUP(I55,Feuil1!$G$11:$L$25,2))))))) -> J62 | Y55: 222.2795263 | AB55: =T55-HLOOKUP(X55,Feuil1!$C$1:$BL$10,2,FALSE) -> 54 | AC55: =T55-HLOOKUP(X55,Feuil1!$C$1:$BL$10,3,FALSE) -> 24 | AD55: =T55-HLOOKUP(X55,Feuil1!$C$1:$BL$10,4,FALSE) -> 9 | AE55: =T55-HLOOKUP(X55,Feuil1!$C$1:$BL$10,5,FALSE) -> -6 | AF55: =T55-HLOOKUP(X55,Feuil1!$C$1:$BL$10,6,FALSE) -> -26 | AG55: =T55-HLOOKUP(X55,Feuil1!$C$1:$BL$10,7,FALSE) -> -46 | AH55: =T55-HLOOKUP(X55,Feuil1!$C$1:$BL$10,8,FALSE) -> -66 | AI55: =T55-HLOOKUP(X55,Feuil1!$C$1:$BL$10,9,FALSE) -> -86 | AJ55: =T55-HLOOKUP(X55,Feuil1!$C$1:$BL$10,10,FALSE) -> -856 | AQ55: REG +
A56: H | B56: SEST | C56: RAL | D56: NC | E56: 222418 | F56: BAILLET | G56: Valentin | H56: 1997 | I56: 61.5 | J56: H.C. ST BALDOPH | K56: F | L56: 80 | M56: -84 | N56: -84 | O56: 80 | P56: -102 | Q56: -102 | R56: -102 | S56: 0 | T56: 0 | U56: -123 | V56: DEB | W56: -90 | X56: =IF(I56="","",IF(A56="H",IF(OR(H56="SEN",H56<1995),VLOOKUP(I56,Feuil1!$A$11:$F$29,6),IF(AND(H56>1994,H56<1998),VLOOKUP(I56,Feuil1!$A$11:$F$29,5),IF(AND(H56>1997,H56<2000),VLOOKUP(I56,Feuil1!$A$11:$F$29,4),IF(AND(H56>1999,H56<2002),VLOOKUP(I56,Feuil1!$A$11:$F$29,3),VLOOKUP(I56,Feuil1!$A$11:$F$29,2))))),IF(OR(H56="SEN",H56<1995),VLOOKUP(I56,Feuil1!$G$11:$L$25,6),IF(AND(H56>1994,H56<1998),VLOOKUP(I56,Feuil1!$G$11:$L$25,5),IF(AND(H56>1997,H56<2000),VLOOKUP(I56,Feuil1!$G$11:$L$25,4),IF(AND(H56>1999,H56<2002),VLOOKUP(I56,Feuil1!$G$11:$L$25,3),VLOOKUP(I56,Feuil1!$G$11:$L$25,2))))))) -> J62 | Y56: 0 | AB56: =T56-HLOOKUP(X56,Feuil1!$C$1:$BL$10,2,FALSE) -> -90 | AC56: =T56-HLOOKUP(X56,Feuil1!$C$1:$BL$10,3,FALSE) -> -120 | AD56: =T56-HLOOKUP(X56,Feuil1!$C$1:$BL$10,4,FALSE) -> -135 | AE56: =T56-HLOOKUP(X56,Feuil1!$C$1:$BL$10,5,FALSE) -> -150 | AF56: =T56-HLOOKUP(X56,Feuil1!$C$1:$BL$10,6,FALSE) -> -170 | AG56: =T56-HLOOKUP(X56,Feuil1!$C$1:$BL$10,7,FALSE) -> -190 | AH56: =T56-HLOOKUP(X56,Feuil1!$C$1:$BL$10,8,FALSE) -> -210 | AI56: =T56-HLOOKUP(X56,Feuil1!$C$1:$BL$10,9,FALSE) -> -230 | AJ56: =T56-HLOOKUP(X56,Feuil1!$C$1:$BL$10,10,FALSE) -> -1000 | AQ56: DEB
A58: H | B58: CO | C58: BNO | D58: 1 | E58: 169489 | F58: COISNARD | G58: José | H58: 1995 | I58: 67.9 | J58: Caen CHM | K58: F | L58: 102 | M58: 110 | N58: -113 | O58: =IF(H58="","",IF(MAXA(L58:N58)<=0,0,MAXA(L58:N58))) -> 110 | P58: 112 | Q58: -118 | R58: 120 | S58: =IF(H58="","",IF(MAXA(P58:R58)<=0,0,MAXA(P58:R58))) -> 120 | T58: =IF(H58="","",IF(OR(O58=0,S58=0),0,O58+S58)) -> 230 | U58: =T58-I58*2 -> 94.2 | V58: =IF(H58="","",AQ58) -> NAT + | W58: =IF(AJ58>=0,AJ58,IF(AI58>=0,AI58,IF(AH58>=0,AH58,IF(AG58>=0,AG58,IF(AF58>=0,AF58,IF(AE58>=0,AE58,IF(AD58>=0,AD58,IF(AC58>=0,AC58,AB58)))))))) -> 10 | X58: =IF(I58="","",IF(A58="H",IF(OR(H58="SEN",H58<1995),VLOOKUP(I58,Feuil1!$A$11:$F$29,6),IF(AND(H58>1994,H58<1998),VLOOKUP(I58,Feuil1!$A$11:$F$29,5),IF(AND(H58>1997,H58<2000),VLOOKUP(I58,Feuil1!$A$11:$F$29,4),IF(AND(H58>1999,H58<2002),VLOOKUP(I58,Feuil1!$A$11:$F$29,3),VLOOKUP(I58,Feuil1!$A$11:$F$29,2))))),IF(OR(H58="SEN",H58<1995),VLOOKUP(I58,Feuil1!$G$11:$L$25,6),IF(AND(H58>1994,H58<1998),VLOOKUP(I58,Feuil1!$G$11:$L$25,5),IF(AND(H58>1997,H58<2000),VLOOKUP(I58,Feuil1!$G$11:$L$25,4),IF(AND(H58>1999,H58<2002),VLOOKUP(I58,Feuil1!$G$11:$L$25,3),VLOOKUP(I58,Feuil1!$G$11:$L$25,2))))))) -> J69 | Y58: =IF(I58="","",IF(A58="H",10^(0.794358141*LOG(I58/174.393)^2)*T58,IF(A58="F",10^(0.89726074*LOG(I58/148.026)^2)*T58,""))) -> 312.6349969 | AB58: =T58-HLOOKUP(X58,Feuil1!$C$1:$BL$10,2,FALSE) -> 120 | AC58: =T58-HLOOKUP(X58,Feuil1!$C$1:$BL$10,3,FALSE) -> 100 | AD58: =T58-HLOOKUP(X58,Feuil1!$C$1:$BL$10,4,FALSE) -> 80 | AE58: =T58-HLOOKUP(X58,Feuil1!$C$1:$BL$10,5,FALSE) -> 60 | AF58: =T58-HLOOKUP(X58,Feuil1!$C$1:$BL$10,6,FALSE) -> 40 | AG58: =T58-HLOOKUP(X58,Feuil1!$C$1:$BL$10,7,FALSE) -> 10 | AH58: =T58-HLOOKUP(X58,Feuil1!$C$1:$BL$10,8,FALSE) -> -10 | AI58: =T58-HLOOKUP(X58,Feuil1!$C$1:$BL$10,9,FALSE) -> -20 | AJ58: =T58-HLOOKUP(X58,Feuil1!$C$1:$BL$10,10,FALSE) -> -770 | AQ58: =IF(AJ58>=0,$AJ$4,IF(AI58>=0,$AI$4,IF(AH58>=0,$AH$4,IF(AG58>=0,$AG$4,IF(AF58>=0,$AF$4,IF(AE58>=0,$AE$4,IF(AD58>=0,$AD$4,IF(AC58>=0,$AC$4,$AB$4)))))))) -> NAT +
A59: H | B59: Nord | C59: IDF | D59: 2 | E59: 335580 | F59: FARDEL | G59: Marvin | H59: 1996 | I59: 68.39 | J59: Franconville | K59: F | L59: 100 | M59: -102 | N59: 103 | O59: 103 | P59: 117 | Q59: -120 | R59: - | S59: 117 | T59: 220 | U59: 83.22 | V59: NAT + | W59: 0 | X59: =IF(I59="","",IF(A59="H",IF(OR(H59="SEN",H59<1995),VLOOKUP(I59,Feuil1!$A$11:$F$29,6),IF(AND(H59>1994,H59<1998),VLOOKUP(I59,Feuil1!$A$11:$F$29,5),IF(AND(H59>1997,H59<2000),VLOOKUP(I59,Feuil1!$A$11:$F$29,4),IF(AND(H59>1999,H59<2002),VLOOKUP(I59,Feuil1!$A$11:$F$29,3),VLOOKUP(I59,Feuil1!$A$11:$F$29,2))))),IF(OR(H59="SEN",H59<1995),VLOOKUP(I59,Feuil1!$G$11:$L$25,6),IF(AND(H59>1994,H59<1998),VLOOKUP(I59,Feuil1!$G$11:$L$25,5),IF(AND(H59>1997,H59<2000),VLOOKUP(I59,Feuil1!$G$11:$L$25,4),IF(AND(H59>1999,H59<2002),VLOOKUP(I59,Feuil1!$G$11:$L$25,3),VLOOKUP(I59,Feuil1!$G$11:$L$25,2))))))) -> J69 | Y59: 297.6512735 | AB59: =T59-HLOOKUP(X59,Feuil1!$C$1:$BL$10,2,FALSE) -> 110 | AC59: =T59-HLOOKUP(X59,Feuil1!$C$1:$BL$10,3,FALSE) -> 90 | AD59: =T59-HLOOKUP(X59,Feuil1!$C$1:$BL$10,4,FALSE) -> 70 | AE59: =T59-HLOOKUP(X59,Feuil1!$C$1:$BL$10,5,FALSE) -> 50 | AF59: =T59-HLOOKUP(X59,Feuil1!$C$1:$BL$10,6,FALSE) -> 30 | AG59: =T59-HLOOKUP(X59,Feuil1!$C$1:$BL$10,7,FALSE) -> 0 | AH59: =T59-HLOOKUP(X59,Feuil1!$C$1:$BL$10,8,FALSE) -> -20 | AI59: =T59-HLOOKUP(X59,Feuil1!$C$1:$BL$10,9,FALSE) -> -30 | AJ59: =T59-HLOOKUP(X59,Feuil1!$C$1:$BL$10,10,FALSE) -> -780 | AQ59: NAT +
A60: H | B60: NE | C60: ALS | D60: 3 | E60: 188738 | F60: JACQUEL | G60: Florian | H60: 1995 | I60: 67.8 | J60: SHC Haguenau | K60: F | L60: -91 | M60: 92 | N60: -96 | O60: 92 | P60: 108 | Q60: 113 | R60: -116 | S60: 113 | T60: 205 | U60: 69.4 | V60: FED + | W60: 15 | X60: =IF(I60="","",IF(A60="H",IF(OR(H60="SEN",H60<1995),VLOOKUP(I60,Feuil1!$A$11:$F$29,6),IF(AND(H60>1994,H60<1998),VLOOKUP(I60,Feuil1!$A$11:$F$29,5),IF(AND(H60>1997,H60<2000),VLOOKUP(I60,Feuil1!$A$11:$F$29,4),IF(AND(H60>1999,H60<2002),VLOOKUP(I60,Feuil1!$A$11:$F$29,3),VLOOKUP(I60,Feuil1!$A$11:$F$29,2))))),IF(OR(H60="SEN",H60<1995),VLOOKUP(I60,Feuil1!$G$11:$L$25,6),IF(AND(H60>1994,H60<1998),VLOOKUP(I60,Feuil1!$G$11:$L$25,5),IF(AND(H60>1997,H60<2000),VLOOKUP(I60,Feuil1!$G$11:$L$25,4),IF(AND(H60>1999,H60<2002),VLOOKUP(I60,Feuil1!$G$11:$L$25,3),VLOOKUP(I60,Feuil1!$G$11:$L$25,2))))))) -> J69 | Y60: 278.9205594 | AB60: =T60-HLOOKUP(X60,Feuil1!$C$1:$BL$10,2,FALSE) -> 95 | AC60: =T60-HLOOKUP(X60,Feuil1!$C$1:$BL$10,3,FALSE) -> 75 | AD60: =T60-HLOOKUP(X60,Feuil1!$C$1:$BL$10,4,FALSE) -> 55 | AE60: =T60-HLOOKUP(X60,Feuil1!$C$1:$BL$10,5,FALSE) -> 35 | AF60: =T60-HLOOKUP(X60,Feuil1!$C$1:$BL$10,6,FALSE) -> 15 | AG60: =T60-HLOOKUP(X60,Feuil1!$C$1:$BL$10,7,FALSE) -> -15 | AH60: =T60-HLOOKUP(X60,Feuil1!$C$1:$BL$10,8,FALSE) -> -35 | AI60: =T60-HLOOKUP(X60,Feuil1!$C$1:$BL$10,9,FALSE) -> -45 | AJ60: =T60-HLOOKUP(X60,Feuil1!$C$1:$BL$10,10,FALSE) -> -795 | AQ60: FED +
A61: H | B61: NE | C61: CHA | D61: 4 | E61: 246843 | F61: RENAUT | G61: Guillaume | H61: 1997 | I61: 68.2 | J61: Langres HM | K61: F | L61: 84 | M61: 87 | N61: 90 | O61: 90 | P61: 106 | Q61: 110 | R61: -112 | S61: 110 | T61: 200 | U61: 63.6 | V61: FED + | W61: 10 | X61: =IF(I61="","",IF(A61="H",IF(OR(H61="SEN",H61<1995),VLOOKUP(I61,Feuil1!$A$11:$F$29,6),IF(AND(H61>1994,H61<1998),VLOOKUP(I61,Feuil1!$A$11:$F$29,5),IF(AND(H61>1997,H61<2000),VLOOKUP(I61,Feuil1!$A$11:$F$29,4),IF(AND(H61>1999,H61<2002),VLOOKUP(I61,Feuil1!$A$11:$F$29,3),VLOOKUP(I61,Feuil1!$A$11:$F$29,2))))),IF(OR(H61="SEN",H61<1995),VLOOKUP(I61,Feuil1!$G$11:$L$25,6),IF(AND(H61>1994,H61<1998),VLOOKUP(I61,Feuil1!$G$11:$L$25,5),IF(AND(H61>1997,H61<2000),VLOOKUP(I61,Feuil1!$G$11:$L$25,4),IF(AND(H61>1999,H61<2002),VLOOKUP(I61,Feuil1!$G$11:$L$25,3),VLOOKUP(I61,Feuil1!$G$11:$L$25,2))))))) -> J69 | Y61: 271.0794399 | AB61: =T61-HLOOKUP(X61,Feuil1!$C$1:$BL$10,2,FALSE) -> 90 | AC61: =T61-HLOOKUP(X61,Feuil1!$C$1:$BL$10,3,FALSE) -> 70 | AD61: =T61-HLOOKUP(X61,Feuil1!$C$1:$BL$10,4,FALSE) -> 50 | AE61: =T61-HLOOKUP(X61,Feuil1!$C$1:$BL$10,5,FALSE) -> 30 | AF61: =T61-HLOOKUP(X61,Feuil1!$C$1:$BL$10,6,FALSE) -> 10 | AG61: =T61-HLOOKUP(X61,Feuil1!$C$1:$BL$10,7,FALSE) -> -20 | AH61: =T61-HLOOKUP(X61,Feuil1!$C$1:$BL$10,8,FALSE) -> -40 | AI61: =T61-HLOOKUP(X61,Feuil1!$C$1:$BL$10,9,FALSE) -> -50 | AJ61: =T61-HLOOKUP(X61,Feuil1!$C$1:$BL$10,10,FALSE) -> -800 | AQ61: FED +
A62: H | B62: Nord | C62: NPC | D62: 5 | E62: 378539 | F62: DELEPLACE | G62: Nicolas | H62: 1995 | I62: 68.6 | J62: Berck sur Mer | K62: F | L62: 85 | M62: 88 | N62: 90 | O62: 90 | P62: 100 | Q62: 105 | R62: -109 | S62: 105 | T62: 195 | U62: 57.8 | V62: FED + | W62: 5 | X62: =IF(I62="","",IF(A62="H",IF(OR(H62="SEN",H62<1995),VLOOKUP(I62,Feuil1!$A$11:$F$29,6),IF(AND(H62>1994,H62<1998),VLOOKUP(I62,Feuil1!$A$11:$F$29,5),IF(AND(H62>1997,H62<2000),VLOOKUP(I62,Feuil1!$A$11:$F$29,4),IF(AND(H62>1999,H62<2002),VLOOKUP(I62,Feuil1!$A$11:$F$29,3),VLOOKUP(I62,Feuil1!$A$11:$F$29,2))))),IF(OR(H62="SEN",H62<1995),VLOOKUP(I62,Feuil1!$G$11:$L$25,6),IF(AND(H62>1994,H62<1998),VLOOKUP(I62,Feuil1!$G$11:$L$25,5),IF(AND(H62>1997,H62<2000),VLOOKUP(I62,Feuil1!$G$11:$L$25,4),IF(AND(H62>1999,H62<2002),VLOOKUP(I62,Feuil1!$G$11:$L$25,3),VLOOKUP(I62,Feuil1!$G$11:$L$25,2))))))) -> J69 | Y62: 263.3062081 | AB62: =T62-HLOOKUP(X62,Feuil1!$C$1:$BL$10,2,FALSE) -> 85 | AC62: =T62-HLOOKUP(X62,Feuil1!$C$1:$BL$10,3,FALSE) -> 65 | AD62: =T62-HLOOKUP(X62,Feuil1!$C$1:$BL$10,4,FALSE) -> 45 | AE62: =T62-HLOOKUP(X62,Feuil1!$C$1:$BL$10,5,FALSE) -> 25 | AF62: =T62-HLOOKUP(X62,Feuil1!$C$1:$BL$10,6,FALSE) -> 5 | AG62: =T62-HLOOKUP(X62,Feuil1!$C$1:$BL$10,7,FALSE) -> -25 | AH62: =T62-HLOOKUP(X62,Feuil1!$C$1:$BL$10,8,FALSE) -> -45 | AI62: =T62-HLOOKUP(X62,Feuil1!$C$1:$BL$10,9,FALSE) -> -55 | AJ62: =T62-HLOOKUP(X62,Feuil1!$C$1:$BL$10,10,FALSE) -> -805 | AQ62: FED +
A63: H | B63: SO | C63: MPY | D63: 6 | E63: 222054 | F63: JIMENEZ | G63: Valentin | H63: 1995 | I63: 64.6 | J63: TOULOUSE | K63: F | L63: 83 | M63: -86 | N63: -87 | O63: 83 | P63: 107 | Q63: -111 | R63: -111 | S63: 107 | T63: 190 | U63: 60.8 | V63: FED + | W63: 0 | X63: =IF(I63="","",IF(A63="H",IF(OR(H63="SEN",H63<1995),VLOOKUP(I63,Feuil1!$A$11:$F$29,6),IF(AND(H63>1994,H63<1998),VLOOKUP(I63,Feuil1!$A$11:$F$29,5),IF(AND(H63>1997,H63<2000),VLOOKUP(I63,Feuil1!$A$11:$F$29,4),IF(AND(H63>1999,H63<2002),VLOOKUP(I63,Feuil1!$A$11:$F$29,3),VLOOKUP(I63,Feuil1!$A$11:$F$29,2))))),IF(OR(H63="SEN",H63<1995),VLOOKUP(I63,Feuil1!$G$11:$L$25,6),IF(AND(H63>1994,H63<1998),VLOOKUP(I63,Feuil1!$G$11:$L$25,5),IF(AND(H63>1997,H63<2000),VLOOKUP(I63,Feuil1!$G$11:$L$25,4),IF(AND(H63>1999,H63<2002),VLOOKUP(I63,Feuil1!$G$11:$L$25,3),VLOOKUP(I63,Feuil1!$G$11:$L$25,2))))))) -> J69 | Y63: 267.0038225 | AB63: =T63-HLOOKUP(X63,Feuil1!$C$1:$BL$10,2,FALSE) -> 80 | AC63: =T63-HLOOKUP(X63,Feuil1!$C$1:$BL$10,3,FALSE) -> 60 | AD63: =T63-HLOOKUP(X63,Feuil1!$C$1:$BL$10,4,FALSE) -> 40 | AE63: =T63-HLOOKUP(X63,Feuil1!$C$1:$BL$10,5,FALSE) -> 20 | AF63: =T63-HLOOKUP(X63,Feuil1!$C$1:$BL$10,6,FALSE) -> 0 | AG63: =T63-HLOOKUP(X63,Feuil1!$C$1:$BL$10,7,FALSE) -> -30 | AH63: =T63-HLOOKUP(X63,Feuil1!$C$1:$BL$10,8,FALSE) -> -50 | AI63: =T63-HLOOKUP(X63,Feuil1!$C$1:$BL$10,9,FALSE) -> -60 | AJ63: =T63-HLOOKUP(X63,Feuil1!$C$1:$BL$10,10,FALSE) -> -810 | AQ63: FED +
A64: H | B64: NE | C64: ALS | D64: 7 | E64: 311235 | F64: HUYNH | G64: PHUONG | H64: 1995 | I64: 69 | J64: SA Koenigshoffen | K64: F | L64: 78 | M64: 83 | N64: -86 | O64: 83 | P64: 102 | Q64: -108 | R64: -108 | S64: 102 | T64: 185 | U64: 47 | V64: IRG + | W64: 15 | X64: =IF(I64="","",IF(A64="H",IF(OR(H64="SEN",H64<1995),VLOOKUP(I64,Feuil1!$A$11:$F$29,6),IF(AND(H64>1994,H64<1998),VLOOKUP(I64,Feuil1!$A$11:$F$29,5),IF(AND(H64>1997,H64<2000),VLOOKUP(I64,Feuil1!$A$11:$F$29,4),IF(AND(H64>1999,H64<2002),VLOOKUP(I64,Feuil1!$A$11:$F$29,3),VLOOKUP(I64,Feuil1!$A$11:$F$29,2))))),IF(OR(H64="SEN",H64<1995),VLOOKUP(I64,Feuil1!$G$11:$L$25,6),IF(AND(H64>1994,H64<1998),VLOOKUP(I64,Feuil1!$G$11:$L$25,5),IF(AND(H64>1997,H64<2000),VLOOKUP(I64,Feuil1!$G$11:$L$25,4),IF(AND(H64>1999,H64<2002),VLOOKUP(I64,Feuil1!$G$11:$L$25,3),VLOOKUP(I64,Feuil1!$G$11:$L$25,2))))))) -> J69 | Y64: 248.8730174 | AB64: =T64-HLOOKUP(X64,Feuil1!$C$1:$BL$10,2,FALSE) -> 75 | AC64: =T64-HLOOKUP(X64,Feuil1!$C$1:$BL$10,3,FALSE) -> 55 | AD64: =T64-HLOOKUP(X64,Feuil1!$C$1:$BL$10,4,FALSE) -> 35 | AE64: =T64-HLOOKUP(X64,Feuil1!$C$1:$BL$10,5,FALSE) -> 15 | AF64: =T64-HLOOKUP(X64,Feuil1!$C$1:$BL$10,6,FALSE) -> -5 | AG64: =T64-HLOOKUP(X64,Feuil1!$C$1:$BL$10,7,FALSE) -> -35 | AH64: =T64-HLOOKUP(X64,Feuil1!$C$1:$BL$10,8,FALSE) -> -55 | AI64: =T64-HLOOKUP(X64,Feuil1!$C$1:$BL$10,9,FALSE) -> -65 | AJ64: =T64-HLOOKUP(X64,Feuil1!$C$1:$BL$10,10,FALSE) -> -815 | AQ64: IRG +
A65: H | B65: SEST | C65: RAL | D65: 8 | E65: 336197 | F65: DENIS | G65: Brian | H65: 1997 | I65: 64.3 | J65: H.C. CHAMBON-FEUGEROLLES | K65: F | L65: 77 | M65: -82 | N65: 82 | O65: 82 | P65: -100 | Q65: 102 | R65: -108 | S65: 102 | T65: 184 | U65: 55.4 | V65: IRG + | W65: 14 | X65: =IF(I65="","",IF(A65="H",IF(OR(H65="SEN",H65<1995),VLOOKUP(I65,Feuil1!$A$11:$F$29,6),IF(AND(H65>1994,H65<1998),VLOOKUP(I65,Feuil1!$A$11:$F$29,5),IF(AND(H65>1997,H65<2000),VLOOKUP(I65,Feuil1!$A$11:$F$29,4),IF(AND(H65>1999,H65<2002),VLOOKUP(I65,Feuil1!$A$11:$F$29,3),VLOOKUP(I65,Feuil1!$A$11:$F$29,2))))),IF(OR(H65="SEN",H65<1995),VLOOKUP(I65,Feuil1!$G$11:$L$25,6),IF(AND(H65>1994,H65<1998),VLOOKUP(I65,Feuil1!$G$11:$L$25,5),IF(AND(H65>1997,H65<2000),VLOOKUP(I65,Feuil1!$G$11:$L$25,4),IF(AND(H65>1999,H65<2002),VLOOKUP(I65,Feuil1!$G$11:$L$25,3),VLOOKUP(I65,Feuil1!$G$11:$L$25,2))))))) -> J69 | Y65: 259.400092 | AB65: =T65-HLOOKUP(X65,Feuil1!$C$1:$BL$10,2,FALSE) -> 74 | AC65: =T65-HLOOKUP(X65,Feuil1!$C$1:$BL$10,3,FALSE) -> 54 | AD65: =T65-HLOOKUP(X65,Feuil1!$C$1:$BL$10,4,FALSE) -> 34 | AE65: =T65-HLOOKUP(X65,Feuil1!$C$1:$BL$10,5,FALSE) -> 14 | AF65: =T65-HLOOKUP(X65,Feuil1!$C$1:$BL$10,6,FALSE) -> -6 | AG65: =T65-HLOOKUP(X65,Feuil1!$C$1:$BL$10,7,FALSE) -> -36 | AH65: =T65-HLOOKUP(X65,Feuil1!$C$1:$BL$10,8,FALSE) -> -56 | AI65: =T65-HLOOKUP(X65,Feuil1!$C$1:$BL$10,9,FALSE) -> -66 | AJ65: =T65-HLOOKUP(X65,Feuil1!$C$1:$BL$10,10,FALSE) -> -816 | AQ65: IRG +
A66: H | B66: Nord | C66: NPC | D66: 9 | E66: 359842 | F66: REMBAUVILLE | G66: Paul | H66: 1997 | I66: 68 | J66: CA Rosendael | K66: F | L66: 80 | M66: 84 | N66: -85 | O66: 84 | P66: 100 | Q66: -106 | R66: -106 | S66: 100 | T66: 184 | U66: 48 | V66: IRG + | W66: 14 | X66: =IF(I66="","",IF(A66="H",IF(OR(H66="SEN",H66<1995),VLOOKUP(I66,Feuil1!$A$11:$F$29,6),IF(AND(H66>1994,H66<1998),VLOOKUP(I66,Feuil1!$A$11:$F$29,5),IF(AND(H66>1997,H66<2000),VLOOKUP(I66,Feuil1!$A$11:$F$29,4),IF(AND(H66>1999,H66<2002),VLOOKUP(I66,Feuil1!$A$11:$F$29,3),VLOOKUP(I66,Feuil1!$A$11:$F$29,2))))),IF(OR(H66="SEN",H66<1995),VLOOKUP(I66,Feuil1!$G$11:$L$25,6),IF(AND(H66>1994,H66<1998),VLOOKUP(I66,Feuil1!$G$11:$L$25,5),IF(AND(H66>1997,H66<2000),VLOOKUP(I66,Feuil1!$G$11:$L$25,4),IF(AND(H66>1999,H66<2002),VLOOKUP(I66,Feuil1!$G$11:$L$25,3),VLOOKUP(I66,Feuil1!$G$11:$L$25,2))))))) -> J69 | Y66: 249.8687427 | AB66: =T66-HLOOKUP(X66,Feuil1!$C$1:$BL$10,2,FALSE) -> 74 | AC66: =T66-HLOOKUP(X66,Feuil1!$C$1:$BL$10,3,FALSE) -> 54 | AD66: =T66-HLOOKUP(X66,Feuil1!$C$1:$BL$10,4,FALSE) -> 34 | AE66: =T66-HLOOKUP(X66,Feuil1!$C$1:$BL$10,5,FALSE) -> 14 | AF66: =T66-HLOOKUP(X66,Feuil1!$C$1:$BL$10,6,FALSE) -> -6 | AG66: =T66-HLOOKUP(X66,Feuil1!$C$1:$BL$10,7,FALSE) -> -36 | AH66: =T66-HLOOKUP(X66,Feuil1!$C$1:$BL$10,8,FALSE) -> -56 | AI66: =T66-HLOOKUP(X66,Feuil1!$C$1:$BL$10,9,FALSE) -> -66 | AJ66: =T66-HLOOKUP(X66,Feuil1!$C$1:$BL$10,10,FALSE) -> -816 | AQ66: IRG +
A67: H | B67: CO | C67: CEN | D67: 10 | E67: 296622 | F67: MONTGUILLON | G67: Benjamin | H67: 1996 | I67: 68.55 | J67: EC Chartres | K67: F | L67: 80 | M67: -83 | N67: -85 | O67: 80 | P67: 100 | Q67: -103 | R67: -103 | S67: 100 | T67: 180 | U67: 42.9 | V67: IRG + | W67: 10 | X67: =IF(I67="","",IF(A67="H",IF(OR(H67="SEN",H67<1995),VLOOKUP(I67,Feuil1!$A$11:$F$29,6),IF(AND(H67>1994,H67<1998),VLOOKUP(I67,Feuil1!$A$11:$F$29,5),IF(AND(H67>1997,H67<2000),VLOOKUP(I67,Feuil1!$A$11:$F$29,4),IF(AND(H67>1999,H67<2002),VLOOKUP(I67,Feuil1!$A$11:$F$29,3),VLOOKUP(I67,Feuil1!$A$11:$F$29,2))))),IF(OR(H67="SEN",H67<1995),VLOOKUP(I67,Feuil1!$G$11:$L$25,6),IF(AND(H67>1994,H67<1998),VLOOKUP(I67,Feuil1!$G$11:$L$25,5),IF(AND(H67>1997,H67<2000),VLOOKUP(I67,Feuil1!$G$11:$L$25,4),IF(AND(H67>1999,H67<2002),VLOOKUP(I67,Feuil1!$G$11:$L$25,3),VLOOKUP(I67,Feuil1!$G$11:$L$25,2))))))) -> J69 | Y67: 243.1660397 | AB67: =T67-HLOOKUP(X67,Feuil1!$C$1:$BL$10,2,FALSE) -> 70 | AC67: =T67-HLOOKUP(X67,Feuil1!$C$1:$BL$10,3,FALSE) -> 50 | AD67: =T67-HLOOKUP(X67,Feuil1!$C$1:$BL$10,4,FALSE) -> 30 | AE67: =T67-HLOOKUP(X67,Feuil1!$C$1:$BL$10,5,FALSE) -> 10 | AF67: =T67-HLOOKUP(X67,Feuil1!$C$1:$BL$10,6,FALSE) -> -10 | AG67: =T67-HLOOKUP(X67,Feuil1!$C$1:$BL$10,7,FALSE) -> -40 | AH67: =T67-HLOOKUP(X67,Feuil1!$C$1:$BL$10,8,FALSE) -> -60 | AI67: =T67-HLOOKUP(X67,Feuil1!$C$1:$BL$10,9,FALSE) -> -70 | AJ67: =T67-HLOOKUP(X67,Feuil1!$C$1:$BL$10,10,FALSE) -> -820 | AQ67: IRG +
A68: H | B68: CO | C68: BNO | D68: 11 | E68: 169488 | F68: COISNARD | G68: Rémy | H68: 1995 | I68: 67.95 | J68: Caen CHM | K68: F | L68: 70 | M68: 75 | N68: 80 | O68: 80 | P68: 90 | Q68: -97 | R68: -101 | S68: 90 | T68: 170 | U68: 34.1 | V68: IRG + | W68: 0 | X68: =IF(I68="","",IF(A68="H",IF(OR(H68="SEN",H68<1995),VLOOKUP(I68,Feuil1!$A$11:$F$29,6),IF(AND(H68>1994,H68<1998),VLOOKUP(I68,Feuil1!$A$11:$F$29,5),IF(AND(H68>1997,H68<2000),VLOOKUP(I68,Feuil1!$A$11:$F$29,4),IF(AND(H68>1999,H68<2002),VLOOKUP(I68,Feuil1!$A$11:$F$29,3),VLOOKUP(I68,Feuil1!$A$11:$F$29,2))))),IF(OR(H68="SEN",H68<1995),VLOOKUP(I68,Feuil1!$G$11:$L$25,6),IF(AND(H68>1994,H68<1998),VLOOKUP(I68,Feuil1!$G$11:$L$25,5),IF(AND(H68>1997,H68<2000),VLOOKUP(I68,Feuil1!$G$11:$L$25,4),IF(AND(H68>1999,H68<2002),VLOOKUP(I68,Feuil1!$G$11:$L$25,3),VLOOKUP(I68,Feuil1!$G$11:$L$25,2))))))) -> J69 | Y68: 230.9674056 | AB68: =T68-HLOOKUP(X68,Feuil1!$C$1:$BL$10,2,FALSE) -> 60 | AC68: =T68-HLOOKUP(X68,Feuil1!$C$1:$BL$10,3,FALSE) -> 40 | AD68: =T68-HLOOKUP(X68,Feuil1!$C$1:$BL$10,4,FALSE) -> 20 | AE68: =T68-HLOOKUP(X68,Feuil1!$C$1:$BL$10,5,FALSE) -> 0 | AF68: =T68-HLOOKUP(X68,Feuil1!$C$1:$BL$10,6,FALSE) -> -20 | AG68: =T68-HLOOKUP(X68,Feuil1!$C$1:$BL$10,7,FALSE) -> -50 | AH68: =T68-HLOOKUP(X68,Feuil1!$C$1:$BL$10,8,FALSE) -> -70 | AI68: =T68-HLOOKUP(X68,Feuil1!$C$1:$BL$10,9,FALSE) -> -80 | AJ68: =T68-HLOOKUP(X68,Feuil1!$C$1:$BL$10,10,FALSE) -> -830 | AQ68: IRG +
A69: H | B69: SE | C69: AUV | D69: 12 | E69: 319717 | F69: ALTAYRAC | G69: Nicolas | H69: 1997 | I69: 68.4 | J69: AURILLAC | K69: F | L69: 69 | M69: -72 | N69: 72 | O69: 72 | P69: 90 | Q69: -95 | R69: 95 | S69: 95 | T69: 167 | U69: 30.2 | V69: REG + | W69: 17 | X69: =IF(I69="","",IF(A69="H",IF(OR(H69="SEN",H69<1995),VLOOKUP(I69,Feuil1!$A$11:$F$29,6),IF(AND(H69>1994,H69<1998),VLOOKUP(I69,Feuil1!$A$11:$F$29,5),IF(AND(H69>1997,H69<2000),VLOOKUP(I69,Feuil1!$A$11:$F$29,4),IF(AND(H69>1999,H69<2002),VLOOKUP(I69,Feuil1!$A$11:$F$29,3),VLOOKUP(I69,Feuil1!$A$11:$F$29,2))))),IF(OR(H69="SEN",H69<1995),VLOOKUP(I69,Feuil1!$G$11:$L$25,6),IF(AND(H69>1994,H69<1998),VLOOKUP(I69,Feuil1!$G$11:$L$25,5),IF(AND(H69>1997,H69<2000),VLOOKUP(I69,Feuil1!$G$11:$L$25,4),IF(AND(H69>1999,H69<2002),VLOOKUP(I69,Feuil1!$G$11:$L$25,3),VLOOKUP(I69,Feuil1!$G$11:$L$25,2))))))) -> J69 | Y69: 225.923042 | AB69: =T69-HLOOKUP(X69,Feuil1!$C$1:$BL$10,2,FALSE) -> 57 | AC69: =T69-HLOOKUP(X69,Feuil1!$C$1:$BL$10,3,FALSE) -> 37 | AD69: =T69-HLOOKUP(X69,Feuil1!$C$1:$BL$10,4,FALSE) -> 17 | AE69: =T69-HLOOKUP(X69,Feuil1!$C$1:$BL$10,5,FALSE) -> -3 | AF69: =T69-HLOOKUP(X69,Feuil1!$C$1:$BL$10,6,FALSE) -> -23 | AG69: =T69-HLOOKUP(X69,Feuil1!$C$1:$BL$10,7,FALSE) -> -53 | AH69: =T69-HLOOKUP(X69,Feuil1!$C$1:$BL$10,8,FALSE) -> -73 | AI69: =T69-HLOOKUP(X69,Feuil1!$C$1:$BL$10,9,FALSE) -> -83 | AJ69: =T69-HLOOKUP(X69,Feuil1!$C$1:$BL$10,10,FALSE) -> -833 | AQ69: REG +
A70: H | B70: Nord | C70: NPC | D70: NC | E70: 225360 | F70: PAPEGAY | G70: Florian | H70: 1995 | I70: 66.4 | J70: St Pol sur Mer | K70: F | L70: -90 | M70: -90 | N70: -90 | O70: 0 | P70: - | Q70: - | R70: - | S70: 0 | T70: 0 | U70: -132.8 | V70: DEB | W70: -110 | X70: =IF(I70="","",IF(A70="H",IF(OR(H70="SEN",H70<1995),VLOOKUP(I70,Feuil1!$A$11:$F$29,6),IF(AND(H70>1994,H70<1998),VLOOKUP(I70,Feuil1!$A$11:$F$29,5),IF(AND(H70>1997,H70<2000),VLOOKUP(I70,Feuil1!$A$11:$F$29,4),IF(AND(H70>1999,H70<2002),VLOOKUP(I70,Feuil1!$A$11:$F$29,3),VLOOKUP(I70,Feuil1!$A$11:$F$29,2))))),IF(OR(H70="SEN",H70<1995),VLOOKUP(I70,Feuil1!$G$11:$L$25,6),IF(AND(H70>1994,H70<1998),VLOOKUP(I70,Feuil1!$G$11:$L$25,5),IF(AND(H70>1997,H70<2000),VLOOKUP(I70,Feuil1!$G$11:$L$25,4),IF(AND(H70>1999,H70<2002),VLOOKUP(I70,Feuil1!$G$11:$L$25,3),VLOOKUP(I70,Feuil1!$G$11:$L$25,2))))))) -> J69 | Y70: 0 | AB70: =T70-HLOOKUP(X70,Feuil1!$C$1:$BL$10,2,FALSE) -> -110 | AC70: =T70-HLOOKUP(X70,Feuil1!$C$1:$BL$10,3,FALSE) -> -130 | AD70: =T70-HLOOKUP(X70,Feuil1!$C$1:$BL$10,4,FALSE) -> -150 | AE70: =T70-HLOOKUP(X70,Feuil1!$C$1:$BL$10,5,FALSE) -> -170 | AF70: =T70-HLOOKUP(X70,Feuil1!$C$1:$BL$10,6,FALSE) -> -190 | AG70: =T70-HLOOKUP(X70,Feuil1!$C$1:$BL$10,7,FALSE) -> -220 | AH70: =T70-HLOOKUP(X70,Feuil1!$C$1:$BL$10,8,FALSE) -> -240 | AI70: =T70-HLOOKUP(X70,Feuil1!$C$1:$BL$10,9,FALSE) -> -250 | AJ70: =T70-HLOOKUP(X70,Feuil1!$C$1:$BL$10,10,FALSE) -> -1000 | AQ70: DEB
A71: H | B71: Nord | C71: IDF | D71: NC | E71: 368740 | F71: MENDES | G71: Baptiste | H71: 1997 | I71: 67.45 | J71: Rueil AC | K71: F | L71: 75 | M71: -85 | N71: -85 | O71: 75 | P71: -95 | Q71: -95 | R71: -95 | S71: 0 | T71: 0 | U71: -134.9 | V71: DEB | W71: -110 | X71: =IF(I71="","",IF(A71="H",IF(OR(H71="SEN",H71<1995),VLOOKUP(I71,Feuil1!$A$11:$F$29,6),IF(AND(H71>1994,H71<1998),VLOOKUP(I71,Feuil1!$A$11:$F$29,5),IF(AND(H71>1997,H71<2000),VLOOKUP(I71,Feuil1!$A$11:$F$29,4),IF(AND(H71>1999,H71<2002),VLOOKUP(I71,Feuil1!$A$11:$F$29,3),VLOOKUP(I71,Feuil1!$A$11:$F$29,2))))),IF(OR(H71="SEN",H71<1995),VLOOKUP(I71,Feuil1!$G$11:$L$25,6),IF(AND(H71>1994,H71<1998),VLOOKUP(I71,Feuil1!$G$11:$L$25,5),IF(AND(H71>1997,H71<2000),VLOOKUP(I71,Feuil1!$G$11:$L$25,4),IF(AND(H71>1999,H71<2002),VLOOKUP(I71,Feuil1!$G$11:$L$25,3),VLOOKUP(I71,Feuil1!$G$11:$L$25,2))))))) -> J69 | Y71: 0 | AB71: =T71-HLOOKUP(X71,Feuil1!$C$1:$BL$10,2,FALSE) -> -110 | AC71: =T71-HLOOKUP(X71,Feuil1!$C$1:$BL$10,3,FALSE) -> -130 | AD71: =T71-HLOOKUP(X71,Feuil1!$C$1:$BL$10,4,FALSE) -> -150 | AE71: =T71-HLOOKUP(X71,Feuil1!$C$1:$BL$10,5,FALSE) -> -170 | AF71: =T71-HLOOKUP(X71,Feuil1!$C$1:$BL$10,6,FALSE) -> -190 | AG71: =T71-HLOOKUP(X71,Feuil1!$C$1:$BL$10,7,FALSE) -> -220 | AH71: =T71-HLOOKUP(X71,Feuil1!$C$1:$BL$10,8,FALSE) -> -240 | AI71: =T71-HLOOKUP(X71,Feuil1!$C$1:$BL$10,9,FALSE) -> -250 | AJ71: =T71-HLOOKUP(X71,Feuil1!$C$1:$BL$10,10,FALSE) -> -1000 | AQ71: DEB
A72: H | B72: NE | C72: LOR | D72: NC | E72: 360359 | F72: MULLER GROSIUS | G72: Johan | H72: 1997 | I72: 68.9 | J72: A.O.C.Pte-ROSSELLE | K72: F | L72: -75 | M72: 75 | N72: -82 | O72: 75 | P72: -95 | Q72: -95 | R72: -95 | S72: 0 | T72: 0 | U72: -137.8 | V72: DEB | W72: -110 | X72: =IF(I72="","",IF(A72="H",IF(OR(H72="SEN",H72<1995),VLOOKUP(I72,Feuil1!$A$11:$F$29,6),IF(AND(H72>1994,H72<1998),VLOOKUP(I72,Feuil1!$A$11:$F$29,5),IF(AND(H72>1997,H72<2000),VLOOKUP(I72,Feuil1!$A$11:$F$29,4),IF(AND(H72>1999,H72<2002),VLOOKUP(I72,Feuil1!$A$11:$F$29,3),VLOOKUP(I72,Feuil1!$A$11:$F$29,2))))),IF(OR(H72="SEN",H72<1995),VLOOKUP(I72,Feuil1!$G$11:$L$25,6),IF(AND(H72>1994,H72<1998),VLOOKUP(I72,Feuil1!$G$11:$L$25,5),IF(AND(H72>1997,H72<2000),VLOOKUP(I72,Feuil1!$G$11:$L$25,4),IF(AND(H72>1999,H72<2002),VLOOKUP(I72,Feuil1!$G$11:$L$25,3),VLOOKUP(I72,Feuil1!$G$11:$L$25,2))))))) -> J69 | Y72: 0 | AB72: =T72-HLOOKUP(X72,Feuil1!$C$1:$BL$10,2,FALSE) -> -110 | AC72: =T72-HLOOKUP(X72,Feuil1!$C$1:$BL$10,3,FALSE) -> -130 | AD72: =T72-HLOOKUP(X72,Feuil1!$C$1:$BL$10,4,FALSE) -> -150 | AE72: =T72-HLOOKUP(X72,Feuil1!$C$1:$BL$10,5,FALSE) -> -170 | AF72: =T72-HLOOKUP(X72,Feuil1!$C$1:$BL$10,6,FALSE) -> -190 | AG72: =T72-HLOOKUP(X72,Feuil1!$C$1:$BL$10,7,FALSE) -> -220 | AH72: =T72-HLOOKUP(X72,Feuil1!$C$1:$BL$10,8,FALSE) -> -240 | AI72: =T72-HLOOKUP(X72,Feuil1!$C$1:$BL$10,9,FALSE) -> -250 | AJ72: =T72-HLOOKUP(X72,Feuil1!$C$1:$BL$10,10,FALSE) -> -1000 | AQ72: DEB
A74: H | B74: SO | C74: MPY | D74: 1 | E74: 227534 | F74: DESTRUEL | G74: Nicolas | H74: 1995 | I74: 76.4 | J74: FIGEAC | K74: F | L74: 85 | M74: 95 | N74: -98 | O74: =IF(H74="","",IF(MAXA(L74:N74)<=0,0,MAXA(L74:N74))) -> 95 | P74: 113 | Q74: 118 | R74: 120 | S74: =IF(H74="","",IF(MAXA(P74:R74)<=0,0,MAXA(P74:R74))) -> 120 | T74: =IF(H74="","",IF(OR(O74=0,S74=0),0,O74+S74)) -> 215 | U74: =T74-I74*2 -> 62.2 | V74: =IF(H74="","",AQ74) -> FED + | W74: =IF(AJ74>=0,AJ74,IF(AI74>=0,AI74,IF(AH74>=0,AH74,IF(AG74>=0,AG74,IF(AF74>=0,AF74,IF(AE74>=0,AE74,IF(AD74>=0,AD74,IF(AC74>=0,AC74,AB74)))))))) -> 5 | X74: =IF(I74="","",IF(A74="H",IF(OR(H74="SEN",H74<1995),VLOOKUP(I74,Feuil1!$A$11:$F$29,6),IF(AND(H74>1994,H74<1998),VLOOKUP(I74,Feuil1!$A$11:$F$29,5),IF(AND(H74>1997,H74<2000),VLOOKUP(I74,Feuil1!$A$11:$F$29,4),IF(AND(H74>1999,H74<2002),VLOOKUP(I74,Feuil1!$A$11:$F$29,3),VLOOKUP(I74,Feuil1!$A$11:$F$29,2))))),IF(OR(H74="SEN",H74<1995),VLOOKUP(I74,Feuil1!$G$11:$L$25,6),IF(AND(H74>1994,H74<1998),VLOOKUP(I74,Feuil1!$G$11:$L$25,5),IF(AND(H74>1997,H74<2000),VLOOKUP(I74,Feuil1!$G$11:$L$25,4),IF(AND(H74>1999,H74<2002),VLOOKUP(I74,Feuil1!$G$11:$L$25,3),VLOOKUP(I74,Feuil1!$G$11:$L$25,2))))))) -> J77 | Y74: =IF(I74="","",IF(A74="H",10^(0.794358141*LOG(I74/174.393)^2)*T74,IF(A74="F",10^(0.89726074*LOG(I74/148.026)^2)*T74,""))) -> 271.9534238 | AB74: =T74-HLOOKUP(X74,Feuil1!$C$1:$BL$10,2,FALSE) -> 85 | AC74: =T74-HLOOKUP(X74,Feuil1!$C$1:$BL$10,3,FALSE) -> 65 | AD74: =T74-HLOOKUP(X74,Feuil1!$C$1:$BL$10,4,FALSE) -> 45 | AE74: =T74-HLOOKUP(X74,Feuil1!$C$1:$BL$10,5,FALSE) -> 25 | AF74: =T74-HLOOKUP(X74,Feuil1!$C$1:$BL$10,6,FALSE) -> 5 | AG74: =T74-HLOOKUP(X74,Feuil1!$C$1:$BL$10,7,FALSE) -> -25 | AH74: =T74-HLOOKUP(X74,Feuil1!$C$1:$BL$10,8,FALSE) -> -45 | AI74: =T74-HLOOKUP(X74,Feuil1!$C$1:$BL$10,9,FALSE) -> -70 | AJ74: =T74-HLOOKUP(X74,Feuil1!$C$1:$BL$10,10,FALSE) -> -9785 | AQ74: =IF(AJ74>=0,$AJ$4,IF(AI74>=0,$AI$4,IF(AH74>=0,$AH$4,IF(AG74>=0,$AG$4,IF(AF74>=0,$AF$4,IF(AE74>=0,$AE$4,IF(AD74>=0,$AD$4,IF(AC74>=0,$AC$4,$AB$4)))))))) -> FED +
A75: H | B75: NE | C75: FCO | D75: 2 | E75: 246718 | F75: PHARIZAT | G75: Kévin | H75: 1997 | I75: 75.7 | J75: LF Besançon | K75: F | L75: -87 | M75: 87 | N75: 92 | O75: =IF(H75="","",IF(MAXA(L75:N75)<=0,0,MAXA(L75:N75))) -> 92 | P75: 111 | Q75: -118 | R75: -118 | S75: =IF(H75="","",IF(MAXA(P75:R75)<=0,0,MAXA(P75:R75))) -> 111 | T75: =IF(H75="","",IF(OR(O75=0,S75=0),0,O75+S75)) -> 203 | U75: =T75-I75*2 -> 51.6 | V75: =IF(H75="","",AQ75) -> IRG + | W75: =IF(AJ75>=0,AJ75,IF(AI75>=0,AI75,IF(AH75>=0,AH75,IF(AG75>=0,AG75,IF(AF75>=0,AF75,IF(AE75>=0,AE75,IF(AD75>=0,AD75,IF(AC75>=0,AC75,AB75)))))))) -> 13 | X75: =IF(I75="","",IF(A75="H",IF(OR(H75="SEN",H75<1995),VLOOKUP(I75,Feuil1!$A$11:$F$29,6),IF(AND(H75>1994,H75<1998),VLOOKUP(I75,Feuil1!$A$11:$F$29,5),IF(AND(H75>1997,H75<2000),VLOOKUP(I75,Feuil1!$A$11:$F$29,4),IF(AND(H75>1999,H75<2002),VLOOKUP(I75,Feuil1!$A$11:$F$29,3),VLOOKUP(I75,Feuil1!$A$11:$F$29,2))))),IF(OR(H75="SEN",H75<1995),VLOOKUP(I75,Feuil1!$G$11:$L$25,6),IF(AND(H75>1994,H75<1998),VLOOKUP(I75,Feuil1!$G$11:$L$25,5),IF(AND(H75>1997,H75<2000),VLOOKUP(I75,Feuil1!$G$11:$L$25,4),IF(AND(H75>1999,H75<2002),VLOOKUP(I75,Feuil1!$G$11:$L$25,3),VLOOKUP(I75,Feuil1!$G$11:$L$25,2))))))) -> J77 | Y75: =IF(I75="","",IF(A75="H",10^(0.794358141*LOG(I75/174.393)^2)*T75,IF(A75="F",10^(0.89726074*LOG(I75/148.026)^2)*T75,""))) -> 258.1316024 | AB75: =T75-HLOOKUP(X75,Feuil1!$C$1:$BL$10,2,FALSE) -> 73 | AC75: =T75-HLOOKUP(X75,Feuil1!$C$1:$BL$10,3,FALSE) -> 53 | AD75: =T75-HLOOKUP(X75,Feuil1!$C$1:$BL$10,4,FALSE) -> 33 | AE75: =T75-HLOOKUP(X75,Feuil1!$C$1:$BL$10,5,FALSE) -> 13 | AF75: =T75-HLOOKUP(X75,Feuil1!$C$1:$BL$10,6,FALSE) -> -7 | AG75: =T75-HLOOKUP(X75,Feuil1!$C$1:$BL$10,7,FALSE) -> -37 | AH75: =T75-HLOOKUP(X75,Feuil1!$C$1:$BL$10,8,FALSE) -> -57 | AI75: =T75-HLOOKUP(X75,Feuil1!$C$1:$BL$10,9,FALSE) -> -82 | AJ75: =T75-HLOOKUP(X75,Feuil1!$C$1:$BL$10,10,FALSE) -> -9797 | AQ75: =IF(AJ75>=0,$AJ$4,IF(AI75>=0,$AI$4,IF(AH75>=0,$AH$4,IF(AG75>=0,$AG$4,IF(AF75>=0,$AF$4,IF(AE75>=0,$AE$4,IF(AD75>=0,$AD$4,IF(AC75>=0,$AC$4,$AB$4)))))))) -> IRG +
A76: H | B76: CO | C76: BRE | D76: 3 | E76: 361769 | F76: LE GALL | G76: Jean-Baptiste | H76: 1996 | I76: 74.3 | J76: AL Quimper | K76: F | L76: 80 | M76: -85 | N76: 85 | O76: =IF(H76="","",IF(MAXA(L76:N76)<=0,0,MAXA(L76:N76))) -> 85 | P76: 115 | Q76: -120 | R76: -120 | S76: =IF(H76="","",IF(MAXA(P76:R76)<=0,0,MAXA(P76:R76))) -> 115 | T76: =IF(H76="","",IF(OR(O76=0,S76=0),0,O76+S76)) -> 200 | U76: =T76-I76*2 -> 51.4 | V76: =IF(H76="","",AQ76) -> IRG + | W76: =IF(AJ76>=0,AJ76,IF(AI76>=0,AI76,IF(AH76>=0,AH76,IF(AG76>=0,AG76,IF(AF76>=0,AF76,IF(AE76>=0,AE76,IF(AD76>=0,AD76,IF(AC76>=0,AC76,AB76)))))))) -> 10 | X76: =IF(I76="","",IF(A76="H",IF(OR(H76="SEN",H76<1995),VLOOKUP(I76,Feuil1!$A$11:$F$29,6),IF(AND(H76>1994,H76<1998),VLOOKUP(I76,Feuil1!$A$11:$F$29,5),IF(AND(H76>1997,H76<2000),VLOOKUP(I76,Feuil1!$A$11:$F$29,4),IF(AND(H76>1999,H76<2002),VLOOKUP(I76,Feuil1!$A$11:$F$29,3),VLOOKUP(I76,Feuil1!$A$11:$F$29,2))))),IF(OR(H76="SEN",H76<1995),VLOOKUP(I76,Feuil1!$G$11:$L$25,6),IF(AND(H76>1994,H76<1998),VLOOKUP(I76,Feuil1!$G$11:$L$25,5),IF(AND(H76>1997,H76<2000),VLOOKUP(I76,Feuil1!$G$11:$L$25,4),IF(AND(H76>1999,H76<2002),VLOOKUP(I76,Feuil1!$G$11:$L$25,3),VLOOKUP(I76,Feuil1!$G$11:$L$25,2))))))) -> J77 | Y76: =IF(I76="","",IF(A76="H",10^(0.794358141*LOG(I76/174.393)^2)*T76,IF(A76="F",10^(0.89726074*LOG(I76/148.026)^2)*T76,""))) -> 257.0960597 | AB76: =T76-HLOOKUP(X76,Feuil1!$C$1:$BL$10,2,FALSE) -> 70 | AC76: =T76-HLOOKUP(X76,Feuil1!$C$1:$BL$10,3,FALSE) -> 50 | AD76: =T76-HLOOKUP(X76,Feuil1!$C$1:$BL$10,4,FALSE) -> 30 | AE76: =T76-HLOOKUP(X76,Feuil1!$C$1:$BL$10,5,FALSE) -> 10 | AF76: =T76-HLOOKUP(X76,Feuil1!$C$1:$BL$10,6,FALSE) -> -10 | AG76: =T76-HLOOKUP(X76,Feuil1!$C$1:$BL$10,7,FALSE) -> -40 | AH76: =T76-HLOOKUP(X76,Feuil1!$C$1:$BL$10,8,FALSE) -> -60 | AI76: =T76-HLOOKUP(X76,Feuil1!$C$1:$BL$10,9,FALSE) -> -85 | AJ76: =T76-HLOOKUP(X76,Feuil1!$C$1:$BL$10,10,FALSE) -> -9800 | AQ76: =IF(AJ76>=0,$AJ$4,IF(AI76>=0,$AI$4,IF(AH76>=0,$AH$4,IF(AG76>=0,$AG$4,IF(AF76>=0,$AF$4,IF(AE76>=0,$AE$4,IF(AD76>=0,$AD$4,IF(AC76>=0,$AC$4,$AB$4)))))))) -> IRG +
A77: H | B77: SEST | C77: CAZ | D77: NC | E77: 301051 | F77: CINQUIN | G77: Nicolas | H77: 1996 | I77: 74.4 | J77: E.S. VILLENEUVE LOUBET | K77: F | L77: -95 | M77: -96 | N77: -96 | O77: =IF(H77="","",IF(MAXA(L77:N77)<=0,0,MAXA(L77:N77))) -> 0 | P77: -107 | Q77: -107 | R77: -107 | S77: =IF(H77="","",IF(MAXA(P77:R77)<=0,0,MAXA(P77:R77))) -> 0 | T77: =IF(H77="","",IF(OR(O77=0,S77=0),0,O77+S77)) -> 0 | U77: =T77-I77*2 -> -148.8 | V77: =IF(H77="","",AQ77) -> DEB | W77: =IF(AJ77>=0,AJ77,IF(AI77>=0,AI77,IF(AH77>=0,AH77,IF(AG77>=0,AG77,IF(AF77>=0,AF77,IF(AE77>=0,AE77,IF(AD77>=0,AD77,IF(AC77>=0,AC77,AB77)))))))) -> -130 | X77: =IF(I77="","",IF(A77="H",IF(OR(H77="SEN",H77<1995),VLOOKUP(I77,Feuil1!$A$11:$F$29,6),IF(AND(H77>1994,H77<1998),VLOOKUP(I77,Feuil1!$A$11:$F$29,5),IF(AND(H77>1997,H77<2000),VLOOKUP(I77,Feuil1!$A$11:$F$29,4),IF(AND(H77>1999,H77<2002),VLOOKUP(I77,Feuil1!$A$11:$F$29,3),VLOOKUP(I77,Feuil1!$A$11:$F$29,2))))),IF(OR(H77="SEN",H77<1995),VLOOKUP(I77,Feuil1!$G$11:$L$25,6),IF(AND(H77>1994,H77<1998),VLOOKUP(I77,Feuil1!$G$11:$L$25,5),IF(AND(H77>1997,H77<2000),VLOOKUP(I77,Feuil1!$G$11:$L$25,4),IF(AND(H77>1999,H77<2002),VLOOKUP(I77,Feuil1!$G$11:$L$25,3),VLOOKUP(I77,Feuil1!$G$11:$L$25,2))))))) -> J77 | Y77: =IF(I77="","",IF(A77="H",10^(0.794358141*LOG(I77/174.393)^2)*T77,IF(A77="F",10^(0.89726074*LOG(I77/148.026)^2)*T77,""))) -> 0 | AB77: =T77-HLOOKUP(X77,Feuil1!$C$1:$BL$10,2,FALSE) -> -130 | AC77: =T77-HLOOKUP(X77,Feuil1!$C$1:$BL$10,3,FALSE) -> -150 | AD77: =T77-HLOOKUP(X77,Feuil1!$C$1:$BL$10,4,FALSE) -> -170 | AE77: =T77-HLOOKUP(X77,Feuil1!$C$1:$BL$10,5,FALSE) -> -190 | AF77: =T77-HLOOKUP(X77,Feuil1!$C$1:$BL$10,6,FALSE) -> -210 | AG77: =T77-HLOOKUP(X77,Feuil1!$C$1:$BL$10,7,FALSE) -> -240 | AH77: =T77-HLOOKUP(X77,Feuil1!$C$1:$BL$10,8,FALSE) -> -260 | AI77: =T77-HLOOKUP(X77,Feuil1!$C$1:$BL$10,9,FALSE) -> -285 | AJ77: =T77-HLOOKUP(X77,Feuil1!$C$1:$BL$10,10,FALSE) -> -10000 | AQ77: =IF(AJ77>=0,$AJ$4,IF(AI77>=0,$AI$4,IF(AH77>=0,$AH$4,IF(AG77>=0,$AG$4,IF(AF77>=0,$AF$4,IF(AE77>=0,$AE$4,IF(AD77>=0,$AD$4,IF(AC77>=0,$AC$4,$AB$4)))))))) -> DEB
A78: H | B78: Nord | C78: NPC | D78: NC | E78: 338801 | F78: HAYNAU | G78: Aurélien | H78: 1995 | I78: 76.1 | J78: CA Rosendael | K78: F | L78: 90 | M78: -92 | N78: -92 | O78: =IF(H78="","",IF(MAXA(L78:N78)<=0,0,MAXA(L78:N78))) -> 90 | P78: -115 | Q78: -120 | R78: -120 | S78: =IF(H78="","",IF(MAXA(P78:R78)<=0,0,MAXA(P78:R78))) -> 0 | T78: =IF(H78="","",IF(OR(O78=0,S78=0),0,O78+S78)) -> 0 | U78: =T78-I78*2 -> -152.2 | V78: =IF(H78="","",AQ78) -> DEB | W78: =IF(AJ78>=0,AJ78,IF(AI78>=0,AI78,IF(AH78>=0,AH78,IF(AG78>=0,AG78,IF(AF78>=0,AF78,IF(AE78>=0,AE78,IF(AD78>=0,AD78,IF(AC78>=0,AC78,AB78)))))))) -> -130 | X78: =IF(I78="","",IF(A78="H",IF(OR(H78="SEN",H78<1995),VLOOKUP(I78,Feuil1!$A$11:$F$29,6),IF(AND(H78>1994,H78<1998),VLOOKUP(I78,Feuil1!$A$11:$F$29,5),IF(AND(H78>1997,H78<2000),VLOOKUP(I78,Feuil1!$A$11:$F$29,4),IF(AND(H78>1999,H78<2002),VLOOKUP(I78,Feuil1!$A$11:$F$29,3),VLOOKUP(I78,Feuil1!$A$11:$F$29,2))))),IF(OR(H78="SEN",H78<1995),VLOOKUP(I78,Feuil1!$G$11:$L$25,6),IF(AND(H78>1994,H78<1998),VLOOKUP(I78,Feuil1!$G$11:$L$25,5),IF(AND(H78>1997,H78<2000),VLOOKUP(I78,Feuil1!$G$11:$L$25,4),IF(AND(H78>1999,H78<2002),VLOOKUP(I78,Feuil1!$G$11:$L$25,3),VLOOKUP(I78,Feuil1!$G$11:$L$25,2))))))) -> J77 | Y78: =IF(I78="","",IF(A78="H",10^(0.794358141*LOG(I78/174.393)^2)*T78,IF(A78="F",10^(0.89726074*LOG(I78/148.026)^2)*T78,""))) -> 0 | AB78: =T78-HLOOKUP(X78,Feuil1!$C$1:$BL$10,2,FALSE) -> -130 | AC78: =T78-HLOOKUP(X78,Feuil1!$C$1:$BL$10,3,FALSE) -> -150 | AD78: =T78-HLOOKUP(X78,Feuil1!$C$1:$BL$10,4,FALSE) -> -170 | AE78: =T78-HLOOKUP(X78,Feuil1!$C$1:$BL$10,5,FALSE) -> -190 | AF78: =T78-HLOOKUP(X78,Feuil1!$C$1:$BL$10,6,FALSE) -> -210 | AG78: =T78-HLOOKUP(X78,Feuil1!$C$1:$BL$10,7,FALSE) -> -240 | AH78: =T78-HLOOKUP(X78,Feuil1!$C$1:$BL$10,8,FALSE) -> -260 | AI78: =T78-HLOOKUP(X78,Feuil1!$C$1:$BL$10,9,FALSE) -> -285 | AJ78: =T78-HLOOKUP(X78,Feuil1!$C$1:$BL$10,10,FALSE) -> -10000 | AQ78: =IF(AJ78>=0,$AJ$4,IF(AI78>=0,$AI$4,IF(AH78>=0,$AH$4,IF(AG78>=0,$AG$4,IF(AF78>=0,$AF$4,IF(AE78>=0,$AE$4,IF(AD78>=0,$AD$4,IF(AC78>=0,$AC$4,$AB$4)))))))) -> DEB
A80: H | B80: NE | C80: CHA | D80: 1 | E80: 192457 | F80: VAUTARD | G80: Brandon | H80: 1996 | I80: 78.1 | J80: Langres HM | K80: F | L80: 127 | M80: -131 | N80: -135 | O80: =IF(H80="","",IF(MAXA(L80:N80)<=0,0,MAXA(L80:N80))) -> 127 | P80: 155 | Q80: 160 | R80: - | S80: =IF(H80="","",IF(MAXA(P80:R80)<=0,0,MAXA(P80:R80))) -> 160 | T80: =IF(H80="","",IF(OR(O80=0,S80=0),0,O80+S80)) -> 287 | U80: =T80-I80*2 -> 130.8 | V80: =IF(H80="","",AQ80) -> INTB + | W80: =IF(AJ80>=0,AJ80,IF(AI80>=0,AI80,IF(AH80>=0,AH80,IF(AG80>=0,AG80,IF(AF80>=0,AF80,IF(AE80>=0,AE80,IF(AD80>=0,AD80,IF(AC80>=0,AC80,AB80)))))))) -> 7 | X80: =IF(I80="","",IF(A80="H",IF(OR(H80="SEN",H80<1995),VLOOKUP(I80,Feuil1!$A$11:$F$29,6),IF(AND(H80>1994,H80<1998),VLOOKUP(I80,Feuil1!$A$11:$F$29,5),IF(AND(H80>1997,H80<2000),VLOOKUP(I80,Feuil1!$A$11:$F$29,4),IF(AND(H80>1999,H80<2002),VLOOKUP(I80,Feuil1!$A$11:$F$29,3),VLOOKUP(I80,Feuil1!$A$11:$F$29,2))))),IF(OR(H80="SEN",H80<1995),VLOOKUP(I80,Feuil1!$G$11:$L$25,6),IF(AND(H80>1994,H80<1998),VLOOKUP(I80,Feuil1!$G$11:$L$25,5),IF(AND(H80>1997,H80<2000),VLOOKUP(I80,Feuil1!$G$11:$L$25,4),IF(AND(H80>1999,H80<2002),VLOOKUP(I80,Feuil1!$G$11:$L$25,3),VLOOKUP(I80,Feuil1!$G$11:$L$25,2))))))) -> J85 | Y80: =IF(I80="","",IF(A80="H",10^(0.794358141*LOG(I80/174.393)^2)*T80,IF(A80="F",10^(0.89726074*LOG(I80/148.026)^2)*T80,""))) -> 358.5649943 | AB80: =T80-HLOOKUP(X80,Feuil1!$C$1:$BL$10,2,FALSE) -> 142 | AC80: =T80-HLOOKUP(X80,Feuil1!$C$1:$BL$10,3,FALSE) -> 122 | AD80: =T80-HLOOKUP(X80,Feuil1!$C$1:$BL$10,4,FALSE) -> 102 | AE80: =T80-HLOOKUP(X80,Feuil1!$C$1:$BL$10,5,FALSE) -> 82 | AF80: =T80-HLOOKUP(X80,Feuil1!$C$1:$BL$10,6,FALSE) -> 62 | AG80: =T80-HLOOKUP(X80,Feuil1!$C$1:$BL$10,7,FALSE) -> 37 | AH80: =T80-HLOOKUP(X80,Feuil1!$C$1:$BL$10,8,FALSE) -> 7 | AI80: =T80-HLOOKUP(X80,Feuil1!$C$1:$BL$10,9,FALSE) -> -13 | AJ80: =T80-HLOOKUP(X80,Feuil1!$C$1:$BL$10,10,FALSE) -> -713 | AQ80: =IF(AJ80>=0,$AJ$4,IF(AI80>=0,$AI$4,IF(AH80>=0,$AH$4,IF(AG80>=0,$AG$4,IF(AF80>=0,$AF$4,IF(AE80>=0,$AE$4,IF(AD80>=0,$AD$4,IF(AC80>=0,$AC$4,$AB$4)))))))) -> INTB +
A81: H | B81: NE | C81: CHA | D81: 2 | E81: 246713 | F81: COLOMBO | G81: Ludwig | H81: 1995 | I81: 79 | J81: Reims HM | K81: F | L81: 113 | M81: 118 | N81: 121 | O81: =IF(H81="","",IF(MAXA(L81:N81)<=0,0,MAXA(L81:N81))) -> 121 | P81: 145 | Q81: 150 | R81: 154 | S81: =IF(H81="","",IF(MAXA(P81:R81)<=0,0,MAXA(P81:R81))) -> 154 | T81: =IF(H81="","",IF(OR(O81=0,S81=0),0,O81+S81)) -> 275 | U81: =T81-I81*2 -> 117 | V81: =IF(H81="","",AQ81) -> NAT + | W81: =IF(AJ81>=0,AJ81,IF(AI81>=0,AI81,IF(AH81>=0,AH81,IF(AG81>=0,AG81,IF(AF81>=0,AF81,IF(AE81>=0,AE81,IF(AD81>=0,AD81,IF(AC81>=0,AC81,AB81)))))))) -> 25 | X81: =IF(I81="","",IF(A81="H",IF(OR(H81="SEN",H81<1995),VLOOKUP(I81,Feuil1!$A$11:$F$29,6),IF(AND(H81>1994,H81<1998),VLOOKUP(I81,Feuil1!$A$11:$F$29,5),IF(AND(H81>1997,H81<2000),VLOOKUP(I81,Feuil1!$A$11:$F$29,4),IF(AND(H81>1999,H81<2002),VLOOKUP(I81,Feuil1!$A$11:$F$29,3),VLOOKUP(I81,Feuil1!$A$11:$F$29,2))))),IF(OR(H81="SEN",H81<1995),VLOOKUP(I81,Feuil1!$G$11:$L$25,6),IF(AND(H81>1994,H81<1998),VLOOKUP(I81,Feuil1!$G$11:$L$25,5),IF(AND(H81>1997,H81<2000),VLOOKUP(I81,Feuil1!$G$11:$L$25,4),IF(AND(H81>1999,H81<2002),VLOOKUP(I81,Feuil1!$G$11:$L$25,3),VLOOKUP(I81,Feuil1!$G$11:$L$25,2))))))) -> J85 | Y81: =IF(I81="","",IF(A81="H",10^(0.794358141*LOG(I81/174.393)^2)*T81,IF(A81="F",10^(0.89726074*LOG(I81/148.026)^2)*T81,""))) -> 341.4131813 | AB81: =T81-HLOOKUP(X81,Feuil1!$C$1:$BL$10,2,FALSE) -> 130 | AC81: =T81-HLOOKUP(X81,Feuil1!$C$1:$BL$10,3,FALSE) -> 110 | AD81: =T81-HLOOKUP(X81,Feuil1!$C$1:$BL$10,4,FALSE) -> 90 | AE81: =T81-HLOOKUP(X81,Feuil1!$C$1:$BL$10,5,FALSE) -> 70 | AF81: =T81-HLOOKUP(X81,Feuil1!$C$1:$BL$10,6,FALSE) -> 50 | AG81: =T81-HLOOKUP(X81,Feuil1!$C$1:$BL$10,7,FALSE) -> 25 | AH81: =T81-HLOOKUP(X81,Feuil1!$C$1:$BL$10,8,FALSE) -> -5 | AI81: =T81-HLOOKUP(X81,Feuil1!$C$1:$BL$10,9,FALSE) -> -25 | AJ81: =T81-HLOOKUP(X81,Feuil1!$C$1:$BL$10,10,FALSE) -> -725 | AQ81: =IF(AJ81>=0,$AJ$4,IF(AI81>=0,$AI$4,IF(AH81>=0,$AH$4,IF(AG81>=0,$AG$4,IF(AF81>=0,$AF$4,IF(AE81>=0,$AE$4,IF(AD81>=0,$AD$4,IF(AC81>=0,$AC$4,$AB$4)))))))) -> NAT +
A82: H | B82: SEST | C82: CAZ | D82: 3 | E82: 231902 | F82: CINQUIN | G82: Raphael | H82: 1995 | I82: 81.7 | J82: E.S. VILLENEUVE LOUBET | K82: F | L82: 97 | M82: 101 | N82: -104 | O82: =IF(H82="","",IF(MAXA(L82:N82)<=0,0,MAXA(L82:N82))) -> 101 | P82: 110 | Q82: 115 | R82: 120 | S82: =IF(H82="","",IF(MAXA(P82:R82)<=0,0,MAXA(P82:R82))) -> 120 | T82: =IF(H82="","",IF(OR(O82=0,S82=0),0,O82+S82)) -> 221 | U82: =T82-I82*2 -> 57.6 | V82: =IF(H82="","",AQ82) -> IRG + | W82: =IF(AJ82>=0,AJ82,IF(AI82>=0,AI82,IF(AH82>=0,AH82,IF(AG82>=0,AG82,IF(AF82>=0,AF82,IF(AE82>=0,AE82,IF(AD82>=0,AD82,IF(AC82>=0,AC82,AB82)))))))) -> 16 | X82: =IF(I82="","",IF(A82="H",IF(OR(H82="SEN",H82<1995),VLOOKUP(I82,Feuil1!$A$11:$F$29,6),IF(AND(H82>1994,H82<1998),VLOOKUP(I82,Feuil1!$A$11:$F$29,5),IF(AND(H82>1997,H82<2000),VLOOKUP(I82,Feuil1!$A$11:$F$29,4),IF(AND(H82>1999,H82<2002),VLOOKUP(I82,Feuil1!$A$11:$F$29,3),VLOOKUP(I82,Feuil1!$A$11:$F$29,2))))),IF(OR(H82="SEN",H82<1995),VLOOKUP(I82,Feuil1!$G$11:$L$25,6),IF(AND(H82>1994,H82<1998),VLOOKUP(I82,Feuil1!$G$11:$L$25,5),IF(AND(H82>1997,H82<2000),VLOOKUP(I82,Feuil1!$G$11:$L$25,4),IF(AND(H82>1999,H82<2002),VLOOKUP(I82,Feuil1!$G$11:$L$25,3),VLOOKUP(I82,Feuil1!$G$11:$L$25,2))))))) -> J85 | Y82: =IF(I82="","",IF(A82="H",10^(0.794358141*LOG(I82/174.393)^2)*T82,IF(A82="F",10^(0.89726074*LOG(I82/148.026)^2)*T82,""))) -> 269.4852063 | AB82: =T82-HLOOKUP(X82,Feuil1!$C$1:$BL$10,2,FALSE) -> 76 | AC82: =T82-HLOOKUP(X82,Feuil1!$C$1:$BL$10,3,FALSE) -> 56 | AD82: =T82-HLOOKUP(X82,Feuil1!$C$1:$BL$10,4,FALSE) -> 36 | AE82: =T82-HLOOKUP(X82,Feuil1!$C$1:$BL$10,5,FALSE) -> 16 | AF82: =T82-HLOOKUP(X82,Feuil1!$C$1:$BL$10,6,FALSE) -> -4 | AG82: =T82-HLOOKUP(X82,Feuil1!$C$1:$BL$10,7,FALSE) -> -29 | AH82: =T82-HLOOKUP(X82,Feuil1!$C$1:$BL$10,8,FALSE) -> -59 | AI82: =T82-HLOOKUP(X82,Feuil1!$C$1:$BL$10,9,FALSE) -> -79 | AJ82: =T82-HLOOKUP(X82,Feuil1!$C$1:$BL$10,10,FALSE) -> -779 | AQ82: =IF(AJ82>=0,$AJ$4,IF(AI82>=0,$AI$4,IF(AH82>=0,$AH$4,IF(AG82>=0,$AG$4,IF(AF82>=0,$AF$4,IF(AE82>=0,$AE$4,IF(AD82>=0,$AD$4,IF(AC82>=0,$AC$4,$AB$4)))))))) -> IRG +
A83: H | B83: NE | C83: ALS | D83: 4 | E83: 299294 | F83: CASPAR | G83: PAUL | H83: 1996 | I83: 79.7 | J83: CS Brumath | K83: F | L83: 85 | M83: 88 | N83: 92 | O83: =IF(H83="","",IF(MAXA(L83:N83)<=0,0,MAXA(L83:N83))) -> 92 | P83: 114 | Q83: 118 | R83: 121 | S83: =IF(H83="","",IF(MAXA(P83:R83)<=0,0,MAXA(P83:R83))) -> 121 | T83: =IF(H83="","",IF(OR(O83=0,S83=0),0,O83+S83)) -> 213 | U83: =T83-I83*2 -> 53.6 | V83: =IF(H83="","",AQ83) -> IRG + | W83: =IF(AJ83>=0,AJ83,IF(AI83>=0,AI83,IF(AH83>=0,AH83,IF(AG83>=0,AG83,IF(AF83>=0,AF83,IF(AE83>=0,AE83,IF(AD83>=0,AD83,IF(AC83>=0,AC83,AB83)))))))) -> 8 | X83: =IF(I83="","",IF(A83="H",IF(OR(H83="SEN",H83<1995),VLOOKUP(I83,Feuil1!$A$11:$F$29,6),IF(AND(H83>1994,H83<1998),VLOOKUP(I83,Feuil1!$A$11:$F$29,5),IF(AND(H83>1997,H83<2000),VLOOKUP(I83,Feuil1!$A$11:$F$29,4),IF(AND(H83>1999,H83<2002),VLOOKUP(I83,Feuil1!$A$11:$F$29,3),VLOOKUP(I83,Feuil1!$A$11:$F$29,2))))),IF(OR(H83="SEN",H83<1995),VLOOKUP(I83,Feuil1!$G$11:$L$25,6),IF(AND(H83>1994,H83<1998),VLOOKUP(I83,Feuil1!$G$11:$L$25,5),IF(AND(H83>1997,H83<2000),VLOOKUP(I83,Feuil1!$G$11:$L$25,4),IF(AND(H83>1999,H83<2002),VLOOKUP(I83,Feuil1!$G$11:$L$25,3),VLOOKUP(I83,Feuil1!$G$11:$L$25,2))))))) -> J85 | Y83: =IF(I83="","",IF(A83="H",10^(0.794358141*LOG(I83/174.393)^2)*T83,IF(A83="F",10^(0.89726074*LOG(I83/148.026)^2)*T83,""))) -> 263.1755946 | AB83: =T83-HLOOKUP(X83,Feuil1!$C$1:$BL$10,2,FALSE) -> 68 | AC83: =T83-HLOOKUP(X83,Feuil1!$C$1:$BL$10,3,FALSE) -> 48 | AD83: =T83-HLOOKUP(X83,Feuil1!$C$1:$BL$10,4,FALSE) -> 28 | AE83: =T83-HLOOKUP(X83,Feuil1!$C$1:$BL$10,5,FALSE) -> 8 | AF83: =T83-HLOOKUP(X83,Feuil1!$C$1:$BL$10,6,FALSE) -> -12 | AG83: =T83-HLOOKUP(X83,Feuil1!$C$1:$BL$10,7,FALSE) -> -37 | AH83: =T83-HLOOKUP(X83,Feuil1!$C$1:$BL$10,8,FALSE) -> -67 | AI83: =T83-HLOOKUP(X83,Feuil1!$C$1:$BL$10,9,FALSE) -> -87 | AJ83: =T83-HLOOKUP(X83,Feuil1!$C$1:$BL$10,10,FALSE) -> -787 | AQ83: =IF(AJ83>=0,$AJ$4,IF(AI83>=0,$AI$4,IF(AH83>=0,$AH$4,IF(AG83>=0,$AG$4,IF(AF83>=0,$AF$4,IF(AE83>=0,$AE$4,IF(AD83>=0,$AD$4,IF(AC83>=0,$AC$4,$AB$4)))))))) -> IRG +
